Workbook

Sheet M-Max Motor (hidden)
A1: Zähler | B1: Vorzeichen für das Drehmoment | C1: Negative Drehzahl einblenden? | D1: n Motor [1/min] | E1: ω [1/s] | F1: L phph [mH] | G1: PP | H1: XL ph [Ω] | I1: R phph [Ω] | J1: R ph [Ω] | K1: ke [V/1000] | L1: U EMK eff phph [V] | M1: U EMK eff ph [V] | N1: Unetz phph [V] | O1: Unetz ph [V] | P1: U1 ph [V] | Q1: XLR [Ω] | R1: Imax ph [A] | S1: M Max [Nm] | T1: M MaxM [Nm] | U1: Spannungskennlinie 1 [Nm] | V1: a | W1: b | X1: c | Y1: I 12 | Z1: M Max [Nm] | AA1: M MaxM [Nm] | AB1: Spannungskennlinie 2 [Nm] | AC1: M MaxM (I MaxRegler) [Nm] | AD1: Spannungskennlinie [Nm] | AE1: Spannungskennlinie [W] | AF1: M MaxM (I MaxRegler) [Nm] | AG1: P MaxM (I MaxRegler) [W] | AH1: n Getriebe [1/min] | AI1: M MaxG (I MaxRegler) [Nm] | AJ1: M MaxG (M MaxM) [Nm] | AL1: n Motor [1/min] | AM1: PFe [W] | AN1: PFe [W] | AO1: PCuPh 100K [W] | AP1: IS1 100K [A] | AQ1: S1 100K Kennlinie [Nm] | AR1: S1 100K Kennlinie [Nm] | AS1: S1 100K Kennlinie [Nm] | AT1: S1 100K Kennlinie [W] | AU1: n Getriebe [1/min] | AV1: M S1G 100K [Nm] | AW1: PCuPh 60K [W] | AX1: IS1 60K [A] | AY1: S1 60K Kennlinie [Nm] | AZ1: S1 60K Kennlinie [Nm] | BA1: S1 60K Kennlinie [Nm] | BB1: S1 60K Kennlinie [W] | BC1: n Getriebe [1/min] | BD1: M S1G 60K [Nm] | BI1: aktuell
A3: 0 | B3: 1 | C3: 1 | D3: =A3*nLL/60*C3 -> 0 | E3: =2*PI()*D3/60 -> 0 | F3: =L_phph -> 7.6 | G3: =VLOOKUP(Hardware!$C$78,MotorenAuswahlMatrix,26,FALSE) -> 3 | H3: =E3*F3/2/1000*G3 -> 0 | I3: =R_phph_cold -> 1.5 | J3: =R_phph_cold/2 -> 0.75 | K3: =KE_Motor -> 60 | L3: =K3*D3/1000 -> 0 | M3: =L3/ SQRT(3) -> 0 | N3: =UNetz -> 400 | O3: =N3/SQRT(3) -> 230.9401077 | P3: =O3*0.95 -> 219.3931023 | Q3: =SQRT(H3^2+J3^2) -> 0.75 | R3: =SQRT((P3^2-M3^2)/Q3^2) -> 292.5241364 | S3: =R3*MMaxM/IMaxM*B3 -> 286.6736537 | T3: =MMaxM*B3 -> 36 | U3: =IF(ABS(S3)>ABS(T3),T3,S3) -> 36 | V3: =H3^2+J3^2 -> 0.5625 | W3: =2*J3*M3 -> 0 | X3: =-(P3^2-M3^2) -> -48133.33333 | Y3: =(-W3+SQRT(W3^2-4*V3*X3))/(2*V3) -> 292.5241364 | Z3: =Y3*MMaxM/IMaxM -> 286.6736537 | AA3: =MMaxM*B3 -> 36 | AB3: =IF(ABS(Z3)>ABS(AA3),AA3,Z3) -> 36 | AC3: =IMaxeinstellen*MNennM/INennM*B3 -> 17.09924175 | AD3: =IF(OR($BI$4="EX",$BI$4="NX"),AB3,AB3) -> 36 | AE3: =AD3*2*PI()*D3/60 -> 0 | AF3: =IF(ABS(AC3)>ABS(AD3),AD3,AC3) -> 17.09924175 | AG3: =AF3*2*PI()*D3/60 -> 0 | AH3: =D3/iGetriebe -> 0 | AI3: =IF(AF3>0,(AF3-MReibG)*iGetriebe,(AF3+MReibG)*iGetriebe) -> 112.6246923 | AJ3: =IF(AD3>0,(AD3-MReibG)*iGetriebe,(AD3+MReibG)*iGetriebe) -> 244.93 | AL3: =A3*nNennM*nMaxMFaktor/50 -> 0 | AM3: =BI$29*2*PI()*AL3/60+BI$31*AL3/1000*2*PI()*AL3/60 -> 0 | AN3: =(AL3/nNennM)^2*$BI$22 -> 0 | AO3: =IF(AM3>$BI$20,0,($BI$20-AM3)/3) -> 88.872 | AP3: =SQRT(AO3/(R_ph*1.4)) -> 9.2 | AQ3: =AP3*(M0Motor+$BI$29)/I0Motor-$BI$29*0-$BI$31*AL3/1000*0 -> 9.061784904 | AR3: =IF(AQ3>AF$3,AF$3,AQ3) -> 9.061784904 | AS3: =IF(AR3>INennR*KT_Faktor,INennR*KT_Faktor,AR3) -> 9.061784904 | AT3: =AS3*2*PI()*AL3/60 -> 0 | AU3: =AL3/iGetriebe -> 0 | AV3: =(AS3-MReibG)*iGetriebe -> 56.36249433 | AW3: =IF(AM3>$BI$20*0.6,0,($BI$20*0.6-AM3)/3) -> 53.3232 | AX3: =SQRT(AW3/(R_ph*1.4)) -> 7.126289357 | AY3: =AX3*(M0Motor+$BI$29)/I0Motor-$BI$29*0-$BI$31*AL3/1000*0 -> 7.019228404 | AZ3: =IF(AY3>AF$3,AF$3,AY3) -> 7.019228404 | BA3: =IF(AZ3>INennR*KT_Faktor,INennR*KT_Faktor,AZ3) -> 7.019228404 | BB3: =BA3*2*PI()*AL3/60 -> 0 | BC3: =AL3/iGetriebe -> 0 | BD3: =(BA3-MReibG)*iGetriebe -> 42.06459883 | BH3: Motor: | BI3: =Hardware!$C$78 -> AC M2n0650-4/2-6
A4: 1 | B4: 1 | C4: 1 | D4: 105.5555556 | E4: =2*PI()*D4/60 -> 11.05375193 | F4: 7.6 | G4: =VLOOKUP(Hardware!$C$78,MotorenAuswahlMatrix,26,FALSE) -> 3 | H4: =E4*F4/2/1000*G4 -> 0.126012772 | I4: 1.5 | J4: 0.75 | K4: 60 | L4: =K4*D4/1000 -> 6.333333333 | M4: =L4/ SQRT(3) -> 3.656551705 | N4: 400 | O4: =N4/SQRT(3) -> 230.9401077 | P4: =O4*0.95 -> 219.3931023 | Q4: =SQRT(H4^2+J4^2) -> 0.7605124711 | R4: =SQRT((P4^2-M4^2)/Q4^2) -> 288.4405414 | S4: 282.6717306 | T4: 36 | U4: =IF(ABS(S4)>ABS(T4),T4,S4) -> 36 | V4: =H4^2+J4^2 -> 0.5783792187 | W4: =2*J4*M4 -> 5.484827557 | X4: =-(P4^2-M4^2) -> -48119.96296 | Y4: =(-W4+SQRT(W4^2-4*V4*X4))/(2*V4) -> 283.7379613 | Z4: 278.063202 | AA4: 36 | AB4: =IF(ABS(Z4)>ABS(AA4),AA4,Z4) -> 36 | AC4: 17.09924175 | AD4: =IF(OR($BI$4="EX",$BI$4="NX"),AB4,AB4) -> 36 | AE4: =AD4*2*PI()*D4/60 -> 397.9350695 | AF4: =IF(ABS(AC4)>ABS(AD4),AD4,AC4) -> 17.09924175 | AG4: =AF4*2*PI()*D4/60 -> 189.0107765 | AH4: =D4/iGetriebe -> 15.07936508 | AI4: =IF(AF4>0,(AF4-MReibG)*iGetriebe,(AF4+MReibG)*iGetriebe) -> 112.6246923 | AJ4: =IF(AD4>0,(AD4-MReibG)*iGetriebe,(AD4+MReibG)*iGetriebe) -> 244.93 | AL4: 84 | AM4: 0.5891414256 | AN4: 0.057066282 | AO4: 88.67561952 | AP4: 9.189829758 | AQ4: 9.051767453 | AR4: =IF(AQ4>AF$3,AF$3,AQ4) -> 9.051767453 | AS4: 9.051767453 | AT4: =AS4*2*PI()*AL4/60 -> 79.62350517 | AU4: 12 | AV4: 56.29237217 | AW4: =IF(AM4>$BI$20*0.6,0,($BI$20*0.6-AM4)/3) -> 53.12681952 | AX4: 7.113154784 | AY4: 7.006291156 | AZ4: =IF(AY4>AF$3,AF$3,AY4) -> 7.006291156 | BA4: 7.006291156 | BB4: =BA4*2*PI()*AL4/60 -> 61.63055591 | BC4: 12 | BD4: 41.97403809 | BH4: Motor Bez: | BI4: =LEFT(BI3,2) -> AC
A5: 2 | B5: 1 | C5: 1 | D5: 211.1111111 | E5: 22.10750386 | F5: 7.6 | G5: =VLOOKUP(Hardware!$C$78,MotorenAuswahlMatrix,26,FALSE) -> 3 | H5: 0.252025544 | I5: 1.5 | J5: 0.75 | K5: 60 | L5: 12.66666667 | M5: 7.31310341 | N5: 400 | O5: 230.9401077 | P5: 219.3931023 | Q5: 0.7912122818 | R5: 277.1331897 | S5: 271.5905259 | T5: 36 | U5: 36 | V5: 0.6260168748 | W5: 10.96965511 | X5: -48079.85185 | Y5: 268.5101813 | Z5: 263.1399777 | AA5: 36 | AB5: 36 | AC5: 17.09924175 | AD5: 36 | AE5: 795.8701389 | AF5: 17.09924175 | AG5: 378.021553 | AH5: 30.15873016 | AI5: 112.6246923 | AJ5: 244.93 | AL5: 168 | AM5: 1.269588902 | AN5: 0.228265128 | AO5: 88.4488037 | AP5: 9.178069291 | AQ5: 9.040183668 | AR5: 9.040183668 | AS5: 9.040183668 | AT5: 159.0432177 | AU5: 24 | AV5: 56.21128568 | AW5: 52.9000037 | AX5: 7.097954346 | AY5: 6.991319081 | AZ5: 6.991319081 | BA5: 6.991319081 | BB5: 122.9977093 | BC5: 24 | BD5: 41.86923357 | BH5: Text yR Achse: | BI5: =Parameter!AH70&" Motor "&Parameter!Y70 -> M Motor [Nm]
A6: 3 | B6: 1 | C6: 1 | D6: 316.6666667 | E6: 33.16125579 | F6: 7.6 | G6: =VLOOKUP(Hardware!$C$78,MotorenAuswahlMatrix,26,FALSE) -> 3 | H6: 0.378038316 | I6: 1.5 | J6: 0.75 | K6: 60 | L6: 19 | M6: 10.96965511 | N6: 400 | O6: 230.9401077 | P6: 219.3931023 | Q6: 0.8398886643 | R6: 260.8901615 | S6: 255.6723583 | T6: 36 | U6: 36 | V6: 0.7054129684 | W6: 16.45448267 | X6: -48013 | Y6: 249.4877131 | Z6: 244.4979589 | AA6: 36 | AB6: 36 | AC6: 17.09924175 | AD6: 36 | AE6: 1193.805208 | AF6: 17.09924175 | AG6: 567.0323295 | AH6: 45.23809524 | AI6: 112.6246923 | AJ6: 244.93 | AL6: 252 | AM6: 2.04134243 | AN6: 0.513596538 | AO6: 88.19155252 | AP6: 9.164712477 | AQ6: 9.027027519 | AR6: 9.027027519 | AS6: 9.027027519 | AT6: 238.217644 | AU6: 36 | AV6: 56.11919263 | AW6: 52.64275252 | AX6: 7.080674741 | AY6: 6.974299073 | AZ6: 6.974299073 | BA6: 6.974299073 | BB6: 184.0474166 | BC6: 36 | BD6: 41.75009351 | BH6: Text yL Achse:
A7: 4 | B7: 1 | C7: 1 | D7: 422.2222222 | E7: 44.21500772 | F7: 7.6 | G7: =VLOOKUP(Hardware!$C$78,MotorenAuswahlMatrix,26,FALSE) -> 3 | H7: 0.504051088 | I7: 1.5 | J7: 0.75 | K7: 60 | L7: 25.33333333 | M7: 14.62620682 | N7: 400 | O7: 230.9401077 | P7: 219.3931023 | Q7: 0.9036412448 | R7: 242.2477066 | S7: 237.4027525 | T7: 36 | U7: 36 | V7: 0.8165674993 | W7: 21.93931023 | X7: -47919.40741 | Y7: 229.1860465 | Z7: 224.6023256 | AA7: 36 | AB7: 36 | AC7: 17.09924175 | AD7: 36 | AE7: 1591.740278 | AF7: 17.09924175 | AG7: 756.043106 | AH7: 60.31746032 | AI7: 112.6246923 | AJ7: 244.93 | AL7: 336 | AM7: 2.90440201 | AN7: 0.913060512 | AO7: 87.903866 | AP7: 9.149752325 | AQ7: 9.012292119 | AR7: 9.012292119 | AS7: 9.012292119 | AT7: 317.105048 | AU7: 48 | AV7: 56.01604483 | AW7: 52.355066 | AX7: 7.061300703 | AY7: 6.955216099 | AZ7: 6.955216099 | BA7: 6.955216099 | BB7: 244.725105 | BC7: 48 | BD7: 41.61651269 | BH7: Text x Achse: | BI7: =Parameter!AA70&" Motor "&Parameter!R70 -> n Motor [1/min]
A8: 5 | B8: 1 | C8: 1 | D8: 527.7777778 | E8: 55.26875965 | F8: 7.6 | G8: =VLOOKUP(Hardware!$C$78,MotorenAuswahlMatrix,26,FALSE) -> 3 | H8: 0.63006386 | I8: 1.5 | J8: 0.75 | K8: 60 | L8: 31.66666667 | M8: 18.28275852 | N8: 400 | O8: 230.9401077 | P8: 219.3931023 | Q8: 0.9795307385 | R8: 223.1987062 | S8: 218.7347321 | T8: 36 | U8: 36 | V8: 0.9594804676 | W8: 27.42413779 | X8: -47799.07407 | Y8: 209.3646211 | Z8: 205.1773287 | AA8: 36 | AB8: 36 | AC8: 17.09924175 | AD8: 36 | AE8: 1989.675347 | AF8: 17.09924175 | AG8: 945.0538826 | AH8: 75.3968254 | AI8: 112.6246923 | AJ8: 244.93 | AL8: 420 | AM8: 3.85876764 | AN8: 1.42665705 | AO8: 87.58574412 | AP8: 9.133180957 | AQ8: 8.995969709 | AR8: 8.995969709 | AS8: 8.995969709 | AT8: 395.6634129 | AU8: 60 | AV8: 55.90178796 | AW8: 52.03694412 | AX8: 7.039814941 | AY8: 6.934053126 | AZ8: 6.934053126 | BA8: 6.934053126 | BB8: 304.975585 | BC8: 60 | BD8: 41.46837188 | BH8: Text Reihe1: | BI8: ="erf. "&Parameter!AH70&" Motor "&Parameter!Y70 -> erf. M Motor [Nm]
A9: 6 | B9: 1 | C9: 1 | D9: 633.3333333 | E9: 66.32251158 | F9: 7.6 | G9: =VLOOKUP(Hardware!$C$78,MotorenAuswahlMatrix,26,FALSE) -> 3 | H9: 0.756076632 | I9: 1.5 | J9: 0.75 | K9: 60 | L9: 38 | M9: 21.93931023 | N9: 400 | O9: 230.9401077 | P9: 219.3931023 | Q9: 1.064965668 | R9: 204.9769182 | S9: 200.8773798 | T9: 36 | U9: 36 | V9: 1.134151873 | W9: 32.90896534 | X9: -47652 | Y9: 190.9815356 | Z9: 187.1619049 | AA9: 36 | AB9: 36 | AC9: 17.09924175 | AD9: 36 | AE9: 2387.610417 | AF9: 17.09924175 | AG9: 1134.064659 | AH9: 90.47619048 | AI9: 112.6246923 | AJ9: 244.93 | AL9: 504 | AM9: 4.904439322 | AN9: 2.054386152 | AO9: 87.23718689 | AP9: 9.114989585 | AQ9: 8.978051633 | AR9: 8.978051633 | AS9: 8.978051633 | AT9: 473.8504017 | AU9: 72 | AV9: 55.77636143 | AW9: 51.68838689 | AX9: 7.016198054 | AY9: 6.910791045 | AZ9: 6.910791045 | BA9: 6.910791045 | BB9: 364.7429583 | BC9: 72 | BD9: 41.30553731 | BH9: Text Reihe2: | BI9: =Hardware!H79&" "&Parameter!Y70 -> erf. M Nenn Motor [Nm]
A10: 7 | B10: 1 | C10: 1 | D10: 738.8888889 | E10: 77.37626351 | F10: 7.6 | G10: =VLOOKUP(Hardware!$C$78,MotorenAuswahlMatrix,26,FALSE) -> 3 | H10: 0.882089404 | I10: 1.5 | J10: 0.75 | K10: 60 | L10: 44.33333333 | M10: 25.59586193 | N10: 400 | O10: 230.9401077 | P10: 219.3931023 | Q10: 1.157834926 | R10: 188.1916756 | S10: 184.4278421 | T10: 36 | U10: 36 | V10: 1.340581717 | W10: 38.3937929 | X10: -47478.18519 | Y10: 174.4158736 | Z10: 170.9275561 | AA10: 36 | AB10: 36 | AC10: 17.09924175 | AD10: 36 | AE10: 2785.545486 | AF10: 17.09924175 | AG10: 1323.075436 | AH10: 105.5555556 | AI10: 112.6246923 | AJ10: 244.93 | AL10: 588 | AM10: 6.041417054 | AN10: 2.796247818 | AO10: 86.85819432 | AP10: 9.095168488 | AQ10: 8.958528315 | AR10: 8.958528315 | AS10: 8.958528315 | AT10: 551.6233162 | AU10: 84 | AV10: 55.63969821 | AW10: 51.30939432 | AX10: 6.990428444 | AY10: 6.885408581 | AZ10: 6.885408581 | BA10: 6.885408581 | BB10: 423.9705207 | BC10: 84 | BD10: 41.12786006 | BH10: Text Reihe3: | BI10: ="Spannungskennlinie "&Parameter!Y70 -> Spannungskennlinie [Nm]
A11: 8 | B11: 1 | C11: 1 | D11: 844.4444444 | E11: 88.43001543 | F11: 7.6 | G11: =VLOOKUP(Hardware!$C$78,MotorenAuswahlMatrix,26,FALSE) -> 3 | H11: 1.008102176 | I11: 1.5 | J11: 0.75 | K11: 60 | L11: 50.66666667 | M11: 29.25241364 | N11: 400 | O11: 230.9401077 | P11: 219.3931023 | Q11: 1.256491145 | R11: 173.0487294 | S11: 169.5877548 | T11: 36 | U11: 36 | V11: 1.578769997 | W11: 43.87862046 | X11: -47277.62963 | Y11: 159.7093438 | Z11: 156.515157 | AA11: 36 | AB11: 36 | AC11: 17.09924175 | AD11: 36 | AE11: 3183.480556 | AF11: 17.09924175 | AG11: 1512.086212 | AH11: 120.6349206 | AI11: 112.6246923 | AJ11: 244.93 | AL11: 672 | AM11: 7.269700838 | AN11: 3.652242048 | AO11: 86.44876639 | AP11: 9.073706986 | AQ11: 8.937389238 | AR11: 8.937389238 | AS11: 8.937389238 | AT11: 628.9390547 | AU11: 96 | AV11: 55.49172466 | AW11: 50.89996639 | AX11: 6.962482206 | AY11: 6.85788219 | AZ11: 6.85788219 | BA11: 6.85788219 | BB11: 482.6006597 | BC11: 96 | BD11: 40.93517533 | BH11: Text Reihe4: | BI11: =Parameter!AH70&" MaxMotor (I Max_Eingestellt_Regler) "&Parameter!Y70 -> M MaxMotor (I Max_Eingestellt_Regler) [Nm]
A12: 9 | B12: 1 | C12: 1 | D12: 950 | E12: 99.48376736 | F12: 7.6 | G12: =VLOOKUP(Hardware!$C$78,MotorenAuswahlMatrix,26,FALSE) -> 3 | H12: 1.134114948 | I12: 1.5 | J12: 0.75 | K12: 60 | L12: 57 | M12: 32.90896534 | N12: 400 | O12: 230.9401077 | P12: 219.3931023 | Q12: 1.359675224 | R12: 159.531397 | S12: 156.3407691 | T12: 36 | U12: 36 | V12: 1.848716715 | W12: 49.36344802 | X12: -47050.33333 | Y12: 146.7383315 | Z12: 143.8035649 | AA12: 36 | AB12: 36 | AC12: 17.09924175 | AD12: 36 | AE12: 3581.415625 | AF12: 17.09924175 | AG12: 1701.096989 | AH12: 135.7142857 | AI12: 112.6246923 | AJ12: 244.93 | AL12: 756 | AM12: 8.589290674 | AN12: 4.622368842 | AO12: 86.00890311 | AP12: 9.050593409 | AQ12: 8.914622905 | AR12: 8.914622905 | AS12: 8.914622905 | AT12: 705.7540685 | AU12: 108 | AV12: 55.33236033 | AW12: 50.46010311 | AX12: 6.932333017 | AY12: 6.828185943 | AZ12: 6.828185943 | BA12: 6.828185943 | BB12: 540.5747457 | BC12: 108 | BD12: 40.7273016 | BH12: Text Reihe5: | BI12: ="S1 Kennlinie Motor "&Parameter!Y70 -> S1 Kennlinie Motor [Nm]
A13: 10 | B13: 1 | C13: 1 | D13: 1055.555556 | E13: 110.5375193 | F13: 7.6 | G13: =VLOOKUP(Hardware!$C$78,MotorenAuswahlMatrix,26,FALSE) -> 3 | H13: 1.26012772 | I13: 1.5 | J13: 0.75 | K13: 60 | L13: 63.33333333 | M13: 36.56551705 | N13: 400 | O13: 230.9401077 | P13: 219.3931023 | Q13: 1.466431679 | R13: 147.5176234 | S13: 144.5672709 | T13: 36 | U13: 36 | V13: 2.150421871 | W13: 54.84827557 | X13: -46796.2963 | Y13: 135.3149318 | Z13: 132.6086331 | AA13: 36 | AB13: 36 | AC13: 17.09924175 | AD13: 36 | AE13: 3979.350695 | AF13: 17.09924175 | AG13: 1890.107765 | AH13: 150.7936508 | AI13: 112.6246923 | AJ13: 244.93 | AL13: 840 | AM13: 10.00018656 | AN13: 5.7066282 | AO13: 85.53860448 | AP13: 9.025815066 | AQ13: 8.890216816 | AR13: 8.890216816 | AS13: 8.890216816 | AT13: 782.0243155 | AU13: 120 | AV13: 55.16151771 | AW13: 49.98980448 | AX13: 6.899952 | AY13: 6.796291399 | AZ13: 6.796291399 | BA13: 6.796291399 | BB13: 597.8330156 | BC13: 120 | BD13: 40.50403979 | BH13: Text Reihe5: | BI13: M Nenn Motor [Nm]
A14: 11 | B14: 1 | C14: 1 | D14: 1161.111111 | E14: 121.5912712 | F14: 7.6 | G14: =VLOOKUP(Hardware!$C$78,MotorenAuswahlMatrix,26,FALSE) -> 3 | H14: 1.386140492 | I14: 1.5 | J14: 0.75 | K14: 60 | L14: 69.66666667 | M14: 40.22206875 | N14: 400 | O14: 230.9401077 | P14: 219.3931023 | Q14: 1.576034728 | R14: 136.8463286 | S14: 134.109402 | T14: 36 | U14: 36 | V14: 2.483885463 | W14: 60.33310313 | X14: -46515.51852 | Y14: 125.2392881 | Z14: 122.7345023 | AA14: 36 | AB14: 36 | AC14: 17.09924175 | AD14: 36 | AE14: 4377.285764 | AF14: 17.09924175 | AG14: 2079.118542 | AH14: 165.8730159 | AI14: 112.6246923 | AJ14: 244.93 | AL14: 924 | AM14: 11.5023885 | AN14: 6.905020122 | AO14: 85.0378705 | AP14: 8.999358205 | AQ14: 8.864157426 | AR14: 8.864157426 | AS14: 8.864157426 | AT14: 857.705213 | AU14: 132 | AV14: 54.97910199 | AW14: 49.4890705 | AX14: 6.865307575 | AY14: 6.76216745 | AZ14: 6.76216745 | BA14: 6.76216745 | BB14: 654.314448 | BC14: 132 | BD14: 40.26517215
A15: 12 | B15: 1 | C15: 1 | D15: 1266.666667 | E15: 132.6450232 | F15: 7.6 | G15: =VLOOKUP(Hardware!$C$78,MotorenAuswahlMatrix,26,FALSE) -> 3 | H15: 1.512153264 | I15: 1.5 | J15: 0.75 | K15: 60 | L15: 76 | M15: 43.87862046 | N15: 400 | O15: 230.9401077 | P15: 219.3931023 | Q15: 1.687929943 | R15: 127.3515304 | S15: 124.8044998 | T15: 36 | U15: 36 | V15: 2.849107494 | W15: 65.81793069 | X15: -46208 | Y15: 116.3236484 | Z15: 113.9971754 | AA15: 36 | AB15: 36 | AC15: 17.09924175 | AD15: 36 | AE15: 4775.220833 | AF15: 17.09924175 | AG15: 2268.129318 | AH15: 180.952381 | AI15: 112.6246923 | AJ15: 244.93 | AL15: 1008 | AM15: 13.09589649 | AN15: 8.217544608 | AO15: 84.50670117 | AP15: 8.971207976 | AQ15: 8.836430109 | AR15: 8.836430109 | AS15: 8.836430109 | AT15: 932.7515875 | AU15: 144 | AV15: 54.78501076 | AW15: 48.95790117 | AX15: 6.828365291 | AY15: 6.725780164 | AZ15: 6.725780164 | BA15: 6.725780164 | BB15: 709.9566282 | BC15: 144 | BD15: 40.01046115
A16: 13 | B16: 1 | C16: 1 | D16: 1372.222222 | E16: 143.6987751 | F16: 7.6 | G16: =VLOOKUP(Hardware!$C$78,MotorenAuswahlMatrix,26,FALSE) -> 3 | H16: 1.638166036 | I16: 1.5 | J16: 0.75 | K16: 60 | L16: 82.33333333 | M16: 47.53517216 | N16: 400 | O16: 230.9401077 | P16: 219.3931023 | Q16: 1.801690307 | R16: 118.8781221 | S16: 116.5005596 | T16: 36 | U16: 36 | V16: 3.246087961 | W16: 71.30275824 | X16: -45873.74074 | Y16: 108.4015101 | Z16: 106.2334799 | AA16: 36 | AB16: 36 | AC16: 17.09924175 | AD16: 36 | AE16: 5173.155903 | AF16: 17.09924175 | AG16: 2457.140095 | AH16: 196.031746 | AI16: 112.6246923 | AJ16: 244.93 | AL16: 1092 | AM16: 14.78071053 | AN16: 9.644201658 | AO16: 83.94509649 | AP16: 8.941348385 | AQ16: 8.80701911 | AR16: 8.80701911 | AS16: 8.80701911 | AT16: 1007.117622 | AU16: 156 | AV16: 54.57913377 | AW16: 48.39629649 | AX16: 6.789087637 | AY16: 6.687092594 | AZ16: 6.687092594 | BA16: 6.687092594 | BB16: 764.6956032 | BC16: 156 | BD16: 39.73964815
A17: 14 | B17: 1 | C17: 1 | D17: 1477.777778 | E17: 154.752527 | F17: 7.6 | G17: =VLOOKUP(Hardware!$C$78,MotorenAuswahlMatrix,26,FALSE) -> 3 | H17: 1.764178808 | I17: 1.5 | J17: 0.75 | K17: 60 | L17: 88.66666667 | M17: 51.19172387 | N17: 400 | O17: 230.9401077 | P17: 219.3931023 | Q17: 1.916983794 | R17: 111.2879271 | S17: 109.0621686 | T17: 36 | U17: 36 | V17: 3.674826866 | W17: 76.7875858 | X17: -45512.74074 | Y17: 101.3294908 | Z17: 99.30290096 | AA17: 36 | AB17: 36 | AC17: 17.09924175 | AD17: 36 | AE17: 5571.090972 | AF17: 17.09924175 | AG17: 2646.150871 | AH17: 211.1111111 | AI17: 112.6246923 | AJ17: 244.93 | AL17: 1176 | AM17: 16.55683062 | AN17: 11.18499127 | AO17: 83.35305646 | AP17: 8.909762247 | AQ17: 8.775907503 | AR17: 8.775907503 | AS17: 8.775907503 | AT17: 1080.7568 | AU17: 168 | AV17: 54.36135252 | AW17: 47.80425646 | AX17: 6.74743383 | AY17: 6.646064568 | AZ17: 6.646064568 | BA17: 6.646064568 | BB17: 818.4657228 | BC17: 168 | BD17: 39.45245197 | BH17: M Nenn Motor | BI17: =MNennM -> 6.5 | BJ17: [Nm]
A18: 15 | B18: 1 | C18: 1 | D18: 1583.333333 | E18: 165.8062789 | F18: 7.6 | G18: =VLOOKUP(Hardware!$C$78,MotorenAuswahlMatrix,26,FALSE) -> 3 | H18: 1.89019158 | I18: 1.5 | J18: 0.75 | K18: 60 | L18: 95 | M18: 54.84827557 | N18: 400 | O18: 230.9401077 | P18: 219.3931023 | Q18: 2.033549657 | R18: 104.460915 | S18: 102.3716967 | T18: 36 | U18: 36 | V18: 4.135324209 | W18: 82.27241336 | X18: -45125 | Y18: 94.98596625 | Z18: 93.08624693 | AA18: 36 | AB18: 36 | AC18: 17.09924175 | AD18: 36 | AE18: 5969.026042 | AF18: 17.09924175 | AG18: 2835.161648 | AH18: 226.1904762 | AI18: 112.6246923 | AJ18: 244.93 | AL18: 1260 | AM18: 18.42425676 | AN18: 12.83991345 | AO18: 82.73058108 | AP18: 8.87643113 | AQ18: 8.743077132 | AR18: 8.743077132 | AS18: 8.743077132 | AT18: 1153.621849 | AU18: 180 | AV18: 54.13153992 | AW18: 47.18178108 | AX18: 6.703359576 | AY18: 6.602652457 | AZ18: 6.602652457 | BA18: 6.602652457 | BB18: 871.1994671 | BC18: 180 | BD18: 39.1485672 | BH18: n Nenn Motor | BI18: =nNennM -> 4000 | BJ18: [RPM]
A19: 16 | B19: 1 | C19: 1 | D19: 1688.888889 | E19: 176.8600309 | F19: 7.6 | G19: =VLOOKUP(Hardware!$C$78,MotorenAuswahlMatrix,26,FALSE) -> 3 | H19: 2.016204352 | I19: 1.5 | J19: 0.75 | K19: 60 | L19: 101.3333333 | M19: 58.50482728 | N19: 400 | O19: 230.9401077 | P19: 219.3931023 | Q19: 2.151181068 | R19: 98.29419857 | S19: 96.3283146 | T19: 36 | U19: 36 | V19: 4.627579989 | W19: 87.75724092 | X19: -44710.51852 | Y19: 89.26850068 | Z19: 87.48313067 | AA19: 36 | AB19: 36 | AC19: 17.09924175 | AD19: 36 | AE19: 6366.961111 | AF19: 17.09924175 | AG19: 3024.172424 | AH19: 241.2698413 | AI19: 112.6246923 | AJ19: 244.93 | AL19: 1344 | AM19: 20.38298895 | AN19: 14.60896819 | AO19: 82.07767035 | AP19: 8.841335298 | AQ19: 8.708508558 | AR19: 8.708508558 | AS19: 8.708508558 | AT19: 1225.664676 | AU19: 192 | AV19: 53.88955991 | AW19: 46.52887035 | AX19: 6.656816796 | AY19: 6.556808908 | AZ19: 6.556808908 | BA19: 6.556808908 | BB19: 922.8272567 | BC19: 192 | BD19: 38.82766235 | BH19: n LL | BI19: =UNetz*0.95/$K$3*1000 -> 6333.333333 | BJ19: [1/min]
A20: 17 | B20: 1 | C20: 1 | D20: 1794.444444 | E20: 187.9137828 | F20: 7.6 | G20: =VLOOKUP(Hardware!$C$78,MotorenAuswahlMatrix,26,FALSE) -> 3 | H20: 2.142217124 | I20: 1.5 | J20: 0.75 | K20: 60 | L20: 107.6666667 | M20: 62.16137898 | N20: 400 | O20: 230.9401077 | P20: 219.3931023 | Q20: 2.269712362 | R20: 92.70016053 | S20: 90.84615732 | T20: 36 | U20: 36 | V20: 5.151594206 | W20: 93.24206847 | X20: -44269.2963 | Y20: 84.09102977 | Z20: 82.40920917 | AA20: 36 | AB20: 36 | AC20: 17.09924175 | AD20: 36 | AE20: 6764.896181 | AF20: 17.09924175 | AG20: 3213.183201 | AH20: 256.3492063 | AI20: 112.6246923 | AJ20: 244.93 | AL20: 1428 | AM20: 22.4330272 | AN20: 16.4921555 | AO20: 81.39432427 | AP20: 8.804453649 | AQ20: 8.672180996 | AR20: 8.672180996 | AS20: 8.672180996 | AT20: 1296.836301 | AU20: 204 | AV20: 53.63526697 | AW20: 45.84552427 | AX20: 6.60775333 | AY20: 6.50848254 | AZ20: 6.50848254 | BA20: 6.50848254 | BB20: 973.2772445 | BC20: 204 | BD20: 38.48937778 | BH20: PV Max: | BI20: =3*I0Motor^2*R_ph*1.4 -> 266.616 | BJ20: [W]
A21: 18 | B21: 1 | C21: 1 | D21: 1900 | E21: 198.9675347 | F21: 7.6 | G21: =VLOOKUP(Hardware!$C$78,MotorenAuswahlMatrix,26,FALSE) -> 3 | H21: 2.268229896 | I21: 1.5 | J21: 0.75 | K21: 60 | L21: 114 | M21: 65.81793069 | N21: 400 | O21: 230.9401077 | P21: 219.3931023 | Q21: 2.389009598 | R21: 87.60437001 | S21: 85.85228261 | T21: 36 | U21: 36 | V21: 5.707366861 | W21: 98.72689603 | X21: -43801.33333 | Y21: 79.38121542 | Z21: 77.79359111 | AA21: 36 | AB21: 36 | AC21: 17.09924175 | AD21: 36 | AE21: 7162.83125 | AF21: 17.09924175 | AG21: 3402.193977 | AH21: 271.4285714 | AI21: 112.6246923 | AJ21: 244.93 | AL21: 1512 | AM21: 24.57437149 | AN21: 18.48947537 | AO21: 80.68054284 | AP21: 8.765763642 | AQ21: 8.634072243 | AR21: 8.634072243 | AS21: 8.634072243 | AT21: 1367.086792 | AU21: 216 | AV21: 53.3685057 | AW21: 45.13174284 | AX21: 6.556112585 | AY21: 6.457617614 | AZ21: 6.457617614 | BA21: 6.457617614 | BB21: 1022.475084 | BC21: 216 | BD21: 38.1333233 | BH21: PCu NennPh: | BI21: =3*INennM^2*R_ph*1.4 -> 137.214 | BJ21: [W]
A22: 19 | B22: 1 | C22: 1 | D22: 2005.555556 | E22: 210.0212867 | F22: 7.6 | G22: =VLOOKUP(Hardware!$C$78,MotorenAuswahlMatrix,26,FALSE) -> 3 | H22: 2.394242668 | I22: 1.5 | J22: 0.75 | K22: 60 | L22: 120.3333333 | M22: 69.47448239 | N22: 400 | O22: 230.9401077 | P22: 219.3931023 | Q22: 2.508963522 | R22: 82.94359326 | S22: 81.2847214 | T22: 36 | U22: 36 | V22: 6.294897953 | W22: 104.2117236 | X22: -43306.62963 | Y22: 75.07812603 | Z22: 73.57656351 | AA22: 36 | AB22: 36 | AC22: 17.09924175 | AD22: 36 | AE22: 7560.76632 | AF22: 17.09924175 | AG22: 3591.204754 | AH22: 286.5079365 | AI22: 112.6246923 | AJ22: 244.93 | AL22: 1596 | AM22: 26.80702184 | AN22: 20.6009278 | AO22: 79.93632605 | AP22: 8.725241219 | AQ22: 8.594158605 | AR22: 8.594158605 | AS22: 8.594158605 | AT22: 1436.365183 | AU22: 228 | AV22: 53.08911023 | AW22: 44.38752605 | AX22: 6.501833152 | AY22: 6.404153642 | AZ22: 6.404153642 | BA22: 6.404153642 | BB22: 1070.343676 | BC22: 228 | BD22: 37.75907549 | BH22: PFe NennPh: | BI22: =BI20-BI21 -> 129.402 | BJ22: [W]
A23: 20 | B23: 1 | C23: 1 | D23: 2111.111111 | E23: 221.0750386 | F23: 7.6 | G23: =VLOOKUP(Hardware!$C$78,MotorenAuswahlMatrix,26,FALSE) -> 3 | H23: 2.52025544 | I23: 1.5 | J23: 0.75 | K23: 60 | L23: 126.6666667 | M23: 73.1310341 | N23: 400 | O23: 230.9401077 | P23: 219.3931023 | Q23: 2.629484262 | R23: 78.66401922 | S23: 77.09073884 | T23: 36 | U23: 36 | V23: 6.914187482 | W23: 109.6965511 | X23: -42785.18519 | Y23: 71.13027225 | Z23: 69.7076668 | AA23: 36 | AB23: 36 | AC23: 17.09924175 | AD23: 36 | AE23: 7958.701389 | AF23: 17.09924175 | AG23: 3780.21553 | AH23: 301.5873016 | AI23: 112.6246923 | AJ23: 244.93 | AL23: 1680 | AM23: 29.13097824 | AN23: 22.8265128 | AO23: 79.16167392 | AP23: 8.682860727 | AQ23: 8.55241481 | AR23: 8.55241481 | AS23: 8.55241481 | AT23: 1504.619398 | AU23: 240 | AV23: 52.79690367 | AW23: 43.61287392 | AX23: 6.444848361 | AY23: 6.348024955 | AZ23: 6.348024955 | BA23: 6.348024955 | BB23: 1116.80288 | BC23: 240 | BD23: 37.36617469 | BH23: C ZWK: | BI23: =VLOOKUP(Hardware!$C$94,ReglerAuswahlMatrix,12,FALSE)/1000000+CExt/1000000 -> 0.00033 | BJ23: [F]
A24: 21 | B24: 1 | C24: 1 | D24: 2216.666667 | E24: 232.1287905 | F24: 7.6 | G24: =VLOOKUP(Hardware!$C$78,MotorenAuswahlMatrix,26,FALSE) -> 3 | H24: 2.646268212 | I24: 1.5 | J24: 0.75 | K24: 60 | L24: 133 | M24: 76.7875858 | N24: 400 | O24: 230.9401077 | P24: 219.3931023 | Q24: 2.750497309 | R24: 74.71973232 | S24: 73.22533767 | T24: 36 | U24: 36 | V24: 7.565235449 | W24: 115.1813787 | X24: -42237 | Y24: 67.49397499 | Z24: 66.14409549 | AA24: 36 | AB24: 36 | AC24: 17.09924175 | AD24: 36 | AE24: 8356.636459 | AF24: 17.09924175 | AG24: 3969.226307 | AH24: 316.6666667 | AI24: 112.6246923 | AJ24: 244.93 | AL24: 1764 | AM24: 31.54624069 | AN24: 25.16623036 | AO24: 78.35658644 | AP24: 8.638594817 | AQ24: 8.508813924 | AR24: 8.508813924 | AS24: 8.508813924 | AT24: 1571.796166 | AU24: 252 | AV24: 52.49169747 | AW24: 42.80778644 | AX24: 6.38508578 | AY24: 6.28916021 | AZ24: 6.28916021 | BA24: 6.28916021 | BB24: 1161.769195 | BC24: 252 | BD24: 36.95412147 | BH24: UREin: | BI24: =VLOOKUP(Hardware!$C$94,ReglerAuswahlMatrix,11,FALSE) -> 675 | BJ24: [V]
A25: 22 | B25: 1 | C25: 1 | D25: 2322.222222 | E25: 243.1825424 | F25: 7.6 | G25: =VLOOKUP(Hardware!$C$78,MotorenAuswahlMatrix,26,FALSE) -> 3 | H25: 2.772280984 | I25: 1.5 | J25: 0.75 | K25: 60 | L25: 139.3333333 | M25: 80.44413751 | N25: 400 | O25: 230.9401077 | P25: 219.3931023 | Q25: 2.871940433 | R25: 71.07142371 | S25: 69.64999523 | T25: 36 | U25: 36 | V25: 8.248041854 | W25: 120.6662063 | X25: -41662.07407 | Y25: 64.1320228 | Z25: 62.84938235 | AA25: 36 | AB25: 36 | AC25: 17.09924175 | AD25: 36 | AE25: 8754.571528 | AF25: 17.09924175 | AG25: 4158.237083 | AH25: 331.7460317 | AI25: 112.6246923 | AJ25: 244.93 | AL25: 1848 | AM25: 34.05280919 | AN25: 27.62008049 | AO25: 77.5210636 | AP25: 8.592414351 | AQ25: 8.463327245 | AR25: 8.463327245 | AS25: 8.463327245 | AT25: 1637.840925 | AU25: 264 | AV25: 52.17329072 | AW25: 41.9722636 | AX25: 6.322466638 | AY25: 6.227481819 | AZ25: 6.227481819 | BA25: 6.227481819 | BB25: 1205.155406 | BC25: 264 | BD25: 36.52237273 | BH25: n NennM erf. | BI25: =nNennMErf -> 3060.335274 | BJ25: [1/min]
A26: 23 | B26: 1 | C26: 1 | D26: 2427.777778 | E26: 254.2362944 | F26: 7.6 | G26: =VLOOKUP(Hardware!$C$78,MotorenAuswahlMatrix,26,FALSE) -> 3 | H26: 2.898293756 | I26: 1.5 | J26: 0.75 | K26: 60 | L26: 145.6666667 | M26: 84.10068921 | N26: 400 | O26: 230.9401077 | P26: 219.3931023 | Q26: 2.993761296 | R26: 67.68531551 | S26: 66.3316092 | T26: 36 | U26: 36 | V26: 8.962606695 | W26: 126.1510338 | X26: -41060.40741 | Y26: 61.01257261 | Z26: 59.79232116 | AA26: 36 | AB26: 36 | AC26: 17.09924175 | AD26: 36 | AE26: 9152.506597 | AF26: 17.09924175 | AG26: 4347.24786 | AH26: 346.8253968 | AI26: 112.6246923 | AJ26: 244.93 | AL26: 1932 | AM26: 36.65068374 | AN26: 30.18806318 | AO26: 76.65510542 | AP26: 8.544288285 | AQ26: 8.415924196 | AR26: 8.415924196 | AS26: 8.415924196 | AT26: 1702.697722 | AU26: 276 | AV26: 51.84146937 | AW26: 41.10630542 | AX26: 6.25690517 | AY26: 6.162905306 | AZ26: 6.162905306 | BA26: 6.162905306 | BB26: 1246.870169 | BC26: 276 | BD26: 36.07033714 | BH26: S1 Motor bei erf. | BI26: =VLOOKUP(nNennMErf,AL3:BG53,6,TRUE) -> 7.607039219 | BJ26: [Nm]
A27: 24 | B27: 1 | C27: 1 | D27: 2533.333333 | E27: 265.2900463 | F27: 7.6 | G27: =VLOOKUP(Hardware!$C$78,MotorenAuswahlMatrix,26,FALSE) -> 3 | H27: 3.024306528 | I27: 1.5 | J27: 0.75 | K27: 60 | L27: 152 | M27: 87.75724092 | N27: 400 | O27: 230.9401077 | P27: 219.3931023 | Q27: 3.115915592 | R27: 64.53226788 | S27: 63.24162252 | T27: 36 | U27: 36 | V27: 9.708929974 | W27: 131.6358614 | X27: -40432 | Y27: 58.10825097 | Z27: 56.94608595 | AA27: 36 | AB27: 36 | AC27: 17.09924175 | AD27: 36 | AE27: 9550.441667 | AF27: 17.09924175 | AG27: 4536.258636 | AH27: 361.9047619 | AI27: 112.6246923 | AJ27: 244.93 | AL27: 2016 | AM27: 39.33986435 | AN27: 32.87017843 | AO27: 75.75871188 | AP27: 8.49418355 | AQ27: 8.366572202 | AR27: 8.366572202 | AS27: 8.366572202 | AT27: 1766.309111 | AU27: 288 | AV27: 51.49600542 | AW27: 40.20991188 | AX27: 6.18830786 | AY27: 6.09533856 | AZ27: 6.09533856 | BA27: 6.09533856 | BB27: 1286.81756 | BC27: 288 | BD27: 35.59736992 | BH27: S1 Motor bei erf. | BI27: =VLOOKUP(nNennMErf,AL3:BG53,5,TRUE) -> 7.723065771 | BJ27: [A]
A28: 25 | B28: 1 | C28: 1 | D28: 2638.888889 | E28: 276.3437982 | F28: 7.6 | G28: =VLOOKUP(Hardware!$C$78,MotorenAuswahlMatrix,26,FALSE) -> 3 | H28: 3.1503193 | I28: 1.5 | J28: 0.75 | K28: 60 | L28: 158.3333333 | M28: 91.41379262 | N28: 400 | O28: 230.9401077 | P28: 219.3931023 | Q28: 3.238365589 | R28: 61.58703948 | S28: 60.35529869 | T28: 36 | U28: 36 | V28: 10.48701169 | W28: 137.1206889 | X28: -39776.85185 | Y28: 55.39541881 | Z28: 54.28751044 | AA28: 36 | AB28: 36 | AC28: 17.09924175 | AD28: 36 | AE28: 9948.376736 | AF28: 17.09924175 | AG28: 4725.269413 | AH28: 376.984127 | AI28: 112.6246923 | AJ28: 244.93 | AL28: 2100 | AM28: 42.120351 | AN28: 35.66642625 | AO28: 74.831883 | AP28: 8.442064913 | AQ28: 8.315236564 | AR28: 8.315236564 | AS28: 8.315236564 | AT28: 1828.616027 | AU28: 300 | AV28: 51.13665595 | AW28: 39.283083 | AX28: 6.11657257 | AY28: 6.024680976 | AZ28: 6.024680976 | BA28: 6.024680976 | BB28: 1324.896545 | BC28: 300 | BD28: 35.10276683 | BH28: MFe Nenn: | BI28: =BI22/(2*PI()*nNennM/60) -> 0.3089245192 | BJ28: [Nm]
A29: 26 | B29: 1 | C29: 1 | D29: 2744.444444 | E29: 287.3975502 | F29: 7.6 | G29: =VLOOKUP(Hardware!$C$78,MotorenAuswahlMatrix,26,FALSE) -> 3 | H29: 3.276332072 | I29: 1.5 | J29: 0.75 | K29: 60 | L29: 164.6666667 | M29: 95.07034433 | N29: 400 | O29: 230.9401077 | P29: 219.3931023 | Q29: 3.36107897 | R29: 58.82767527 | S29: 57.65112177 | T29: 36 | U29: 36 | V29: 11.29685184 | W29: 142.6055165 | X29: -39094.96296 | Y29: 52.85356869 | Z29: 51.79649732 | AA29: 36 | AB29: 36 | AC29: 17.09924175 | AD29: 36 | AE29: 10346.31181 | AF29: 17.09924175 | AG29: 4914.280189 | AH29: 392.0634921 | AI29: 112.6246923 | AJ29: 244.93 | AL29: 2184 | AM29: 44.99214371 | AN29: 38.57680663 | AO29: 73.87461876 | AP29: 8.387894836 | AQ29: 8.261880304 | AR29: 8.261880304 | AS29: 8.261880304 | AT29: 1889.557668 | AU29: 312 | AV29: 50.76316213 | AW29: 38.32581876 | AX29: 6.041587521 | AY29: 5.950822456 | AZ29: 5.950822456 | BA29: 5.950822456 | BB29: 1361.000376 | BC29: 312 | BD29: 34.58575719 | BH29: Static Friction | BI29: =0.2*BI28 -> 0.06178490384 | BJ29: [Nm]
A30: 27 | B30: 1 | C30: 1 | D30: 2850 | E30: 298.4513021 | F30: 7.6 | G30: =VLOOKUP(Hardware!$C$78,MotorenAuswahlMatrix,26,FALSE) -> 3 | H30: 3.402344844 | I30: 1.5 | J30: 0.75 | K30: 60 | L30: 171 | M30: 98.72689603 | N30: 400 | O30: 230.9401077 | P30: 219.3931023 | Q30: 3.484027904 | R30: 56.23499883 | S30: 55.11029885 | T30: 36 | U30: 36 | V30: 12.13845044 | W30: 148.090344 | X30: -38386.33333 | Y30: 50.4648292 | Z30: 49.45553261 | AA30: 36 | AB30: 36 | AC30: 17.09924175 | AD30: 36 | AE30: 10744.24688 | AF30: 17.09924175 | AG30: 5103.290966 | AH30: 407.1428571 | AI30: 112.6246923 | AJ30: 244.93 | AL30: 2268 | AM30: 47.95524246 | AN30: 41.60131958 | AO30: 72.88691918 | AP30: 8.331633304 | AQ30: 8.20646401 | AR30: 8.20646401 | AS30: 8.20646401 | AT30: 1949.071349 | AU30: 324 | AV30: 50.37524807 | AW30: 37.33811918 | AX30: 5.963230123 | AY30: 5.873642251 | AZ30: 5.873642251 | BA30: 5.873642251 | BB30: 1395.015906 | BC30: 324 | BD30: 34.04549576 | BH30: Viscous Friction | BI30: =BI28-BI29 -> 0.2471396154 | BJ30: [Nm]
A31: 28 | B31: 1 | C31: 1 | D31: 2955.555556 | E31: 309.505054 | F31: 7.6 | G31: =VLOOKUP(Hardware!$C$78,MotorenAuswahlMatrix,26,FALSE) -> 3 | H31: 3.528357616 | I31: 1.5 | J31: 0.75 | K31: 60 | L31: 177.3333333 | M31: 102.3834477 | N31: 400 | O31: 230.9401077 | P31: 219.3931023 | Q31: 3.607188305 | R31: 53.79219051 | S31: 52.7163467 | T31: 36 | U31: 36 | V31: 13.01180747 | W31: 153.5751716 | X31: -37650.96296 | Y31: 48.21355604 | Z31: 47.24928492 | AA31: 36 | AB31: 36 | AC31: 17.09924175 | AD31: 36 | AE31: 11142.18194 | AF31: 17.09924175 | AG31: 5292.301742 | AH31: 422.2222222 | AI31: 112.6246923 | AJ31: 244.93 | AL31: 2352 | AM31: 51.00964727 | AN31: 44.73996509 | AO31: 71.86878424 | AP31: 8.273237648 | AQ31: 8.148945655 | AR31: 8.148945655 | AS31: 8.148945655 | AT31: 2007.092356 | AU31: 336 | AV31: 49.97261959 | AW31: 36.31998424 | AX31: 5.881365588 | AY31: 5.793007598 | AZ31: 5.793007598 | BA31: 5.793007598 | BB31: 1426.822777 | BC31: 336 | BD31: 33.48105319 | BH31: Viscous Damp | BI31: =BI30/nNennM*1000 -> 0.06178490384 | BJ31: [Nm/kRPM]
A32: 29 | B32: 1 | C32: 1 | D32: 3061.111111 | E32: 320.5588059 | F32: 7.6 | G32: =VLOOKUP(Hardware!$C$78,MotorenAuswahlMatrix,26,FALSE) -> 3 | H32: 3.654370388 | I32: 1.5 | J32: 0.75 | K32: 60 | L32: 183.6666667 | M32: 106.0399994 | N32: 400 | O32: 230.9401077 | P32: 219.3931023 | Q32: 3.730539228 | R32: 51.48443582 | S32: 50.4547471 | T32: 36 | U32: 36 | V32: 13.91692293 | W32: 159.0599992 | X32: -36888.85185 | Y32: 46.08599319 | Z32: 45.16427333 | AA32: 36 | AB32: 36 | AC32: 17.09924175 | AD32: 36 | AE32: 11540.11701 | AF32: 17.09924175 | AG32: 5481.312519 | AH32: 437.3015873 | AI32: 112.6246923 | AJ32: 244.93 | AL32: 2436 | AM32: 54.15535813 | AN32: 47.99274316 | AO32: 70.82021396 | AP32: 8.212662346 | AQ32: 8.089280399 | AR32: 8.089280399 | AS32: 8.089280399 | AT32: 2063.553779 | AU32: 348 | AV32: 49.55496279 | AW32: 35.27141396 | AX32: 5.795845306 | AY32: 5.70877212 | AZ32: 5.70877212 | BA32: 5.70877212 | BB32: 1456.292488 | BC32: 348 | BD32: 32.89140484 | BH32: KTo | BI32: =M0Motor/I0Motor -> 0.9782608696 | BJ32: [Nm/A]
A33: 30 | B33: 1 | C33: 1 | D33: 3166.666667 | E33: 331.6125579 | F33: 7.6 | G33: =VLOOKUP(Hardware!$C$78,MotorenAuswahlMatrix,26,FALSE) -> 3 | H33: 3.78038316 | I33: 1.5 | J33: 0.75 | K33: 60 | L33: 190 | M33: 109.6965511 | N33: 400 | O33: 230.9401077 | P33: 219.3931023 | Q33: 3.854062381 | R33: 49.29863122 | S33: 48.31265859 | T33: 36 | U33: 36 | V33: 14.85379684 | W33: 164.5448267 | X33: -36100 | Y33: 44.06999094 | Z33: 43.18859112 | AA33: 36 | AB33: 36 | AC33: 17.09924175 | AD33: 36 | AE33: 11938.05208 | AF33: 17.09924175 | AG33: 5670.323295 | AH33: 452.3809524 | AI33: 112.6246923 | AJ33: 244.93 | AL33: 2520 | AM33: 57.39237504 | AN33: 51.3596538 | AO33: 69.74120832 | AP33: 8.149858796 | AQ33: 8.027420371 | AR33: 8.027420371 | AS33: 8.027420371 | AT33: 2118.386329 | AU33: 360 | AV33: 49.12194259 | AW33: 34.19240832 | AX33: 5.70650492 | AY33: 5.620773928 | AZ33: 5.620773928 | BA33: 5.620773928 | BB33: 1483.287295 | BC33: 360 | BD33: 32.27541749 | BH33: KTn | BI33: =MNennM/INennM -> 0.9848484848 | BJ33: [Nm/A]
A34: 31 | B34: 1 | C34: 1 | D34: 3272.222222 | E34: 342.6663098 | F34: 7.6 | G34: =VLOOKUP(Hardware!$C$78,MotorenAuswahlMatrix,26,FALSE) -> 3 | H34: 3.906395932 | I34: 1.5 | J34: 0.75 | K34: 60 | L34: 196.3333333 | M34: 113.3531029 | N34: 400 | O34: 230.9401077 | P34: 219.3931023 | Q34: 3.977741718 | R34: 47.22313702 | S34: 46.27867428 | T34: 36 | U34: 36 | V34: 15.82242918 | W34: 170.0296543 | X34: -35284.40741 | Y34: 42.15477002 | Z34: 41.31167462 | AA34: 36 | AB34: 36 | AC34: 17.09924175 | AD34: 36 | AE34: 12335.98715 | AF34: 17.09924175 | AG34: 5859.334072 | AH34: 467.4603175 | AI34: 112.6246923 | AJ34: 244.93 | AL34: 2604 | AM34: 60.720698 | AN34: 54.840697 | AO34: 68.63176733 | AP34: 8.08477507 | AQ34: 7.963314422 | AR34: 7.963314422 | AS34: 7.963314422 | AT34: 2171.518139 | AU34: 372 | AV34: 48.67320095 | AW34: 33.08296733 | AX34: 5.613162027 | AY34: 5.52883336 | AZ34: 5.52883336 | BA34: 5.52883336 | BB34: 1507.658909 | BC34: 372 | BD34: 31.63183352 | BH34: KTi | BI34: =(M0Motor+BI29)/I0Motor -> 0.98497662 | BJ34: [Nm/A]
A35: 32 | B35: 1 | C35: 1 | D35: 3377.777778 | E35: 353.7200617 | F35: 7.6 | G35: =VLOOKUP(Hardware!$C$78,MotorenAuswahlMatrix,26,FALSE) -> 3 | H35: 4.032408704 | I35: 1.5 | J35: 0.75 | K35: 60 | L35: 202.6666667 | M35: 117.0096546 | N35: 400 | O35: 230.9401077 | P35: 219.3931023 | Q35: 4.101563111 | R35: 45.24756887 | S35: 44.34261749 | T35: 36 | U35: 36 | V35: 16.82281995 | W35: 175.5144818 | X35: -34442.07407 | Y35: 40.33072344 | Z35: 39.52410897 | AA35: 36 | AB35: 36 | AC35: 17.09924175 | AD35: 36 | AE35: 12733.92222 | AF35: 17.09924175 | AG35: 6048.344848 | AH35: 482.5396825 | AI35: 112.6246923 | AJ35: 244.93 | AL35: =A35*nNennM*nMaxMFaktor/50 -> 2688 | AM35: =BI$29*2*PI()*AL35/60+BI$31*AL35/1000*2*PI()*AL35/60 -> 64.14032701 | AN35: =(AL35/nNennM)^2*$BI$22 -> 58.43587277 | AO35: =IF(AM35>$BI$20,0,($BI$20-AM35)/3) -> 67.491891 | AP35: =SQRT(AO35/(R_ph*1.4)) -> 8.017355638 | AQ35: =AP35*(M0Motor+$BI$29)/I0Motor-$BI$29*0-$BI$31*AL35/1000*0 -> 7.896907857 | AR35: 7.896907857 | AS35: =IF(AR35>INennR*KT_Faktor,INennR*KT_Faktor,AR35) -> 7.896907857 | AT35: 2222.874547 | AU35: =AL35/iGetriebe -> 384 | AV35: =(AS35-MReibG)*iGetriebe -> 48.208355 | AW35: 31.943091 | AX35: 5.515613422 | AY35: =AX35*(M0Motor+$BI$29)/I0Motor-$BI$29*0-$BI$31*AL35/1000*0 -> 5.432750266 | AZ35: 5.432750266 | BA35: 5.432750266 | BB35: 1529.246954 | BC35: =AL35/iGetriebe -> 384 | BD35: 30.95925186 | BH35: KTcold | BI35: =KE_Motor/60.4 -> 0.9933774834 | BJ35: [Nm/A]
A36: 33 | B36: 1 | C36: 1 | D36: 3483.333333 | E36: 364.7738137 | F36: 7.6 | G36: =VLOOKUP(Hardware!$C$78,MotorenAuswahlMatrix,26,FALSE) -> 3 | H36: 4.158421476 | I36: 1.5 | J36: 0.75 | K36: 60 | L36: 209 | M36: 120.6662063 | N36: 400 | O36: 230.9401077 | P36: 219.3931023 | Q36: 4.225514072 | R36: 43.36262082 | S36: 42.4953684 | T36: 36 | U36: 36 | V36: 17.85496917 | W36: 180.9993094 | X36: -33573 | Y36: 38.58924892 | Z36: 37.81746394 | AA36: 36 | AB36: 36 | AC36: 17.09924175 | AD36: 36 | AE36: 13131.85729 | AF36: 17.09924175 | AG36: 6237.355625 | AH36: 497.6190476 | AI36: 112.6246923 | AJ36: 244.93 | AL36: 2772 | AM36: 67.65126208 | AN36: 62.1451811 | AO36: 66.32157931 | AP36: 7.947541058 | AQ36: 7.828142128 | AR36: 7.828142128 | AS36: 7.828142128 | AT36: 2272.377843 | AU36: 396 | AV36: 47.7269949 | AW36: 30.77277931 | AX36: 5.413631763 | AY36: 5.332300716 | AZ36: 5.332300716 | BA36: 5.332300716 | BB36: 1547.877108 | BC36: 396 | BD36: 30.25610501
A37: 34 | B37: 1 | C37: 1 | D37: 3588.888889 | E37: 375.8275656 | F37: 7.6 | G37: =VLOOKUP(Hardware!$C$78,MotorenAuswahlMatrix,26,FALSE) -> 3 | H37: 4.284434248 | I37: 1.5 | J37: 0.75 | K37: 60 | L37: 215.3333333 | M37: 124.322758 | N37: 400 | O37: 230.9401077 | P37: 219.3931023 | Q37: 4.349583523 | R37: 41.55991444 | S37: 40.72871616 | T37: 36 | U37: 36 | V37: 18.91887682 | W37: 186.4841369 | X37: -32677.18519 | Y37: 36.92260634 | Z37: 36.18415421 | AA37: 36 | AB37: 36 | AC37: 17.09924175 | AD37: 36 | AE37: 13529.79236 | AF37: 17.09924175 | AG37: 6426.366401 | AH37: 512.6984127 | AI37: 112.6246923 | AJ37: 244.93 | AL37: 2856 | AM37: 71.25350319 | AN37: 65.96862199 | AO37: 65.12083227 | AP37: 7.875267631 | AQ37: 7.756954492 | AR37: 7.756954492 | AS37: 7.756954492 | AT37: 2319.947007 | AU37: 408 | AV37: 47.22868145 | AW37: 29.57203227 | AX37: 5.30696149 | AY37: 5.227232991 | AZ37: 5.227232991 | BA37: 5.227232991 | BB37: 1563.35886 | BC37: 408 | BD37: 29.52063094 | BH37: Text yR Achse: | BI37: ="P Motor [W]" -> P Motor [W]
A38: 35 | B38: 1 | C38: 1 | D38: 3694.444444 | E38: 386.8813175 | F38: 7.6 | G38: =VLOOKUP(Hardware!$C$78,MotorenAuswahlMatrix,26,FALSE) -> 3 | H38: 4.41044702 | I38: 1.5 | J38: 0.75 | K38: 60 | L38: 221.6666667 | M38: 127.9793097 | N38: 400 | O38: 230.9401077 | P38: 219.3931023 | Q38: 4.473761607 | R38: 39.83186925 | S38: 39.03523187 | T38: 36 | U38: 36 | V38: 20.01454291 | W38: 191.9689645 | X38: -31754.62963 | Y38: 35.32379575 | Z38: 34.61731983 | AA38: 36 | AB38: 34.61731983 | AC38: 17.09924175 | AD38: 34.61731983 | AE38: 13392.79431 | AF38: 17.09924175 | AG38: 6615.377178 | AH38: 527.7777778 | AI38: 112.6246923 | AJ38: 235.2512388 | AL38: 2940 | AM38: 74.94705036 | AN38: 69.90619545 | AO38: 63.88964988 | AP38: 7.800467012 | AQ38: 7.683277631 | AR38: 7.683277631 | AS38: 7.683277631 | AT38: 2365.497399 | AU38: 420 | AV38: 46.71294342 | AW38: 28.34084988 | AX38: 5.195313812 | AY38: 5.117262638 | AZ38: 5.117262638 | BA38: 5.117262638 | BB38: 1575.482762 | BC38: 420 | BD38: 28.75083846 | BH38: Text Reihe1: | BI38: ="erf. P Motor [W]" -> erf. P Motor [W]
A39: 36 | B39: 1 | C39: 1 | D39: 3800 | E39: 397.9350695 | F39: 7.6 | G39: =VLOOKUP(Hardware!$C$78,MotorenAuswahlMatrix,26,FALSE) -> 3 | H39: 4.536459792 | I39: 1.5 | J39: 0.75 | K39: 60 | L39: 228 | M39: 131.6358614 | N39: 400 | O39: 230.9401077 | P39: 219.3931023 | Q39: 4.598039522 | R39: 38.17159052 | S39: 37.40815871 | T39: 36 | U39: 36 | V39: 21.14196744 | W39: 197.4537921 | X39: -30805.33333 | Y39: 33.78645191 | Z39: 33.11072288 | AA39: 36 | AB39: 33.11072288 | AC39: 17.09924175 | AD39: 33.11072288 | AE39: 13175.91781 | AF39: 17.09924175 | AG39: 6804.387954 | AH39: 542.8571429 | AI39: 112.6246923 | AJ39: 224.7050601 | AL39: 3024 | AM39: 78.73190358 | AN39: 73.95790147 | AO39: 62.62803214 | AP39: 7.723065771 | AQ39: 7.607039219 | AR39: 7.607039219 | AS39: 7.607039219 | AT39: 2408.940427 | AU39: 432 | AV39: 46.17927453 | AW39: 27.07923214 | AX39: 5.078360454 | AY39: 5.002066315 | AZ39: 5.002066315 | BA39: 5.002066315 | BB39: 1584.017042 | BC39: 432 | BD39: 27.9444642 | BH39: Text Reihe2: | BI39: ="erf. P Nenn Motor [W]" -> erf. P Nenn Motor [W]
A40: 37 | B40: 1 | C40: 1 | D40: 3905.555556 | E40: 408.9888214 | F40: 7.6 | G40: =VLOOKUP(Hardware!$C$78,MotorenAuswahlMatrix,26,FALSE) -> 3 | H40: 4.662472564 | I40: 1.5 | J40: 0.75 | K40: 60 | L40: 234.3333333 | M40: 135.2924131 | N40: 400 | O40: 230.9401077 | P40: 219.3931023 | Q40: 4.722409386 | R40: 36.57277133 | S40: 35.84131591 | T40: 36 | U40: 35.84131591 | V40: 22.30115041 | W40: 202.9386196 | X40: -29829.2963 | Y40: 32.3047525 | Z40: 31.65865745 | AA40: 36 | AB40: 31.65865745 | AC40: 17.09924175 | AD40: 31.65865745 | AE40: 12948.037 | AF40: 17.09924175 | AG40: 6993.398731 | AH40: 557.9365079 | AI40: 112.6246923 | AJ40: 214.5406021 | AL40: 3108 | AM40: 82.60806285 | AN40: 78.12374006 | AO40: 61.33597905 | AP40: 7.642984898 | AQ40: 7.528161431 | AR40: 7.528161431 | AS40: 7.528161431 | AT40: 2450.183165 | AU40: 444 | AV40: 45.62713002 | AW40: 25.78717905 | AX40: 4.955725794 | AY40: 4.881274042 | AZ40: 4.881274042 | BA40: 4.881274042 | BB40: 1588.703376 | BC40: 444 | BD40: 27.09891829 | BH40: Text Reihe3: | BI40: ="Spannungskennlinie [W]" -> Spannungskennlinie [W]
A41: 38 | B41: 1 | C41: 1 | D41: 4011.111111 | E41: 420.0425733 | F41: 7.6 | G41: =VLOOKUP(Hardware!$C$78,MotorenAuswahlMatrix,26,FALSE) -> 3 | H41: 4.788485336 | I41: 1.5 | J41: 0.75 | K41: 60 | L41: 240.6666667 | M41: 138.9489648 | N41: 400 | O41: 230.9401077 | P41: 219.3931023 | Q41: 4.846864121 | R41: 35.02960599 | S41: 34.32901387 | T41: 36 | U41: 34.32901387 | V41: 23.49209181 | W41: 208.4234472 | X41: -28826.51852 | Y41: 30.87333697 | Z41: 30.25587023 | AA41: 36 | AB41: 30.25587023 | AC41: 17.09924175 | AD41: 30.25587023 | AE41: 12708.75359 | AF41: 17.09924175 | AG41: 7182.409507 | AH41: 573.015873 | AI41: 112.6246923 | AJ41: 204.7210916 | AL41: 3192 | AM41: 86.57552817 | AN41: 82.40371121 | AO41: 60.01349061 | AP41: 7.560139241 | AQ41: 7.446560396 | AR41: 7.446560396 | AS41: 7.446560396 | AT41: 2489.127924 | AU41: 456 | AV41: 45.05592277 | AW41: 24.46469061 | AX41: 4.826976833 | AY41: 4.754459325 | AZ41: 4.754459325 | BA41: 4.754459325 | BB41: 1589.251526 | BC41: 456 | BD41: 26.21121528 | BH41: Text Reihe4: | BI41: ="P MaxMotor (I Max_Eingestellt_Regler) [W]" -> P MaxMotor (I Max_Eingestellt_Regler) [W]
A42: 39 | B42: 1 | C42: 1 | D42: 4116.666667 | E42: 431.0963252 | F42: 7.6 | G42: =VLOOKUP(Hardware!$C$78,MotorenAuswahlMatrix,26,FALSE) -> 3 | H42: 4.914498108 | I42: 1.5 | J42: 0.75 | K42: 60 | L42: 247 | M42: 142.6055165 | N42: 400 | O42: 230.9401077 | P42: 219.3931023 | Q42: 4.971397354 | R42: 33.53671241 | S42: 32.86597817 | T42: 36 | U42: 32.86597817 | V42: 24.71479165 | W42: 213.9082747 | X42: -27797 | Y42: 29.48723413 | Z42: 28.89748945 | AA42: 36 | AB42: 28.89748945 | AC42: 17.09924175 | AD42: 28.89748945 | AE42: 12457.60151 | AF42: 17.09924175 | AG42: 7371.420284 | AH42: 588.0952381 | AI42: 112.6246923 | AJ42: 195.2124261 | AL42: 3276 | AM42: 90.63429954 | AN42: 86.79781492 | AO42: 58.66056682 | AP42: 7.474436868 | AQ42: 7.362145563 | AR42: 7.362145563 | AS42: 7.362145563 | AT42: 2525.671776 | AU42: 468 | AV42: 44.46501894 | AW42: 23.11176682 | AX42: 4.691610224 | AY42: 4.621126381 | AZ42: 4.621126381 | BA42: 4.621126381 | BB42: 1585.332479 | BC42: 468 | BD42: 25.27788467 | BH42: Text Reihe5: | BI42: ="S1 Kennlinie [W]" -> S1 Kennlinie [W]
A43: 40 | B43: 1 | C43: 1 | D43: 4222.222222 | E43: 442.1500772 | F43: 7.6 | G43: =VLOOKUP(Hardware!$C$78,MotorenAuswahlMatrix,26,FALSE) -> 3 | H43: 5.04051088 | I43: 1.5 | J43: 0.75 | K43: 60 | L43: 253.3333333 | M43: 146.2620682 | N43: 400 | O43: 230.9401077 | P43: 219.3931023 | Q43: 5.096003329 | R43: 32.08906136 | S43: 31.44728013 | T43: 36 | U43: 31.44728013 | V43: 25.96924993 | W43: 219.3931023 | X43: -26740.74074 | Y43: 28.14179596 | Z43: 27.57896004 | AA43: 36 | AB43: 27.57896004 | AC43: 17.09924175 | AD43: 27.57896004 | AE43: 12194.03931 | AF43: 17.09924175 | AG43: 7560.43106 | AH43: 603.1746032 | AI43: 112.6246923 | AJ43: 185.9827203 | AL43: 3360 | AM43: 94.78437696 | AN43: 91.3060512 | AO43: 57.27720768 | AP43: 7.385778334 | AQ43: 7.274818979 | AR43: 7.274818979 | AS43: 7.274818979 | AT43: 2559.706001 | AU43: 480 | AV43: 43.85373286 | AW43: 21.72840768 | AX43: 4.549035238 | AY43: 4.480693353 | AZ43: 4.480693353 | BA43: 4.480693353 | BB43: 1576.569492 | BC43: 480 | BD43: 24.29485347
A44: 41 | B44: 1 | C44: 1 | D44: 4327.777778 | E44: 453.2038291 | F44: 7.6 | G44: =VLOOKUP(Hardware!$C$78,MotorenAuswahlMatrix,26,FALSE) -> 3 | H44: 5.166523652 | I44: 1.5 | J44: 0.75 | K44: 60 | L44: 259.6666667 | M44: 149.9186199 | N44: 400 | O44: 230.9401077 | P44: 219.3931023 | Q44: 5.220676838 | R44: 30.68191025 | S44: 30.06827205 | T44: 36 | U44: 30.06827205 | V44: 27.25546664 | W44: 224.8779298 | X44: -25657.74074 | Y44: 26.832636 | Z44: 26.29598328 | AA44: 36 | AB44: 26.29598328 | AC44: 17.09924175 | AD44: 26.29598328 | AE44: 11917.44031 | AF44: 17.09924175 | AG44: 7749.441837 | AH44: 618.2539683 | AI44: 112.6246923 | AJ44: 177.001883 | AL44: 3444 | AM44: 99.02576043 | AN44: 95.92842004 | AO44: 55.86341319 | AP44: 7.294055844 | AQ44: 7.184474471 | AR44: 7.184474471 | AS44: 7.184474471 | AT44: 2591.115467 | AU44: 492 | AV44: 43.2213213 | AW44: 20.31461319 | AX44: 4.398550972 | AY44: 4.33246987 | AZ44: 4.33246987 | BA44: 4.33246987 | BB44: 1562.526213 | BC44: 492 | BD44: 23.25728909
A45: 42 | B45: 1 | C45: 1 | D45: 4433.333333 | E45: 464.257581 | F45: 7.6 | G45: =VLOOKUP(Hardware!$C$78,MotorenAuswahlMatrix,26,FALSE) -> 3 | H45: 5.292536424 | I45: 1.5 | J45: 0.75 | K45: 60 | L45: 266 | M45: 153.5751716 | N45: 400 | O45: 230.9401077 | P45: 219.3931023 | Q45: 5.345413155 | R45: 29.31073974 | S45: 28.72452494 | T45: 36 | U45: 28.72452494 | V45: 28.5734418 | W45: 230.3627574 | X45: -24548 | Y45: 25.55557031 | Z45: 25.04445891 | AA45: 36 | AB45: 25.04445891 | AC45: 17.09924175 | AD45: 25.04445891 | AE45: 11627.07991 | AF45: 17.09924175 | AG45: 7938.452614 | AH45: 633.3333333 | AI45: 112.6246923 | AJ45: 168.2412123 | AL45: 3528 | AM45: 103.35845 | AN45: 100.6649214 | AO45: 54.41918335 | AP45: 7.199152288 | AQ45: 7.090996687 | AR45: 7.090996687 | AS45: 7.090996687 | AT45: 2619.777916 | AU45: 504 | AV45: 42.56697681 | AW45: 18.87038335 | AX45: 4.239315235 | AY45: 4.175626391 | AZ45: 4.175626391 | BA45: 4.175626391 | BB45: 1542.690582 | BC45: 504 | BD45: 22.15938474
A46: 43 | B46: 1 | C46: 1 | D46: 4538.888889 | E46: 475.311333 | F46: 7.6 | G46: =VLOOKUP(Hardware!$C$78,MotorenAuswahlMatrix,26,FALSE) -> 3 | H46: 5.418549196 | I46: 1.5 | J46: 0.75 | K46: 60 | L46: 272.3333333 | M46: 157.2317233 | N46: 400 | O46: 230.9401077 | P46: 219.3931023 | Q46: 5.470207984 | R46: 27.97119062 | S46: 27.4117668 | T46: 36 | U46: 27.4117668 | V46: 29.92317539 | W46: 235.847585 | X46: -23411.51852 | Y46: 24.30655878 | Z46: 23.8204276 | AA46: 36 | AB46: 23.8204276 | AC46: 17.09924175 | AD46: 23.8204276 | AE46: 11322.1192 | AF46: 17.09924175 | AG46: 8127.46339 | AH46: 648.4126984 | AI46: 112.6246923 | AJ46: 159.6729932 | AL46: 3612 | AM46: 107.7824455 | AN46: 105.5155554 | AO46: 52.94451816 | AP46: 7.100940123 | AQ46: 6.994260001 | AR46: 6.994260001 | AS46: 6.994260001 | AT46: 2645.563147 | AU46: 516 | AV46: 41.88982 | AW46: 17.39571816 | AX46: 4.070301048 | AY46: 4.009151369 | AZ46: 4.009151369 | BA46: 4.009151369 | BB46: 1516.452507 | BC46: 516 | BD46: 20.99405958
A47: 44 | B47: 1 | C47: 1 | D47: 4644.444444 | E47: 486.3650849 | F47: 7.6 | G47: =VLOOKUP(Hardware!$C$78,MotorenAuswahlMatrix,26,FALSE) -> 3 | H47: 5.544561968 | I47: 1.5 | J47: 0.75 | K47: 60 | L47: 278.6666667 | M47: 160.888275 | N47: 400 | O47: 230.9401077 | P47: 219.3931023 | Q47: 5.595057409 | R47: 26.65899866 | S47: 26.12581868 | T47: 36 | U47: 26.12581868 | V47: 31.30466741 | W47: 241.3324125 | X47: -22248.2963 | Y47: 23.0816447 | Z47: 22.6200118 | AA47: 36 | AB47: 22.6200118 | AC47: 17.09924175 | AD47: 22.6200118 | AE47: 11001.58396 | AF47: 17.09924175 | AG47: 8316.474167 | AH47: 663.4920635 | AI47: 112.6246923 | AJ47: 151.2700826 | AL47: 3696 | AM47: 112.2977472 | AN47: 110.480322 | AO47: 51.43941761 | AP47: 6.999280073 | AQ47: 6.894127228 | AR47: 6.894127228 | AS47: 6.894127228 | AT47: 2668.332061 | AU47: 528 | AV47: 41.1888906 | AW47: 15.89061761 | AX47: 3.890234124 | AY47: 3.831789658 | AZ47: 3.831789658 | BA47: 3.831789658 | BB47: 1483.07202 | BC47: 528 | BD47: 19.75252761
A48: 45 | B48: 1 | C48: 1 | D48: 4750 | E48: 497.4188368 | F48: 7.6 | G48: =VLOOKUP(Hardware!$C$78,MotorenAuswahlMatrix,26,FALSE) -> 3 | H48: 5.67057474 | I48: 1.5 | J48: 0.75 | K48: 60 | L48: 285 | M48: 164.5448267 | N48: 400 | O48: 230.9401077 | P48: 219.3931023 | Q48: 5.719957856 | R48: 25.36992416 | S48: 24.86252568 | T48: 36 | U48: 24.86252568 | V48: 32.71791788 | W48: 246.8172401 | X48: -21058.33333 | Y48: 21.87688959 | Z48: 21.4393518 | AA48: 36 | AB48: 21.4393518 | AC48: 17.09924175 | AD48: 21.4393518 | AE48: 10664.33744 | AF48: 17.09924175 | AG48: 8505.484943 | AH48: 678.5714286 | AI48: 112.6246923 | AJ48: 143.0054626 | AL48: 3780 | AM48: 116.9043548 | AN48: 115.559221 | AO48: 49.90388172 | AP48: 6.894019611 | AQ48: 6.790448135 | AR48: 6.790448135 | AS48: 6.790448135 | AT48: 2687.935569 | AU48: 540 | AV48: 40.46313694 | AW48: 14.35508172 | AX48: 3.69750002 | AY48: 3.641951072 | AZ48: 3.641951072 | BA48: 3.641951072 | BB48: 1441.632368 | BC48: 540 | BD48: 18.42365751
A49: 46 | B49: 1 | C49: 1 | D49: 4855.555556 | E49: 508.4725887 | F49: 7.6 | G49: =VLOOKUP(Hardware!$C$78,MotorenAuswahlMatrix,26,FALSE) -> 3 | H49: 5.796587512 | I49: 1.5 | J49: 0.75 | K49: 60 | L49: 291.3333333 | M49: 168.2013784 | N49: 400 | O49: 230.9401077 | P49: 219.3931023 | Q49: 5.844906054 | R49: 24.09967214 | S49: 23.61767869 | T49: 36 | U49: 23.61767869 | V49: 34.16292678 | W49: 252.3020676 | X49: -19841.62963 | Y49: 20.68829966 | Z49: 20.27453366 | AA49: 36 | AB49: 20.27453366 | AC49: 17.09924175 | AD49: 20.27453366 | AE49: 10309.04462 | AF49: 17.09924175 | AG49: 8694.49572 | AH49: 693.6507937 | AI49: 112.6246923 | AJ49: 134.8517356 | AL49: 3864 | AM49: 121.6022686 | AN49: 120.7522527 | AO49: 48.33791048 | AP49: 6.784991173 | AQ49: 6.683057672 | AR49: 6.683057672 | AS49: 6.683057672 | AT49: 2704.213301 | AU49: 552 | AV49: 39.7114037 | AW49: 12.78911048 | AX49: 3.490000747 | AY49: 3.43756914 | AZ49: 3.43756914 | BA49: 3.43756914 | BB49: 1390.968124 | BC49: 552 | BD49: 16.99298398
A50: 47 | B50: 1 | C50: 1 | D50: 4961.111111 | E50: 519.5263407 | F50: 7.6 | G50: =VLOOKUP(Hardware!$C$78,MotorenAuswahlMatrix,26,FALSE) -> 3 | H50: 5.922600284 | I50: 1.5 | J50: 0.75 | K50: 60 | L50: 297.6666667 | M50: 171.8579301 | N50: 400 | O50: 230.9401077 | P50: 219.3931023 | Q50: 5.969899004 | R50: 22.8437974 | S50: 22.38692146 | T50: 36 | U50: 22.38692146 | V50: 35.63969412 | W50: 257.7868952 | X50: -18598.18519 | Y50: 19.51173862 | Z50: 19.12150384 | AA50: 36 | AB50: 19.12150384 | AC50: 17.09924175 | AD50: 19.12150384 | AE50: 9934.12492 | AF50: 17.09924175 | AG50: 8883.506496 | AH50: 708.7301587 | AI50: 112.6246923 | AJ50: 126.7805269 | AL50: 3948 | AM50: 126.3914884 | AN50: 126.0594169 | AO50: 46.74150388 | AP50: 6.672010041 | AQ50: 6.571773898 | AR50: 6.571773898 | AS50: 6.571773898 | AT50: 2716.992097 | AU50: 564 | AV50: 38.93241729 | AW50: 11.19270388 | AX50: 3.264922355 | AY50: 3.215872186 | AZ50: 3.215872186 | BA50: 3.215872186 | BB50: 1329.549593 | BC50: 564 | BD50: 15.4411053
A51: 48 | B51: 1 | C51: 1 | D51: 5066.666667 | E51: 530.5800926 | F51: 7.6 | G51: =VLOOKUP(Hardware!$C$78,MotorenAuswahlMatrix,26,FALSE) -> 3 | H51: 6.048613056 | I51: 1.5 | J51: 0.75 | K51: 60 | L51: 304 | M51: 175.5144818 | N51: 400 | O51: 230.9401077 | P51: 219.3931023 | Q51: 6.094933954 | R51: 21.59758619 | S51: 21.16563446 | T51: 36 | U51: 21.16563446 | V51: 37.1482199 | W51: 263.2717228 | X51: -17328 | Y51: 18.34281973 | Z51: 17.97596334 | AA51: 36 | AB51: 17.97596334 | AC51: 17.09924175 | AD51: 17.97596334 | AE51: 9537.688293 | AF51: 17.09924175 | AG51: 9072.517273 | AH51: 723.8095238 | AI51: 112.6246923 | AJ51: 118.7617434 | AL51: 4032 | AM51: 131.2720142 | AN51: 131.4807137 | AO51: 45.11466194 | AP51: 6.55487183 | AQ51: 6.456395499 | AR51: 6.456395499 | AS51: 6.456395499 | AT51: 2726.084212 | AU51: 576 | AV51: 38.12476849 | AW51: 9.565861939 | AX51: 3.018334757 | AY51: 2.972989167 | AZ51: 2.972989167 | BA51: 2.972989167 | BB51: 1255.285372 | BC51: 576 | BD51: 13.74092417
A52: 49 | B52: 1 | C52: 1 | D52: 5172.222222 | E52: 541.6338445 | F52: 7.6 | G52: =VLOOKUP(Hardware!$C$78,MotorenAuswahlMatrix,26,FALSE) -> 3 | H52: 6.174625828 | I52: 1.5 | J52: 0.75 | K52: 60 | L52: 310.3333333 | M52: 179.1710335 | N52: 400 | O52: 230.9401077 | P52: 219.3931023 | Q52: 6.220008369 | R52: 20.35590153 | S52: 19.9487835 | T52: 36 | U52: 19.9487835 | V52: 38.68850411 | W52: 268.7565503 | X52: -16031.07407 | Y52: 17.1767657 | Z52: 16.83323039 | AA52: 36 | AB52: 16.83323039 | AC52: 17.09924175 | AD52: 16.83323039 | AE52: 9117.447293 | AF52: 16.83323039 | AG52: 9117.447293 | AH52: 738.8888889 | AI52: 110.7626127 | AJ52: 110.7626127 | AL52: 4116 | AM52: 136.2438461 | AN52: 137.0161431 | AO52: 43.45738464 | AP52: 6.433349468 | AQ52: 6.336698814 | AR52: 6.336698814 | AS52: 6.336698814 | AT52: 2731.285188 | AU52: 588 | AV52: 37.2868917 | AW52: 7.908584645 | AX52: 2.744446279 | AY52: 2.703215419 | AZ52: 2.703215419 | BA52: 2.703215419 | BB52: 1165.157514 | BC52: 588 | BD52: 11.85250793
A53: 50 | B53: 1 | C53: 1 | D53: 5277.777778 | E53: 552.6875965 | F53: 7.6 | G53: =VLOOKUP(Hardware!$C$78,MotorenAuswahlMatrix,26,FALSE) -> 3 | H53: 6.3006386 | I53: 1.5 | J53: 0.75 | K53: 60 | L53: 316.6666667 | M53: 182.8275852 | N53: 400 | O53: 230.9401077 | P53: 219.3931023 | Q53: 6.345119917 | R53: 19.11297216 | S53: 18.73071271 | T53: 36 | U53: 18.73071271 | V53: 40.26054676 | W53: 274.2413779 | X53: -14707.40741 | Y53: 16.00821889 | Z53: 15.68805452 | AA53: 36 | AB53: 15.68805452 | AC53: 17.09924175 | AD53: 15.68805452 | AE53: 8670.593144 | AF53: 15.68805452 | AG53: 8670.593144 | AH53: 753.968254 | AI53: 102.7463816 | AJ53: 102.7463816 | AL53: 4200 | AM53: 141.306984 | AN53: 142.665705 | AO53: 41.769672 | AP53: 6.307189548 | AQ53: 6.212434243 | AR53: 6.212434243 | AS53: 6.212434243 | AT53: 2732.371289 | AU53: 600 | AV53: 36.4170397 | AW53: 6.220872 | AX53: 2.434058339 | AY53: 2.397490556 | AZ53: 2.397490556 | BA53: 2.397490556 | BB53: 1054.471421 | BC53: 600 | BD53: 9.712433892
A54: 51 | B54: 1 | C54: 1 | D54: 5383.333333 | E54: 563.7413484 | F54: 7.6 | G54: =VLOOKUP(Hardware!$C$78,MotorenAuswahlMatrix,26,FALSE) -> 3 | H54: 6.426651372 | I54: 1.5 | J54: 0.75 | K54: 60 | L54: 323 | M54: 186.4841369 | N54: 400 | O54: 230.9401077 | P54: 219.3931023 | Q54: 6.470266444 | R54: 17.86209101 | S54: 17.50484919 | T54: 36 | U54: 17.50484919 | V54: 41.86434785 | W54: 279.7262054 | X54: -13357 | Y54: 14.83097301 | Z54: 14.53435355 | AA54: 36 | AB54: 14.53435355 | AC54: 17.09924175 | AD54: 14.53435355 | AE54: 8193.616069 | AF54: 14.53435355 | AG54: 8193.616069 | AH54: 769.047619 | AI54: 94.67047486 | AJ54: 94.67047486
A55: 52 | B55: 1 | C55: 1 | D55: 5488.888889 | E55: 574.7951003 | F55: 7.6 | G55: =VLOOKUP(Hardware!$C$78,MotorenAuswahlMatrix,26,FALSE) -> 3 | H55: 6.552664144 | I55: 1.5 | J55: 0.75 | K55: 60 | L55: 329.3333333 | M55: 190.1406887 | N55: 400 | O55: 230.9401077 | P55: 219.3931023 | Q55: 6.595445958 | R55: 16.59516434 | S55: 16.26326105 | T55: 36 | U55: 16.26326105 | V55: 43.49990738 | W55: 285.211033 | X55: -11979.85185 | Y55: 13.63757641 | Z55: 13.36482488 | AA55: 36 | AB55: 13.36482488 | AC55: 17.09924175 | AD55: 13.36482488 | AE55: 7682.035856 | AF55: 13.36482488 | AG55: 7682.035856 | AH55: 784.1269841 | AI55: 86.48377414 | AJ55: 86.48377414
A56: 53 | B56: 1 | C56: 1 | D56: 5594.444444 | E56: 585.8488523 | F56: 7.6 | G56: =VLOOKUP(Hardware!$C$78,MotorenAuswahlMatrix,26,FALSE) -> 3 | H56: 6.678676916 | I56: 1.5 | J56: 0.75 | K56: 60 | L56: 335.6666667 | M56: 193.7972404 | N56: 400 | O56: 230.9401077 | P56: 219.3931023 | Q56: 6.720656616 | R56: 15.302002 | S56: 14.99596196 | T56: 36 | U56: 14.99596196 | V56: 45.16722534 | W56: 290.6958605 | X56: -10575.96296 | Y56: 12.4187164 | Z56: 12.17034207 | AA56: 36 | AB56: 12.17034207 | AC56: 17.09924175 | AD56: 12.17034207 | AE56: 7129.980934 | AF56: 12.17034207 | AG56: 7129.980934 | AH56: 799.2063492 | AI56: 78.1223945 | AJ56: 78.1223945
A57: 54 | B57: 1 | C57: 1 | D57: 5700 | E57: 596.9026042 | F57: 7.6 | G57: =VLOOKUP(Hardware!$C$78,MotorenAuswahlMatrix,26,FALSE) -> 3 | H57: 6.804689688 | I57: 1.5 | J57: 0.75 | K57: 60 | L57: 342 | M57: 197.4537921 | N57: 400 | O57: 230.9401077 | P57: 219.3931023 | Q57: 6.845896709 | R57: 13.9691322 | S57: 13.68974956 | T57: 36 | U57: 13.68974956 | V57: 46.86630175 | W57: 296.1806881 | X57: -9145.333333 | Y57: 11.16220897 | Z57: 10.93896479 | AA57: 36 | AB57: 10.93896479 | AC57: 17.09924175 | AD57: 10.93896479 | AE57: 6529.496568 | AF57: 10.93896479 | AG57: 6529.496568 | AH57: 814.2857143 | AI57: 69.50275351 | AJ57: 69.50275351
A58: 55 | B58: 1 | C58: 1 | D58: 5805.555556 | E58: 607.9563561 | F58: 7.6 | G58: =VLOOKUP(Hardware!$C$78,MotorenAuswahlMatrix,26,FALSE) -> 3 | H58: 6.93070246 | I58: 1.5 | J58: 0.75 | K58: 60 | L58: 348.3333333 | M58: 201.1103438 | N58: 400 | O58: 230.9401077 | P58: 219.3931023 | Q58: 6.971164651 | R58: 12.57767304 | S58: 12.32611958 | T58: 36 | U58: 12.32611958 | V58: 48.59713658 | W58: 301.6655157 | X58: -7687.962963 | Y58: 9.851224655 | Z58: 9.654200162 | AA58: 36 | AB58: 9.654200162 | AC58: 17.09924175 | AD58: 9.654200162 | AE58: 5869.332352 | AF58: 9.654200162 | AG58: 5869.332352 | AH58: 829.3650794 | AI58: 60.50940114 | AJ58: 60.50940114
A59: 56 | B59: 1 | C59: 1 | D59: 5911.111111 | E59: 619.010108 | F59: 7.6 | G59: =VLOOKUP(Hardware!$C$78,MotorenAuswahlMatrix,26,FALSE) -> 3 | H59: 7.056715232 | I59: 1.5 | J59: 0.75 | K59: 60 | L59: 354.6666667 | M59: 204.7668955 | N59: 400 | O59: 230.9401077 | P59: 219.3931023 | Q59: 7.096458966 | R59: 11.09913192 | S59: 10.87714928 | T59: 36 | U59: 10.87714928 | V59: 50.35972986 | W59: 307.1503432 | X59: -6203.851852 | Y59: 8.460891506 | Z59: 8.291673676 | AA59: 36 | AB59: 8.291673676 | AC59: 17.09924175 | AD59: 8.291673676 | AE59: 5132.629818 | AF59: 8.291673676 | AG59: 5132.629818 | AH59: 844.4444444 | AI59: 50.97171573 | AJ59: 50.97171573
A60: 57 | B60: 1 | C60: 1 | D60: 6016.666667 | E60: 630.06386 | F60: 7.6 | G60: =VLOOKUP(Hardware!$C$78,MotorenAuswahlMatrix,26,FALSE) -> 3 | H60: 7.182728004 | I60: 1.5 | J60: 0.75 | K60: 60 | L60: 361 | M60: 208.4234472 | N60: 400 | O60: 230.9401077 | P60: 219.3931023 | Q60: 7.221778283 | R60: 9.485956443 | S60: 9.296237314 | T60: 36 | U60: 9.296237314 | V60: 52.15408157 | W60: 312.6351708 | X60: -4693 | Y60: 6.950976302 | Z60: 6.811956776 | AA60: 36 | AB60: 6.811956776 | AC60: 17.09924175 | AD60: 6.811956776 | AE60: 4291.96778 | AF60: 6.811956776 | AG60: 4291.96778 | AH60: 859.5238095 | AI60: 40.61369743 | AJ60: 40.61369743
A61: 58 | B61: 1 | C61: 1 | D61: 6122.222222 | E61: 641.1176119 | F61: 7.6 | G61: =VLOOKUP(Hardware!$C$78,MotorenAuswahlMatrix,26,FALSE) -> 3 | H61: 7.308740776 | I61: 1.5 | J61: 0.75 | K61: 60 | L61: 367.3333333 | M61: 212.0799989 | N61: 400 | O61: 230.9401077 | P61: 219.3931023 | Q61: 7.347121322 | R61: 7.645581268 | S61: 7.492669643 | T61: 36 | U61: 7.492669643 | V61: 53.98019173 | W61: 318.1199983 | X61: -3155.407407 | Y61: 5.247116022 | Z61: 5.142173701 | AA61: 36 | AB61: 5.142173701 | AC61: 17.09924175 | AD61: 5.142173701 | AE61: 3296.738123 | AF61: 5.142173701 | AG61: 3296.738123 | AH61: 874.6031746 | AI61: 28.92521591 | AJ61: 28.92521591
A62: 59 | B62: 1 | C62: 1 | D62: 6227.777778 | E62: 652.1713638 | F62: 7.6 | G62: =VLOOKUP(Hardware!$C$78,MotorenAuswahlMatrix,26,FALSE) -> 3 | H62: 7.434753548 | I62: 1.5 | J62: 0.75 | K62: 60 | L62: 373.6666667 | M62: 215.7365506 | N62: 400 | O62: 230.9401077 | P62: 219.3931023 | Q62: 7.47248689 | R62: 5.338018048 | S62: 5.231257687 | T62: 36 | U62: 5.231257687 | V62: 55.83806031 | W62: 323.6048259 | X62: -1591.074074 | Y62: 3.176100211 | Z62: 3.112578207 | AA62: 36 | AB62: 3.112578207 | AC62: 17.09924175 | AD62: 3.112578207 | AE62: 2029.934374 | AF62: 3.112578207 | AG62: 2029.934374 | AH62: 889.6825397 | AI62: 14.71804745 | AJ62: 14.71804745
A63: 60 | B63: 1 | C63: 1 | D63: 6333.333333 | E63: 663.2251158 | F63: 7.6 | G63: =VLOOKUP(Hardware!$C$78,MotorenAuswahlMatrix,26,FALSE) -> 3 | H63: 7.56076632 | I63: 1.5 | J63: 0.75 | K63: 60 | L63: 380 | M63: 219.3931023 | N63: 400 | O63: 230.9401077 | P63: 219.3931023 | Q63: 7.59787387 | R63: 0 | S63: 0 | T63: 36 | U63: 0 | V63: 57.72768734 | W63: 329.0896534 | X63: 0 | Y63: 0 | Z63: 0 | AA63: 36 | AB63: 0 | AC63: 17.09924175 | AD63: 0 | AE63: 0 | AF63: 0 | AG63: 0 | AH63: 904.7619048 | AI63: 7.07 | AJ63: 7.07
A64: 60 | B64: -1 | C64: 1 | D64: 6333.333333 | E64: 663.2251158 | F64: 7.6 | G64: =VLOOKUP(Hardware!$C$78,MotorenAuswahlMatrix,26,FALSE) -> 3 | H64: 7.56076632 | I64: 1.5 | J64: 0.75 | K64: 60 | L64: 380 | M64: 219.3931023 | N64: 400 | O64: 230.9401077 | P64: =O64*1.05 -> 242.4871131 | Q64: 7.59787387 | R64: 13.59321801 | S64: -13.32135365 | T64: -36 | U64: -13.32135365 | V64: 57.72768734 | W64: 329.0896534 | X64: -10666.66667 | Y64: =(-W64-SQRT(W64^2-4*V64*X64))/(2*V64) -> -16.73921188 | Z64: -16.40442765 | AA64: -36 | AB64: -16.40442765 | AC64: -17.09924175 | AD64: -16.40442765 | AE64: -10879.82843 | AF64: -16.40442765 | AG64: -10879.82843 | AH64: 904.7619048 | AI64: -107.7609935 | AJ64: -107.7609935
A65: 59 | B65: -1 | C65: 1 | D65: 6227.777778 | E65: 652.1713638 | F65: 7.6 | G65: =VLOOKUP(Hardware!$C$78,MotorenAuswahlMatrix,26,FALSE) -> 3 | H65: 7.434753548 | I65: 1.5 | J65: 0.75 | K65: 60 | L65: 373.6666667 | M65: 215.7365506 | N65: 400 | O65: 230.9401077 | P65: =O65*1.05 -> 242.4871131 | Q65: 7.47248689 | R65: 14.81630993 | S65: -14.51998373 | T65: -36 | U65: -14.51998373 | V65: 55.83806031 | W65: 323.6048259 | X65: -12257.74074 | Y65: =(-W65-SQRT(W65^2-4*V65*X65))/(2*V65) -> -17.99471975 | Z65: -17.63482535 | AA65: -36 | AB65: -17.63482535 | AC65: -17.09924175 | AD65: -17.63482535 | AE65: -11500.9281 | AF65: -17.09924175 | AG65: -11151.63581 | AH65: 889.6825397 | AI65: -112.6246923 | AJ65: -116.3737775
A66: 58 | B66: -1 | C66: 1 | D66: 6122.222222 | E66: 641.1176119 | F66: 7.6 | G66: =VLOOKUP(Hardware!$C$78,MotorenAuswahlMatrix,26,FALSE) -> 3 | H66: 7.308740776 | I66: 1.5 | J66: 0.75 | K66: 60 | L66: 367.3333333 | M66: 212.0799989 | N66: 400 | O66: 230.9401077 | P66: 242.4871131 | Q66: 7.347121322 | R66: 16.00182058 | S66: -15.68178417 | T66: -36 | U66: -15.68178417 | V66: 53.98019173 | W66: 318.1199983 | X66: -13822.07407 | Y66: -19.21749775 | Z66: -18.83314779 | AA66: -36 | AB66: -18.83314779 | AC66: -17.09924175 | AD66: -18.83314779 | AE66: -12074.26274 | AF66: -17.09924175 | AG66: -10962.62504 | AH66: 874.6031746 | AI66: -112.6246923 | AJ66: -124.7620346
A67: 57 | B67: -1 | C67: 1 | D67: =A67*nLL/60*C67 -> 6016.666667 | E67: 630.06386 | F67: =L_phph -> 7.6 | G67: =VLOOKUP(Hardware!$C$78,MotorenAuswahlMatrix,26,FALSE) -> 3 | H67: 7.182728004 | I67: =R_phph_cold -> 1.5 | J67: =R_phph_cold/2 -> 0.75 | K67: =KE_Motor -> 60 | L67: 361 | M67: 208.4234472 | N67: =UNetz -> 400 | O67: 230.9401077 | P67: 242.4871131 | Q67: 7.221778283 | R67: 17.16116411 | S67: =R67*MMaxM/IMaxM*B67 -> -16.81794083 | T67: =MMaxM*B67 -> -36 | U67: -16.81794083 | V67: 52.15408157 | W67: 312.6351708 | X67: -15359.66667 | Y67: -20.41815967 | Z67: =Y67*MMaxM/IMaxM -> -20.00979648 | AA67: =MMaxM*B67 -> -36 | AB67: -20.00979648 | AC67: =IMaxeinstellen*MNennM/INennM*B67 -> -17.09924175 | AD67: -20.00979648 | AE67: -12607.4496 | AF67: -17.09924175 | AG67: -10773.61426 | AH67: 859.5238095 | AI67: -112.6246923 | AJ67: -132.9985753
A68: 56 | B68: -1 | C68: 1 | D68: 5911.111111 | E68: =2*PI()*D68/60 -> 619.010108 | F68: 7.6 | G68: =VLOOKUP(Hardware!$C$78,MotorenAuswahlMatrix,26,FALSE) -> 3 | H68: =E68*F68/2/1000*G68 -> 7.056715232 | I68: 1.5 | J68: 0.75 | K68: 60 | L68: =K68*D68/1000 -> 354.6666667 | M68: =L68/ SQRT(3) -> 204.7668955 | N68: 400 | O68: =N68/SQRT(3) -> 230.9401077 | P68: 242.4871131 | Q68: =SQRT(H68^2+J68^2) -> 7.096458966 | R68: =SQRT((P68^2-M68^2)/Q68^2) -> 18.30301011 | S68: -17.93694991 | T68: -36 | U68: =IF(ABS(S68)>ABS(T68),T68,S68) -> -17.93694991 | V68: =H68^2+J68^2 -> 50.35972986 | W68: =2*J68*M68 -> 307.1503432 | X68: =-(P68^2-M68^2) -> -16870.51852 | Y68: -21.60488611 | Z68: -21.17278839 | AA68: -36 | AB68: =IF(ABS(Z68)>ABS(AA68),AA68,Z68) -> -21.17278839 | AC68: -17.09924175 | AD68: =IF(OR($BI$4="EX",$BI$4="NX"),AB68,AB68) -> -21.17278839 | AE68: =AD68*2*PI()*D68/60 -> -13106.17003 | AF68: =IF(ABS(AC68)>ABS(AD68),AD68,AC68) -> -17.09924175 | AG68: =AF68*2*PI()*D68/60 -> -10584.60348 | AH68: =D68/iGetriebe -> 844.4444444 | AI68: =IF(AF68>0,(AF68-MReibG)*iGetriebe,(AF68+MReibG)*iGetriebe) -> -112.6246923 | AJ68: =IF(AD68>0,(AD68-MReibG)*iGetriebe,(AD68+MReibG)*iGetriebe) -> -141.1395187
A69: 55 | B69: -1 | C69: 1 | D69: 5805.555556 | E69: 607.9563561 | F69: 7.6 | G69: =VLOOKUP(Hardware!$C$78,MotorenAuswahlMatrix,26,FALSE) -> 3 | H69: 6.93070246 | I69: 1.5 | J69: 0.75 | K69: 60 | L69: 348.3333333 | M69: 201.1103438 | N69: 400 | O69: 230.9401077 | P69: 242.4871131 | Q69: 6.971164651 | R69: 19.434236 | S69: -19.04555128 | T69: -36 | U69: -19.04555128 | V69: 48.59713658 | W69: 301.6655157 | X69: -18354.62963 | Y69: -22.7842537 | Z69: -22.32856863 | AA69: -36 | AB69: -22.32856863 | AC69: -17.09924175 | AD69: -22.32856863 | AE69: -13574.79522 | AF69: -17.09924175 | AG69: -10395.59271 | AH69: 829.3650794 | AI69: -112.6246923 | AJ69: -149.2299804
A70: 54 | B70: -1 | C70: 1 | D70: 5700 | E70: 596.9026042 | F70: 7.6 | G70: =VLOOKUP(Hardware!$C$78,MotorenAuswahlMatrix,26,FALSE) -> 3 | H70: 6.804689688 | I70: 1.5 | J70: 0.75 | K70: 60 | L70: 342 | M70: 197.4537921 | N70: 400 | O70: 230.9401077 | P70: 242.4871131 | Q70: 6.845896709 | R70: 20.56050689 | S70: -20.14929676 | T70: -36 | U70: -20.14929676 | V70: 46.86630175 | W70: 296.1806881 | X70: -19812 | Y70: -23.96174783 | Z70: -23.48251287 | AA70: -36 | AB70: -23.48251287 | AC70: -17.09924175 | AD70: -23.48251287 | AE70: -14016.77308 | AF70: -17.09924175 | AG70: -10206.58193 | AH70: 814.2857143 | AI70: -112.6246923 | AJ70: -157.3075901
A71: 53 | B71: -1 | C71: 1 | D71: 5594.444444 | E71: 585.8488523 | F71: 7.6 | G71: =VLOOKUP(Hardware!$C$78,MotorenAuswahlMatrix,26,FALSE) -> 3 | H71: 6.678676916 | I71: 1.5 | J71: 0.75 | K71: 60 | L71: 335.6666667 | M71: 193.7972404 | N71: 400 | O71: 230.9401077 | P71: 242.4871131 | Q71: 6.720656616 | R71: 21.6866481 | S71: -21.25291514 | T71: -36 | U71: -21.25291514 | V71: 45.16722534 | W71: 290.6958605 | X71: -21242.62963 | Y71: -25.14209647 | Z71: -24.63925454 | AA71: -36 | AB71: -24.63925454 | AC71: -17.09924175 | AD71: -24.63925454 | AE71: -14434.87899 | AF71: -17.09924175 | AG71: -10017.57116 | AH71: 799.2063492 | AI71: -112.6246923 | AJ71: -165.4047818
A72: 52 | B72: -1 | C72: 1 | D72: 5488.888889 | E72: 574.7951003 | F72: 7.6 | G72: =VLOOKUP(Hardware!$C$78,MotorenAuswahlMatrix,26,FALSE) -> 3 | H72: 6.552664144 | I72: 1.5 | J72: 0.75 | K72: 60 | L72: 329.3333333 | M72: 190.1406887 | N72: 400 | O72: 230.9401077 | P72: 242.4871131 | Q72: 6.595445958 | R72: 22.8168957 | S72: -22.36055779 | T72: -36 | U72: -22.36055779 | V72: 43.49990738 | W72: 285.211033 | X72: -22646.51852 | Y72: -26.32949741 | Z72: -25.80290747 | AA72: -36 | AB72: -25.80290747 | AC72: -17.09924175 | AD72: -25.80290747 | AE72: -14831.38479 | AF72: -17.09924175 | AG72: -9828.560379 | AH72: 784.1269841 | AI72: -112.6246923 | AJ72: -173.5503523
A73: 51 | B73: -1 | C73: 1 | D73: 5383.333333 | E73: 563.7413484 | F73: 7.6 | G73: =VLOOKUP(Hardware!$C$78,MotorenAuswahlMatrix,26,FALSE) -> 3 | H73: 6.426651372 | I73: 1.5 | J73: 0.75 | K73: 60 | L73: 323 | M73: 186.4841369 | N73: 400 | O73: 230.9401077 | P73: 242.4871131 | Q73: 6.470266444 | R73: 23.95507205 | S73: -23.47597061 | T73: -36 | U73: -23.47597061 | V73: 41.86434785 | W73: 279.7262054 | X73: -24023.66667 | Y73: -27.52777911 | Z73: -26.97722353 | AA73: -36 | AB73: -26.97722353 | AC73: -17.09924175 | AD73: -26.97722353 | AE73: -15208.17637 | AF73: -17.09924175 | AG73: -9639.549602 | AH73: 769.047619 | AI73: -112.6246923 | AJ73: -181.7705647
A74: 50 | B74: -1 | C74: 1 | D74: 5277.777778 | E74: 552.6875965 | F74: 7.6 | G74: =VLOOKUP(Hardware!$C$78,MotorenAuswahlMatrix,26,FALSE) -> 3 | H74: 6.3006386 | I74: 1.5 | J74: 0.75 | K74: 60 | L74: 316.6666667 | M74: 182.8275852 | N74: 400 | O74: 230.9401077 | P74: 242.4871131 | Q74: 6.345119917 | R74: 25.10471338 | S74: -24.60261911 | T74: -36 | U74: -24.60261911 | V74: 40.26054676 | W74: 274.2413779 | X74: -25374.07407 | Y74: -28.74051907 | Z74: -28.16570869 | AA74: -36 | AB74: -28.16570869 | AC74: -17.09924175 | AD74: -28.16570869 | AE74: -15566.83784 | AF74: -17.09924175 | AG74: -9450.538826 | AH74: 753.968254 | AI74: -112.6246923 | AJ74: -190.0899608
A75: 49 | B75: -1 | C75: 1 | D75: 5172.222222 | E75: 541.6338445 | F75: 7.6 | G75: =VLOOKUP(Hardware!$C$78,MotorenAuswahlMatrix,26,FALSE) -> 3 | H75: 6.174625828 | I75: 1.5 | J75: 0.75 | K75: 60 | L75: 310.3333333 | M75: 179.1710335 | N75: 400 | O75: 230.9401077 | P75: 242.4871131 | Q75: 6.220008369 | R75: 26.2691661 | S75: -25.74378278 | T75: -36 | U75: -25.74378278 | V75: 38.68850411 | W75: 268.7565503 | X75: -26697.74074 | Y75: -29.97113416 | Z75: -29.37171148 | AA75: -36 | AB75: -29.37171148 | AC75: -17.09924175 | AD75: -29.37171148 | AE75: -15908.71301 | AF75: -17.09924175 | AG75: -9261.528049 | AH75: 738.8888889 | AI75: -112.6246923 | AJ75: -198.5319803
A76: 48 | B76: -1 | C76: 1 | D76: 5066.666667 | E76: 530.5800926 | F76: 7.6 | G76: =VLOOKUP(Hardware!$C$78,MotorenAuswahlMatrix,26,FALSE) -> 3 | H76: 6.048613056 | I76: 1.5 | J76: 0.75 | K76: 60 | L76: 304 | M76: 175.5144818 | N76: 400 | O76: 230.9401077 | P76: 242.4871131 | Q76: 6.094933954 | R76: 27.45166222 | S76: -26.90262898 | T76: -36 | U76: -26.90262898 | V76: 37.1482199 | W76: 263.2717228 | X76: -27994.66667 | Y76: -31.22295221 | Z76: -30.59849316 | AA76: -36 | AB76: -30.59849316 | AC76: -17.09924175 | AD76: -30.59849316 | AE76: -16234.95134 | AF76: -17.09924175 | AG76: -9072.517273 | AH76: 723.8095238 | AI76: -112.6246923 | AJ76: -207.1194521
A77: 47 | B77: -1 | C77: 1 | D77: 4961.111111 | E77: 519.5263407 | F77: 7.6 | G77: =VLOOKUP(Hardware!$C$78,MotorenAuswahlMatrix,26,FALSE) -> 3 | H77: 5.922600284 | I77: 1.5 | J77: 0.75 | K77: 60 | L77: 297.6666667 | M77: 171.8579301 | N77: 400 | O77: 230.9401077 | P77: 242.4871131 | Q77: 5.969899004 | R77: 28.65538059 | S77: -28.08227298 | T77: -36 | U77: -28.08227298 | V77: 35.63969412 | W77: 257.7868952 | X77: -29264.85185 | Y77: -32.49927094 | Z77: -31.84928552 | AA77: -36 | AB77: -31.84928552 | AC77: -17.09924175 | AD77: -31.84928552 | AE77: -16546.54276 | AF77: -17.09924175 | AG77: -8883.506496 | AH77: 708.7301587 | AI77: -112.6246923 | AJ77: -215.8749986
A78: 46 | B78: -1 | C78: 1 | D78: 4855.555556 | E78: 508.4725887 | F78: 7.6 | G78: =VLOOKUP(Hardware!$C$78,MotorenAuswahlMatrix,26,FALSE) -> 3 | H78: 5.796587512 | I78: 1.5 | J78: 0.75 | K78: 60 | L78: 291.3333333 | M78: 168.2013784 | N78: 400 | O78: 230.9401077 | P78: 242.4871131 | Q78: 5.844906054 | R78: 29.88349872 | S78: -29.28582874 | T78: -36 | U78: -29.28582874 | V78: 34.16292678 | W78: 252.3020676 | X78: -30508.2963 | Y78: -33.80340852 | Z78: -33.12734035 | AA78: -36 | AB78: -33.12734035 | AC78: -17.09924175 | AD78: -33.12734035 | AE78: -16844.34451 | AF78: -17.09924175 | AG78: -8694.49572 | AH78: 693.6507937 | AI78: -112.6246923 | AJ78: -224.8213825
A79: 45 | B79: -1 | C79: 1 | D79: 4750 | E79: 497.4188368 | F79: 7.6 | G79: =VLOOKUP(Hardware!$C$78,MotorenAuswahlMatrix,26,FALSE) -> 3 | H79: 5.67057474 | I79: 1.5 | J79: 0.75 | K79: 60 | L79: 285 | M79: 164.5448267 | N79: 400 | O79: 230.9401077 | P79: 242.4871131 | Q79: 5.719957856 | R79: 31.1392384 | S79: -30.51645363 | T79: -36 | U79: -30.51645363 | V79: 32.71791788 | W79: 246.8172401 | X79: -31725 | Y79: -35.13874866 | Z79: -34.43597368 | AA79: -36 | AB79: -34.43597368 | AC79: -17.09924175 | AD79: -34.43597368 | AE79: -17129.10197 | AF79: -17.09924175 | AG79: -8505.484943 | AH79: 678.5714286 | AI79: -112.6246923 | AJ79: -233.9818158
A80: 44 | B80: -1 | C80: 1 | D80: 4644.444444 | E80: 486.3650849 | F80: 7.6 | G80: =VLOOKUP(Hardware!$C$78,MotorenAuswahlMatrix,26,FALSE) -> 3 | H80: 5.544561968 | I80: 1.5 | J80: 0.75 | K80: 60 | L80: 278.6666667 | M80: 160.888275 | N80: 400 | O80: 230.9401077 | P80: 242.4871131 | Q80: 5.595057409 | R80: 32.42590741 | S80: -31.77738926 | T80: -36 | U80: -31.77738926 | V80: 31.30466741 | W80: 241.3324125 | X80: -32914.96296 | Y80: -36.50878241 | Z80: -35.77860676 | AA80: -36 | AB80: -35.77860676 | AC80: -17.09924175 | AD80: -35.77860676 | AE80: -17401.46512 | AF80: -17.09924175 | AG80: -8316.474167 | AH80: 663.4920635 | AI80: -112.6246923 | AJ80: -243.3802473
A81: 43 | B81: -1 | C81: 1 | D81: 4538.888889 | E81: 475.311333 | F81: 7.6 | G81: =VLOOKUP(Hardware!$C$78,MotorenAuswahlMatrix,26,FALSE) -> 3 | H81: 5.418549196 | I81: 1.5 | J81: 0.75 | K81: 60 | L81: 272.3333333 | M81: 157.2317233 | N81: 400 | O81: 230.9401077 | P81: 242.4871131 | Q81: 5.470207984 | R81: 33.74693929 | S81: -33.07200051 | T81: -36 | U81: -33.07200051 | V81: 29.92317539 | W81: 235.847585 | X81: -34078.18519 | Y81: -37.91714855 | Z81: -37.15880558 | AA81: -36 | AB81: -36 | AC81: -17.09924175 | AD81: -36 | AE81: -17111.20799 | AF81: -17.09924175 | AG81: -8127.46339 | AH81: 648.4126984 | AI81: -112.6246923 | AJ81: -244.93
A82: 42 | B82: -1 | C82: 1 | D82: 4433.333333 | E82: 464.257581 | F82: 7.6 | G82: =VLOOKUP(Hardware!$C$78,MotorenAuswahlMatrix,26,FALSE) -> 3 | H82: 5.292536424 | I82: 1.5 | J82: 0.75 | K82: 60 | L82: 266 | M82: 153.5751716 | N82: 400 | O82: 230.9401077 | P82: 242.4871131 | Q82: 5.345413155 | R82: 35.10593245 | S82: -34.4038138 | T82: -36 | U82: -34.4038138 | V82: 28.5734418 | W82: 230.3627574 | X82: -35214.66667 | Y82: -39.36767372 | Z82: -38.58032025 | AA82: -36 | AB82: -36 | AC82: -17.09924175 | AD82: -36 | AE82: -16713.27292 | AF82: -17.09924175 | AG82: -7938.452614 | AH82: 633.3333333 | AI82: -112.6246923 | AJ82: -244.93
A83: 41 | B83: -1 | C83: 1 | D83: 4327.777778 | E83: 453.2038291 | F83: 7.6 | G83: =VLOOKUP(Hardware!$C$78,MotorenAuswahlMatrix,26,FALSE) -> 3 | H83: 5.166523652 | I83: 1.5 | J83: 0.75 | K83: 60 | L83: 259.6666667 | M83: 149.9186199 | N83: 400 | O83: 230.9401077 | P83: 242.4871131 | Q83: 5.220676838 | R83: 36.50669 | S83: -35.7765562 | T83: -36 | U83: -35.7765562 | V83: 27.25546664 | W83: 224.8779298 | X83: -36324.40741 | Y83: -40.86441372 | Z83: -40.04712545 | AA83: -36 | AB83: -36 | AC83: -17.09924175 | AD83: -36 | AE83: -16315.33785 | AF83: -17.09924175 | AG83: -7749.441837 | AH83: 618.2539683 | AI83: -112.6246923 | AJ83: -244.93
A84: 40 | B84: -1 | C84: 1 | D84: 4222.222222 | E84: 442.1500772 | F84: 7.6 | G84: =VLOOKUP(Hardware!$C$78,MotorenAuswahlMatrix,26,FALSE) -> 3 | H84: 5.04051088 | I84: 1.5 | J84: 0.75 | K84: 60 | L84: 253.3333333 | M84: 146.2620682 | N84: 400 | O84: 230.9401077 | P84: 242.4871131 | Q84: 5.096003329 | R84: 37.95326141 | S84: -37.19419618 | T84: -36 | U84: -36 | V84: 25.96924993 | W84: 219.3931023 | X84: -37407.40741 | Y84: -42.41169692 | Z84: -41.56346298 | AA84: -36 | AB84: -36 | AC84: -17.09924175 | AD84: -36 | AE84: -15917.40278 | AF84: -17.09924175 | AG84: -7560.43106 | AH84: 603.1746032 | AI84: -112.6246923 | AJ84: -244.93
A85: 39 | B85: -1 | C85: 1 | D85: 4116.666667 | E85: 431.0963252 | F85: 7.6 | G85: =VLOOKUP(Hardware!$C$78,MotorenAuswahlMatrix,26,FALSE) -> 3 | H85: 4.914498108 | I85: 1.5 | J85: 0.75 | K85: 60 | L85: 247 | M85: 142.6055165 | N85: 400 | O85: 230.9401077 | P85: 242.4871131 | Q85: 4.971397354 | R85: 39.44998699 | S85: -38.66098725 | T85: -36 | U85: -36 | V85: 24.71479165 | W85: 213.9082747 | X85: -38463.66667 | Y85: -44.01417096 | Z85: -43.13388754 | AA85: -36 | AB85: -36 | AC85: -17.09924175 | AD85: -36 | AE85: -15519.46771 | AF85: -17.09924175 | AG85: -7371.420284 | AH85: 588.0952381 | AI85: -112.6246923 | AJ85: -244.93
A86: 38 | B86: -1 | C86: 1 | D86: 4011.111111 | E86: 420.0425733 | F86: 7.6 | G86: =VLOOKUP(Hardware!$C$78,MotorenAuswahlMatrix,26,FALSE) -> 3 | H86: 4.788485336 | I86: 1.5 | J86: 0.75 | K86: 60 | L86: 240.6666667 | M86: 138.9489648 | N86: 400 | O86: 230.9401077 | P86: 242.4871131 | Q86: 4.846864121 | R86: 41.00154634 | S86: -40.18151541 | T86: -36 | U86: -36 | V86: 23.49209181 | W86: 208.4234472 | X86: -39493.18519 | Y86: -45.67685385 | Z86: -44.76331677 | AA86: -36 | AB86: -36 | AC86: -17.09924175 | AD86: -36 | AE86: -15121.53264 | AF86: -17.09924175 | AG86: -7182.409507 | AH86: 573.015873 | AI86: -112.6246923 | AJ86: -244.93
A87: 37 | B87: -1 | C87: 1 | D87: 3905.555556 | E87: 408.9888214 | F87: 7.6 | G87: =VLOOKUP(Hardware!$C$78,MotorenAuswahlMatrix,26,FALSE) -> 3 | H87: 4.662472564 | I87: 1.5 | J87: 0.75 | K87: 60 | L87: 234.3333333 | M87: 135.2924131 | N87: 400 | O87: 230.9401077 | P87: 242.4871131 | Q87: 4.722409386 | R87: 42.61301196 | S87: -41.76075172 | T87: -36 | U87: -36 | V87: 22.30115041 | W87: 202.9386196 | X87: -40495.96296 | Y87: -47.40519055 | Z87: -46.45708674 | AA87: -36 | AB87: -36 | AC87: -17.09924175 | AD87: -36 | AE87: -14723.59757 | AF87: -17.09924175 | AG87: -6993.398731 | AH87: 557.9365079 | AI87: -112.6246923 | AJ87: -244.93
A88: 36 | B88: -1 | C88: 1 | D88: 3800 | E88: 397.9350695 | F88: 7.6 | G88: =VLOOKUP(Hardware!$C$78,MotorenAuswahlMatrix,26,FALSE) -> 3 | H88: 4.536459792 | I88: 1.5 | J88: 0.75 | K88: 60 | L88: 228 | M88: 131.6358614 | N88: 400 | O88: 230.9401077 | P88: 242.4871131 | Q88: 4.598039522 | R88: 44.28990922 | S88: -43.40411103 | T88: -36 | U88: -36 | V88: 21.14196744 | W88: 197.4537921 | X88: -41472 | Y88: -49.2051165 | Z88: -48.22101417 | AA88: -36 | AB88: -36 | AC88: -17.09924175 | AD88: -36 | AE88: -14325.6625 | AF88: -17.09924175 | AG88: -6804.387954 | AH88: 542.8571429 | AI88: -112.6246923 | AJ88: -244.93
A89: 35 | B89: -1 | C89: 1 | D89: 3694.444444 | E89: 386.8813175 | F89: 7.6 | G89: =VLOOKUP(Hardware!$C$78,MotorenAuswahlMatrix,26,FALSE) -> 3 | H89: 4.41044702 | I89: 1.5 | J89: 0.75 | K89: 60 | L89: 221.6666667 | M89: 127.9793097 | N89: 400 | O89: 230.9401077 | P89: 242.4871131 | Q89: 4.473761607 | R89: 46.0382842 | S89: -45.11751852 | T89: -36 | U89: -36 | V89: 20.01454291 | W89: 191.9689645 | X89: -42421.2963 | Y89: -51.08312942 | Z89: -50.06146683 | AA89: -36 | AB89: -36 | AC89: -17.09924175 | AD89: -36 | AE89: -13927.72743 | AF89: -17.09924175 | AG89: -6615.377178 | AH89: 527.7777778 | AI89: -112.6246923 | AJ89: -244.93
A90: 34 | B90: -1 | C90: 1 | D90: 3588.888889 | E90: 375.8275656 | F90: 7.6 | G90: =VLOOKUP(Hardware!$C$78,MotorenAuswahlMatrix,26,FALSE) -> 3 | H90: 4.284434248 | I90: 1.5 | J90: 0.75 | K90: 60 | L90: 215.3333333 | M90: 124.322758 | N90: 400 | O90: 230.9401077 | P90: 242.4871131 | Q90: 4.349583523 | R90: 47.86478107 | S90: -46.90748545 | T90: -36 | U90: -36 | V90: 18.91887682 | W90: 186.4841369 | X90: -43343.85185 | Y90: -53.04637124 | Z90: -51.98544382 | AA90: -36 | AB90: -36 | AC90: -17.09924175 | AD90: -36 | AE90: -13529.79236 | AF90: -17.09924175 | AG90: -6426.366401 | AH90: 512.6984127 | AI90: -112.6246923 | AJ90: -244.93
A91: 33 | B91: -1 | C91: 1 | D91: 3483.333333 | E91: 364.7738137 | F91: 7.6 | G91: =VLOOKUP(Hardware!$C$78,MotorenAuswahlMatrix,26,FALSE) -> 3 | H91: 4.158421476 | I91: 1.5 | J91: 0.75 | K91: 60 | L91: 209 | M91: 120.6662063 | N91: 400 | O91: 230.9401077 | P91: 242.4871131 | Q91: 4.225514072 | R91: 49.77673089 | S91: -48.78119627 | T91: -36 | U91: -36 | V91: 17.85496917 | W91: 180.9993094 | X91: -44239.66667 | Y91: -55.1027222 | Z91: -54.00066776 | AA91: -36 | AB91: -36 | AC91: -17.09924175 | AD91: -36 | AE91: -13131.85729 | AF91: -17.09924175 | AG91: -6237.355625 | AH91: 497.6190476 | AI91: -112.6246923 | AJ91: -244.93
A92: 32 | B92: -1 | C92: 1 | D92: 3377.777778 | E92: 353.7200617 | F92: 7.6 | G92: =VLOOKUP(Hardware!$C$78,MotorenAuswahlMatrix,26,FALSE) -> 3 | H92: 4.032408704 | I92: 1.5 | J92: 0.75 | K92: 60 | L92: 202.6666667 | M92: 117.0096546 | N92: 400 | O92: 230.9401077 | P92: 242.4871131 | Q92: 4.101563111 | R92: 51.78225431 | S92: -50.74660922 | T92: -36 | U92: -36 | V92: 16.82281995 | W92: 175.5144818 | X92: -45108.74074 | Y92: -57.26090936 | Z92: -56.11569117 | AA92: -36 | AB92: -36 | AC92: -17.09924175 | AD92: -36 | AE92: -12733.92222 | AF92: -17.09924175 | AG92: -6048.344848 | AH92: 482.5396825 | AI92: -112.6246923 | AJ92: -244.93
A93: 31 | B93: -1 | C93: 1 | D93: 3272.222222 | E93: 342.6663098 | F93: 7.6 | G93: =VLOOKUP(Hardware!$C$78,MotorenAuswahlMatrix,26,FALSE) -> 3 | H93: 3.906395932 | I93: 1.5 | J93: 0.75 | K93: 60 | L93: 196.3333333 | M93: 113.3531029 | N93: 400 | O93: 230.9401077 | P93: 242.4871131 | Q93: 3.977741718 | R93: 53.89038092 | S93: -52.8125733 | T93: -36 | U93: -36 | V93: 15.82242918 | W93: 170.0296543 | X93: -45951.07407 | Y93: -59.53063262 | Z93: -58.34001997 | AA93: -36 | AB93: -36 | AC93: -17.09924175 | AD93: -36 | AE93: -12335.98715 | AF93: -17.09924175 | AG93: -5859.334072 | AH93: 467.4603175 | AI93: -112.6246923 | AJ93: -244.93
A94: 30 | B94: -1 | C94: 1 | D94: 3166.666667 | E94: 331.6125579 | F94: 7.6 | G94: =VLOOKUP(Hardware!$C$78,MotorenAuswahlMatrix,26,FALSE) -> 3 | H94: 3.78038316 | I94: 1.5 | J94: 0.75 | K94: 60 | L94: 190 | M94: 109.6965511 | N94: 400 | O94: 230.9401077 | P94: 242.4871131 | Q94: 3.854062381 | R94: 56.1111886 | S94: -54.98896482 | T94: -36 | U94: -36 | V94: 14.85379684 | W94: 164.5448267 | X94: -46766.66667 | Y94: -61.9227116 | Z94: -60.68425737 | AA94: -36 | AB94: -36 | AC94: -17.09924175 | AD94: -36 | AE94: -11938.05208 | AF94: -17.09924175 | AG94: -5670.323295 | AH94: 452.3809524 | AI94: -112.6246923 | AJ94: -244.93
A95: 29 | B95: -1 | C95: 1 | D95: 3061.111111 | E95: 320.5588059 | F95: 7.6 | G95: =VLOOKUP(Hardware!$C$78,MotorenAuswahlMatrix,26,FALSE) -> 3 | H95: 3.654370388 | I95: 1.5 | J95: 0.75 | K95: 60 | L95: 183.6666667 | M95: 106.0399994 | N95: 400 | O95: 230.9401077 | P95: 242.4871131 | Q95: 3.730539228 | R95: 58.45596705 | S95: -57.28684771 | T95: -36 | U95: -36 | V95: 13.91692293 | W95: 159.0599992 | X95: -47555.51852 | Y95: -64.44925753 | Z95: -63.16027238 | AA95: -36 | AB95: -36 | AC95: -17.09924175 | AD95: -36 | AE95: -11540.11701 | AF95: -17.09924175 | AG95: -5481.312519 | AH95: 437.3015873 | AI95: -112.6246923 | AJ95: -244.93
A96: 28 | B96: -1 | C96: 1 | D96: 2955.555556 | E96: 309.505054 | F96: 7.6 | G96: =VLOOKUP(Hardware!$C$78,MotorenAuswahlMatrix,26,FALSE) -> 3 | H96: 3.528357616 | I96: 1.5 | J96: 0.75 | K96: 60 | L96: 177.3333333 | M96: 102.3834477 | N96: 400 | O96: 230.9401077 | P96: 242.4871131 | Q96: 3.607188305 | R96: 60.93741062 | S96: -59.71866241 | T96: -36 | U96: -36 | V96: 13.01180747 | W96: 153.5751716 | X96: -48317.62963 | Y96: -67.12387539 | Z96: -65.78139789 | AA96: -36 | AB96: -36 | AC96: -17.09924175 | AD96: -36 | AE96: -11142.18194 | AF96: -17.09924175 | AG96: -5292.301742 | AH96: 422.2222222 | AI96: -112.6246923 | AJ96: -244.93
A97: 27 | B97: -1 | C97: 1 | D97: 2850 | E97: 298.4513021 | F97: 7.6 | G97: =VLOOKUP(Hardware!$C$78,MotorenAuswahlMatrix,26,FALSE) -> 3 | H97: 3.402344844 | I97: 1.5 | J97: 0.75 | K97: 60 | L97: 171 | M97: 98.72689603 | N97: 400 | O97: 230.9401077 | P97: 242.4871131 | Q97: 3.484027904 | R97: 63.56984638 | S97: -62.29844945 | T97: -36 | U97: -36 | V97: 12.13845044 | W97: 148.090344 | X97: -49053 | Y97: -69.96190231 | Z97: -68.56266426 | AA97: -36 | AB97: -36 | AC97: -17.09924175 | AD97: -36 | AE97: -10744.24688 | AF97: -17.09924175 | AG97: -5103.290966 | AH97: 407.1428571 | AI97: -112.6246923 | AJ97: -244.93
A98: 26 | B98: -1 | C98: 1 | D98: 2744.444444 | E98: 287.3975502 | F98: 7.6 | G98: =VLOOKUP(Hardware!$C$78,MotorenAuswahlMatrix,26,FALSE) -> 3 | H98: 3.276332072 | I98: 1.5 | J98: 0.75 | K98: 60 | L98: 164.6666667 | M98: 95.07034433 | N98: 400 | O98: 230.9401077 | P98: 242.4871131 | Q98: 3.36107897 | R98: 66.36950532 | S98: -65.04211521 | T98: -36 | U98: -36 | V98: 11.29685184 | W98: 142.6055165 | X98: -49761.62963 | Y98: -72.98068979 | Z98: -71.521076 | AA98: -36 | AB98: -36 | AC98: -17.09924175 | AD98: -36 | AE98: -10346.31181 | AF98: -17.09924175 | AG98: -4914.280189 | AH98: 392.0634921 | AI98: -112.6246923 | AJ98: -244.93
A99: 25 | B99: -1 | C99: 1 | D99: 2638.888889 | E99: 276.3437982 | F99: 7.6 | G99: =VLOOKUP(Hardware!$C$78,MotorenAuswahlMatrix,26,FALSE) -> 3 | H99: 3.1503193 | I99: 1.5 | J99: 0.75 | K99: 60 | L99: 158.3333333 | M99: 91.41379262 | N99: 400 | O99: 230.9401077 | P99: 242.4871131 | Q99: 3.238365589 | R99: 69.35484569 | S99: -67.96774877 | T99: -36 | U99: -36 | V99: 10.48701169 | W99: 137.1206889 | X99: -50443.51852 | Y99: -76.19993899 | Z99: -74.67594021 | AA99: -36 | AB99: -36 | AC99: -17.09924175 | AD99: -36 | AE99: -9948.376736 | AF99: -17.09924175 | AG99: -4725.269413 | AH99: 376.984127 | AI99: -112.6246923 | AJ99: -244.93
A100: 24 | B100: -1 | C100: 1 | D100: 2533.333333 | E100: 265.2900463 | F100: 7.6 | G100: =VLOOKUP(Hardware!$C$78,MotorenAuswahlMatrix,26,FALSE) -> 3 | H100: 3.024306528 | I100: 1.5 | J100: 0.75 | K100: 60 | L100: 152 | M100: 87.75724092 | N100: 400 | O100: 230.9401077 | P100: 242.4871131 | Q100: 3.115915592 | R100: 72.54694015 | S100: -71.09600134 | T100: -36 | U100: -36 | V100: 9.708929974 | W100: 131.6358614 | X100: -51098.66667 | Y100: -79.64209985 | Z100: -78.04925786 | AA100: -36 | AB100: -36 | AC100: -17.09924175 | AD100: -36 | AE100: -9550.441667 | AF100: -17.09924175 | AG100: -4536.258636 | AH100: 361.9047619 | AI100: -112.6246923 | AJ100: -244.93
A101: 23 | B101: -1 | C101: 1 | D101: 2427.777778 | E101: 254.2362944 | F101: 7.6 | G101: =VLOOKUP(Hardware!$C$78,MotorenAuswahlMatrix,26,FALSE) -> 3 | H101: 2.898293756 | I101: 1.5 | J101: 0.75 | K101: 60 | L101: 145.6666667 | M101: 84.10068921 | N101: 400 | O101: 230.9401077 | P101: 242.4871131 | Q101: 2.993761296 | R101: 75.96994068 | S101: -74.45054187 | T101: -36 | U101: -36 | V101: 8.962606695 | W101: 126.1510338 | X101: -51727.07407 | Y101: -83.33284778 | Z101: -81.66619083 | AA101: -36 | AB101: -36 | AC101: -17.09924175 | AD101: -36 | AE101: -9152.506597 | AF101: -17.09924175 | AG101: -4347.24786 | AH101: 346.8253968 | AI101: -112.6246923 | AJ101: -244.93
A102: 22 | B102: -1 | C102: 1 | D102: 2322.222222 | E102: 243.1825424 | F102: 7.6 | G102: =VLOOKUP(Hardware!$C$78,MotorenAuswahlMatrix,26,FALSE) -> 3 | H102: 2.772280984 | I102: 1.5 | J102: 0.75 | K102: 60 | L102: 139.3333333 | M102: 80.44413751 | N102: 400 | O102: 230.9401077 | P102: 242.4871131 | Q102: 2.871940433 | R102: 79.65163848 | S102: -78.05860571 | T102: -36 | U102: -36 | V102: 8.248041854 | W102: 120.6662063 | X102: -52328.74074 | Y102: -87.30165345 | Z102: -85.55562038 | AA102: -36 | AB102: -36 | AC102: -17.09924175 | AD102: -36 | AE102: -8754.571528 | AF102: -17.09924175 | AG102: -4158.237083 | AH102: 331.7460317 | AI102: -112.6246923 | AJ102: -244.93
A103: 21 | B103: -1 | C103: 1 | D103: 2216.666667 | E103: 232.1287905 | F103: 7.6 | G103: =VLOOKUP(Hardware!$C$78,MotorenAuswahlMatrix,26,FALSE) -> 3 | H103: 2.646268212 | I103: 1.5 | J103: 0.75 | K103: 60 | L103: 133 | M103: 76.7875858 | N103: 400 | O103: 230.9401077 | P103: 242.4871131 | Q103: 2.750497309 | R103: 83.62413956 | S103: -81.95165677 | T103: -36 | U103: -36 | V103: 7.565235449 | W103: 115.1813787 | X103: -52903.66667 | Y103: -91.58246471 | Z103: -89.75081541 | AA103: -36 | AB103: -36 | AC103: -17.09924175 | AD103: -36 | AE103: -8356.636459 | AF103: -17.09924175 | AG103: -3969.226307 | AH103: 316.6666667 | AI103: -112.6246923 | AJ103: -244.93
A104: 20 | B104: -1 | C104: 1 | D104: 2111.111111 | E104: 221.0750386 | F104: 7.6 | G104: =VLOOKUP(Hardware!$C$78,MotorenAuswahlMatrix,26,FALSE) -> 3 | H104: 2.52025544 | I104: 1.5 | J104: 0.75 | K104: 60 | L104: 126.6666667 | M104: 73.1310341 | N104: 400 | O104: 230.9401077 | P104: 242.4871131 | Q104: 2.629484262 | R104: 87.92468119 | S104: -86.16618757 | T104: -36 | U104: -36 | V104: 6.914187482 | W104: 109.6965511 | X104: -53451.85185 | Y104: -96.21452197 | Z104: -94.29023153 | AA104: -36 | AB104: -36 | AC104: -17.09924175 | AD104: -36 | AE104: -7958.701389 | AF104: -17.09924175 | AG104: -3780.21553 | AH104: 301.5873016 | AI104: -112.6246923 | AJ104: -244.93
A105: 19 | B105: -1 | C105: 1 | D105: 2005.555556 | E105: 210.0212867 | F105: 7.6 | G105: =VLOOKUP(Hardware!$C$78,MotorenAuswahlMatrix,26,FALSE) -> 3 | H105: 2.394242668 | I105: 1.5 | J105: 0.75 | K105: 60 | L105: 120.3333333 | M105: 69.47448239 | N105: 400 | O105: 230.9401077 | P105: 242.4871131 | Q105: 2.508963522 | R105: 92.59661786 | S105: -90.74468551 | T105: -36 | U105: -36 | V105: 6.294897953 | W105: 104.2117236 | X105: -53973.2963 | Y105: -101.2433304 | Z105: -99.21846382 | AA105: -36 | AB105: -36 | AC105: -17.09924175 | AD105: -36 | AE105: -7560.76632 | AF105: -17.09924175 | AG105: -3591.204754 | AH105: 286.5079365 | AI105: -112.6246923 | AJ105: -244.93
A106: 18 | B106: -1 | C106: 1 | D106: 1900 | E106: 198.9675347 | F106: 7.6 | G106: =VLOOKUP(Hardware!$C$78,MotorenAuswahlMatrix,26,FALSE) -> 3 | H106: 2.268229896 | I106: 1.5 | J106: 0.75 | K106: 60 | L106: 114 | M106: 65.81793069 | N106: 400 | O106: 230.9401077 | P106: 242.4871131 | Q106: 2.389009598 | R106: 97.69060963 | S106: -95.73679744 | T106: -36 | U106: -36 | V106: 5.707366861 | W106: 98.72689603 | X106: -54468 | Y106: -106.7218126 | Z106: -104.5873763 | AA106: -36 | AB106: -36 | AC106: -17.09924175 | AD106: -36 | AE106: -7162.83125 | AF106: -17.09924175 | AG106: -3402.193977 | AH106: 271.4285714 | AI106: -112.6246923 | AJ106: -244.93
A107: 17 | B107: -1 | C107: 1 | D107: 1794.444444 | E107: 187.9137828 | F107: 7.6 | G107: =VLOOKUP(Hardware!$C$78,MotorenAuswahlMatrix,26,FALSE) -> 3 | H107: 2.142217124 | I107: 1.5 | J107: 0.75 | K107: 60 | L107: 107.6666667 | M107: 62.16137898 | N107: 400 | O107: 230.9401077 | P107: 242.4871131 | Q107: 2.269712362 | R107: 103.2660458 | S107: -101.2007249 | T107: -36 | U107: -36 | V107: 5.151594206 | W107: 93.24206847 | X107: -54935.96296 | Y107: -112.7116594 | Z107: -110.4574262 | AA107: -36 | AB107: -36 | AC107: -17.09924175 | AD107: -36 | AE107: -6764.896181 | AF107: -17.09924175 | AG107: -3213.183201 | AH107: 256.3492063 | AI107: -112.6246923 | AJ107: -244.93
A108: 16 | B108: -1 | C108: 1 | D108: 1688.888889 | E108: 176.8600309 | F108: 7.6 | G108: =VLOOKUP(Hardware!$C$78,MotorenAuswahlMatrix,26,FALSE) -> 3 | H108: 2.016204352 | I108: 1.5 | J108: 0.75 | K108: 60 | L108: 101.3333333 | M108: 58.50482728 | N108: 400 | O108: 230.9401077 | P108: 242.4871131 | Q108: 2.151181068 | R108: 109.3927327 | S108: -107.204878 | T108: -36 | U108: -36 | V108: 4.627579989 | W108: 87.75724092 | X108: -55377.18519 | Y108: -119.2848847 | Z108: -116.899187 | AA108: -36 | AB108: -36 | AC108: -17.09924175 | AD108: -36 | AE108: -6366.961111 | AF108: -17.09924175 | AG108: -3024.172424 | AH108: 241.2698413 | AI108: -112.6246923 | AJ108: -244.93
A109: 15 | B109: -1 | C109: 1 | D109: 1583.333333 | E109: 165.8062789 | F109: 7.6 | G109: =VLOOKUP(Hardware!$C$78,MotorenAuswahlMatrix,26,FALSE) -> 3 | H109: 1.89019158 | I109: 1.5 | J109: 0.75 | K109: 60 | L109: 95 | M109: 54.84827557 | N109: 400 | O109: 230.9401077 | P109: 242.4871131 | Q109: 2.033549657 | R109: 116.1528541 | S109: -113.829797 | T109: -36 | U109: -36 | V109: 4.135324209 | W109: 82.27241336 | X109: -55791.66667 | Y109: -126.5255533 | Z109: -123.9950422 | AA109: -36 | AB109: -36 | AC109: -17.09924175 | AD109: -36 | AE109: -5969.026042 | AF109: -17.09924175 | AG109: -2835.161648 | AH109: 226.1904762 | AI109: -112.6246923 | AJ109: -244.93
A110: 14 | B110: -1 | C110: 1 | D110: 1477.777778 | E110: 154.752527 | F110: 7.6 | G110: =VLOOKUP(Hardware!$C$78,MotorenAuswahlMatrix,26,FALSE) -> 3 | H110: 1.764178808 | I110: 1.5 | J110: 0.75 | K110: 60 | L110: 88.66666667 | M110: 51.19172387 | N110: 400 | O110: 230.9401077 | P110: 242.4871131 | Q110: 1.916983794 | R110: 123.6431713 | S110: -121.1703078 | T110: -36 | U110: -36 | V110: 3.674826866 | W110: 76.7875858 | X110: -56179.40741 | Y110: -134.531585 | Z110: -131.8409533 | AA110: -36 | AB110: -36 | AC110: -17.09924175 | AD110: -36 | AE110: -5571.090972 | AF110: -17.09924175 | AG110: -2646.150871 | AH110: 211.1111111 | AI110: -112.6246923 | AJ110: -244.93
A111: 13 | B111: -1 | C111: 1 | D111: 1372.222222 | E111: 143.6987751 | F111: 7.6 | G111: =VLOOKUP(Hardware!$C$78,MotorenAuswahlMatrix,26,FALSE) -> 3 | H111: 1.638166036 | I111: 1.5 | J111: 0.75 | K111: 60 | L111: 82.33333333 | M111: 47.53517216 | N111: 400 | O111: 230.9401077 | P111: 242.4871131 | Q111: 1.801690307 | R111: 131.977326 | S111: -129.3377795 | T111: -36 | U111: -36 | V111: 3.246087961 | W111: 71.30275824 | X111: -56540.40741 | Y111: -143.4163986 | Z111: -140.5480707 | AA111: -36 | AB111: -36 | AC111: -17.09924175 | AD111: -36 | AE111: -5173.155903 | AF111: -17.09924175 | AG111: -2457.140095 | AH111: 196.031746 | AI111: -112.6246923 | AJ111: -244.93
A112: 12 | B112: -1 | C112: 1 | D112: 1266.666667 | E112: 132.6450232 | F112: 7.6 | G112: =VLOOKUP(Hardware!$C$78,MotorenAuswahlMatrix,26,FALSE) -> 3 | H112: 1.512153264 | I112: 1.5 | J112: 0.75 | K112: 60 | L112: 76 | M112: 43.87862046 | N112: 400 | O112: 230.9401077 | P112: 242.4871131 | Q112: 1.687929943 | R112: 141.2879145 | S112: -138.4621562 | T112: -36 | U112: -36 | V112: 2.849107494 | W112: 65.81793069 | X112: -56874.66667 | Y112: -153.3098962 | Z112: -150.2436983 | AA112: -36 | AB112: -36 | AC112: -17.09924175 | AD112: -36 | AE112: -4775.220833 | AF112: -17.09924175 | AG112: -2268.129318 | AH112: 180.952381 | AI112: -112.6246923 | AJ112: -244.93
A113: 11 | B113: -1 | C113: 1 | D113: 1161.111111 | E113: 121.5912712 | F113: 7.6 | G113: =VLOOKUP(Hardware!$C$78,MotorenAuswahlMatrix,26,FALSE) -> 3 | H113: 1.386140492 | I113: 1.5 | J113: 0.75 | K113: 60 | L113: 69.66666667 | M113: 40.22206875 | N113: 400 | O113: 230.9401077 | P113: 242.4871131 | Q113: 1.576034728 | R113: 151.7276009 | S113: -148.6930489 | T113: -36 | U113: -36 | V113: 2.483885463 | W113: 60.33310313 | X113: -57182.18519 | Y113: -164.3577934 | Z113: -161.0706376 | AA113: -36 | AB113: -36 | AC113: -17.09924175 | AD113: -36 | AE113: -4377.285764 | AF113: -17.09924175 | AG113: -2079.118542 | AH113: 165.8730159 | AI113: -112.6246923 | AJ113: -244.93
A114: 10 | B114: -1 | C114: 1 | D114: 1055.555556 | E114: 110.5375193 | F114: 7.6 | G114: =VLOOKUP(Hardware!$C$78,MotorenAuswahlMatrix,26,FALSE) -> 3 | H114: 1.26012772 | I114: 1.5 | J114: 0.75 | K114: 60 | L114: 63.33333333 | M114: 36.56551705 | N114: 400 | O114: 230.9401077 | P114: 242.4871131 | Q114: 1.466431679 | R114: 163.4677834 | S114: -160.1984277 | T114: -36 | U114: -36 | V114: 2.150421871 | W114: 54.84827557 | X114: -57462.96296 | Y114: -176.7173974 | Z114: -173.1830494 | AA114: -36 | AB114: -36 | AC114: -17.09924175 | AD114: -36 | AE114: -3979.350695 | AF114: -17.09924175 | AG114: -1890.107765 | AH114: 150.7936508 | AI114: -112.6246923 | AJ114: -244.93
A115: 9 | B115: -1 | C115: 1 | D115: 950 | E115: 99.48376736 | F115: 7.6 | G115: =VLOOKUP(Hardware!$C$78,MotorenAuswahlMatrix,26,FALSE) -> 3 | H115: 1.134114948 | I115: 1.5 | J115: 0.75 | K115: 60 | L115: 57 | M115: 32.90896534 | N115: 400 | O115: 230.9401077 | P115: 242.4871131 | Q115: 1.359675224 | R115: 176.6919203 | S115: -173.1580819 | T115: -36 | U115: -36 | V115: 1.848716715 | W115: 49.36344802 | X115: -57717 | Y115: -190.5463225 | Z115: -186.735396 | AA115: -36 | AB115: -36 | AC115: -17.09924175 | AD115: -36 | AE115: -3581.415625 | AF115: -17.09924175 | AG115: -1701.096989 | AH115: 135.7142857 | AI115: -112.6246923 | AJ115: -244.93
A116: 8 | B116: -1 | C116: 1 | D116: 844.4444444 | E116: 88.43001543 | F116: 7.6 | G116: =VLOOKUP(Hardware!$C$78,MotorenAuswahlMatrix,26,FALSE) -> 3 | H116: 1.008102176 | I116: 1.5 | J116: 0.75 | K116: 60 | L116: 50.66666667 | M116: 29.25241364 | N116: 400 | O116: 230.9401077 | P116: 242.4871131 | Q116: 1.256491145 | R116: 191.5781231 | S116: -187.7465607 | T116: -36 | U116: -36 | V116: 1.578769997 | W116: 43.87862046 | X116: -57944.2963 | Y116: -205.9779215 | Z116: -201.8583631 | AA116: -36 | AB116: -36 | AC116: -17.09924175 | AD116: -36 | AE116: -3183.480556 | AF116: -17.09924175 | AG116: -1512.086212 | AH116: 120.6349206 | AI116: -112.6246923 | AJ116: -244.93
A117: 7 | B117: -1 | C117: 1 | D117: 738.8888889 | E117: 77.37626351 | F117: 7.6 | G117: =VLOOKUP(Hardware!$C$78,MotorenAuswahlMatrix,26,FALSE) -> 3 | H117: 0.882089404 | I117: 1.5 | J117: 0.75 | K117: 60 | L117: 44.33333333 | M117: 25.59586193 | N117: 400 | O117: 230.9401077 | P117: 242.4871131 | Q117: 1.157834926 | R117: 208.2614981 | S117: -204.0962682 | T117: -36 | U117: -36 | V117: 1.340581717 | W117: 38.3937929 | X117: -58144.85185 | Y117: -223.0730508 | Z117: -218.6115898 | AA117: -36 | AB117: -36 | AC117: -17.09924175 | AD117: -36 | AE117: -2785.545486 | AF117: -17.09924175 | AG117: -1323.075436 | AH117: 105.5555556 | AI117: -112.6246923 | AJ117: -244.93
A118: 6 | B118: -1 | C118: 1 | D118: 633.3333333 | E118: 66.32251158 | F118: 7.6 | G118: =VLOOKUP(Hardware!$C$78,MotorenAuswahlMatrix,26,FALSE) -> 3 | H118: 0.756076632 | I118: 1.5 | J118: 0.75 | K118: 60 | L118: 38 | M118: 21.93931023 | N118: 400 | O118: 230.9401077 | P118: 242.4871131 | Q118: 1.064965668 | R118: 226.7609072 | S118: -222.2256891 | T118: -36 | U118: -36 | V118: 1.134151873 | W118: 32.90896534 | X118: -58318.66667 | Y118: -241.7327334 | Z118: -236.8980787 | AA118: -36 | AB118: -36 | AC118: -17.09924175 | AD118: -36 | AE118: -2387.610417 | AF118: -17.09924175 | AG118: -1134.064659 | AH118: 90.47619048 | AI118: -112.6246923 | AJ118: -244.93
A119: 5 | B119: -1 | C119: 1 | D119: 527.7777778 | E119: 55.26875965 | F119: 7.6 | G119: =VLOOKUP(Hardware!$C$78,MotorenAuswahlMatrix,26,FALSE) -> 3 | H119: 0.63006386 | I119: 1.5 | J119: 0.75 | K119: 60 | L119: 31.66666667 | M119: 18.28275852 | N119: 400 | O119: 230.9401077 | P119: 242.4871131 | Q119: 0.9795307385 | R119: 246.8497315 | S119: -241.9127369 | T119: -36 | U119: -36 | V119: 0.9594804676 | W119: 27.42413779 | X119: -58465.74074 | Y119: -261.5542108 | Z119: -256.3231266 | AA119: -36 | AB119: -36 | AC119: -17.09924175 | AD119: -36 | AE119: -1989.675347 | AF119: -17.09924175 | AG119: -945.0538826 | AH119: 75.3968254 | AI119: -112.6246923 | AJ119: -244.93
A120: 4 | B120: -1 | C120: 1 | D120: 422.2222222 | E120: 44.21500772 | F120: 7.6 | G120: =VLOOKUP(Hardware!$C$78,MotorenAuswahlMatrix,26,FALSE) -> 3 | H120: 0.504051088 | I120: 1.5 | J120: 0.75 | K120: 60 | L120: 25.33333333 | M120: 14.62620682 | N120: 400 | O120: 230.9401077 | P120: 242.4871131 | Q120: 0.9036412448 | R120: 267.8558606 | S120: -262.4987434 | T120: -36 | U120: -36 | V120: 0.8165674993 | W120: 21.93931023 | X120: -58586.07407 | Y120: -281.6263875 | Z120: -275.9938597 | AA120: -36 | AB120: -36 | AC120: -17.09924175 | AD120: -36 | AE120: -1591.740278 | AF120: -17.09924175 | AG120: -756.043106 | AH120: 60.31746032 | AI120: -112.6246923 | AJ120: -244.93
A121: 3 | B121: -1 | C121: 1 | D121: 316.6666667 | E121: 33.16125579 | F121: 7.6 | G121: =VLOOKUP(Hardware!$C$78,MotorenAuswahlMatrix,26,FALSE) -> 3 | H121: 0.378038316 | I121: 1.5 | J121: 0.75 | K121: 60 | L121: 19 | M121: 10.96965511 | N121: 400 | O121: 230.9401077 | P121: 242.4871131 | Q121: 0.8398886643 | R121: 288.4178262 | S121: -282.6494697 | T121: -36 | U121: -36 | V121: 0.7054129684 | W121: 16.45448267 | X121: -58679.66667 | Y121: -300.3165579 | Z121: -294.3102267 | AA121: -36 | AB121: -36 | AC121: -17.09924175 | AD121: -36 | AE121: -1193.805208 | AF121: -17.09924175 | AG121: -567.0323295 | AH121: 45.23809524 | AI121: -112.6246923 | AJ121: -244.93
A122: 2 | B122: -1 | C122: 1 | D122: 211.1111111 | E122: 22.10750386 | F122: 7.6 | G122: =VLOOKUP(Hardware!$C$78,MotorenAuswahlMatrix,26,FALSE) -> 3 | H122: 0.252025544 | I122: 1.5 | J122: 0.75 | K122: 60 | L122: 12.66666667 | M122: 7.31310341 | N122: 400 | O122: 230.9401077 | P122: 242.4871131 | Q122: 0.7912122818 | R122: 306.3360069 | S122: -300.2092868 | T122: -36 | U122: -36 | V122: 0.6260168748 | W122: 10.96965511 | X122: -58746.51852 | Y122: -315.2227432 | Z122: -308.9182883 | AA122: -36 | AB122: -36 | AC122: -17.09924175 | AD122: -36 | AE122: -795.8701389 | AF122: -17.09924175 | AG122: -378.021553 | AH122: 30.15873016 | AI122: -112.6246923 | AJ122: -244.93
A123: 1 | B123: -1 | C123: 1 | D123: 105.5555556 | E123: 11.05375193 | F123: 7.6 | G123: =VLOOKUP(Hardware!$C$78,MotorenAuswahlMatrix,26,FALSE) -> 3 | H123: 0.126012772 | I123: 1.5 | J123: 0.75 | K123: 60 | L123: 6.333333333 | M123: 3.656551705 | N123: 400 | O123: 230.9401077 | P123: 242.4871131 | Q123: 0.7605124711 | R123: 318.8107381 | S123: -312.4345233 | T123: -36 | U123: -36 | V123: 0.5783792187 | W123: 5.484827557 | X123: -58786.62963 | Y123: -323.5875454 | Z123: -317.1157945 | AA123: -36 | AB123: -36 | AC123: -17.09924175 | AD123: -36 | AE123: -397.9350695 | AF123: -17.09924175 | AG123: -189.0107765 | AH123: 15.07936508 | AI123: -112.6246923 | AJ123: -244.93
A124: 0 | B124: -1 | C124: 1 | D124: 0 | E124: 0 | F124: 7.6 | G124: =VLOOKUP(Hardware!$C$78,MotorenAuswahlMatrix,26,FALSE) -> 3 | H124: 0 | I124: 1.5 | J124: 0.75 | K124: 60 | L124: 0 | M124: 0 | N124: 400 | O124: 230.9401077 | P124: =O124*0.95 -> 219.3931023 | Q124: 0.75 | R124: 292.5241364 | S124: -286.6736537 | T124: -36 | U124: -36 | V124: 0.5625 | W124: 0 | X124: -48133.33333 | Y124: -292.5241364 | Z124: -286.6736537 | AA124: -36 | AB124: -36 | AC124: -17.09924175 | AD124: -36 | AE124: 0 | AF124: -17.09924175 | AG124: 0 | AH124: 0 | AI124: -112.6246923 | AJ124: -244.93
A125: -1 | B125: -1 | C125: =IF(MIN(Rechentabelle!AT:AT)<0,1,0) -> 0 | D125: 0 | E125: 0 | F125: 7.6 | G125: =VLOOKUP(Hardware!$C$78,MotorenAuswahlMatrix,26,FALSE) -> 3 | H125: 0 | I125: 1.5 | J125: 0.75 | K125: 60 | L125: 0 | M125: 0 | N125: 400 | O125: 230.9401077 | P125: 219.3931023 | Q125: 0.75 | R125: 292.5241364 | S125: -286.6736537 | T125: -36 | U125: -36 | V125: 0.5625 | W125: 0 | X125: -48133.33333 | Y125: -292.5241364 | Z125: -286.6736537 | AA125: -36 | AB125: -36 | AC125: -17.09924175 | AD125: -36 | AE125: 0 | AF125: -17.09924175 | AG125: 0 | AH125: 0 | AI125: -112.6246923 | AJ125: -244.93
A126: -2 | B126: -1 | C126: =IF(MIN(Rechentabelle!AT:AT)<0,1,0) -> 0 | D126: 0 | E126: 0 | F126: 7.6 | G126: =VLOOKUP(Hardware!$C$78,MotorenAuswahlMatrix,26,FALSE) -> 3 | H126: 0 | I126: 1.5 | J126: 0.75 | K126: 60 | L126: 0 | M126: 0 | N126: 400 | O126: 230.9401077 | P126: 219.3931023 | Q126: 0.75 | R126: 292.5241364 | S126: -286.6736537 | T126: -36 | U126: -36 | V126: 0.5625 | W126: 0 | X126: -48133.33333 | Y126: -292.5241364 | Z126: -286.6736537 | AA126: -36 | AB126: -36 | AC126: -17.09924175 | AD126: -36 | AE126: 0 | AF126: -17.09924175 | AG126: 0 | AH126: 0 | AI126: -112.6246923 | AJ126: -244.93
A127: -3 | B127: -1 | C127: =IF(MIN(Rechentabelle!AT:AT)<0,1,0) -> 0 | D127: 0 | E127: 0 | F127: 7.6 | G127: =VLOOKUP(Hardware!$C$78,MotorenAuswahlMatrix,26,FALSE) -> 3 | H127: 0 | I127: 1.5 | J127: 0.75 | K127: 60 | L127: 0 | M127: 0 | N127: 400 | O127: 230.9401077 | P127: 219.3931023 | Q127: 0.75 | R127: 292.5241364 | S127: -286.6736537 | T127: -36 | U127: -36 | V127: 0.5625 | W127: 0 | X127: -48133.33333 | Y127: -292.5241364 | Z127: -286.6736537 | AA127: -36 | AB127: -36 | AC127: -17.09924175 | AD127: -36 | AE127: 0 | AF127: -17.09924175 | AG127: 0 | AH127: 0 | AI127: -112.6246923 | AJ127: -244.93
A128: -4 | B128: -1 | C128: =IF(MIN(Rechentabelle!AT:AT)<0,1,0) -> 0 | D128: 0 | E128: 0 | F128: 7.6 | G128: =VLOOKUP(Hardware!$C$78,MotorenAuswahlMatrix,26,FALSE) -> 3 | H128: 0 | I128: 1.5 | J128: 0.75 | K128: 60 | L128: 0 | M128: 0 | N128: 400 | O128: 230.9401077 | P128: 219.3931023 | Q128: 0.75 | R128: 292.5241364 | S128: -286.6736537 | T128: -36 | U128: -36 | V128: 0.5625 | W128: 0 | X128: -48133.33333 | Y128: -292.5241364 | Z128: -286.6736537 | AA128: -36 | AB128: -36 | AC128: -17.09924175 | AD128: -36 | AE128: 0 | AF128: -17.09924175 | AG128: 0 | AH128: 0 | AI128: -112.6246923 | AJ128: -244.93
A129: -5 | B129: -1 | C129: =IF(MIN(Rechentabelle!AT:AT)<0,1,0) -> 0 | D129: 0 | E129: 0 | F129: 7.6 | G129: =VLOOKUP(Hardware!$C$78,MotorenAuswahlMatrix,26,FALSE) -> 3 | H129: 0 | I129: 1.5 | J129: 0.75 | K129: 60 | L129: 0 | M129: 0 | N129: 400 | O129: 230.9401077 | P129: 219.3931023 | Q129: 0.75 | R129: 292.5241364 | S129: -286.6736537 | T129: -36 | U129: -36 | V129: 0.5625 | W129: 0 | X129: -48133.33333 | Y129: =(-W129-SQRT(W129^2-4*V129*X129))/(2*V129) -> -292.5241364 | Z129: -286.6736537 | AA129: -36 | AB129: -36 | AC129: -17.09924175 | AD129: -36 | AE129: 0 | AF129: -17.09924175 | AG129: 0 | AH129: 0 | AI129: -112.6246923 | AJ129: -244.93
A130: -6 | B130: -1 | C130: =IF(MIN(Rechentabelle!AT:AT)<0,1,0) -> 0 | D130: 0 | E130: 0 | F130: 7.6 | G130: =VLOOKUP(Hardware!$C$78,MotorenAuswahlMatrix,26,FALSE) -> 3 | H130: 0 | I130: 1.5 | J130: 0.75 | K130: 60 | L130: 0 | M130: 0 | N130: 400 | O130: 230.9401077 | P130: 219.3931023 | Q130: 0.75 | R130: 292.5241364 | S130: -286.6736537 | T130: -36 | U130: -36 | V130: 0.5625 | W130: 0 | X130: -48133.33333 | Y130: -292.5241364 | Z130: -286.6736537 | AA130: -36 | AB130: -36 | AC130: -17.09924175 | AD130: -36 | AE130: 0 | AF130: -17.09924175 | AG130: 0 | AH130: 0 | AI130: -112.6246923 | AJ130: -244.93
A131: -7 | B131: -1 | C131: =IF(MIN(Rechentabelle!AT:AT)<0,1,0) -> 0 | D131: =A131*nLL/60*C131 -> 0 | E131: 0 | F131: =L_phph -> 7.6 | G131: =VLOOKUP(Hardware!$C$78,MotorenAuswahlMatrix,26,FALSE) -> 3 | H131: 0 | I131: =R_phph_cold -> 1.5 | J131: =R_phph_cold/2 -> 0.75 | K131: =KE_Motor -> 60 | L131: 0 | M131: 0 | N131: =UNetz -> 400 | O131: 230.9401077 | P131: 219.3931023 | Q131: 0.75 | R131: 292.5241364 | S131: =R131*MMaxM/IMaxM*B131 -> -286.6736537 | T131: =MMaxM*B131 -> -36 | U131: -36 | V131: 0.5625 | W131: 0 | X131: -48133.33333 | Y131: -292.5241364 | Z131: =Y131*MMaxM/IMaxM -> -286.6736537 | AA131: =MMaxM*B131 -> -36 | AB131: -36 | AC131: =IMaxeinstellen*MNennM/INennM*B131 -> -17.09924175 | AD131: -36 | AE131: 0 | AF131: -17.09924175 | AG131: 0 | AH131: 0 | AI131: -112.6246923 | AJ131: -244.93
A132: -8 | B132: -1 | C132: =IF(MIN(Rechentabelle!AT:AT)<0,1,0) -> 0 | D132: 0 | E132: =2*PI()*D132/60 -> 0 | F132: 7.6 | G132: =VLOOKUP(Hardware!$C$78,MotorenAuswahlMatrix,26,FALSE) -> 3 | H132: =E132*F132/2/1000*G132 -> 0 | I132: 1.5 | J132: 0.75 | K132: 60 | L132: =K132*D132/1000 -> 0 | M132: =L132/ SQRT(3) -> 0 | N132: 400 | O132: =N132/SQRT(3) -> 230.9401077 | P132: =O132*0.95 -> 219.3931023 | Q132: =SQRT(H132^2+J132^2) -> 0.75 | R132: =SQRT((P132^2-M132^2)/Q132^2) -> 292.5241364 | S132: -286.6736537 | T132: -36 | U132: =IF(ABS(S132)>ABS(T132),T132,S132) -> -36 | V132: =H132^2+J132^2 -> 0.5625 | W132: =2*J132*M132 -> 0 | X132: =-(P132^2-M132^2) -> -48133.33333 | Y132: -292.5241364 | Z132: -286.6736537 | AA132: -36 | AB132: =IF(ABS(Z132)>ABS(AA132),AA132,Z132) -> -36 | AC132: -17.09924175 | AD132: =IF(OR($BI$4="EX",$BI$4="NX"),AB132,AB132) -> -36 | AE132: =AD132*2*PI()*D132/60 -> 0 | AF132: =IF(ABS(AC132)>ABS(AD132),AD132,AC132) -> -17.09924175 | AG132: =AF132*2*PI()*D132/60 -> 0 | AH132: =D132/iGetriebe -> 0 | AI132: =IF(AF132>0,(AF132-MReibG)*iGetriebe,(AF132+MReibG)*iGetriebe) -> -112.6246923 | AJ132: =IF(AD132>0,(AD132-MReibG)*iGetriebe,(AD132+MReibG)*iGetriebe) -> -244.93
A133: -9 | B133: -1 | C133: =IF(MIN(Rechentabelle!AT:AT)<0,1,0) -> 0 | D133: 0 | E133: 0 | F133: 7.6 | G133: =VLOOKUP(Hardware!$C$78,MotorenAuswahlMatrix,26,FALSE) -> 3 | H133: 0 | I133: 1.5 | J133: 0.75 | K133: 60 | L133: 0 | M133: 0 | N133: 400 | O133: 230.9401077 | P133: 219.3931023 | Q133: 0.75 | R133: 292.5241364 | S133: -286.6736537 | T133: -36 | U133: -36 | V133: 0.5625 | W133: 0 | X133: -48133.33333 | Y133: -292.5241364 | Z133: -286.6736537 | AA133: -36 | AB133: -36 | AC133: -17.09924175 | AD133: -36 | AE133: 0 | AF133: -17.09924175 | AG133: 0 | AH133: 0 | AI133: -112.6246923 | AJ133: -244.93
A134: -10 | B134: -1 | C134: =IF(MIN(Rechentabelle!AT:AT)<0,1,0) -> 0 | D134: 0 | E134: 0 | F134: 7.6 | G134: =VLOOKUP(Hardware!$C$78,MotorenAuswahlMatrix,26,FALSE) -> 3 | H134: 0 | I134: 1.5 | J134: 0.75 | K134: 60 | L134: 0 | M134: 0 | N134: 400 | O134: 230.9401077 | P134: 219.3931023 | Q134: 0.75 | R134: 292.5241364 | S134: -286.6736537 | T134: -36 | U134: -36 | V134: 0.5625 | W134: 0 | X134: -48133.33333 | Y134: -292.5241364 | Z134: -286.6736537 | AA134: -36 | AB134: -36 | AC134: -17.09924175 | AD134: -36 | AE134: 0 | AF134: -17.09924175 | AG134: 0 | AH134: 0 | AI134: -112.6246923 | AJ134: -244.93
A135: -11 | B135: -1 | C135: =IF(MIN(Rechentabelle!AT:AT)<0,1,0) -> 0 | D135: 0 | E135: 0 | F135: 7.6 | G135: =VLOOKUP(Hardware!$C$78,MotorenAuswahlMatrix,26,FALSE) -> 3 | H135: 0 | I135: 1.5 | J135: 0.75 | K135: 60 | L135: 0 | M135: 0 | N135: 400 | O135: 230.9401077 | P135: 219.3931023 | Q135: 0.75 | R135: 292.5241364 | S135: -286.6736537 | T135: -36 | U135: -36 | V135: 0.5625 | W135: 0 | X135: -48133.33333 | Y135: -292.5241364 | Z135: -286.6736537 | AA135: -36 | AB135: -36 | AC135: -17.09924175 | AD135: -36 | AE135: 0 | AF135: -17.09924175 | AG135: 0 | AH135: 0 | AI135: -112.6246923 | AJ135: -244.93
A136: -12 | B136: -1 | C136: =IF(MIN(Rechentabelle!AT:AT)<0,1,0) -> 0 | D136: 0 | E136: 0 | F136: 7.6 | G136: =VLOOKUP(Hardware!$C$78,MotorenAuswahlMatrix,26,FALSE) -> 3 | H136: 0 | I136: 1.5 | J136: 0.75 | K136: 60 | L136: 0 | M136: 0 | N136: 400 | O136: 230.9401077 | P136: 219.3931023 | Q136: 0.75 | R136: 292.5241364 | S136: -286.6736537 | T136: -36 | U136: -36 | V136: 0.5625 | W136: 0 | X136: -48133.33333 | Y136: -292.5241364 | Z136: -286.6736537 | AA136: -36 | AB136: -36 | AC136: -17.09924175 | AD136: -36 | AE136: 0 | AF136: -17.09924175 | AG136: 0 | AH136: 0 | AI136: -112.6246923 | AJ136: -244.93
A137: -13 | B137: -1 | C137: =IF(MIN(Rechentabelle!AT:AT)<0,1,0) -> 0 | D137: 0 | E137: 0 | F137: 7.6 | G137: =VLOOKUP(Hardware!$C$78,MotorenAuswahlMatrix,26,FALSE) -> 3 | H137: 0 | I137: 1.5 | J137: 0.75 | K137: 60 | L137: 0 | M137: 0 | N137: 400 | O137: 230.9401077 | P137: 219.3931023 | Q137: 0.75 | R137: 292.5241364 | S137: -286.6736537 | T137: -36 | U137: -36 | V137: 0.5625 | W137: 0 | X137: -48133.33333 | Y137: -292.5241364 | Z137: -286.6736537 | AA137: -36 | AB137: -36 | AC137: -17.09924175 | AD137: -36 | AE137: 0 | AF137: -17.09924175 | AG137: 0 | AH137: 0 | AI137: -112.6246923 | AJ137: -244.93
A138: -14 | B138: -1 | C138: =IF(MIN(Rechentabelle!AT:AT)<0,1,0) -> 0 | D138: 0 | E138: 0 | F138: 7.6 | G138: =VLOOKUP(Hardware!$C$78,MotorenAuswahlMatrix,26,FALSE) -> 3 | H138: 0 | I138: 1.5 | J138: 0.75 | K138: 60 | L138: 0 | M138: 0 | N138: 400 | O138: 230.9401077 | P138: 219.3931023 | Q138: 0.75 | R138: 292.5241364 | S138: -286.6736537 | T138: -36 | U138: -36 | V138: 0.5625 | W138: 0 | X138: -48133.33333 | Y138: -292.5241364 | Z138: -286.6736537 | AA138: -36 | AB138: -36 | AC138: -17.09924175 | AD138: -36 | AE138: 0 | AF138: -17.09924175 | AG138: 0 | AH138: 0 | AI138: -112.6246923 | AJ138: -244.93
A139: -15 | B139: -1 | C139: =IF(MIN(Rechentabelle!AT:AT)<0,1,0) -> 0 | D139: 0 | E139: 0 | F139: 7.6 | G139: =VLOOKUP(Hardware!$C$78,MotorenAuswahlMatrix,26,FALSE) -> 3 | H139: 0 | I139: 1.5 | J139: 0.75 | K139: 60 | L139: 0 | M139: 0 | N139: 400 | O139: 230.9401077 | P139: 219.3931023 | Q139: 0.75 | R139: 292.5241364 | S139: -286.6736537 | T139: -36 | U139: -36 | V139: 0.5625 | W139: 0 | X139: -48133.33333 | Y139: -292.5241364 | Z139: -286.6736537 | AA139: -36 | AB139: -36 | AC139: -17.09924175 | AD139: -36 | AE139: 0 | AF139: -17.09924175 | AG139: 0 | AH139: 0 | AI139: -112.6246923 | AJ139: -244.93
A140: -16 | B140: -1 | C140: =IF(MIN(Rechentabelle!AT:AT)<0,1,0) -> 0 | D140: 0 | E140: 0 | F140: 7.6 | G140: =VLOOKUP(Hardware!$C$78,MotorenAuswahlMatrix,26,FALSE) -> 3 | H140: 0 | I140: 1.5 | J140: 0.75 | K140: 60 | L140: 0 | M140: 0 | N140: 400 | O140: 230.9401077 | P140: 219.3931023 | Q140: 0.75 | R140: 292.5241364 | S140: -286.6736537 | T140: -36 | U140: -36 | V140: 0.5625 | W140: 0 | X140: -48133.33333 | Y140: -292.5241364 | Z140: -286.6736537 | AA140: -36 | AB140: -36 | AC140: -17.09924175 | AD140: -36 | AE140: 0 | AF140: -17.09924175 | AG140: 0 | AH140: 0 | AI140: -112.6246923 | AJ140: -244.93
A141: -17 | B141: -1 | C141: =IF(MIN(Rechentabelle!AT:AT)<0,1,0) -> 0 | D141: 0 | E141: 0 | F141: 7.6 | G141: =VLOOKUP(Hardware!$C$78,MotorenAuswahlMatrix,26,FALSE) -> 3 | H141: 0 | I141: 1.5 | J141: 0.75 | K141: 60 | L141: 0 | M141: 0 | N141: 400 | O141: 230.9401077 | P141: 219.3931023 | Q141: 0.75 | R141: 292.5241364 | S141: -286.6736537 | T141: -36 | U141: -36 | V141: 0.5625 | W141: 0 | X141: -48133.33333 | Y141: -292.5241364 | Z141: -286.6736537 | AA141: -36 | AB141: -36 | AC141: -17.09924175 | AD141: -36 | AE141: 0 | AF141: -17.09924175 | AG141: 0 | AH141: 0 | AI141: -112.6246923 | AJ141: -244.93
A142: -18 | B142: -1 | C142: =IF(MIN(Rechentabelle!AT:AT)<0,1,0) -> 0 | D142: 0 | E142: 0 | F142: 7.6 | G142: =VLOOKUP(Hardware!$C$78,MotorenAuswahlMatrix,26,FALSE) -> 3 | H142: 0 | I142: 1.5 | J142: 0.75 | K142: 60 | L142: 0 | M142: 0 | N142: 400 | O142: 230.9401077 | P142: 219.3931023 | Q142: 0.75 | R142: 292.5241364 | S142: -286.6736537 | T142: -36 | U142: -36 | V142: 0.5625 | W142: 0 | X142: -48133.33333 | Y142: -292.5241364 | Z142: -286.6736537 | AA142: -36 | AB142: -36 | AC142: -17.09924175 | AD142: -36 | AE142: 0 | AF142: -17.09924175 | AG142: 0 | AH142: 0 | AI142: -112.6246923 | AJ142: -244.93
A143: -19 | B143: -1 | C143: =IF(MIN(Rechentabelle!AT:AT)<0,1,0) -> 0 | D143: 0 | E143: 0 | F143: 7.6 | G143: =VLOOKUP(Hardware!$C$78,MotorenAuswahlMatrix,26,FALSE) -> 3 | H143: 0 | I143: 1.5 | J143: 0.75 | K143: 60 | L143: 0 | M143: 0 | N143: 400 | O143: 230.9401077 | P143: 219.3931023 | Q143: 0.75 | R143: 292.5241364 | S143: -286.6736537 | T143: -36 | U143: -36 | V143: 0.5625 | W143: 0 | X143: -48133.33333 | Y143: -292.5241364 | Z143: -286.6736537 | AA143: -36 | AB143: -36 | AC143: -17.09924175 | AD143: -36 | AE143: 0 | AF143: -17.09924175 | AG143: 0 | AH143: 0 | AI143: -112.6246923 | AJ143: -244.93
A144: -20 | B144: -1 | C144: =IF(MIN(Rechentabelle!AT:AT)<0,1,0) -> 0 | D144: 0 | E144: 0 | F144: 7.6 | G144: =VLOOKUP(Hardware!$C$78,MotorenAuswahlMatrix,26,FALSE) -> 3 | H144: 0 | I144: 1.5 | J144: 0.75 | K144: 60 | L144: 0 | M144: 0 | N144: 400 | O144: 230.9401077 | P144: 219.3931023 | Q144: 0.75 | R144: 292.5241364 | S144: -286.6736537 | T144: -36 | U144: -36 | V144: 0.5625 | W144: 0 | X144: -48133.33333 | Y144: -292.5241364 | Z144: -286.6736537 | AA144: -36 | AB144: -36 | AC144: -17.09924175 | AD144: -36 | AE144: 0 | AF144: -17.09924175 | AG144: 0 | AH144: 0 | AI144: -112.6246923 | AJ144: -244.93
A145: -21 | B145: -1 | C145: =IF(MIN(Rechentabelle!AT:AT)<0,1,0) -> 0 | D145: 0 | E145: 0 | F145: 7.6 | G145: =VLOOKUP(Hardware!$C$78,MotorenAuswahlMatrix,26,FALSE) -> 3 | H145: 0 | I145: 1.5 | J145: 0.75 | K145: 60 | L145: 0 | M145: 0 | N145: 400 | O145: 230.9401077 | P145: 219.3931023 | Q145: 0.75 | R145: 292.5241364 | S145: -286.6736537 | T145: -36 | U145: -36 | V145: 0.5625 | W145: 0 | X145: -48133.33333 | Y145: -292.5241364 | Z145: -286.6736537 | AA145: -36 | AB145: -36 | AC145: -17.09924175 | AD145: -36 | AE145: 0 | AF145: -17.09924175 | AG145: 0 | AH145: 0 | AI145: -112.6246923 | AJ145: -244.93
A146: -22 | B146: -1 | C146: =IF(MIN(Rechentabelle!AT:AT)<0,1,0) -> 0 | D146: 0 | E146: 0 | F146: 7.6 | G146: =VLOOKUP(Hardware!$C$78,MotorenAuswahlMatrix,26,FALSE) -> 3 | H146: 0 | I146: 1.5 | J146: 0.75 | K146: 60 | L146: 0 | M146: 0 | N146: 400 | O146: 230.9401077 | P146: 219.3931023 | Q146: 0.75 | R146: 292.5241364 | S146: -286.6736537 | T146: -36 | U146: -36 | V146: 0.5625 | W146: 0 | X146: -48133.33333 | Y146: -292.5241364 | Z146: -286.6736537 | AA146: -36 | AB146: -36 | AC146: -17.09924175 | AD146: -36 | AE146: 0 | AF146: -17.09924175 | AG146: 0 | AH146: 0 | AI146: -112.6246923 | AJ146: -244.93
A147: -23 | B147: -1 | C147: =IF(MIN(Rechentabelle!AT:AT)<0,1,0) -> 0 | D147: 0 | E147: 0 | F147: 7.6 | G147: =VLOOKUP(Hardware!$C$78,MotorenAuswahlMatrix,26,FALSE) -> 3 | H147: 0 | I147: 1.5 | J147: 0.75 | K147: 60 | L147: 0 | M147: 0 | N147: 400 | O147: 230.9401077 | P147: 219.3931023 | Q147: 0.75 | R147: 292.5241364 | S147: -286.6736537 | T147: -36 | U147: -36 | V147: 0.5625 | W147: 0 | X147: -48133.33333 | Y147: -292.5241364 | Z147: -286.6736537 | AA147: -36 | AB147: -36 | AC147: -17.09924175 | AD147: -36 | AE147: 0 | AF147: -17.09924175 | AG147: 0 | AH147: 0 | AI147: -112.6246923 | AJ147: -244.93
A148: -24 | B148: -1 | C148: =IF(MIN(Rechentabelle!AT:AT)<0,1,0) -> 0 | D148: 0 | E148: 0 | F148: 7.6 | G148: =VLOOKUP(Hardware!$C$78,MotorenAuswahlMatrix,26,FALSE) -> 3 | H148: 0 | I148: 1.5 | J148: 0.75 | K148: 60 | L148: 0 | M148: 0 | N148: 400 | O148: 230.9401077 | P148: 219.3931023 | Q148: 0.75 | R148: 292.5241364 | S148: -286.6736537 | T148: -36 | U148: -36 | V148: 0.5625 | W148: 0 | X148: -48133.33333 | Y148: -292.5241364 | Z148: -286.6736537 | AA148: -36 | AB148: -36 | AC148: -17.09924175 | AD148: -36 | AE148: 0 | AF148: -17.09924175 | AG148: 0 | AH148: 0 | AI148: -112.6246923 | AJ148: -244.93
A149: -25 | B149: -1 | C149: =IF(MIN(Rechentabelle!AT:AT)<0,1,0) -> 0 | D149: 0 | E149: 0 | F149: 7.6 | G149: =VLOOKUP(Hardware!$C$78,MotorenAuswahlMatrix,26,FALSE) -> 3 | H149: 0 | I149: 1.5 | J149: 0.75 | K149: 60 | L149: 0 | M149: 0 | N149: 400 | O149: 230.9401077 | P149: 219.3931023 | Q149: 0.75 | R149: 292.5241364 | S149: -286.6736537 | T149: -36 | U149: -36 | V149: 0.5625 | W149: 0 | X149: -48133.33333 | Y149: -292.5241364 | Z149: -286.6736537 | AA149: -36 | AB149: -36 | AC149: -17.09924175 | AD149: -36 | AE149: 0 | AF149: -17.09924175 | AG149: 0 | AH149: 0 | AI149: -112.6246923 | AJ149: -244.93
A150: -26 | B150: -1 | C150: =IF(MIN(Rechentabelle!AT:AT)<0,1,0) -> 0 | D150: 0 | E150: 0 | F150: 7.6 | G150: =VLOOKUP(Hardware!$C$78,MotorenAuswahlMatrix,26,FALSE) -> 3 | H150: 0 | I150: 1.5 | J150: 0.75 | K150: 60 | L150: 0 | M150: 0 | N150: 400 | O150: 230.9401077 | P150: 219.3931023 | Q150: 0.75 | R150: 292.5241364 | S150: -286.6736537 | T150: -36 | U150: -36 | V150: 0.5625 | W150: 0 | X150: -48133.33333 | Y150: -292.5241364 | Z150: -286.6736537 | AA150: -36 | AB150: -36 | AC150: -17.09924175 | AD150: -36 | AE150: 0 | AF150: -17.09924175 | AG150: 0 | AH150: 0 | AI150: -112.6246923 | AJ150: -244.93
A151: -27 | B151: -1 | C151: =IF(MIN(Rechentabelle!AT:AT)<0,1,0) -> 0 | D151: 0 | E151: 0 | F151: 7.6 | G151: =VLOOKUP(Hardware!$C$78,MotorenAuswahlMatrix,26,FALSE) -> 3 | H151: 0 | I151: 1.5 | J151: 0.75 | K151: 60 | L151: 0 | M151: 0 | N151: 400 | O151: 230.9401077 | P151: 219.3931023 | Q151: 0.75 | R151: 292.5241364 | S151: -286.6736537 | T151: -36 | U151: -36 | V151: 0.5625 | W151: 0 | X151: -48133.33333 | Y151: -292.5241364 | Z151: -286.6736537 | AA151: -36 | AB151: -36 | AC151: -17.09924175 | AD151: -36 | AE151: 0 | AF151: -17.09924175 | AG151: 0 | AH151: 0 | AI151: -112.6246923 | AJ151: -244.93
A152: -28 | B152: -1 | C152: =IF(MIN(Rechentabelle!AT:AT)<0,1,0) -> 0 | D152: 0 | E152: 0 | F152: 7.6 | G152: =VLOOKUP(Hardware!$C$78,MotorenAuswahlMatrix,26,FALSE) -> 3 | H152: 0 | I152: 1.5 | J152: 0.75 | K152: 60 | L152: 0 | M152: 0 | N152: 400 | O152: 230.9401077 | P152: 219.3931023 | Q152: 0.75 | R152: 292.5241364 | S152: -286.6736537 | T152: -36 | U152: -36 | V152: 0.5625 | W152: 0 | X152: -48133.33333 | Y152: -292.5241364 | Z152: -286.6736537 | AA152: -36 | AB152: -36 | AC152: -17.09924175 | AD152: -36 | AE152: 0 | AF152: -17.09924175 | AG152: 0 | AH152: 0 | AI152: -112.6246923 | AJ152: -244.93
A153: -29 | B153: -1 | C153: =IF(MIN(Rechentabelle!AT:AT)<0,1,0) -> 0 | D153: 0 | E153: 0 | F153: 7.6 | G153: =VLOOKUP(Hardware!$C$78,MotorenAuswahlMatrix,26,FALSE) -> 3 | H153: 0 | I153: 1.5 | J153: 0.75 | K153: 60 | L153: 0 | M153: 0 | N153: 400 | O153: 230.9401077 | P153: 219.3931023 | Q153: 0.75 | R153: 292.5241364 | S153: -286.6736537 | T153: -36 | U153: -36 | V153: 0.5625 | W153: 0 | X153: -48133.33333 | Y153: -292.5241364 | Z153: -286.6736537 | AA153: -36 | AB153: -36 | AC153: -17.09924175 | AD153: -36 | AE153: 0 | AF153: -17.09924175 | AG153: 0 | AH153: 0 | AI153: -112.6246923 | AJ153: -244.93
A154: -30 | B154: -1 | C154: =IF(MIN(Rechentabelle!AT:AT)<0,1,0) -> 0 | D154: 0 | E154: 0 | F154: 7.6 | G154: =VLOOKUP(Hardware!$C$78,MotorenAuswahlMatrix,26,FALSE) -> 3 | H154: 0 | I154: 1.5 | J154: 0.75 | K154: 60 | L154: 0 | M154: 0 | N154: 400 | O154: 230.9401077 | P154: 219.3931023 | Q154: 0.75 | R154: 292.5241364 | S154: -286.6736537 | T154: -36 | U154: -36 | V154: 0.5625 | W154: 0 | X154: -48133.33333 | Y154: -292.5241364 | Z154: -286.6736537 | AA154: -36 | AB154: -36 | AC154: -17.09924175 | AD154: -36 | AE154: 0 | AF154: -17.09924175 | AG154: 0 | AH154: 0 | AI154: -112.6246923 | AJ154: -244.93
A155: -31 | B155: -1 | C155: =IF(MIN(Rechentabelle!AT:AT)<0,1,0) -> 0 | D155: 0 | E155: 0 | F155: 7.6 | G155: =VLOOKUP(Hardware!$C$78,MotorenAuswahlMatrix,26,FALSE) -> 3 | H155: 0 | I155: 1.5 | J155: 0.75 | K155: 60 | L155: 0 | M155: 0 | N155: 400 | O155: 230.9401077 | P155: 219.3931023 | Q155: 0.75 | R155: 292.5241364 | S155: -286.6736537 | T155: -36 | U155: -36 | V155: 0.5625 | W155: 0 | X155: -48133.33333 | Y155: -292.5241364 | Z155: -286.6736537 | AA155: -36 | AB155: -36 | AC155: -17.09924175 | AD155: -36 | AE155: 0 | AF155: -17.09924175 | AG155: 0 | AH155: 0 | AI155: -112.6246923 | AJ155: -244.93
A156: -32 | B156: -1 | C156: =IF(MIN(Rechentabelle!AT:AT)<0,1,0) -> 0 | D156: 0 | E156: 0 | F156: 7.6 | G156: =VLOOKUP(Hardware!$C$78,MotorenAuswahlMatrix,26,FALSE) -> 3 | H156: 0 | I156: 1.5 | J156: 0.75 | K156: 60 | L156: 0 | M156: 0 | N156: 400 | O156: 230.9401077 | P156: 219.3931023 | Q156: 0.75 | R156: 292.5241364 | S156: -286.6736537 | T156: -36 | U156: -36 | V156: 0.5625 | W156: 0 | X156: -48133.33333 | Y156: -292.5241364 | Z156: -286.6736537 | AA156: -36 | AB156: -36 | AC156: -17.09924175 | AD156: -36 | AE156: 0 | AF156: -17.09924175 | AG156: 0 | AH156: 0 | AI156: -112.6246923 | AJ156: -244.93
A157: -33 | B157: -1 | C157: =IF(MIN(Rechentabelle!AT:AT)<0,1,0) -> 0 | D157: 0 | E157: 0 | F157: 7.6 | G157: =VLOOKUP(Hardware!$C$78,MotorenAuswahlMatrix,26,FALSE) -> 3 | H157: 0 | I157: 1.5 | J157: 0.75 | K157: 60 | L157: 0 | M157: 0 | N157: 400 | O157: 230.9401077 | P157: 219.3931023 | Q157: 0.75 | R157: 292.5241364 | S157: -286.6736537 | T157: -36 | U157: -36 | V157: 0.5625 | W157: 0 | X157: -48133.33333 | Y157: -292.5241364 | Z157: -286.6736537 | AA157: -36 | AB157: -36 | AC157: -17.09924175 | AD157: -36 | AE157: 0 | AF157: -17.09924175 | AG157: 0 | AH157: 0 | AI157: -112.6246923 | AJ157: -244.93
A158: -34 | B158: -1 | C158: =IF(MIN(Rechentabelle!AT:AT)<0,1,0) -> 0 | D158: 0 | E158: 0 | F158: 7.6 | G158: =VLOOKUP(Hardware!$C$78,MotorenAuswahlMatrix,26,FALSE) -> 3 | H158: 0 | I158: 1.5 | J158: 0.75 | K158: 60 | L158: 0 | M158: 0 | N158: 400 | O158: 230.9401077 | P158: 219.3931023 | Q158: 0.75 | R158: 292.5241364 | S158: -286.6736537 | T158: -36 | U158: -36 | V158: 0.5625 | W158: 0 | X158: -48133.33333 | Y158: -292.5241364 | Z158: -286.6736537 | AA158: -36 | AB158: -36 | AC158: -17.09924175 | AD158: -36 | AE158: 0 | AF158: -17.09924175 | AG158: 0 | AH158: 0 | AI158: -112.6246923 | AJ158: -244.93
A159: -35 | B159: -1 | C159: =IF(MIN(Rechentabelle!AT:AT)<0,1,0) -> 0 | D159: 0 | E159: 0 | F159: 7.6 | G159: =VLOOKUP(Hardware!$C$78,MotorenAuswahlMatrix,26,FALSE) -> 3 | H159: 0 | I159: 1.5 | J159: 0.75 | K159: 60 | L159: 0 | M159: 0 | N159: 400 | O159: 230.9401077 | P159: 219.3931023 | Q159: 0.75 | R159: 292.5241364 | S159: -286.6736537 | T159: -36 | U159: -36 | V159: 0.5625 | W159: 0 | X159: -48133.33333 | Y159: -292.5241364 | Z159: -286.6736537 | AA159: -36 | AB159: -36 | AC159: -17.09924175 | AD159: -36 | AE159: 0 | AF159: -17.09924175 | AG159: 0 | AH159: 0 | AI159: -112.6246923 | AJ159: -244.93
A160: -36 | B160: -1 | C160: =IF(MIN(Rechentabelle!AT:AT)<0,1,0) -> 0 | D160: 0 | E160: 0 | F160: 7.6 | G160: =VLOOKUP(Hardware!$C$78,MotorenAuswahlMatrix,26,FALSE) -> 3 | H160: 0 | I160: 1.5 | J160: 0.75 | K160: 60 | L160: 0 | M160: 0 | N160: 400 | O160: 230.9401077 | P160: 219.3931023 | Q160: 0.75 | R160: 292.5241364 | S160: -286.6736537 | T160: -36 | U160: -36 | V160: 0.5625 | W160: 0 | X160: -48133.33333 | Y160: -292.5241364 | Z160: -286.6736537 | AA160: -36 | AB160: -36 | AC160: -17.09924175 | AD160: -36 | AE160: 0 | AF160: -17.09924175 | AG160: 0 | AH160: 0 | AI160: -112.6246923 | AJ160: -244.93
A161: -37 | B161: -1 | C161: =IF(MIN(Rechentabelle!AT:AT)<0,1,0) -> 0 | D161: 0 | E161: 0 | F161: 7.6 | G161: =VLOOKUP(Hardware!$C$78,MotorenAuswahlMatrix,26,FALSE) -> 3 | H161: 0 | I161: 1.5 | J161: 0.75 | K161: 60 | L161: 0 | M161: 0 | N161: 400 | O161: 230.9401077 | P161: 219.3931023 | Q161: 0.75 | R161: 292.5241364 | S161: -286.6736537 | T161: -36 | U161: -36 | V161: 0.5625 | W161: 0 | X161: -48133.33333 | Y161: -292.5241364 | Z161: -286.6736537 | AA161: -36 | AB161: -36 | AC161: -17.09924175 | AD161: -36 | AE161: 0 | AF161: -17.09924175 | AG161: 0 | AH161: 0 | AI161: -112.6246923 | AJ161: -244.93
A162: -38 | B162: -1 | C162: =IF(MIN(Rechentabelle!AT:AT)<0,1,0) -> 0 | D162: 0 | E162: 0 | F162: 7.6 | G162: =VLOOKUP(Hardware!$C$78,MotorenAuswahlMatrix,26,FALSE) -> 3 | H162: 0 | I162: 1.5 | J162: 0.75 | K162: 60 | L162: 0 | M162: 0 | N162: 400 | O162: 230.9401077 | P162: 219.3931023 | Q162: 0.75 | R162: 292.5241364 | S162: -286.6736537 | T162: -36 | U162: -36 | V162: 0.5625 | W162: 0 | X162: -48133.33333 | Y162: -292.5241364 | Z162: -286.6736537 | AA162: -36 | AB162: -36 | AC162: -17.09924175 | AD162: -36 | AE162: 0 | AF162: -17.09924175 | AG162: 0 | AH162: 0 | AI162: -112.6246923 | AJ162: -244.93
A163: -39 | B163: -1 | C163: =IF(MIN(Rechentabelle!AT:AT)<0,1,0) -> 0 | D163: 0 | E163: 0 | F163: 7.6 | G163: =VLOOKUP(Hardware!$C$78,MotorenAuswahlMatrix,26,FALSE) -> 3 | H163: 0 | I163: 1.5 | J163: 0.75 | K163: 60 | L163: 0 | M163: 0 | N163: 400 | O163: 230.9401077 | P163: 219.3931023 | Q163: 0.75 | R163: 292.5241364 | S163: -286.6736537 | T163: -36 | U163: -36 | V163: 0.5625 | W163: 0 | X163: -48133.33333 | Y163: -292.5241364 | Z163: -286.6736537 | AA163: -36 | AB163: -36 | AC163: -17.09924175 | AD163: -36 | AE163: 0 | AF163: -17.09924175 | AG163: 0 | AH163: 0 | AI163: -112.6246923 | AJ163: -244.93
A164: -40 | B164: -1 | C164: =IF(MIN(Rechentabelle!AT:AT)<0,1,0) -> 0 | D164: 0 | E164: 0 | F164: 7.6 | G164: =VLOOKUP(Hardware!$C$78,MotorenAuswahlMatrix,26,FALSE) -> 3 | H164: 0 | I164: 1.5 | J164: 0.75 | K164: 60 | L164: 0 | M164: 0 | N164: 400 | O164: 230.9401077 | P164: 219.3931023 | Q164: 0.75 | R164: 292.5241364 | S164: -286.6736537 | T164: -36 | U164: -36 | V164: 0.5625 | W164: 0 | X164: -48133.33333 | Y164: -292.5241364 | Z164: -286.6736537 | AA164: -36 | AB164: -36 | AC164: -17.09924175 | AD164: -36 | AE164: 0 | AF164: -17.09924175 | AG164: 0 | AH164: 0 | AI164: -112.6246923 | AJ164: -244.93
A165: -41 | B165: -1 | C165: =IF(MIN(Rechentabelle!AT:AT)<0,1,0) -> 0 | D165: 0 | E165: 0 | F165: 7.6 | G165: =VLOOKUP(Hardware!$C$78,MotorenAuswahlMatrix,26,FALSE) -> 3 | H165: 0 | I165: 1.5 | J165: 0.75 | K165: 60 | L165: 0 | M165: 0 | N165: 400 | O165: 230.9401077 | P165: 219.3931023 | Q165: 0.75 | R165: 292.5241364 | S165: -286.6736537 | T165: -36 | U165: -36 | V165: 0.5625 | W165: 0 | X165: -48133.33333 | Y165: -292.5241364 | Z165: -286.6736537 | AA165: -36 | AB165: -36 | AC165: -17.09924175 | AD165: -36 | AE165: 0 | AF165: -17.09924175 | AG165: 0 | AH165: 0 | AI165: -112.6246923 | AJ165: -244.93
A166: -42 | B166: -1 | C166: =IF(MIN(Rechentabelle!AT:AT)<0,1,0) -> 0 | D166: 0 | E166: 0 | F166: 7.6 | G166: =VLOOKUP(Hardware!$C$78,MotorenAuswahlMatrix,26,FALSE) -> 3 | H166: 0 | I166: 1.5 | J166: 0.75 | K166: 60 | L166: 0 | M166: 0 | N166: 400 | O166: 230.9401077 | P166: 219.3931023 | Q166: 0.75 | R166: 292.5241364 | S166: -286.6736537 | T166: -36 | U166: -36 | V166: 0.5625 | W166: 0 | X166: -48133.33333 | Y166: -292.5241364 | Z166: -286.6736537 | AA166: -36 | AB166: -36 | AC166: -17.09924175 | AD166: -36 | AE166: 0 | AF166: -17.09924175 | AG166: 0 | AH166: 0 | AI166: -112.6246923 | AJ166: -244.93
A167: -43 | B167: -1 | C167: =IF(MIN(Rechentabelle!AT:AT)<0,1,0) -> 0 | D167: 0 | E167: 0 | F167: 7.6 | G167: =VLOOKUP(Hardware!$C$78,MotorenAuswahlMatrix,26,FALSE) -> 3 | H167: 0 | I167: 1.5 | J167: 0.75 | K167: 60 | L167: 0 | M167: 0 | N167: 400 | O167: 230.9401077 | P167: 219.3931023 | Q167: 0.75 | R167: 292.5241364 | S167: -286.6736537 | T167: -36 | U167: -36 | V167: 0.5625 | W167: 0 | X167: -48133.33333 | Y167: -292.5241364 | Z167: -286.6736537 | AA167: -36 | AB167: -36 | AC167: -17.09924175 | AD167: -36 | AE167: 0 | AF167: -17.09924175 | AG167: 0 | AH167: 0 | AI167: -112.6246923 | AJ167: -244.93
A168: -44 | B168: -1 | C168: =IF(MIN(Rechentabelle!AT:AT)<0,1,0) -> 0 | D168: 0 | E168: 0 | F168: 7.6 | G168: =VLOOKUP(Hardware!$C$78,MotorenAuswahlMatrix,26,FALSE) -> 3 | H168: 0 | I168: 1.5 | J168: 0.75 | K168: 60 | L168: 0 | M168: 0 | N168: 400 | O168: 230.9401077 | P168: 219.3931023 | Q168: 0.75 | R168: 292.5241364 | S168: -286.6736537 | T168: -36 | U168: -36 | V168: 0.5625 | W168: 0 | X168: -48133.33333 | Y168: -292.5241364 | Z168: -286.6736537 | AA168: -36 | AB168: -36 | AC168: -17.09924175 | AD168: -36 | AE168: 0 | AF168: -17.09924175 | AG168: 0 | AH168: 0 | AI168: -112.6246923 | AJ168: -244.93
A169: -45 | B169: -1 | C169: =IF(MIN(Rechentabelle!AT:AT)<0,1,0) -> 0 | D169: 0 | E169: 0 | F169: 7.6 | G169: =VLOOKUP(Hardware!$C$78,MotorenAuswahlMatrix,26,FALSE) -> 3 | H169: 0 | I169: 1.5 | J169: 0.75 | K169: 60 | L169: 0 | M169: 0 | N169: 400 | O169: 230.9401077 | P169: 219.3931023 | Q169: 0.75 | R169: 292.5241364 | S169: -286.6736537 | T169: -36 | U169: -36 | V169: 0.5625 | W169: 0 | X169: -48133.33333 | Y169: -292.5241364 | Z169: -286.6736537 | AA169: -36 | AB169: -36 | AC169: -17.09924175 | AD169: -36 | AE169: 0 | AF169: -17.09924175 | AG169: 0 | AH169: 0 | AI169: -112.6246923 | AJ169: -244.93
A170: -46 | B170: -1 | C170: =IF(MIN(Rechentabelle!AT:AT)<0,1,0) -> 0 | D170: 0 | E170: 0 | F170: 7.6 | G170: =VLOOKUP(Hardware!$C$78,MotorenAuswahlMatrix,26,FALSE) -> 3 | H170: 0 | I170: 1.5 | J170: 0.75 | K170: 60 | L170: 0 | M170: 0 | N170: 400 | O170: 230.9401077 | P170: 219.3931023 | Q170: 0.75 | R170: 292.5241364 | S170: -286.6736537 | T170: -36 | U170: -36 | V170: 0.5625 | W170: 0 | X170: -48133.33333 | Y170: -292.5241364 | Z170: -286.6736537 | AA170: -36 | AB170: -36 | AC170: -17.09924175 | AD170: -36 | AE170: 0 | AF170: -17.09924175 | AG170: 0 | AH170: 0 | AI170: -112.6246923 | AJ170: -244.93
A171: -47 | B171: -1 | C171: =IF(MIN(Rechentabelle!AT:AT)<0,1,0) -> 0 | D171: 0 | E171: 0 | F171: 7.6 | G171: =VLOOKUP(Hardware!$C$78,MotorenAuswahlMatrix,26,FALSE) -> 3 | H171: 0 | I171: 1.5 | J171: 0.75 | K171: 60 | L171: 0 | M171: 0 | N171: 400 | O171: 230.9401077 | P171: 219.3931023 | Q171: 0.75 | R171: 292.5241364 | S171: -286.6736537 | T171: -36 | U171: -36 | V171: 0.5625 | W171: 0 | X171: -48133.33333 | Y171: -292.5241364 | Z171: -286.6736537 | AA171: -36 | AB171: -36 | AC171: -17.09924175 | AD171: -36 | AE171: 0 | AF171: -17.09924175 | AG171: 0 | AH171: 0 | AI171: -112.6246923 | AJ171: -244.93
A172: -48 | B172: -1 | C172: =IF(MIN(Rechentabelle!AT:AT)<0,1,0) -> 0 | D172: 0 | E172: 0 | F172: 7.6 | G172: =VLOOKUP(Hardware!$C$78,MotorenAuswahlMatrix,26,FALSE) -> 3 | H172: 0 | I172: 1.5 | J172: 0.75 | K172: 60 | L172: 0 | M172: 0 | N172: 400 | O172: 230.9401077 | P172: 219.3931023 | Q172: 0.75 | R172: 292.5241364 | S172: -286.6736537 | T172: -36 | U172: -36 | V172: 0.5625 | W172: 0 | X172: -48133.33333 | Y172: -292.5241364 | Z172: -286.6736537 | AA172: -36 | AB172: -36 | AC172: -17.09924175 | AD172: -36 | AE172: 0 | AF172: -17.09924175 | AG172: 0 | AH172: 0 | AI172: -112.6246923 | AJ172: -244.93
A173: -49 | B173: -1 | C173: =IF(MIN(Rechentabelle!AT:AT)<0,1,0) -> 0 | D173: 0 | E173: 0 | F173: 7.6 | G173: =VLOOKUP(Hardware!$C$78,MotorenAuswahlMatrix,26,FALSE) -> 3 | H173: 0 | I173: 1.5 | J173: 0.75 | K173: 60 | L173: 0 | M173: 0 | N173: 400 | O173: 230.9401077 | P173: 219.3931023 | Q173: 0.75 | R173: 292.5241364 | S173: -286.6736537 | T173: -36 | U173: -36 | V173: 0.5625 | W173: 0 | X173: -48133.33333 | Y173: -292.5241364 | Z173: -286.6736537 | AA173: -36 | AB173: -36 | AC173: -17.09924175 | AD173: -36 | AE173: 0 | AF173: -17.09924175 | AG173: 0 | AH173: 0 | AI173: -112.6246923 | AJ173: -244.93
A174: -50 | B174: -1 | C174: =IF(MIN(Rechentabelle!AT:AT)<0,1,0) -> 0 | D174: 0 | E174: 0 | F174: 7.6 | G174: =VLOOKUP(Hardware!$C$78,MotorenAuswahlMatrix,26,FALSE) -> 3 | H174: 0 | I174: 1.5 | J174: 0.75 | K174: 60 | L174: 0 | M174: 0 | N174: 400 | O174: 230.9401077 | P174: 219.3931023 | Q174: 0.75 | R174: 292.5241364 | S174: -286.6736537 | T174: -36 | U174: -36 | V174: 0.5625 | W174: 0 | X174: -48133.33333 | Y174: -292.5241364 | Z174: -286.6736537 | AA174: -36 | AB174: -36 | AC174: -17.09924175 | AD174: -36 | AE174: 0 | AF174: -17.09924175 | AG174: 0 | AH174: 0 | AI174: -112.6246923 | AJ174: -244.93
A175: -51 | B175: -1 | C175: =IF(MIN(Rechentabelle!AT:AT)<0,1,0) -> 0 | D175: 0 | E175: 0 | F175: 7.6 | G175: =VLOOKUP(Hardware!$C$78,MotorenAuswahlMatrix,26,FALSE) -> 3 | H175: 0 | I175: 1.5 | J175: 0.75 | K175: 60 | L175: 0 | M175: 0 | N175: 400 | O175: 230.9401077 | P175: 219.3931023 | Q175: 0.75 | R175: 292.5241364 | S175: -286.6736537 | T175: -36 | U175: -36 | V175: 0.5625 | W175: 0 | X175: -48133.33333 | Y175: -292.5241364 | Z175: -286.6736537 | AA175: -36 | AB175: -36 | AC175: -17.09924175 | AD175: -36 | AE175: 0 | AF175: -17.09924175 | AG175: 0 | AH175: 0 | AI175: -112.6246923 | AJ175: -244.93
A176: -52 | B176: -1 | C176: =IF(MIN(Rechentabelle!AT:AT)<0,1,0) -> 0 | D176: 0 | E176: 0 | F176: 7.6 | G176: =VLOOKUP(Hardware!$C$78,MotorenAuswahlMatrix,26,FALSE) -> 3 | H176: 0 | I176: 1.5 | J176: 0.75 | K176: 60 | L176: 0 | M176: 0 | N176: 400 | O176: 230.9401077 | P176: 219.3931023 | Q176: 0.75 | R176: 292.5241364 | S176: -286.6736537 | T176: -36 | U176: -36 | V176: 0.5625 | W176: 0 | X176: -48133.33333 | Y176: -292.5241364 | Z176: -286.6736537 | AA176: -36 | AB176: -36 | AC176: -17.09924175 | AD176: -36 | AE176: 0 | AF176: -17.09924175 | AG176: 0 | AH176: 0 | AI176: -112.6246923 | AJ176: -244.93
A177: -53 | B177: -1 | C177: =IF(MIN(Rechentabelle!AT:AT)<0,1,0) -> 0 | D177: 0 | E177: 0 | F177: 7.6 | G177: =VLOOKUP(Hardware!$C$78,MotorenAuswahlMatrix,26,FALSE) -> 3 | H177: 0 | I177: 1.5 | J177: 0.75 | K177: 60 | L177: 0 | M177: 0 | N177: 400 | O177: 230.9401077 | P177: 219.3931023 | Q177: 0.75 | R177: 292.5241364 | S177: -286.6736537 | T177: -36 | U177: -36 | V177: 0.5625 | W177: 0 | X177: -48133.33333 | Y177: -292.5241364 | Z177: -286.6736537 | AA177: -36 | AB177: -36 | AC177: -17.09924175 | AD177: -36 | AE177: 0 | AF177: -17.09924175 | AG177: 0 | AH177: 0 | AI177: -112.6246923 | AJ177: -244.93
A178: -54 | B178: -1 | C178: =IF(MIN(Rechentabelle!AT:AT)<0,1,0) -> 0 | D178: 0 | E178: 0 | F178: 7.6 | G178: =VLOOKUP(Hardware!$C$78,MotorenAuswahlMatrix,26,FALSE) -> 3 | H178: 0 | I178: 1.5 | J178: 0.75 | K178: 60 | L178: 0 | M178: 0 | N178: 400 | O178: 230.9401077 | P178: 219.3931023 | Q178: 0.75 | R178: 292.5241364 | S178: -286.6736537 | T178: -36 | U178: -36 | V178: 0.5625 | W178: 0 | X178: -48133.33333 | Y178: -292.5241364 | Z178: -286.6736537 | AA178: -36 | AB178: -36 | AC178: -17.09924175 | AD178: -36 | AE178: 0 | AF178: -17.09924175 | AG178: 0 | AH178: 0 | AI178: -112.6246923 | AJ178: -244.93
A179: -55 | B179: -1 | C179: =IF(MIN(Rechentabelle!AT:AT)<0,1,0) -> 0 | D179: 0 | E179: 0 | F179: 7.6 | G179: =VLOOKUP(Hardware!$C$78,MotorenAuswahlMatrix,26,FALSE) -> 3 | H179: 0 | I179: 1.5 | J179: 0.75 | K179: 60 | L179: 0 | M179: 0 | N179: 400 | O179: 230.9401077 | P179: 219.3931023 | Q179: 0.75 | R179: 292.5241364 | S179: -286.6736537 | T179: -36 | U179: -36 | V179: 0.5625 | W179: 0 | X179: -48133.33333 | Y179: -292.5241364 | Z179: -286.6736537 | AA179: -36 | AB179: -36 | AC179: -17.09924175 | AD179: -36 | AE179: 0 | AF179: -17.09924175 | AG179: 0 | AH179: 0 | AI179: -112.6246923 | AJ179: -244.93
A180: -56 | B180: -1 | C180: =IF(MIN(Rechentabelle!AT:AT)<0,1,0) -> 0 | D180: 0 | E180: 0 | F180: 7.6 | G180: =VLOOKUP(Hardware!$C$78,MotorenAuswahlMatrix,26,FALSE) -> 3 | H180: 0 | I180: 1.5 | J180: 0.75 | K180: 60 | L180: 0 | M180: 0 | N180: 400 | O180: 230.9401077 | P180: 219.3931023 | Q180: 0.75 | R180: 292.5241364 | S180: -286.6736537 | T180: -36 | U180: -36 | V180: 0.5625 | W180: 0 | X180: -48133.33333 | Y180: -292.5241364 | Z180: -286.6736537 | AA180: -36 | AB180: -36 | AC180: -17.09924175 | AD180: -36 | AE180: 0 | AF180: -17.09924175 | AG180: 0 | AH180: 0 | AI180: -112.6246923 | AJ180: -244.93
A181: -57 | B181: -1 | C181: =IF(MIN(Rechentabelle!AT:AT)<0,1,0) -> 0 | D181: 0 | E181: 0 | F181: 7.6 | G181: =VLOOKUP(Hardware!$C$78,MotorenAuswahlMatrix,26,FALSE) -> 3 | H181: 0 | I181: 1.5 | J181: 0.75 | K181: 60 | L181: 0 | M181: 0 | N181: 400 | O181: 230.9401077 | P181: 219.3931023 | Q181: 0.75 | R181: 292.5241364 | S181: -286.6736537 | T181: -36 | U181: -36 | V181: 0.5625 | W181: 0 | X181: -48133.33333 | Y181: -292.5241364 | Z181: -286.6736537 | AA181: -36 | AB181: -36 | AC181: -17.09924175 | AD181: -36 | AE181: 0 | AF181: -17.09924175 | AG181: 0 | AH181: 0 | AI181: -112.6246923 | AJ181: -244.93
A182: -58 | B182: -1 | C182: =IF(MIN(Rechentabelle!AT:AT)<0,1,0) -> 0 | D182: 0 | E182: 0 | F182: 7.6 | G182: =VLOOKUP(Hardware!$C$78,MotorenAuswahlMatrix,26,FALSE) -> 3 | H182: 0 | I182: 1.5 | J182: 0.75 | K182: 60 | L182: 0 | M182: 0 | N182: 400 | O182: 230.9401077 | P182: 219.3931023 | Q182: 0.75 | R182: 292.5241364 | S182: -286.6736537 | T182: -36 | U182: -36 | V182: 0.5625 | W182: 0 | X182: -48133.33333 | Y182: -292.5241364 | Z182: -286.6736537 | AA182: -36 | AB182: -36 | AC182: -17.09924175 | AD182: -36 | AE182: 0 | AF182: -17.09924175 | AG182: 0 | AH182: 0 | AI182: -112.6246923 | AJ182: -244.93
A183: -59 | B183: -1 | C183: =IF(MIN(Rechentabelle!AT:AT)<0,1,0) -> 0 | D183: 0 | E183: 0 | F183: 7.6 | G183: =VLOOKUP(Hardware!$C$78,MotorenAuswahlMatrix,26,FALSE) -> 3 | H183: 0 | I183: 1.5 | J183: 0.75 | K183: 60 | L183: 0 | M183: 0 | N183: 400 | O183: 230.9401077 | P183: 219.3931023 | Q183: 0.75 | R183: 292.5241364 | S183: -286.6736537 | T183: -36 | U183: -36 | V183: 0.5625 | W183: 0 | X183: -48133.33333 | Y183: -292.5241364 | Z183: -286.6736537 | AA183: -36 | AB183: -36 | AC183: -17.09924175 | AD183: -36 | AE183: 0 | AF183: -17.09924175 | AG183: 0 | AH183: 0 | AI183: -112.6246923 | AJ183: -244.93
A184: -60 | B184: -1 | C184: =IF(MIN(Rechentabelle!AT:AT)<0,1,0) -> 0 | D184: 0 | E184: 0 | F184: 7.6 | G184: =VLOOKUP(Hardware!$C$78,MotorenAuswahlMatrix,26,FALSE) -> 3 | H184: 0 | I184: 1.5 | J184: 0.75 | K184: 60 | L184: 0 | M184: 0 | N184: 400 | O184: 230.9401077 | P184: 219.3931023 | Q184: 0.75 | R184: 292.5241364 | S184: -286.6736537 | T184: -36 | U184: -36 | V184: 0.5625 | W184: 0 | X184: -48133.33333 | Y184: -292.5241364 | Z184: -286.6736537 | AA184: -36 | AB184: -36 | AC184: -17.09924175 | AD184: -36 | AE184: 0 | AF184: -17.09924175 | AG184: 0 | AH184: 0 | AI184: -112.6246923 | AJ184: -244.93
A185: -60 | B185: 1 | C185: =IF(MIN(Rechentabelle!AT:AT)<0,1,0) -> 0 | D185: 0 | E185: 0 | F185: 7.6 | G185: =VLOOKUP(Hardware!$C$78,MotorenAuswahlMatrix,26,FALSE) -> 3 | H185: 0 | I185: 1.5 | J185: 0.75 | K185: 60 | L185: 0 | M185: 0 | N185: 400 | O185: 230.9401077 | P185: =O185*1.05 -> 242.4871131 | Q185: 0.75 | R185: 323.3161507 | S185: 316.8498277 | T185: 36 | U185: 36 | V185: 0.5625 | W185: 0 | X185: -58800 | Y185: =(-W185+SQRT(W185^2-4*V185*X185))/(2*V185) -> 323.3161507 | Z185: 316.8498277 | AA185: 36 | AB185: 36 | AC185: 17.09924175 | AD185: 36 | AE185: 0 | AF185: 17.09924175 | AG185: 0 | AH185: 0 | AI185: 112.6246923 | AJ185: 244.93
A186: -59 | B186: 1 | C186: =IF(MIN(Rechentabelle!AT:AT)<0,1,0) -> 0 | D186: 0 | E186: 0 | F186: 7.6 | G186: =VLOOKUP(Hardware!$C$78,MotorenAuswahlMatrix,26,FALSE) -> 3 | H186: 0 | I186: 1.5 | J186: 0.75 | K186: 60 | L186: 0 | M186: 0 | N186: 400 | O186: 230.9401077 | P186: =O186*1.05 -> 242.4871131 | Q186: 0.75 | R186: 323.3161507 | S186: 316.8498277 | T186: 36 | U186: 36 | V186: 0.5625 | W186: 0 | X186: -58800 | Y186: 323.3161507 | Z186: 316.8498277 | AA186: 36 | AB186: 36 | AC186: 17.09924175 | AD186: 36 | AE186: 0 | AF186: 17.09924175 | AG186: 0 | AH186: 0 | AI186: 112.6246923 | AJ186: 244.93
A187: -58 | B187: 1 | C187: =IF(MIN(Rechentabelle!AT:AT)<0,1,0) -> 0 | D187: 0 | E187: 0 | F187: 7.6 | G187: =VLOOKUP(Hardware!$C$78,MotorenAuswahlMatrix,26,FALSE) -> 3 | H187: 0 | I187: 1.5 | J187: 0.75 | K187: 60 | L187: 0 | M187: 0 | N187: 400 | O187: 230.9401077 | P187: 242.4871131 | Q187: 0.75 | R187: 323.3161507 | S187: 316.8498277 | T187: 36 | U187: 36 | V187: 0.5625 | W187: 0 | X187: -58800 | Y187: 323.3161507 | Z187: 316.8498277 | AA187: 36 | AB187: 36 | AC187: 17.09924175 | AD187: 36 | AE187: 0 | AF187: 17.09924175 | AG187: 0 | AH187: 0 | AI187: 112.6246923 | AJ187: 244.93
A188: -57 | B188: 1 | C188: =IF(MIN(Rechentabelle!AT:AT)<0,1,0) -> 0 | D188: 0 | E188: 0 | F188: 7.6 | G188: =VLOOKUP(Hardware!$C$78,MotorenAuswahlMatrix,26,FALSE) -> 3 | H188: 0 | I188: 1.5 | J188: 0.75 | K188: 60 | L188: 0 | M188: 0 | N188: 400 | O188: 230.9401077 | P188: 242.4871131 | Q188: 0.75 | R188: 323.3161507 | S188: 316.8498277 | T188: 36 | U188: 36 | V188: 0.5625 | W188: 0 | X188: -58800 | Y188: 323.3161507 | Z188: 316.8498277 | AA188: 36 | AB188: 36 | AC188: 17.09924175 | AD188: 36 | AE188: 0 | AF188: 17.09924175 | AG188: 0 | AH188: 0 | AI188: 112.6246923 | AJ188: 244.93
A189: -56 | B189: 1 | C189: =IF(MIN(Rechentabelle!AT:AT)<0,1,0) -> 0 | D189: 0 | E189: 0 | F189: 7.6 | G189: =VLOOKUP(Hardware!$C$78,MotorenAuswahlMatrix,26,FALSE) -> 3 | H189: 0 | I189: 1.5 | J189: 0.75 | K189: 60 | L189: 0 | M189: 0 | N189: 400 | O189: 230.9401077 | P189: 242.4871131 | Q189: 0.75 | R189: 323.3161507 | S189: 316.8498277 | T189: 36 | U189: 36 | V189: 0.5625 | W189: 0 | X189: -58800 | Y189: 323.3161507 | Z189: 316.8498277 | AA189: 36 | AB189: 36 | AC189: 17.09924175 | AD189: 36 | AE189: 0 | AF189: 17.09924175 | AG189: 0 | AH189: 0 | AI189: 112.6246923 | AJ189: 244.93
A190: -55 | B190: 1 | C190: =IF(MIN(Rechentabelle!AT:AT)<0,1,0) -> 0 | D190: 0 | E190: 0 | F190: 7.6 | G190: =VLOOKUP(Hardware!$C$78,MotorenAuswahlMatrix,26,FALSE) -> 3 | H190: 0 | I190: 1.5 | J190: 0.75 | K190: 60 | L190: 0 | M190: 0 | N190: 400 | O190: 230.9401077 | P190: 242.4871131 | Q190: 0.75 | R190: 323.3161507 | S190: 316.8498277 | T190: 36 | U190: 36 | V190: 0.5625 | W190: 0 | X190: -58800 | Y190: 323.3161507 | Z190: 316.8498277 | AA190: 36 | AB190: 36 | AC190: 17.09924175 | AD190: 36 | AE190: 0 | AF190: 17.09924175 | AG190: 0 | AH190: 0 | AI190: 112.6246923 | AJ190: 244.93
A191: -54 | B191: 1 | C191: =IF(MIN(Rechentabelle!AT:AT)<0,1,0) -> 0 | D191: 0 | E191: 0 | F191: 7.6 | G191: =VLOOKUP(Hardware!$C$78,MotorenAuswahlMatrix,26,FALSE) -> 3 | H191: 0 | I191: 1.5 | J191: 0.75 | K191: 60 | L191: 0 | M191: 0 | N191: 400 | O191: 230.9401077 | P191: 242.4871131 | Q191: 0.75 | R191: 323.3161507 | S191: 316.8498277 | T191: 36 | U191: 36 | V191: 0.5625 | W191: 0 | X191: -58800 | Y191: 323.3161507 | Z191: 316.8498277 | AA191: 36 | AB191: 36 | AC191: 17.09924175 | AD191: 36 | AE191: 0 | AF191: 17.09924175 | AG191: 0 | AH191: 0 | AI191: 112.6246923 | AJ191: 244.93
A192: -53 | B192: 1 | C192: =IF(MIN(Rechentabelle!AT:AT)<0,1,0) -> 0 | D192: 0 | E192: 0 | F192: 7.6 | G192: =VLOOKUP(Hardware!$C$78,MotorenAuswahlMatrix,26,FALSE) -> 3 | H192: 0 | I192: 1.5 | J192: 0.75 | K192: 60 | L192: 0 | M192: 0 | N192: 400 | O192: 230.9401077 | P192: 242.4871131 | Q192: 0.75 | R192: 323.3161507 | S192: 316.8498277 | T192: 36 | U192: 36 | V192: 0.5625 | W192: 0 | X192: -58800 | Y192: 323.3161507 | Z192: 316.8498277 | AA192: 36 | AB192: 36 | AC192: 17.09924175 | AD192: 36 | AE192: 0 | AF192: 17.09924175 | AG192: 0 | AH192: 0 | AI192: 112.6246923 | AJ192: 244.93
A193: -52 | B193: 1 | C193: =IF(MIN(Rechentabelle!AT:AT)<0,1,0) -> 0 | D193: 0 | E193: 0 | F193: 7.6 | G193: =VLOOKUP(Hardware!$C$78,MotorenAuswahlMatrix,26,FALSE) -> 3 | H193: 0 | I193: 1.5 | J193: 0.75 | K193: 60 | L193: 0 | M193: 0 | N193: 400 | O193: 230.9401077 | P193: 242.4871131 | Q193: 0.75 | R193: 323.3161507 | S193: 316.8498277 | T193: 36 | U193: 36 | V193: 0.5625 | W193: 0 | X193: -58800 | Y193: 323.3161507 | Z193: 316.8498277 | AA193: 36 | AB193: 36 | AC193: 17.09924175 | AD193: 36 | AE193: 0 | AF193: 17.09924175 | AG193: 0 | AH193: 0 | AI193: 112.6246923 | AJ193: 244.93
A194: -51 | B194: 1 | C194: =IF(MIN(Rechentabelle!AT:AT)<0,1,0) -> 0 | D194: 0 | E194: 0 | F194: 7.6 | G194: =VLOOKUP(Hardware!$C$78,MotorenAuswahlMatrix,26,FALSE) -> 3 | H194: 0 | I194: 1.5 | J194: 0.75 | K194: 60 | L194: 0 | M194: 0 | N194: 400 | O194: 230.9401077 | P194: 242.4871131 | Q194: 0.75 | R194: 323.3161507 | S194: 316.8498277 | T194: 36 | U194: 36 | V194: 0.5625 | W194: 0 | X194: -58800 | Y194: 323.3161507 | Z194: 316.8498277 | AA194: 36 | AB194: 36 | AC194: 17.09924175 | AD194: 36 | AE194: 0 | AF194: 17.09924175 | AG194: 0 | AH194: 0 | AI194: 112.6246923 | AJ194: 244.93
A195: -50 | B195: 1 | C195: =IF(MIN(Rechentabelle!AT:AT)<0,1,0) -> 0 | D195: =A195*nLL/60*C195 -> 0 | E195: 0 | F195: =L_phph -> 7.6 | G195: =VLOOKUP(Hardware!$C$78,MotorenAuswahlMatrix,26,FALSE) -> 3 | H195: 0 | I195: =R_phph_cold -> 1.5 | J195: =R_phph_cold/2 -> 0.75 | K195: =KE_Motor -> 60 | L195: 0 | M195: 0 | N195: =UNetz -> 400 | O195: 230.9401077 | P195: 242.4871131 | Q195: 0.75 | R195: 323.3161507 | S195: =R195*MMaxM/IMaxM*B195 -> 316.8498277 | T195: =MMaxM*B195 -> 36 | U195: 36 | V195: 0.5625 | W195: 0 | X195: -58800 | Y195: 323.3161507 | Z195: =Y195*MMaxM/IMaxM -> 316.8498277 | AA195: =MMaxM*B195 -> 36 | AB195: 36 | AC195: =IMaxeinstellen*MNennM/INennM*B195 -> 17.09924175 | AD195: 36 | AE195: 0 | AF195: 17.09924175 | AG195: 0 | AH195: 0 | AI195: 112.6246923 | AJ195: 244.93
A196: -49 | B196: 1 | C196: =IF(MIN(Rechentabelle!AT:AT)<0,1,0) -> 0 | D196: 0 | E196: =2*PI()*D196/60 -> 0 | F196: 7.6 | G196: =VLOOKUP(Hardware!$C$78,MotorenAuswahlMatrix,26,FALSE) -> 3 | H196: =E196*F196/2/1000*G196 -> 0 | I196: 1.5 | J196: 0.75 | K196: 60 | L196: =K196*D196/1000 -> 0 | M196: =L196/ SQRT(3) -> 0 | N196: 400 | O196: =N196/SQRT(3) -> 230.9401077 | P196: 242.4871131 | Q196: =SQRT(H196^2+J196^2) -> 0.75 | R196: =SQRT((P196^2-M196^2)/Q196^2) -> 323.3161507 | S196: 316.8498277 | T196: 36 | U196: =IF(ABS(S196)>ABS(T196),T196,S196) -> 36 | V196: =H196^2+J196^2 -> 0.5625 | W196: =2*J196*M196 -> 0 | X196: =-(P196^2-M196^2) -> -58800 | Y196: =(-W196+SQRT(W196^2-4*V196*X196))/(2*V196) -> 323.3161507 | Z196: 316.8498277 | AA196: 36 | AB196: =IF(ABS(Z196)>ABS(AA196),AA196,Z196) -> 36 | AC196: 17.09924175 | AD196: =IF(OR($BI$4="EX",$BI$4="NX"),AB196,AB196) -> 36 | AE196: =AD196*2*PI()*D196/60 -> 0 | AF196: =IF(ABS(AC196)>ABS(AD196),AD196,AC196) -> 17.09924175 | AG196: =AF196*2*PI()*D196/60 -> 0 | AH196: =D196/iGetriebe -> 0 | AI196: =IF(AF196>0,(AF196-MReibG)*iGetriebe,(AF196+MReibG)*iGetriebe) -> 112.6246923 | AJ196: =IF(AD196>0,(AD196-MReibG)*iGetriebe,(AD196+MReibG)*iGetriebe) -> 244.93
A197: -48 | B197: 1 | C197: =IF(MIN(Rechentabelle!AT:AT)<0,1,0) -> 0 | D197: 0 | E197: 0 | F197: 7.6 | G197: =VLOOKUP(Hardware!$C$78,MotorenAuswahlMatrix,26,FALSE) -> 3 | H197: 0 | I197: 1.5 | J197: 0.75 | K197: 60 | L197: 0 | M197: 0 | N197: 400 | O197: 230.9401077 | P197: 242.4871131 | Q197: 0.75 | R197: 323.3161507 | S197: 316.8498277 | T197: 36 | U197: 36 | V197: 0.5625 | W197: 0 | X197: -58800 | Y197: 323.3161507 | Z197: 316.8498277 | AA197: 36 | AB197: 36 | AC197: 17.09924175 | AD197: 36 | AE197: 0 | AF197: 17.09924175 | AG197: 0 | AH197: 0 | AI197: 112.6246923 | AJ197: 244.93
A198: -47 | B198: 1 | C198: =IF(MIN(Rechentabelle!AT:AT)<0,1,0) -> 0 | D198: 0 | E198: 0 | F198: 7.6 | G198: =VLOOKUP(Hardware!$C$78,MotorenAuswahlMatrix,26,FALSE) -> 3 | H198: 0 | I198: 1.5 | J198: 0.75 | K198: 60 | L198: 0 | M198: 0 | N198: 400 | O198: 230.9401077 | P198: 242.4871131 | Q198: 0.75 | R198: 323.3161507 | S198: 316.8498277 | T198: 36 | U198: 36 | V198: 0.5625 | W198: 0 | X198: -58800 | Y198: 323.3161507 | Z198: 316.8498277 | AA198: 36 | AB198: 36 | AC198: 17.09924175 | AD198: 36 | AE198: 0 | AF198: 17.09924175 | AG198: 0 | AH198: 0 | AI198: 112.6246923 | AJ198: 244.93
A199: -46 | B199: 1 | C199: =IF(MIN(Rechentabelle!AT:AT)<0,1,0) -> 0 | D199: 0 | E199: 0 | F199: 7.6 | G199: =VLOOKUP(Hardware!$C$78,MotorenAuswahlMatrix,26,FALSE) -> 3 | H199: 0 | I199: 1.5 | J199: 0.75 | K199: 60 | L199: 0 | M199: 0 | N199: 400 | O199: 230.9401077 | P199: 242.4871131 | Q199: 0.75 | R199: 323.3161507 | S199: 316.8498277 | T199: 36 | U199: 36 | V199: 0.5625 | W199: 0 | X199: -58800 | Y199: 323.3161507 | Z199: 316.8498277 | AA199: 36 | AB199: 36 | AC199: 17.09924175 | AD199: 36 | AE199: 0 | AF199: 17.09924175 | AG199: 0 | AH199: 0 | AI199: 112.6246923 | AJ199: 244.93
A200: -45 | B200: 1 | C200: =IF(MIN(Rechentabelle!AT:AT)<0,1,0) -> 0 | D200: 0 | E200: 0 | F200: 7.6 | G200: =VLOOKUP(Hardware!$C$78,MotorenAuswahlMatrix,26,FALSE) -> 3 | H200: 0 | I200: 1.5 | J200: 0.75 | K200: 60 | L200: 0 | M200: 0 | N200: 400 | O200: 230.9401077 | P200: 242.4871131 | Q200: 0.75 | R200: 323.3161507 | S200: 316.8498277 | T200: 36 | U200: 36 | V200: 0.5625 | W200: 0 | X200: -58800 | Y200: 323.3161507 | Z200: 316.8498277 | AA200: 36 | AB200: 36 | AC200: 17.09924175 | AD200: 36 | AE200: 0 | AF200: 17.09924175 | AG200: 0 | AH200: 0 | AI200: 112.6246923 | AJ200: 244.93
A201: -44 | B201: 1 | C201: =IF(MIN(Rechentabelle!AT:AT)<0,1,0) -> 0 | D201: 0 | E201: 0 | F201: 7.6 | G201: =VLOOKUP(Hardware!$C$78,MotorenAuswahlMatrix,26,FALSE) -> 3 | H201: 0 | I201: 1.5 | J201: 0.75 | K201: 60 | L201: 0 | M201: 0 | N201: 400 | O201: 230.9401077 | P201: 242.4871131 | Q201: 0.75 | R201: 323.3161507 | S201: 316.8498277 | T201: 36 | U201: 36 | V201: 0.5625 | W201: 0 | X201: -58800 | Y201: 323.3161507 | Z201: 316.8498277 | AA201: 36 | AB201: 36 | AC201: 17.09924175 | AD201: 36 | AE201: 0 | AF201: 17.09924175 | AG201: 0 | AH201: 0 | AI201: 112.6246923 | AJ201: 244.93
... 44 more rows

Sheet M-Max Getriebe (hidden)
A1: Zähler | B1: Vorzeichen für das Drehmoment | C1: Negative Drehzahl einblenden? | D1: n [1/min] | E1: M Max Beschleunigung Getriebe [Nm] | F1: Einschaltdauer [%] | G1: P ReibG [W] | H1: P ViscousG [W] | I1: M ViscousG Eintrieb [Nm] | J1: M ViscousG Abtrieb [Nm] | K1: M ViscousG Abtrieb [Nm] | L1: S3-Betrieb [Nm] | M1: M Max Beschleunigung Getriebe [Nm] | N1: P Max Beschleunigung Getriebe [W] | P1: Zähler | Q1: n [1/min] | R1: P ReibG [W] | S1: P ViscousG [W] | T1: M ViscousG Eintrieb [Nm] | U1: M ViscousG Abtrieb [Nm] | V1: M ViscousG Abtrieb [Nm] | W1: S1 Kennlinie G [W] | X1: T2N [Nm] SUMITOMO | Y1: T2N [Nm] NABTESCO | AA1: Name | AB1: aktuell | AC1: Einheit
A2: 1e-05 | B2: =A3-A2 -> 0.99999 | C2: 1 | D2: =A2*nMaxG/iGetriebe/30*nMaxGFaktor*C2 -> 0.0002857142857 | E2: =MBeschlG*B2 -> 99.999 | F2: =EDB -> 0.588 | G2: =MReibG*2*PI()*ABS(D2)/60*iGetriebe -> 0.0002115339053 | H2: =IF(PV_totalG-G2<0,0,PV_totalG-G2) -> 634.6015045 | I2: =(H2/(2*PI()*ABS(D2)/60*iGetriebe))^(3/10) -> 87.98988399 | J2: =I2*KW_lastabh_ReibG*B2 -> 3965.18617 | K2: =IF(ABS(J2)>' M-Max Motor'!AI$3,' M-Max Motor'!AI$3*SIGN(J2),J2) -> 112.6246923 | L2: =K2*(1^1.8/F2^1.8) -> 292.9236455 | M2: =IF(ABS(L2)>ABS(E2),E2,L2) -> 99.999 | N2: =M2*2*PI()*D2/60 -> 0.002991963083 | P2: 0 | Q2: =P2*nNennG/iGetriebe*1.3/50 -> 0 | R2: =MReibG*2*PI()*Q2/60*iGetriebe -> 0 | S2: =PV_totalG-R2 -> 634.601716 | T2: =(S2/(2*PI()*Q2/60*iGetriebe))^(3/10) ->  | U2: =T2*KW_lastabh_ReibG ->  | V2: =IF(U2>' M-Max Motor'!AI$3,' M-Max Motor'!AI$3,'M-Max Getriebe'!U2) ->  | W2: =U2*2*PI()*Q2/60 ->  | X2: =MNennG*(Q2*iGetriebe/nNennG)^-0.3 ->  | Y2: =MNennG/(300000/1000*Q2/nNennG/iGetriebe)^(3/10) ->  | AA2: Getriebe: | AB2: =TypbezeichnungGetriebe -> PG AF 12 007.1-S
A3: 1 | B3: =A4-A3 -> 1 | C3: 1 | D3: 28.57142857 | E3: 100 | F3: 0.588 | G3: 21.15339053 | H3: 613.4483255 | I3: 2.754328979 | J3: 124.1226366 | K3: =IF(ABS(J3)>' M-Max Motor'!AI$3,' M-Max Motor'!AI$3*SIGN(J3),J3) -> 112.6246923 | L3: =K3*(1^1.8/F3^1.8) -> 292.9236455 | M3: =IF(ABS(L3)>ABS(E3),E3,L3) -> 100 | N3: =M3*2*PI()*D3/60 -> 299.1993003 | P3: 1 | Q3: 9.285714286 | R3: 6.874851924 | S3: 627.7268641 | T3: 3.885515288 | U3: 175.0990552 | V3: =IF(U3>' M-Max Motor'!AI$3,' M-Max Motor'!AI$3,'M-Max Getriebe'!U3) -> 112.6246923 | W3: =U3*2*PI()*Q3/60 -> 170.2659231 | X3: 149.4438337 | Y3: =MNennG/(260000/1000*Q3/nNennG/iGetriebe)^(3/10) -> 90.58260781 | AA3: Getriebe Bez: | AB3: =LEFT(AB2,2) -> PG
A4: 2 | B4: 1 | C4: 1 | D4: 57.14285714 | E4: 100 | F4: 0.588 | G4: 42.30678107 | H4: 592.294935 | I4: 2.213781852 | J4: 99.76311554 | K4: =IF(ABS(J4)>' M-Max Motor'!AI$3,' M-Max Motor'!AI$3*SIGN(J4),J4) -> 99.76311554 | L4: 259.4721895 | M4: 100 | N4: 598.3986007 | P4: 2 | Q4: 18.57142857 | R4: 13.74970385 | S4: 620.8520122 | T4: 3.14560971 | U4: 141.7555324 | V4: =IF(U4>' M-Max Motor'!AI$3,' M-Max Motor'!AI$3,'M-Max Getriebe'!U4) -> 112.6246923 | W4: 275.6855147 | X4: 121.386112 | Y4: 73.57594026 | AA4: Text yR Achse: | AB4: =Parameter!AH70&" Getriebe "&Parameter!Y70 -> M Getriebe [Nm]
A5: 3 | B5: 1 | C5: 1 | D5: 85.71428571 | E5: 100 | F5: 0.588 | G5: 63.4601716 | H5: 571.1415444 | I5: 1.938961407 | J5: 87.37845181 | K5: =IF(ABS(J5)>' M-Max Motor'!AI$3,' M-Max Motor'!AI$3*SIGN(J5),J5) -> 87.37845181 | L5: 227.2611283 | M5: 100 | N5: 897.597901 | P5: 3 | Q5: 27.85714286 | R5: 20.62455577 | S5: 613.9771603 | T5: 2.776046241 | U5: 125.1013155 | V5: =IF(U5>' M-Max Motor'!AI$3,' M-Max Motor'!AI$3,'M-Max Getriebe'!U5) -> 112.6246923 | W5: 364.9447042 | X5: 107.4834563 | Y5: 65.14910339 | AA5: Text yL Achse:
A6: 4 | B6: 1 | C6: 1 | D6: 114.2857143 | E6: 100 | F6: 0.588 | G6: 84.61356214 | H6: 549.9881539 | I6: 1.758613567 | J6: 79.25115489 | K6: =IF(ABS(J6)>' M-Max Motor'!AI$3,' M-Max Motor'!AI$3*SIGN(J6),J6) -> 79.25115489 | L6: 206.1229801 | M6: 100 | N6: 1196.797201 | P6: 4 | Q6: 37.14285714 | R6: 27.49940769 | S6: 607.1023083 | T6: 2.537920276 | U6: 114.3702725 | V6: =IF(U6>' M-Max Motor'!AI$3,' M-Max Motor'!AI$3,'M-Max Getriebe'!U6) -> 112.6246923 | W6: 444.8535718 | X6: 98.59616037 | Y6: 59.76223379 | AA6: Text x Achse: | AB6: =Parameter!AA70&" Getriebe "&Parameter!R70 -> n Getriebe [1/min]
A7: 5 | B7: 1 | C7: 1 | D7: 142.8571429 | E7: 100 | F7: 0.588 | G7: 105.7669527 | H7: 528.8347634 | I7: 1.625501645 | J7: 73.2525241 | K7: =IF(ABS(J7)>' M-Max Motor'!AI$3,' M-Max Motor'!AI$3*SIGN(J7),J7) -> 73.2525241 | L7: 190.5212434 | M7: 100 | N7: 1495.996502 | P7: 5 | Q7: 46.42857143 | R7: 34.37425962 | S7: 600.2274564 | T7: 2.365490257 | U7: 106.5997888 | V7: =IF(U7>' M-Max Motor'!AI$3,' M-Max Motor'!AI$3,'M-Max Getriebe'!U7) -> 106.5997888 | W7: 518.2869611 | X7: 92.21190595 | Y7: 55.89253639 | AA7: Text Reihe1: | AB7: ="erf. "&Parameter!AH70&" Getriebe "&Parameter!Y70 -> erf. M Getriebe [Nm]
A8: 6 | B8: 1 | C8: 1 | D8: 171.4285714 | E8: 100 | F8: 0.588 | G8: 126.9203432 | H8: 507.6813728 | I8: 1.520247891 | J8: 68.50930947 | K8: =IF(ABS(J8)>' M-Max Motor'!AI$3,' M-Max Motor'!AI$3*SIGN(J8),J8) -> 68.50930947 | L8: 178.1846971 | M8: 100 | N8: 1795.195802 | P8: 6 | Q8: 55.71428571 | R8: 41.24911154 | S8: 593.3526045 | T8: 2.231854551 | U8: 100.5775539 | V8: =IF(U8>' M-Max Motor'!AI$3,' M-Max Motor'!AI$3,'M-Max Getriebe'!U8) -> 100.5775539 | W8: 586.808308 | X8: 87.30369497 | Y8: 52.91751535 | AA8: Text Reihe2: | AB8: erf. M Nenn Getriebe [Nm]
A9: 7 | B9: 1 | C9: 1 | D9: 200 | E9: 100 | F9: 0.588 | G9: 148.0737337 | H9: 486.5279823 | I9: 1.43312922 | J9: 64.58334449 | K9: =IF(ABS(J9)>' M-Max Motor'!AI$3,' M-Max Motor'!AI$3*SIGN(J9),J9) -> 64.58334449 | L9: 167.9737216 | M9: 100 | N9: 2094.395102 | P9: 7 | Q9: 65 | R9: 48.12396347 | S9: 586.4777526 | T9: 2.123554729 | U9: 95.69706953 | V9: =IF(U9>' M-Max Motor'!AI$3,' M-Max Motor'!AI$3,'M-Max Getriebe'!U9) -> 95.69706953 | W9: 651.3892896 | X9: 83.35824987 | Y9: 50.52605699 | AA9: Text Reihe3: | AB9: ="Spannungskennlinie "&Parameter!Y70 -> Spannungskennlinie [Nm]
A10: 8 | B10: 1 | C10: 1 | D10: 228.5714286 | E10: 100 | F10: 0.588 | G10: 169.2271243 | H10: 465.3745918 | I10: 1.358614422 | J10: 61.22536753 | K10: =IF(ABS(J10)>' M-Max Motor'!AI$3,' M-Max Motor'!AI$3*SIGN(J10),J10) -> 61.22536753 | L10: 159.2400165 | M10: 100 | N10: 2393.594403 | P10: 8 | Q10: 74.28571429 | R10: 54.99881539 | S10: 579.6029006 | T10: 2.032963478 | U10: 91.61461422 | V10: =IF(U10>' M-Max Motor'!AI$3,' M-Max Motor'!AI$3,'M-Max Getriebe'!U10) -> 91.61461422 | W10: 712.6867404 | X10: 80.08496753 | Y10: 48.54201761 | AA10: Text Reihe4: | AB10: =Parameter!AH70&" MaxGetriebe (I Max_Eingestellt_Regler) "&Parameter!Y70 -> M MaxGetriebe (I Max_Eingestellt_Regler) [Nm]
A11: 9 | B11: 1 | C11: 1 | D11: 257.1428571 | E11: 100 | F11: 0.588 | G11: 190.3805148 | H11: 444.2212012 | I11: 1.293270728 | J11: 58.28068241 | K11: =IF(ABS(J11)>' M-Max Motor'!AI$3,' M-Max Motor'!AI$3*SIGN(J11),J11) -> 58.28068241 | L11: 151.5812351 | M11: 100 | N11: 2692.793703 | P11: 9 | Q11: 83.57142857 | R11: 61.87366731 | S11: 572.7280487 | T11: 1.955371093 | U11: 88.11794718 | V11: =IF(U11>' M-Max Motor'!AI$3,' M-Max Motor'!AI$3,'M-Max Getriebe'!U11) -> 88.11794718 | W11: 771.1712232 | X11: 77.30458394 | Y11: 46.85673967 | AA11: Text Reihe5: | AB11: ="S1 Kennlinie Getriebe "&Parameter!Y70 -> S1 Kennlinie Getriebe [Nm]
A12: 10 | B12: 1 | C12: 1 | D12: 285.7142857 | E12: 100 | F12: 0.588 | G12: 211.5339053 | H12: 423.0678107 | I12: 1.234824992 | J12: 55.64685079 | K12: =IF(ABS(J12)>' M-Max Motor'!AI$3,' M-Max Motor'!AI$3*SIGN(J12),J12) -> 55.64685079 | L12: 144.7309472 | M12: 100 | N12: 2991.993003 | P12: 10 | Q12: 92.85714286 | R12: 68.74851924 | S12: 565.8531968 | T12: 1.887680718 | U12: 85.0675099 | V12: =IF(U12>' M-Max Motor'!AI$3,' M-Max Motor'!AI$3,'M-Max Getriebe'!U12) -> 85.0675099 | W12: 827.194532 | X12: 74.89934158 | Y12: 45.39884662 | AA12: Text Reihe5: | AB12: M Nenn Getriebe [Nm]
A13: 11 | B13: 1 | C13: 1 | D13: 314.2857143 | E13: 100 | F13: 0.588 | G13: 232.6872959 | H13: 401.9144201 | I13: 1.181693065 | J13: 53.25248362 | K13: =IF(ABS(J13)>' M-Max Motor'!AI$3,' M-Max Motor'!AI$3*SIGN(J13),J13) -> 53.25248362 | L13: 138.5034784 | M13: 100 | N13: 3291.192304 | P13: 11 | Q13: 102.1428571 | R13: 75.62337116 | S13: 558.9783449 | T13: 1.82775549 | U13: 82.36700558 | V13: =IF(U13>' M-Max Motor'!AI$3,' M-Max Motor'!AI$3,'M-Max Getriebe'!U13) -> 82.36700558 | W13: 881.0283783 | X13: 72.78806838 | Y13: 44.11913753 | AA13: Text Reihe5: | AB13: M2ä Getriebe [Nm]
A14: 12 | B14: 1 | C14: 1 | D14: 342.8571429 | E14: 100 | F14: 0.588 | G14: 253.8406864 | H14: 380.7610296 | I14: 1.132723185 | J14: 51.04567728 | K14: =IF(ABS(J14)>' M-Max Motor'!AI$3,' M-Max Motor'!AI$3*SIGN(J14),J14) -> 51.04567728 | L14: 132.7638333 | M14: 100 | N14: 3590.391604 | P14: 12 | Q14: 111.4285714 | R14: 82.49822308 | S14: 552.1034929 | T14: 1.774063588 | U14: 79.94740338 | V14: =IF(U14>' M-Max Motor'!AI$3,' M-Max Motor'!AI$3,'M-Max Getriebe'!U14) -> 79.94740338 | W14: 932.888079 | X14: 70.91263545 | Y14: 42.98237865
A15: 13 | B15: 1 | C15: 1 | D15: 371.4285714 | E15: 100 | F15: 0.588 | G15: 274.9940769 | H15: 359.6076391 | I15: 1.087046402 | J15: 48.98727293 | K15: =IF(ABS(J15)>' M-Max Motor'!AI$3,' M-Max Motor'!AI$3*SIGN(J15),J15) -> 48.98727293 | L15: 127.4101645 | M15: 100 | N15: 3889.590904 | P15: 13 | Q15: 120.7142857 | R15: 89.37307501 | S15: 545.228641 | T15: 1.725472334 | U15: 77.75765968 | V15: =IF(U15>' M-Max Motor'!AI$3,' M-Max Motor'!AI$3,'M-Max Getriebe'!U15) -> 77.75765968 | W15: 982.947829 | X15: 69.23010563 | Y15: 41.96254441
A16: 14 | B16: 1 | C16: 1 | D16: 400 | E16: 100 | F16: 0.588 | G16: 296.1474675 | H16: 338.4542485 | I16: 1.043984369 | J16: 47.04670116 | K16: =IF(ABS(J16)>' M-Max Motor'!AI$3,' M-Max Motor'!AI$3*SIGN(J16),J16) -> 47.04670116 | L16: 122.3629644 | M16: 100 | N16: 4188.790205 | P16: 14 | Q16: 130 | R16: 96.24792693 | S16: 538.3537891 | T16: 1.681122378 | U16: 75.75904819 | V16: =IF(U16>' M-Max Motor'!AI$3,' M-Max Motor'!AI$3,'M-Max Getriebe'!U16) -> 75.75904819 | W16: 1031.350967 | X16: 67.70793822 | Y16: 41.03991087
A17: 15 | B17: 1 | C17: 1 | D17: 428.5714286 | E17: 100 | F17: 0.588 | G17: 317.300858 | H17: 317.300858 | I17: 1.002989559 | J17: 45.1992879 | K17: =IF(ABS(J17)>' M-Max Motor'!AI$3,' M-Max Motor'!AI$3*SIGN(J17),J17) -> 45.1992879 | L17: 117.5580587 | M17: 100 | N17: 4487.989505 | P17: 15 | Q17: 139.2857143 | R17: 103.1227789 | S17: 531.4789372 | T17: 1.640347448 | U17: 73.92154373 | V17: =IF(U17>' M-Max Motor'!AI$3,' M-Max Motor'!AI$3,'M-Max Getriebe'!U17) -> 73.92154373 | W17: 1078.217115 | X17: 66.32093224 | Y17: 40.19920292
A18: 16 | B18: 1 | C18: 1 | D18: 457.1428571 | E18: 100 | F18: 0.588 | G18: 338.4542485 | H18: 296.1474675 | I18: 0.963604519 | J18: 43.42441821 | K18: =IF(ABS(J18)>' M-Max Motor'!AI$3,' M-Max Motor'!AI$3*SIGN(J18),J18) -> 43.42441821 | L18: 112.9418303 | M18: 100 | N18: 4787.188805 | P18: 16 | Q18: 148.5714286 | R18: 109.9976308 | S18: 524.6040852 | T18: 1.60262131 | U18: 72.22143176 | V18: =IF(U18>' M-Max Motor'!AI$3,' M-Max Motor'!AI$3,'M-Max Getriebe'!U18) -> 72.22143176 | W18: 1123.647296 | X18: 65.04920679 | Y18: 39.42837013 | AA18: n NennE | AB18: =nNennG -> 2500 | AC18: [1/min]
A19: 17 | B19: 1 | C19: 1 | D19: 485.7142857 | E19: 100 | F19: 0.588 | G19: 359.6076391 | H19: 274.9940769 | I19: 0.9254324875 | J19: 41.70421223 | K19: =IF(ABS(J19)>' M-Max Motor'!AI$3,' M-Max Motor'!AI$3*SIGN(J19),J19) -> 41.70421223 | L19: 108.4677759 | M19: 100 | N19: 5086.388106 | P19: 17 | Q19: 157.8571429 | R19: 116.8724827 | S19: 517.7292333 | T19: 1.567521613 | U19: 70.63967918 | V19: =IF(U19>' M-Max Motor'!AI$3,' M-Max Motor'!AI$3,'M-Max Getriebe'!U19) -> 70.63967918 | W19: 1167.727678 | X19: 63.87682532 | Y19: 38.71775284 | AA19: n NennA | AB19: =nNennG/iGetriebe -> 357.1428571 | AC19: [1/min]
A20: 18 | B20: 1 | C20: 1 | D20: 514.2857143 | E20: 100 | F20: 0.588 | G20: 380.7610296 | H20: 253.8406864 | I20: 0.8881146507 | J20: 40.02250016 | K20: =IF(ABS(J20)>' M-Max Motor'!AI$3,' M-Max Motor'!AI$3*SIGN(J20),J20) -> 40.02250016 | L20: 104.0938396 | M20: 100 | N20: 5385.587406 | P20: 18 | Q20: 167.1428571 | R20: 123.7473346 | S20: 510.8543814 | T20: 1.534704593 | U20: 69.16079446 | V20: =IF(U20>' M-Max Motor'!AI$3,' M-Max Motor'!AI$3,'M-Max Getriebe'!U20) -> 69.16079446 | W20: 1210.532387 | X20: 62.79083356 | Y20: 38.05949908 | AA20: P NennG | AB20: =MNennG*2*PI()*AB19/60 -> 1869.995627 | AC20: [W]
A21: 19 | B21: 1 | C21: 1 | D21: 542.8571429 | E21: 100 | F21: 0.588 | G21: 401.9144201 | H21: 232.6872959 | I21: 0.851310789 | J21: 38.36395015 | K21: =IF(ABS(J21)>' M-Max Motor'!AI$3,' M-Max Motor'!AI$3*SIGN(J21),J21) -> 38.36395015 | L21: 99.78014507 | M21: 99.78014507 | N21: 5672.288423 | P21: 19 | Q21: 176.4285714 | R21: 130.6221865 | S21: 503.9795295 | T21: 1.503886969 | U21: 67.77201167 | V21: =IF(U21>' M-Max Motor'!AI$3,' M-Max Motor'!AI$3,'M-Max Getriebe'!U21) -> 67.77201167 | W21: 1252.125651 | X21: 61.78057125 | Y21: 37.44714732 | AA21: Wirkungsgrad eta | AB21: 0.95
A22: 20 | B22: 1 | C22: 1 | D22: 571.4285714 | E22: 100 | F22: 0.588 | G22: 423.0678107 | H22: 211.5339053 | I22: 0.8146806729 | J22: 36.71322991 | K22: =IF(ABS(J22)>' M-Max Motor'!AI$3,' M-Max Motor'!AI$3*SIGN(J22),J22) -> 36.71322991 | L22: 95.4868149 | M22: 95.4868149 | N22: 5713.917642 | P22: 20 | Q22: 185.7142857 | R22: 137.4970385 | S22: 497.1046776 | T22: 1.474832719 | U22: 66.46269452 | V22: =IF(U22>' M-Max Motor'!AI$3,' M-Max Motor'!AI$3,'M-Max Getriebe'!U22) -> 66.46269452 | W22: 1292.56346 | X22: 60.83716968 | Y22: 36.87532196 | AA22: P ReibG (nMaxG) | AB22: =MReibG*2*PI()*nMaxG/60 -> 634.601716 | AC22: [W]
A23: 21 | B23: 1 | C23: 1 | D23: 600 | E23: 100 | F23: 0.588 | G23: 444.2212012 | H23: 190.3805148 | I23: 0.7778634698 | J23: 35.05407868 | K23: =IF(ABS(J23)>' M-Max Motor'!AI$3,' M-Max Motor'!AI$3*SIGN(J23),J23) -> 35.05407868 | L23: 91.1715567 | M23: 91.1715567 | N23: 5728.477855 | P23: 21 | Q23: 195 | R23: 144.3718904 | S23: 490.2298256 | T23: 1.447343244 | U23: 65.2238933 | V23: =IF(U23>' M-Max Motor'!AI$3,' M-Max Motor'!AI$3,'M-Max Getriebe'!U23) -> 65.2238933 | W23: 1331.894876 | X23: 59.95317833 | Y23: 36.339507 | AA23: PV totalG | AB23: =IF(AB20*(1-AB21)<AB22,AB22,AB20*(1-AB21)) -> 634.601716 | AC23: [W]
A24: 22 | B24: 1 | C24: 1 | D24: 628.5714286 | E24: 100 | F24: 0.588 | G24: 465.3745918 | H24: 169.2271243 | I24: 0.7404514774 | J24: 33.36812353 | K24: =IF(ABS(J24)>' M-Max Motor'!AI$3,' M-Max Motor'!AI$3*SIGN(J24),J24) -> 33.36812353 | L24: 86.78658463 | M24: 86.78658463 | N24: 5712.626788 | P24: 22 | Q24: 204.2857143 | R24: 151.2467423 | S24: 483.3549737 | T24: 1.421249945 | U24: 64.04801014 | V24: =IF(U24>' M-Max Motor'!AI$3,' M-Max Motor'!AI$3,'M-Max Getriebe'!U24) -> 64.04801014 | W24: 1370.163067 | X24: 59.12228297 | Y24: 35.83587519 | AA24: M Reib bei M NennG | AB24: =AB23/(2*PI()*nNennG/60) -> 2.424 | AC24: [Nm]
A25: 23 | B25: 1 | C25: 1 | D25: 657.1428571 | E25: 100 | F25: 0.588 | G25: 486.5279823 | H25: 148.0737337 | I25: 0.701952093 | J25: 31.63316553 | K25: =IF(ABS(J25)>' M-Max Motor'!AI$3,' M-Max Motor'!AI$3*SIGN(J25),J25) -> 31.63316553 | L25: 82.2741619 | M25: 82.2741619 | N25: 5661.765486 | P25: 23 | Q25: 213.5714286 | R25: 158.1215942 | S25: 476.4801218 | T25: 1.39640853 | U25: 62.92854256 | V25: =IF(U25>' M-Max Motor'!AI$3,' M-Max Motor'!AI$3,'M-Max Getriebe'!U25) -> 62.92854256 | W25: 1407.406149 | X25: 58.33908982 | Y25: 35.36115719 | AA25: M ReibG | AB25: =MReibG -> 1.01 | AC25: [Nm]
A26: 24 | B26: 1 | C26: 1 | D26: 685.7142857 | E26: 100 | F26: 0.588 | G26: 507.6813728 | H26: 126.9203432 | I26: 0.6617263288 | J26: 29.82040897 | K26: =IF(ABS(J26)>' M-Max Motor'!AI$3,' M-Max Motor'!AI$3*SIGN(J26),J26) -> 29.82040897 | L26: 77.55939422 | M26: 77.55939422 | N26: 5569.371957 | P26: 24 | Q26: 222.8571429 | R26: 164.9964462 | S26: 469.6052699 | T26: 1.372694595 | U26: 61.85988442 | V26: =IF(U26>' M-Max Motor'!AI$3,' M-Max Motor'!AI$3,'M-Max Getriebe'!U26) -> 61.85988442 | W26: 1443.657863 | X26: 57.59895808 | Y26: 34.91254006 | AA26: M Reib lastabhängig | AB26: =IF(AB24-AB25<0,0.0001,AB24-AB25+0.00000001) -> 1.41400001 | AC26: [Nm]
A27: 25 | B27: 1 | C27: 1 | D27: 714.2857143 | E27: 100 | F27: 0.588 | G27: 528.8347634 | H27: 105.7669527 | I27: 0.6188785219 | J27: 27.88949121 | K27: =IF(ABS(J27)>' M-Max Motor'!AI$3,' M-Max Motor'!AI$3*SIGN(J27),J27) -> 27.88949121 | L27: 72.53730306 | M27: 72.53730306 | N27: 5425.777581 | P27: 25 | Q27: 232.1428571 | R27: 171.8712981 | S27: 462.7304179 | T27: 1.350000159 | U27: 60.83716955 | V27: =IF(U27>' M-Max Motor'!AI$3,' M-Max Motor'!AI$3,'M-Max Getriebe'!U27) -> 60.83716955 | W27: 1478.948133 | X27: 56.89786852 | Y27: 34.48758763 | AA27: Steigung lastabh. Reibung | AB27: =AB26^(10/3)/MNennG -> 0.06346408712 | AC27: [Nm/Nm]
A28: 26 | B28: 1 | C28: 1 | D28: 742.8571429 | E28: 100 | F28: 0.588 | G28: 549.9881539 | H28: 84.61356214 | I28: 0.5720347408 | J28: 25.7784966 | K28: =IF(ABS(J28)>' M-Max Motor'!AI$3,' M-Max Motor'!AI$3*SIGN(J28),J28) -> 25.7784966 | L28: 67.04685311 | M28: 67.04685311 | N28: 5215.696601 | P28: 26 | Q28: 241.4285714 | R28: 178.74615 | S28: 455.855566 | T28: 1.328230907 | U28: 59.85614768 | V28: =IF(U28>' M-Max Motor'!AI$3,' M-Max Motor'!AI$3,'M-Max Getriebe'!U28) -> 59.85614768 | W28: 1513.303529 | X28: 56.2323192 | Y28: 34.08417725 | AA28: Kehrwert | AB28: =MNennG/AB26^(3/10) -> 45.06456472 | AC28: [Nm/Nm]
A29: 27 | B29: 1 | C29: 1 | D29: 771.4285714 | E29: 100 | F29: 0.588 | G29: 571.1415444 | H29: 63.4601716 | I29: 0.5188283027 | J29: 23.38077162 | K29: =IF(ABS(J29)>' M-Max Motor'!AI$3,' M-Max Motor'!AI$3*SIGN(J29),J29) -> 23.38077162 | L29: 60.81065103 | M29: 60.81065103 | N29: 4912.516145 | P29: 27 | Q29: 250.7142857 | R29: 185.6210019 | S29: 448.9807141 | T29: 1.307303983 | U29: 58.91308494 | V29: =IF(U29>' M-Max Motor'!AI$3,' M-Max Motor'!AI$3,'M-Max Getriebe'!U29) -> 58.91308494 | W29: 1546.747646 | X29: 55.59924199 | Y29: 33.70044925 | AA29: M NennG | AB29: =MNennG -> 50 | AC29: [Nm]
A30: 28 | B30: 1 | C30: 1 | D30: 800 | E30: 100 | F30: 0.588 | G30: 592.294935 | H30: 42.30678107 | I30: 0.4544205902 | J30: 20.4782661 | K30: =IF(ABS(J30)>' M-Max Motor'!AI$3,' M-Max Motor'!AI$3*SIGN(J30),J30) -> 20.4782661 | L30: 53.2615738 | M30: 53.2615738 | N30: 4462.031173 | P30: 28 | Q30: 260 | R30: 192.4958539 | S30: 442.1058622 | T30: 1.287146204 | U30: 58.00468342 | V30: =IF(U30>' M-Max Motor'!AI$3,' M-Max Motor'!AI$3,'M-Max Getriebe'!U30) -> 58.00468342 | W30: 1579.301423 | X30: 54.99593507 | Y30: 33.33476595 | AA30: M2 äquivalent Getriebe | AB30: =(SUM(Rechentabelle!AF:AF)/SUM(Rechentabelle!AG:AG))^(1/3) -> 52.3728861 | AC30: [Nm]
A31: 29 | B31: 1 | C31: 1 | D31: 828.5714286 | E31: 100 | F31: 0.588 | G31: 613.4483255 | H31: 21.15339053 | I31: 0.3652388888 | J31: 16.45933154 | K31: =IF(ABS(J31)>' M-Max Motor'!AI$3,' M-Max Motor'!AI$3*SIGN(J31),J31) -> 16.45933154 | L31: 42.80879531 | M31: 42.80879531 | N31: 3714.424865 | P31: 29 | Q31: 269.2857143 | R31: 199.3707058 | S31: 435.2310102 | T31: 1.267692607 | U31: 57.12801554 | V31: =IF(U31>' M-Max Motor'!AI$3,' M-Max Motor'!AI$3,'M-Max Getriebe'!U31) -> 57.12801554 | W31: 1610.98342 | X31: 54.42000791 | Y31: 32.98567838 | AA31: M2 eff Nachgelege | AB31: =MEffNG -> 40.39732681 | AC31: [Nm]
A32: 30 | B32: 1 | C32: 1 | D32: 857.1428571 | E32: 100 | F32: 0.588 | G32: 634.601716 | H32: 0 | I32: 0 | J32: 0 | K32: =IF(ABS(J32)>' M-Max Motor'!AI$3,' M-Max Motor'!AI$3*SIGN(J32),J32) -> 0 | L32: 0 | M32: 0 | N32: 0 | P32: 30 | Q32: 278.5714286 | R32: 206.2455577 | S32: 428.3561583 | T32: 1.248885248 | U32: 56.28047009 | V32: =IF(U32>' M-Max Motor'!AI$3,' M-Max Motor'!AI$3,'M-Max Getriebe'!U32) -> 56.28047009 | W32: 1641.810034 | X32: 53.86933614 | Y32: 32.6518989 | AA32: M eff Eintrieb * i | AB32: =MEffE*iGetriebe -> 41.74491789 | AC32: [Nm]
A33: 30 | B33: -1 | C33: 1 | D33: 857.1428571 | E33: -100 | F33: 0.588 | G33: 634.601716 | H33: 0 | I33: 0 | J33: 0 | K33: =IF(ABS(J33)>' M-Max Motor'!AI$3,' M-Max Motor'!AI$3*SIGN(J33),J33) -> 0 | L33: 0 | M33: 0 | N33: 0 | P33: 31 | Q33: 287.8571429 | R33: 213.1204096 | S33: 421.4813064 | T33: 1.230672212 | U33: 55.45970757 | V33: =IF(U33>' M-Max Motor'!AI$3,' M-Max Motor'!AI$3,'M-Max Getriebe'!U33) -> 55.45970757 | W33: 1671.7957 | X33: 53.34202416 | Y33: 32.33227853 | AA33: n eff Abtrieb Getriebe | AB33: =nEffB*iNG -> 437.1907534 | AC33: [1/min]
A34: 29 | B34: -1 | C34: 1 | D34: =A34*nMaxG/iGetriebe/30*nMaxGFaktor*C34 -> 828.5714286 | E34: =MBeschlG*B34 -> -100 | F34: =EDB -> 0.588 | G34: =MReibG*2*PI()*ABS(D34)/60*iGetriebe -> 613.4483255 | H34: =IF(PV_totalG-G34<0,0,PV_totalG-G34) -> 21.15339053 | I34: =(H34/(2*PI()*ABS(D34)/60*iGetriebe))^(3/10) -> 0.3652388888 | J34: =I34*KW_lastabh_ReibG*B34 -> -16.45933154 | K34: =IF(ABS(J34)>' M-Max Motor'!AI$3,' M-Max Motor'!AI$3*SIGN(J34),J34) -> -16.45933154 | L34: -42.80879531 | M34: -42.80879531 | N34: -3714.424865 | P34: 32 | Q34: =P34*nNennG/iGetriebe*1.3/50 -> 297.1428571 | R34: =MReibG*2*PI()*Q34/60*iGetriebe -> 219.9952616 | S34: =PV_totalG-R34 -> 414.6064545 | T34: =(S34/(2*PI()*Q34/60*iGetriebe))^(3/10) -> 1.21300679 | U34: =T34*KW_lastabh_ReibG -> 54.66362298 | V34: =IF(U34>' M-Max Motor'!AI$3,' M-Max Motor'!AI$3,'M-Max Getriebe'!U34) -> 54.66362298 | W34: 1700.953046 | X34: =MNennG*(Q34*iGetriebe/nNennG)^-0.3 -> 52.8363741 | Y34: 32.02578812
A35: 28 | B35: -1 | C35: 1 | D35: 800 | E35: -100 | F35: 0.588 | G35: 592.294935 | H35: 42.30678107 | I35: 0.4544205902 | J35: -20.4782661 | K35: =IF(ABS(J35)>' M-Max Motor'!AI$3,' M-Max Motor'!AI$3*SIGN(J35),J35) -> -20.4782661 | L35: -53.2615738 | M35: -53.2615738 | N35: -4462.031173 | P35: 33 | Q35: 306.4285714 | R35: 226.8701135 | S35: 407.7316025 | T35: 1.195846778 | U35: 53.89031454 | V35: =IF(U35>' M-Max Motor'!AI$3,' M-Max Motor'!AI$3,'M-Max Getriebe'!U35) -> 53.89031454 | W35: 1729.293038 | X35: 52.3508597 | Y35: =MNennG/(260000/1000*Q35/nNennG/iGetriebe)^(3/10) -> 31.73150257
A36: 27 | B36: -1 | C36: 1 | D36: 771.4285714 | E36: -100 | F36: 0.588 | G36: 571.1415444 | H36: 63.4601716 | I36: 0.5188283027 | J36: -23.38077162 | K36: =IF(ABS(J36)>' M-Max Motor'!AI$3,' M-Max Motor'!AI$3*SIGN(J36),J36) -> -23.38077162 | L36: -60.81065103 | M36: -60.81065103 | N36: -4912.516145 | P36: 34 | Q36: 315.7142857 | R36: 233.7449654 | S36: 400.8567506 | T36: 1.179153903 | U36: 53.1380574 | V36: =IF(U36>' M-Max Motor'!AI$3,' M-Max Motor'!AI$3,'M-Max Getriebe'!U36) -> 53.1380574 | W36: 1756.82509 | X36: 51.88410443 | Y36: 31.44858753
A37: 26 | B37: -1 | C37: 1 | D37: 742.8571429 | E37: -100 | F37: 0.588 | G37: 549.9881539 | H37: 84.61356214 | I37: 0.5720347408 | J37: -25.7784966 | K37: =IF(ABS(J37)>' M-Max Motor'!AI$3,' M-Max Motor'!AI$3*SIGN(J37),J37) -> -25.7784966 | L37: -67.04685311 | M37: -67.04685311 | N37: -5215.696601 | P37: 35 | Q37: 325 | R37: 240.6198173 | S37: 393.9818987 | T37: 1.162893318 | U37: 52.40528118 | V37: =IF(U37>' M-Max Motor'!AI$3,' M-Max Motor'!AI$3,'M-Max Getriebe'!U37) -> 52.40528118 | W37: 1783.557169 | X37: 51.43486291 | Y37: 31.17628811
A38: 25 | B38: -1 | C38: 1 | D38: 714.2857143 | E38: -100 | F38: 0.588 | G38: 528.8347634 | H38: 105.7669527 | I38: 0.6188785219 | J38: -27.88949121 | K38: =IF(ABS(J38)>' M-Max Motor'!AI$3,' M-Max Motor'!AI$3*SIGN(J38),J38) -> -27.88949121 | L38: -72.53730306 | M38: -72.53730306 | N38: -5425.777581 | P38: 36 | Q38: 334.2857143 | R38: 247.4946692 | S38: 387.1070468 | T38: 1.147033179 | U38: 51.69055094 | V38: =IF(U38>' M-Max Motor'!AI$3,' M-Max Motor'!AI$3,'M-Max Getriebe'!U38) -> 51.69055094 | W38: 1809.495871 | X38: 51.00200503 | Y38: 30.91391933 | AA38: Text yR Achse: | AB38: ="P Getriebe [W]" -> P Getriebe [W]
A39: 24 | B39: -1 | C39: 1 | D39: 685.7142857 | E39: -100 | F39: 0.588 | G39: 507.6813728 | H39: 126.9203432 | I39: 0.6617263288 | J39: -29.82040897 | K39: =IF(ABS(J39)>' M-Max Motor'!AI$3,' M-Max Motor'!AI$3*SIGN(J39),J39) -> -29.82040897 | L39: -77.55939422 | M39: -77.55939422 | N39: -5569.371957 | P39: 37 | Q39: 343.5714286 | R39: 254.3695212 | S39: 380.2321949 | T39: 1.131544287 | U39: 50.99255076 | V39: =IF(U39>' M-Max Motor'!AI$3,' M-Max Motor'!AI$3,'M-Max Getriebe'!U39) -> 50.99255076 | W39: 1834.646495 | X39: 50.58450246 | Y39: 30.6608579 | AA39: Text Reihe1: | AB39: ="erf. P Getriebe [W]" -> erf. P Getriebe [W]
A40: 23 | B40: -1 | C40: 1 | D40: 657.1428571 | E40: -100 | F40: 0.588 | G40: 486.5279823 | H40: 148.0737337 | I40: 0.701952093 | J40: -31.63316553 | K40: =IF(ABS(J40)>' M-Max Motor'!AI$3,' M-Max Motor'!AI$3*SIGN(J40),J40) -> -31.63316553 | L40: -82.2741619 | M40: -82.2741619 | N40: -5661.765486 | P40: 38 | Q40: 352.8571429 | R40: 261.2443731 | S40: 373.3573429 | T40: 1.116399769 | U40: 50.31006962 | V40: =IF(U40>' M-Max Motor'!AI$3,' M-Max Motor'!AI$3,'M-Max Getriebe'!U40) -> 50.31006962 | W40: 1859.013098 | X40: 50.18141705 | Y40: 30.41653515 | AA40: Text Reihe2: | AB40: ="erf. P Nenn Getriebe [W]" -> erf. P Nenn Getriebe [W]
A41: 22 | B41: -1 | C41: 1 | D41: 628.5714286 | E41: -100 | F41: 0.588 | G41: 465.3745918 | H41: 169.2271243 | I41: 0.7404514774 | J41: -33.36812353 | K41: =IF(ABS(J41)>' M-Max Motor'!AI$3,' M-Max Motor'!AI$3*SIGN(J41),J41) -> -33.36812353 | L41: -86.78658463 | M41: -86.78658463 | N41: -5712.626788 | P41: 39 | Q41: 362.1428571 | R41: 268.119225 | S41: 366.482491 | T41: 1.101574806 | U41: 49.64198915 | V41: =IF(U41>' M-Max Motor'!AI$3,' M-Max Motor'!AI$3,'M-Max Getriebe'!U41) -> 49.64198915 | W41: 1882.598537 | X41: 49.79189072 | Y41: 30.18043099 | AA41: Text Reihe3: | AB41: ="Spannungskennlinie [W]" -> Spannungskennlinie [W]
A42: 21 | B42: -1 | C42: 1 | D42: 600 | E42: -100 | F42: 0.588 | G42: 444.2212012 | H42: 190.3805148 | I42: 0.7778634698 | J42: -35.05407868 | K42: =IF(ABS(J42)>' M-Max Motor'!AI$3,' M-Max Motor'!AI$3*SIGN(J42),J42) -> -35.05407868 | L42: -91.1715567 | M42: -91.1715567 | N42: -5728.477855 | P42: 40 | Q42: 371.4285714 | R42: 274.9940769 | S42: 359.6076391 | T42: 1.087046402 | U42: 48.98727293 | V42: =IF(U42>' M-Max Motor'!AI$3,' M-Max Motor'!AI$3,'M-Max Getriebe'!U42) -> 48.98727293 | W42: 1905.404512 | X42: 49.41513686 | Y42: 29.95206863 | AA42: Text Reihe4: | AB42: ="P MaxGetriebe (I Max_Eingestellt_Regler) [W]" -> P MaxGetriebe (I Max_Eingestellt_Regler) [W]
A43: 20 | B43: -1 | C43: 1 | D43: 571.4285714 | E43: -100 | F43: 0.588 | G43: 423.0678107 | H43: 211.5339053 | I43: 0.8146806729 | J43: -36.71322991 | K43: =IF(ABS(J43)>' M-Max Motor'!AI$3,' M-Max Motor'!AI$3*SIGN(J43),J43) -> -36.71322991 | L43: -95.4868149 | M43: -95.4868149 | N43: -5713.917642 | P43: 41 | Q43: 380.7142857 | R43: 281.8689289 | S43: 352.7327872 | T43: 1.072793169 | U43: 48.34495721 | V43: =IF(U43>' M-Max Motor'!AI$3,' M-Max Motor'!AI$3,'M-Max Getriebe'!U43) -> 48.34495721 | W43: 1927.431585 | X43: 49.05043271 | Y43: 29.73100997 | AA43: Text Reihe5: | AB43: ="S1 Kennlinie [W]" -> S1 Kennlinie [W]
A44: 19 | B44: -1 | C44: 1 | D44: 542.8571429 | E44: -100 | F44: 0.588 | G44: 401.9144201 | H44: 232.6872959 | I44: 0.851310789 | J44: -38.36395015 | K44: =IF(ABS(J44)>' M-Max Motor'!AI$3,' M-Max Motor'!AI$3*SIGN(J44),J44) -> -38.36395015 | L44: -99.78014507 | M44: -99.78014507 | N44: -5672.288423 | P44: 42 | Q44: 390 | R44: 288.7437808 | S44: 345.8579352 | T44: 1.058795151 | U44: 47.71414262 | V44: =IF(U44>' M-Max Motor'!AI$3,' M-Max Motor'!AI$3,'M-Max Getriebe'!U44) -> 47.71414262 | W44: 1948.679199 | X44: 48.69711277 | Y44: 29.51685164
A45: 18 | B45: -1 | C45: 1 | D45: 514.2857143 | E45: -100 | F45: 0.588 | G45: 380.7610296 | H45: 253.8406864 | I45: 0.8881146507 | J45: -40.02250016 | K45: =IF(ABS(J45)>' M-Max Motor'!AI$3,' M-Max Motor'!AI$3*SIGN(J45),J45) -> -40.02250016 | L45: -104.0938396 | M45: -100 | N45: -5385.587406 | P45: 43 | Q45: 399.2857143 | R45: 295.6186327 | S45: 338.9830833 | T45: 1.045033659 | U45: 47.09398696 | V45: =IF(U45>' M-Max Motor'!AI$3,' M-Max Motor'!AI$3,'M-Max Getriebe'!U45) -> 47.09398696 | W45: 1969.145691 | X45: 48.35456306 | Y45: 29.30922149
A46: 17 | B46: -1 | C46: 1 | D46: 485.7142857 | E46: -100 | F46: 0.588 | G46: 359.6076391 | H46: 274.9940769 | I46: 0.9254324875 | J46: -41.70421223 | K46: =IF(ABS(J46)>' M-Max Motor'!AI$3,' M-Max Motor'!AI$3*SIGN(J46),J46) -> -41.70421223 | L46: -108.4677759 | M46: -100 | N46: -5086.388106 | P46: 44 | Q46: 408.5714286 | R46: 302.4934846 | S46: 332.1082314 | T46: 1.031491127 | U46: 46.48369867 | V46: =IF(U46>' M-Max Motor'!AI$3,' M-Max Motor'!AI$3,'M-Max Getriebe'!U46) -> 46.48369867 | W46: 1988.828287 | X46: 48.02221602 | Y46: 29.1077755
A47: 16 | B47: -1 | C47: 1 | D47: 457.1428571 | E47: -100 | F47: 0.588 | G47: 338.4542485 | H47: 296.1474675 | I47: 0.963604519 | J47: -43.42441821 | K47: =IF(ABS(J47)>' M-Max Motor'!AI$3,' M-Max Motor'!AI$3*SIGN(J47),J47) -> -43.42441821 | L47: -112.9418303 | M47: -100 | N47: -4787.188805 | P47: 45 | Q47: 417.8571429 | R47: 309.3683366 | S47: 325.2333795 | T47: 1.018150988 | U47: 45.8825311 | V47: =IF(U47>' M-Max Motor'!AI$3,' M-Max Motor'!AI$3,'M-Max Getriebe'!U47) -> 45.8825311 | W47: 2007.723101 | X47: 47.69954604 | Y47: 28.91219507
A48: 15 | B48: -1 | C48: 1 | D48: 428.5714286 | E48: -100 | F48: 0.588 | G48: 317.300858 | H48: 317.300858 | I48: 1.002989559 | J48: -45.1992879 | K48: =IF(ABS(J48)>' M-Max Motor'!AI$3,' M-Max Motor'!AI$3*SIGN(J48),J48) -> -45.1992879 | L48: -117.5580587 | M48: -100 | N48: -4487.989505 | P48: 46 | Q48: 427.1428571 | R48: 316.2431885 | S48: 318.3585275 | T48: 1.004997553 | U48: 45.28977727 | V48: =IF(U48>' M-Max Motor'!AI$3,' M-Max Motor'!AI$3,'M-Max Getriebe'!U48) -> 45.28977727 | W48: 2025.825116 | X48: 47.3860655 | Y48: 28.72218466
A49: 14 | B49: -1 | C49: 1 | D49: 400 | E49: -100 | F49: 0.588 | G49: 296.1474675 | H49: 338.4542485 | I49: 1.043984369 | J49: -47.04670116 | K49: =IF(ABS(J49)>' M-Max Motor'!AI$3,' M-Max Motor'!AI$3*SIGN(J49),J49) -> -47.04670116 | L49: -122.3629644 | M49: -100 | N49: -4188.790205 | P49: 47 | Q49: 436.4285714 | R49: 323.1180404 | S49: 311.4836756 | T49: 0.9920159101 | U49: 44.70476519 | V49: =IF(U49>' M-Max Motor'!AI$3,' M-Max Motor'!AI$3,'M-Max Getriebe'!U49) -> 44.70476519 | W49: 2043.128165 | X49: 47.08132131 | Y49: 28.53746962
A50: 13 | B50: -1 | C50: 1 | D50: 371.4285714 | E50: -100 | F50: 0.588 | G50: 274.9940769 | H50: 359.6076391 | I50: 1.087046402 | J50: -48.98727293 | K50: =IF(ABS(J50)>' M-Max Motor'!AI$3,' M-Max Motor'!AI$3*SIGN(J50),J50) -> -48.98727293 | L50: -127.4101645 | M50: -100 | N50: -3889.590904 | P50: 48 | Q50: 445.7142857 | R50: 329.9928923 | S50: 304.6088237 | T50: 0.9791918278 | U50: 44.1268535 | V50: =IF(U50>' M-Max Motor'!AI$3,' M-Max Motor'!AI$3,'M-Max Getriebe'!U50) -> 44.1268535 | W50: 2059.624896 | X50: 46.78489173 | Y50: 28.35779433
A51: 12 | B51: -1 | C51: 1 | D51: 342.8571429 | E51: -100 | F51: 0.588 | G51: 253.8406864 | H51: 380.7610296 | I51: 1.132723185 | J51: -51.04567728 | K51: =IF(ABS(J51)>' M-Max Motor'!AI$3,' M-Max Motor'!AI$3*SIGN(J51),J51) -> -51.04567728 | L51: -132.7638333 | M51: -100 | N51: -3590.391604 | P51: 49 | Q51: 455 | R51: 336.8677443 | S51: 297.7339718 | T51: 0.966511667 | U51: 43.55542757 | V51: =IF(U51>' M-Max Motor'!AI$3,' M-Max Motor'!AI$3,'M-Max Getriebe'!U51) -> 43.55542757 | W51: 2075.306738 | X51: 46.49638364 | Y51: 28.1829205
A52: 11 | B52: -1 | C52: 1 | D52: 314.2857143 | E52: -100 | F52: 0.588 | G52: 232.6872959 | H52: 401.9144201 | I52: 1.181693065 | J52: -53.25248362 | K52: =IF(ABS(J52)>' M-Max Motor'!AI$3,' M-Max Motor'!AI$3*SIGN(J52),J52) -> -53.25248362 | L52: -138.5034784 | M52: -100 | N52: -3291.192304 | P52: 50 | Q52: 464.2857143 | R52: 343.7425962 | S52: 290.8591198 | T52: 0.9539623 | U52: 42.98989581 | V52: =IF(U52>' M-Max Motor'!AI$3,' M-Max Motor'!AI$3,'M-Max Getriebe'!U52) -> 42.98989581 | W52: 2090.163847 | X52: 46.21543005 | Y52: 28.01262569
A53: 10 | B53: -1 | C53: 1 | D53: 285.7142857 | E53: -100 | F53: 0.588 | G53: 211.5339053 | H53: 423.0678107 | I53: 1.234824992 | J53: -55.64685079 | K53: =IF(ABS(J53)>' M-Max Motor'!AI$3,' M-Max Motor'!AI$3*SIGN(J53),J53) -> -55.64685079 | L53: -144.7309472 | M53: -100 | N53: -2991.993003
A54: 9 | B54: -1 | C54: 1 | D54: 257.1428571 | E54: -100 | F54: 0.588 | G54: 190.3805148 | H54: 444.2212012 | I54: 1.293270728 | J54: -58.28068241 | K54: =IF(ABS(J54)>' M-Max Motor'!AI$3,' M-Max Motor'!AI$3*SIGN(J54),J54) -> -58.28068241 | L54: -151.5812351 | M54: -100 | N54: -2692.793703
A55: 8 | B55: -1 | C55: 1 | D55: 228.5714286 | E55: -100 | F55: 0.588 | G55: 169.2271243 | H55: 465.3745918 | I55: 1.358614422 | J55: -61.22536753 | K55: =IF(ABS(J55)>' M-Max Motor'!AI$3,' M-Max Motor'!AI$3*SIGN(J55),J55) -> -61.22536753 | L55: -159.2400165 | M55: -100 | N55: -2393.594403
A56: 7 | B56: -1 | C56: 1 | D56: 200 | E56: -100 | F56: 0.588 | G56: 148.0737337 | H56: 486.5279823 | I56: 1.43312922 | J56: -64.58334449 | K56: =IF(ABS(J56)>' M-Max Motor'!AI$3,' M-Max Motor'!AI$3*SIGN(J56),J56) -> -64.58334449 | L56: -167.9737216 | M56: -100 | N56: -2094.395102
A57: 6 | B57: -1 | C57: 1 | D57: 171.4285714 | E57: -100 | F57: 0.588 | G57: 126.9203432 | H57: 507.6813728 | I57: 1.520247891 | J57: -68.50930947 | K57: =IF(ABS(J57)>' M-Max Motor'!AI$3,' M-Max Motor'!AI$3*SIGN(J57),J57) -> -68.50930947 | L57: -178.1846971 | M57: -100 | N57: -1795.195802
A58: 5 | B58: -1 | C58: 1 | D58: 142.8571429 | E58: -100 | F58: 0.588 | G58: 105.7669527 | H58: 528.8347634 | I58: 1.625501645 | J58: -73.2525241 | K58: =IF(ABS(J58)>' M-Max Motor'!AI$3,' M-Max Motor'!AI$3*SIGN(J58),J58) -> -73.2525241 | L58: -190.5212434 | M58: -100 | N58: -1495.996502
A59: 4 | B59: -1 | C59: 1 | D59: 114.2857143 | E59: -100 | F59: 0.588 | G59: 84.61356214 | H59: 549.9881539 | I59: 1.758613567 | J59: -79.25115489 | K59: =IF(ABS(J59)>' M-Max Motor'!AI$3,' M-Max Motor'!AI$3*SIGN(J59),J59) -> -79.25115489 | L59: -206.1229801 | M59: -100 | N59: -1196.797201
A60: 3 | B60: -1 | C60: 1 | D60: 85.71428571 | E60: -100 | F60: 0.588 | G60: 63.4601716 | H60: 571.1415444 | I60: 1.938961407 | J60: -87.37845181 | K60: =IF(ABS(J60)>' M-Max Motor'!AI$3,' M-Max Motor'!AI$3*SIGN(J60),J60) -> -87.37845181 | L60: -227.2611283 | M60: -100 | N60: -897.597901
A61: 2 | B61: -1 | C61: 1 | D61: 57.14285714 | E61: -100 | F61: 0.588 | G61: 42.30678107 | H61: 592.294935 | I61: 2.213781852 | J61: -99.76311554 | K61: =IF(ABS(J61)>' M-Max Motor'!AI$3,' M-Max Motor'!AI$3*SIGN(J61),J61) -> -99.76311554 | L61: -259.4721895 | M61: -100 | N61: -598.3986007
A62: 1 | B62: -0.99999 | C62: 1 | D62: 28.57142857 | E62: -99.999 | F62: 0.588 | G62: 21.15339053 | H62: 613.4483255 | I62: 2.754328979 | J62: -124.1213953 | K62: =IF(ABS(J62)>' M-Max Motor'!AI$3,' M-Max Motor'!AI$3*SIGN(J62),J62) -> -112.6246923 | L62: -292.9236455 | M62: -99.999 | N62: -299.1963083
A63: 1e-05 | B63: -1.00001 | C63: 1 | D63: 0.0002857142857 | E63: -100.001 | F63: 0.588 | G63: 0.0002115339053 | H63: 634.6015045 | I63: 87.98988399 | J63: -3965.265474 | K63: =IF(ABS(J63)>' M-Max Motor'!AI$3,' M-Max Motor'!AI$3*SIGN(J63),J63) -> -112.6246923 | L63: -292.9236455 | M63: -100.001 | N63: -0.002992022923
A64: -1 | B64: -1 | C64: =IF(MIN(Rechentabelle!AT:AT)<0,1,0) -> 0 | D64: 0 | E64: -100 | F64: 0.588 | G64: 0 | H64: 634.601716 | K64: =IF(ABS(J64)>' M-Max Motor'!AI$3,' M-Max Motor'!AI$3*SIGN(J64),J64) -> 
A65: -2 | B65: -1 | C65: =IF(MIN(Rechentabelle!AT:AT)<0,1,0) -> 0 | D65: 0 | E65: -100 | F65: 0.588 | G65: 0 | H65: 634.601716 | K65: =IF(ABS(J65)>' M-Max Motor'!AI$3,' M-Max Motor'!AI$3*SIGN(J65),J65) -> 
A66: -3 | B66: -1 | C66: =IF(MIN(Rechentabelle!AT:AT)<0,1,0) -> 0 | D66: =A66*nMaxG/iGetriebe/30*nMaxGFaktor*C66 -> 0 | E66: =MBeschlG*B66 -> -100 | F66: =EDB -> 0.588 | G66: =MReibG*2*PI()*ABS(D66)/60*iGetriebe -> 0 | H66: =IF(PV_totalG-G66<0,0,PV_totalG-G66) -> 634.601716 | I66: =(H66/(2*PI()*ABS(D66)/60*iGetriebe))^(3/10) ->  | J66: =I66*KW_lastabh_ReibG*B66 ->  | K66: =IF(ABS(J66)>' M-Max Motor'!AI$3,' M-Max Motor'!AI$3*SIGN(J66),J66) -> 
A67: -4 | B67: =A68-A67 -> -1 | C67: =IF(MIN(Rechentabelle!AT:AT)<0,1,0) -> 0 | D67: 0 | E67: -100 | F67: 0.588 | G67: 0 | H67: 634.601716 | K67: =IF(ABS(J67)>' M-Max Motor'!AI$3,' M-Max Motor'!AI$3*SIGN(J67),J67) ->  | L67: =K67*(1^1.8/F67^1.8) ->  | M67: =IF(ABS(L67)>ABS(E67),E67,L67) ->  | N67: =M67*2*PI()*D67/60 -> 
A68: -5 | B68: -1 | C68: =IF(MIN(Rechentabelle!AT:AT)<0,1,0) -> 0 | D68: 0 | E68: -100 | F68: 0.588 | G68: 0 | H68: 634.601716 | K68: =IF(ABS(J68)>' M-Max Motor'!AI$3,' M-Max Motor'!AI$3*SIGN(J68),J68) -> 
A69: -6 | B69: -1 | C69: =IF(MIN(Rechentabelle!AT:AT)<0,1,0) -> 0 | D69: 0 | E69: -100 | F69: 0.588 | G69: 0 | H69: 634.601716 | K69: =IF(ABS(J69)>' M-Max Motor'!AI$3,' M-Max Motor'!AI$3*SIGN(J69),J69) -> 
A70: -7 | B70: -1 | C70: =IF(MIN(Rechentabelle!AT:AT)<0,1,0) -> 0 | D70: 0 | E70: -100 | F70: 0.588 | G70: 0 | H70: 634.601716 | K70: =IF(ABS(J70)>' M-Max Motor'!AI$3,' M-Max Motor'!AI$3*SIGN(J70),J70) -> 
A71: -8 | B71: -1 | C71: =IF(MIN(Rechentabelle!AT:AT)<0,1,0) -> 0 | D71: 0 | E71: -100 | F71: 0.588 | G71: 0 | H71: 634.601716 | K71: =IF(ABS(J71)>' M-Max Motor'!AI$3,' M-Max Motor'!AI$3*SIGN(J71),J71) -> 
A72: -9 | B72: -1 | C72: =IF(MIN(Rechentabelle!AT:AT)<0,1,0) -> 0 | D72: 0 | E72: -100 | F72: 0.588 | G72: 0 | H72: 634.601716 | K72: =IF(ABS(J72)>' M-Max Motor'!AI$3,' M-Max Motor'!AI$3*SIGN(J72),J72) -> 
A73: -10 | B73: -1 | C73: =IF(MIN(Rechentabelle!AT:AT)<0,1,0) -> 0 | D73: 0 | E73: -100 | F73: 0.588 | G73: 0 | H73: 634.601716 | K73: =IF(ABS(J73)>' M-Max Motor'!AI$3,' M-Max Motor'!AI$3*SIGN(J73),J73) -> 
A74: -11 | B74: -1 | C74: =IF(MIN(Rechentabelle!AT:AT)<0,1,0) -> 0 | D74: 0 | E74: -100 | F74: 0.588 | G74: 0 | H74: 634.601716 | K74: =IF(ABS(J74)>' M-Max Motor'!AI$3,' M-Max Motor'!AI$3*SIGN(J74),J74) -> 
A75: -12 | B75: -1 | C75: =IF(MIN(Rechentabelle!AT:AT)<0,1,0) -> 0 | D75: 0 | E75: -100 | F75: 0.588 | G75: 0 | H75: 634.601716 | K75: =IF(ABS(J75)>' M-Max Motor'!AI$3,' M-Max Motor'!AI$3*SIGN(J75),J75) -> 
A76: -13 | B76: -1 | C76: =IF(MIN(Rechentabelle!AT:AT)<0,1,0) -> 0 | D76: 0 | E76: -100 | F76: 0.588 | G76: 0 | H76: 634.601716 | K76: =IF(ABS(J76)>' M-Max Motor'!AI$3,' M-Max Motor'!AI$3*SIGN(J76),J76) -> 
A77: -14 | B77: -1 | C77: =IF(MIN(Rechentabelle!AT:AT)<0,1,0) -> 0 | D77: 0 | E77: -100 | F77: 0.588 | G77: 0 | H77: 634.601716 | K77: =IF(ABS(J77)>' M-Max Motor'!AI$3,' M-Max Motor'!AI$3*SIGN(J77),J77) -> 
A78: -15 | B78: -1 | C78: =IF(MIN(Rechentabelle!AT:AT)<0,1,0) -> 0 | D78: 0 | E78: -100 | F78: 0.588 | G78: 0 | H78: 634.601716 | K78: =IF(ABS(J78)>' M-Max Motor'!AI$3,' M-Max Motor'!AI$3*SIGN(J78),J78) -> 
A79: -16 | B79: -1 | C79: =IF(MIN(Rechentabelle!AT:AT)<0,1,0) -> 0 | D79: 0 | E79: -100 | F79: 0.588 | G79: 0 | H79: 634.601716 | K79: =IF(ABS(J79)>' M-Max Motor'!AI$3,' M-Max Motor'!AI$3*SIGN(J79),J79) -> 
A80: -17 | B80: -1 | C80: =IF(MIN(Rechentabelle!AT:AT)<0,1,0) -> 0 | D80: 0 | E80: -100 | F80: 0.588 | G80: 0 | H80: 634.601716 | K80: =IF(ABS(J80)>' M-Max Motor'!AI$3,' M-Max Motor'!AI$3*SIGN(J80),J80) -> 
A81: -18 | B81: -1 | C81: =IF(MIN(Rechentabelle!AT:AT)<0,1,0) -> 0 | D81: 0 | E81: -100 | F81: 0.588 | G81: 0 | H81: 634.601716 | K81: =IF(ABS(J81)>' M-Max Motor'!AI$3,' M-Max Motor'!AI$3*SIGN(J81),J81) -> 
A82: -19 | B82: -1 | C82: =IF(MIN(Rechentabelle!AT:AT)<0,1,0) -> 0 | D82: 0 | E82: -100 | F82: 0.588 | G82: 0 | H82: 634.601716 | K82: =IF(ABS(J82)>' M-Max Motor'!AI$3,' M-Max Motor'!AI$3*SIGN(J82),J82) -> 
A83: -20 | B83: -1 | C83: =IF(MIN(Rechentabelle!AT:AT)<0,1,0) -> 0 | D83: 0 | E83: -100 | F83: 0.588 | G83: 0 | H83: 634.601716 | K83: =IF(ABS(J83)>' M-Max Motor'!AI$3,' M-Max Motor'!AI$3*SIGN(J83),J83) -> 
A84: -21 | B84: -1 | C84: =IF(MIN(Rechentabelle!AT:AT)<0,1,0) -> 0 | D84: 0 | E84: -100 | F84: 0.588 | G84: 0 | H84: 634.601716 | K84: =IF(ABS(J84)>' M-Max Motor'!AI$3,' M-Max Motor'!AI$3*SIGN(J84),J84) -> 
A85: -22 | B85: -1 | C85: =IF(MIN(Rechentabelle!AT:AT)<0,1,0) -> 0 | D85: 0 | E85: -100 | F85: 0.588 | G85: 0 | H85: 634.601716 | K85: =IF(ABS(J85)>' M-Max Motor'!AI$3,' M-Max Motor'!AI$3*SIGN(J85),J85) -> 
A86: -23 | B86: -1 | C86: =IF(MIN(Rechentabelle!AT:AT)<0,1,0) -> 0 | D86: 0 | E86: -100 | F86: 0.588 | G86: 0 | H86: 634.601716 | K86: =IF(ABS(J86)>' M-Max Motor'!AI$3,' M-Max Motor'!AI$3*SIGN(J86),J86) -> 
A87: -24 | B87: -1 | C87: =IF(MIN(Rechentabelle!AT:AT)<0,1,0) -> 0 | D87: 0 | E87: -100 | F87: 0.588 | G87: 0 | H87: 634.601716 | K87: =IF(ABS(J87)>' M-Max Motor'!AI$3,' M-Max Motor'!AI$3*SIGN(J87),J87) -> 
A88: -25 | B88: -1 | C88: =IF(MIN(Rechentabelle!AT:AT)<0,1,0) -> 0 | D88: 0 | E88: -100 | F88: 0.588 | G88: 0 | H88: 634.601716 | K88: =IF(ABS(J88)>' M-Max Motor'!AI$3,' M-Max Motor'!AI$3*SIGN(J88),J88) -> 
A89: -26 | B89: -1 | C89: =IF(MIN(Rechentabelle!AT:AT)<0,1,0) -> 0 | D89: 0 | E89: -100 | F89: 0.588 | G89: 0 | H89: 634.601716 | K89: =IF(ABS(J89)>' M-Max Motor'!AI$3,' M-Max Motor'!AI$3*SIGN(J89),J89) -> 
A90: -27 | B90: -1 | C90: =IF(MIN(Rechentabelle!AT:AT)<0,1,0) -> 0 | D90: 0 | E90: -100 | F90: 0.588 | G90: 0 | H90: 634.601716 | K90: =IF(ABS(J90)>' M-Max Motor'!AI$3,' M-Max Motor'!AI$3*SIGN(J90),J90) -> 
A91: -28 | B91: -1 | C91: =IF(MIN(Rechentabelle!AT:AT)<0,1,0) -> 0 | D91: 0 | E91: -100 | F91: 0.588 | G91: 0 | H91: 634.601716 | K91: =IF(ABS(J91)>' M-Max Motor'!AI$3,' M-Max Motor'!AI$3*SIGN(J91),J91) -> 
A92: -29 | B92: -1 | C92: =IF(MIN(Rechentabelle!AT:AT)<0,1,0) -> 0 | D92: 0 | E92: -100 | F92: 0.588 | G92: 0 | H92: 634.601716 | K92: =IF(ABS(J92)>' M-Max Motor'!AI$3,' M-Max Motor'!AI$3*SIGN(J92),J92) -> 
A93: -30 | B93: -1 | C93: =IF(MIN(Rechentabelle!AT:AT)<0,1,0) -> 0 | D93: 0 | E93: -100 | F93: 0.588 | G93: 0 | H93: 634.601716 | K93: =IF(ABS(J93)>' M-Max Motor'!AI$3,' M-Max Motor'!AI$3*SIGN(J93),J93) -> 
A94: -30 | B94: 1 | C94: =IF(MIN(Rechentabelle!AT:AT)<0,1,0) -> 0 | D94: 0 | E94: 100 | F94: 0.588 | G94: 0 | H94: 634.601716 | K94: =IF(ABS(J94)>' M-Max Motor'!AI$3,' M-Max Motor'!AI$3*SIGN(J94),J94) -> 
A95: -29 | B95: 1 | C95: =IF(MIN(Rechentabelle!AT:AT)<0,1,0) -> 0 | D95: 0 | E95: 100 | F95: 0.588 | G95: 0 | H95: 634.601716 | K95: =IF(ABS(J95)>' M-Max Motor'!AI$3,' M-Max Motor'!AI$3*SIGN(J95),J95) -> 
A96: -28 | B96: 1 | C96: =IF(MIN(Rechentabelle!AT:AT)<0,1,0) -> 0 | D96: 0 | E96: 100 | F96: 0.588 | G96: 0 | H96: 634.601716 | K96: =IF(ABS(J96)>' M-Max Motor'!AI$3,' M-Max Motor'!AI$3*SIGN(J96),J96) -> 
A97: -27 | B97: 1 | C97: =IF(MIN(Rechentabelle!AT:AT)<0,1,0) -> 0 | D97: 0 | E97: 100 | F97: 0.588 | G97: 0 | H97: 634.601716 | K97: =IF(ABS(J97)>' M-Max Motor'!AI$3,' M-Max Motor'!AI$3*SIGN(J97),J97) -> 
A98: -26 | B98: 1 | C98: =IF(MIN(Rechentabelle!AT:AT)<0,1,0) -> 0 | D98: =A98*nMaxG/iGetriebe/30*nMaxGFaktor*C98 -> 0 | E98: =MBeschlG*B98 -> 100 | F98: =EDB -> 0.588 | G98: =MReibG*2*PI()*ABS(D98)/60*iGetriebe -> 0 | H98: =IF(PV_totalG-G98<0,0,PV_totalG-G98) -> 634.601716 | I98: =(H98/(2*PI()*ABS(D98)/60*iGetriebe))^(3/10) ->  | J98: =I98*KW_lastabh_ReibG*B98 ->  | K98: =IF(ABS(J98)>' M-Max Motor'!AI$3,' M-Max Motor'!AI$3*SIGN(J98),J98) -> 
A99: -25 | B99: 1 | C99: =IF(MIN(Rechentabelle!AT:AT)<0,1,0) -> 0 | D99: 0 | E99: 100 | F99: 0.588 | G99: 0 | H99: 634.601716 | K99: =IF(ABS(J99)>' M-Max Motor'!AI$3,' M-Max Motor'!AI$3*SIGN(J99),J99) -> 
A100: -24 | B100: 1 | C100: =IF(MIN(Rechentabelle!AT:AT)<0,1,0) -> 0 | D100: 0 | E100: 100 | F100: 0.588 | G100: 0 | H100: 634.601716 | K100: =IF(ABS(J100)>' M-Max Motor'!AI$3,' M-Max Motor'!AI$3*SIGN(J100),J100) -> 
A101: -23 | B101: 1 | C101: =IF(MIN(Rechentabelle!AT:AT)<0,1,0) -> 0 | D101: 0 | E101: 100 | F101: 0.588 | G101: 0 | H101: 634.601716 | K101: =IF(ABS(J101)>' M-Max Motor'!AI$3,' M-Max Motor'!AI$3*SIGN(J101),J101) -> 
A102: -22 | B102: 1 | C102: =IF(MIN(Rechentabelle!AT:AT)<0,1,0) -> 0 | D102: 0 | E102: 100 | F102: 0.588 | G102: 0 | H102: 634.601716 | K102: =IF(ABS(J102)>' M-Max Motor'!AI$3,' M-Max Motor'!AI$3*SIGN(J102),J102) -> 
A103: -21 | B103: 1 | C103: =IF(MIN(Rechentabelle!AT:AT)<0,1,0) -> 0 | D103: 0 | E103: 100 | F103: 0.588 | G103: 0 | H103: 634.601716 | K103: =IF(ABS(J103)>' M-Max Motor'!AI$3,' M-Max Motor'!AI$3*SIGN(J103),J103) -> 
A104: -20 | B104: 1 | C104: =IF(MIN(Rechentabelle!AT:AT)<0,1,0) -> 0 | D104: 0 | E104: 100 | F104: 0.588 | G104: 0 | H104: 634.601716 | K104: =IF(ABS(J104)>' M-Max Motor'!AI$3,' M-Max Motor'!AI$3*SIGN(J104),J104) -> 
A105: -19 | B105: 1 | C105: =IF(MIN(Rechentabelle!AT:AT)<0,1,0) -> 0 | D105: 0 | E105: 100 | F105: 0.588 | G105: 0 | H105: 634.601716 | K105: =IF(ABS(J105)>' M-Max Motor'!AI$3,' M-Max Motor'!AI$3*SIGN(J105),J105) -> 
A106: -18 | B106: 1 | C106: =IF(MIN(Rechentabelle!AT:AT)<0,1,0) -> 0 | D106: 0 | E106: 100 | F106: 0.588 | G106: 0 | H106: 634.601716 | K106: =IF(ABS(J106)>' M-Max Motor'!AI$3,' M-Max Motor'!AI$3*SIGN(J106),J106) -> 
A107: -17 | B107: 1 | C107: =IF(MIN(Rechentabelle!AT:AT)<0,1,0) -> 0 | D107: 0 | E107: 100 | F107: 0.588 | G107: 0 | H107: 634.601716 | K107: =IF(ABS(J107)>' M-Max Motor'!AI$3,' M-Max Motor'!AI$3*SIGN(J107),J107) -> 
A108: -16 | B108: 1 | C108: =IF(MIN(Rechentabelle!AT:AT)<0,1,0) -> 0 | D108: 0 | E108: 100 | F108: 0.588 | G108: 0 | H108: 634.601716 | K108: =IF(ABS(J108)>' M-Max Motor'!AI$3,' M-Max Motor'!AI$3*SIGN(J108),J108) -> 
A109: -15 | B109: 1 | C109: =IF(MIN(Rechentabelle!AT:AT)<0,1,0) -> 0 | D109: 0 | E109: 100 | F109: 0.588 | G109: 0 | H109: 634.601716 | K109: =IF(ABS(J109)>' M-Max Motor'!AI$3,' M-Max Motor'!AI$3*SIGN(J109),J109) -> 
A110: -14 | B110: 1 | C110: =IF(MIN(Rechentabelle!AT:AT)<0,1,0) -> 0 | D110: 0 | E110: 100 | F110: 0.588 | G110: 0 | H110: 634.601716 | K110: =IF(ABS(J110)>' M-Max Motor'!AI$3,' M-Max Motor'!AI$3*SIGN(J110),J110) -> 
A111: -13 | B111: 1 | C111: =IF(MIN(Rechentabelle!AT:AT)<0,1,0) -> 0 | D111: 0 | E111: 100 | F111: 0.588 | G111: 0 | H111: 634.601716 | K111: =IF(ABS(J111)>' M-Max Motor'!AI$3,' M-Max Motor'!AI$3*SIGN(J111),J111) -> 
A112: -12 | B112: 1 | C112: =IF(MIN(Rechentabelle!AT:AT)<0,1,0) -> 0 | D112: 0 | E112: 100 | F112: 0.588 | G112: 0 | H112: 634.601716 | K112: =IF(ABS(J112)>' M-Max Motor'!AI$3,' M-Max Motor'!AI$3*SIGN(J112),J112) -> 
A113: -11 | B113: 1 | C113: =IF(MIN(Rechentabelle!AT:AT)<0,1,0) -> 0 | D113: 0 | E113: 100 | F113: 0.588 | G113: 0 | H113: 634.601716 | K113: =IF(ABS(J113)>' M-Max Motor'!AI$3,' M-Max Motor'!AI$3*SIGN(J113),J113) -> 
A114: -10 | B114: 1 | C114: =IF(MIN(Rechentabelle!AT:AT)<0,1,0) -> 0 | D114: 0 | E114: 100 | F114: 0.588 | G114: 0 | H114: 634.601716 | K114: =IF(ABS(J114)>' M-Max Motor'!AI$3,' M-Max Motor'!AI$3*SIGN(J114),J114) -> 
A115: -9 | B115: 1 | C115: =IF(MIN(Rechentabelle!AT:AT)<0,1,0) -> 0 | D115: 0 | E115: 100 | F115: 0.588 | G115: 0 | H115: 634.601716 | K115: =IF(ABS(J115)>' M-Max Motor'!AI$3,' M-Max Motor'!AI$3*SIGN(J115),J115) -> 
A116: -8 | B116: 1 | C116: =IF(MIN(Rechentabelle!AT:AT)<0,1,0) -> 0 | D116: 0 | E116: 100 | F116: 0.588 | G116: 0 | H116: 634.601716 | K116: =IF(ABS(J116)>' M-Max Motor'!AI$3,' M-Max Motor'!AI$3*SIGN(J116),J116) -> 
A117: -7 | B117: 1 | C117: =IF(MIN(Rechentabelle!AT:AT)<0,1,0) -> 0 | D117: 0 | E117: 100 | F117: 0.588 | G117: 0 | H117: 634.601716 | K117: =IF(ABS(J117)>' M-Max Motor'!AI$3,' M-Max Motor'!AI$3*SIGN(J117),J117) -> 
A118: -6 | B118: 1 | C118: =IF(MIN(Rechentabelle!AT:AT)<0,1,0) -> 0 | D118: 0 | E118: 100 | F118: 0.588 | G118: 0 | H118: 634.601716 | K118: =IF(ABS(J118)>' M-Max Motor'!AI$3,' M-Max Motor'!AI$3*SIGN(J118),J118) -> 
A119: -5 | B119: 1 | C119: =IF(MIN(Rechentabelle!AT:AT)<0,1,0) -> 0 | D119: 0 | E119: 100 | F119: 0.588 | G119: 0 | H119: 634.601716 | K119: =IF(ABS(J119)>' M-Max Motor'!AI$3,' M-Max Motor'!AI$3*SIGN(J119),J119) -> 
A120: -4 | B120: 1 | C120: =IF(MIN(Rechentabelle!AT:AT)<0,1,0) -> 0 | D120: 0 | E120: 100 | F120: 0.588 | G120: 0 | H120: 634.601716 | K120: =IF(ABS(J120)>' M-Max Motor'!AI$3,' M-Max Motor'!AI$3*SIGN(J120),J120) -> 
A121: -3 | B121: 1 | C121: =IF(MIN(Rechentabelle!AT:AT)<0,1,0) -> 0 | D121: 0 | E121: 100 | F121: 0.588 | G121: 0 | H121: 634.601716 | K121: =IF(ABS(J121)>' M-Max Motor'!AI$3,' M-Max Motor'!AI$3*SIGN(J121),J121) -> 
A122: -2 | B122: 1 | C122: =IF(MIN(Rechentabelle!AT:AT)<0,1,0) -> 0 | D122: 0 | E122: 100 | F122: 0.588 | G122: 0 | H122: 634.601716 | K122: =IF(ABS(J122)>' M-Max Motor'!AI$3,' M-Max Motor'!AI$3*SIGN(J122),J122) -> 
A123: -1 | B123: 1.00001 | C123: =IF(MIN(Rechentabelle!AT:AT)<0,1,0) -> 0 | D123: 0 | E123: 100.001 | F123: 0.588 | G123: 0 | H123: 634.601716 | K123: =IF(ABS(J123)>' M-Max Motor'!AI$3,' M-Max Motor'!AI$3*SIGN(J123),J123) -> 
A124: 1e-05 | B124: 1 | C124: =IF(MIN(Rechentabelle!AT:AT)<0,1,0) -> 0 | D124: 0 | E124: 100 | F124: 0.588 | G124: 0 | H124: 634.601716 | K124: =IF(ABS(J124)>' M-Max Motor'!AI$3,' M-Max Motor'!AI$3*SIGN(J124),J124) -> 

Sheet Bedienungsanleitung
B3: Bedienungsanleitung Drive-Configurator:
B5: Schritt 1: | C5: Geben Sie die Informationen zur verwendeten Mechanik im Tabellenblatt "Hardware" ein:
B58: Schritt 2: | C58: Geben Sie die Bewegung im Tabellenblatt "Bewegungen" vor und drücken Sie "Wegprofil berechnen":
B94: Schritt 3: | C94: Filtern Sie die Auswahl der Getriebe, in dem Sie den Knopf neben der Gertiebeauswahl drücken und wählen Sie danach ein Getriebe aus:
B126: Schritt 4: | C126: Filtern Sie die Auswahl der Motoren, in dem Sie den Knopf neben der Motorenauswahl drücken und wählen Sie danach einen Motor aus:
B174: Schritt 5: | C174: Filtern Sie die Auswahl der Regler, in dem Sie den Knopf neben der Reglerauswahl drücken und wählen Sie danach einen Regler aus:
B176: Schritt 6: | C176: Dokumentieren Sie Ihre Antriebsauslegung und markieren alle Tabellenblätter die Sie ausdrucken möchten und wählen Sie "drucken"

Sheet Hardware
B2: Kunde: | C2: KUNDE XY | H2: Notizen: | L2: HILFE | Y2: 1
B3: Projekt: | C3: PROJEKT XY
B4: Achse: | C4: ACHSE XY
B6: Vorgaben der Mechanik: | H6: Ergebnisse aus den Vorgaben:
B7: Hersteller | C7: MECHANIK XY | H7: transl. bewegte Masse | I7: m | J7: Transl. | K7: =mLast*VLOOKUP(C13,AnbauAuswahlMatrix,2,FALSE)+mSchlitten*VLOOKUP(C13,AnbauAuswahlMatrix,3,FALSE)+mBasis*VLOOKUP(C13,AnbauAuswahlMatrix,4,FALSE)+(mMotor+mGetriebe)*VLOOKUP(C13,AnbauAuswahlMatrix,5,FALSE) -> 150 | L7: [kg]
B8: Typ | C8: Zahnriemen / Scheibe | G8: =Parameter!E70 -> 1 | H8: Summe Massen | I8: m | J8: Gesamt | K8: =mLast+mSchlitten+mBasis+mMotor+mGetriebe -> 150 | L8: [kg]
B9: Typbezeichnung | C9: xyz | H9: translatorische Trägheit | I9: J | J9: Transl. | K9: =mTransl*(sVorschub/(2*PI()))^2/100*Parameter!D70 -> 1519.866588 | L9: [kgcm2]
B10: Einbaulage | C10: 0° horizontal | H10: rotatorische Trägheit | I10: J | J10: Rot. | K10: =rhoS*lS*POWER(dS,4)/1000000000*z_S+JKupplung+JZusatz+mLast*(dS/2/10)^2*Parameter!B70 -> 2.661113602 | L10: [kgcm2]
B11: =Parameter!F70 -> Zusatzlast | C11: m | D11: Last | E11: 150 | F11: [kg] | H11: Summe Trägheitsm. | I11: J | J11: Extern | K11: =JTransl+JRot -> 1522.527702 | L11: [kgcm2]
B12: =Parameter!G70 -> Schlittenmasse | C12: m | D12: Schlitten | E12: 0 | F12: [kg]
B13: Anbau Auswahl | C13: Last+Schlitten fährt | H13: =Parameter!AI70&" aus Gewicht" -> Moment aus Gewicht | I13: =Parameter!AH70 -> M | J13: Gewicht | K13: =mTransl*9.81*sVorschub/(2*PI())/1000*SIN(PI()/180*VLOOKUP(C10,EinbaulageAuswahlMatrix,2)) -> 0 | L13: =Parameter!Y70 -> [Nm]
B14: =Parameter!H70 -> Basisgewicht | C14: m | D14: Basis | E14: 0 | F14: [kg] | H14: =Parameter!AI70&" aus Prozess" -> Moment aus Prozess | I14: =Parameter!AH70 -> M | J14: Prozess | K14: =FProzess*sVorschub/(2*PI())/1000 -> 0 | L14: =Parameter!Y70 -> [Nm]
B15: =Parameter!I70 -> Motorgewicht | C15: m | D15: Motor | E15: 0 | F15: [kg]
B16: =Parameter!J70 -> Getriebegewicht | C16: m | D16: Getriebe | E16: 0 | F16: [kg]
B17: =Parameter!K70 -> Scheibenbreite | C17: l | D17: =Parameter!AJ70 -> Scheibe | E17: 30 | F17: [mm]
B18: =Parameter!L70 -> Scheibendurchmesser | C18: d | D18: =Parameter!AJ70 -> Scheibe | E18: 63.663 | F18: [mm] | H18: äquivalentes Moment | I18: M | J18: 2ä | K18: =(SUM(Rechentabelle!T:T)/SUM(Rechentabelle!U:U))^(1/3) -> 52.3728861 | L18: [Nm]
B19: =Parameter!M70 -> Vorschubkonstante | C19: s | D19: Vorschub | E19: 200.0032131 | F19: =Parameter!S70 -> [mm/R] | H19: auftretende Zugkraft | I19: F | J19: Zug | K19: =ABS(MBeschlB/(sVorschub/(2*PI())/1000)) -> 3013.072014 | L19: [N]
B20: =Parameter!N70 -> Scheibenmaterial | C20: ς | D20: =Parameter!AJ70 -> Scheibe | E20: 2.7 | F20: [kg/dm3] | H20: erf. Trumkraft | I20: F | J20: Trum | K20: =FZugDruck*1.1*VLOOKUP(C8,TypAuswahlMatrix,3,FALSE) -> 3314.379215 | L20: [N]
B21: =Parameter!O70 -> Anzahl der Scheiben | C21: z | D21: =Parameter!AJ70 -> Scheibe | E21: 2 | F21: [-] | H21: auftretende Radialkraft | I21: F | J21: Radial | K21: =IF(JKupplung=0,(FZug+2*(FTrum-FZug))*Parameter!C70,0) -> 3615.686416 | L21: [N]
B22: =Parameter!P70 -> Reibung bez. auf Scheibe | C22: =Parameter!AH70 -> M | D22: ReibMech | E22: 0 | F22: =Parameter!Y70 -> [Nm] | H22: Einschaltdauer | I22: ED B | K22: =SUM(Rechentabelle!V:V)/TGesamt -> 0.588 | L22: [%]
B23: Prozesskraft | C23: F | D23: Prozess | E23: 0 | F23: [N] | H23: ="erf. "&Parameter!AA70&" Eff Bewegung" -> erf. n Eff Bewegung | I23: =Parameter!AA70 -> n | J23: EffB | K23: =SQRT(SUM(Rechentabelle!S:S)/TGesamt)*Parameter!AQ70 -> 437.1907534 | L23: =Parameter!R70 -> [1/min]
B24: =Parameter!AM70 -> Kupplung | C24: J | D24: Kupplung | E24: 0 | F24: [kgcm2] | H24: ="erf. "&Parameter!AH70&" Max Bewegung" -> erf. M Max Bewegung | I24: =Parameter!AH70 -> M | J24: MaxB | K24: =IF(MAX(Rechentabelle!P:P)>ABS(MIN(Rechentabelle!P:P)),MAX(Rechentabelle!P:P),(MIN(Rechentabelle!P:P))) -> 95.9106018 | L24: =Parameter!Y70 -> [Nm]
B25: =Parameter!AN70 -> zusätzliche Trägheiten | C25: J | D25: Zusatz | E25: 0 | F25: [kgcm2] | H25: ="erf. "&Parameter!AH70&" Eff Bewegung" -> erf. M Eff Bewegung | I25: =Parameter!AH70 -> M | J25: EffB | K25: =SQRT(SUM(Rechentabelle!Q:Q)/TGesamt) -> 40.39732681 | L25: =Parameter!Y70 -> [Nm]
B26: Max-Drehzahl Mechanik | C26: n | D26: MaxMech | E26: 4000 | F26: [1/min] | H26: ="erf. "&Parameter!AA70&" Max Bewegung" -> erf. n Max Bewegung | I26: =Parameter!AA70 -> n | J26: MaxB | K26: =IF(MAX(Rechentabelle!R:R)>ABS(MIN(Rechentabelle!R:R)),MAX(Rechentabelle!R:R),(MIN(Rechentabelle!R:R)))*Parameter!AQ70 -> 735.2823386 | L26: =Parameter!R70 -> [1/min]
B27: Max-Geschw. Mechanik | C27: v | D27: MaxMech | E27: 3 | F27: [m/s] | H27: erf. v Max Bewegung | I27: v | J27: MaxB | K27: =IF(MAX(Rechentabelle!D:D)>ABS(MIN(Rechentabelle!D:D)),MAX(Rechentabelle!D:D),(MIN(Rechentabelle!D:D))) -> 2.450980504 | L27: =Parameter!V70 -> [m/s]
B28: Max-Beschl. Mechanik | C28: a | D28: MaxMech | E28: 20 | F28: [m/s2] | H28: erf. a Max Bewegung | I28: a | J28: MaxB | K28: =IF(MAX(Rechentabelle!E:E)>ABS(MIN(Rechentabelle!E:E)),MAX(Rechentabelle!E:E),(MIN(Rechentabelle!E:E))) -> 20.05203792 | L28: =Parameter!W70 -> [m/s^2]
B29: geforderte Genauigkeit | C29: ds | D29: Fehler ± | E29: 0.05 | F29: =Parameter!T70 -> [mm] | H29: erforderliches Spiel | I29: dφ | J29: Gmax | K29: =dsFehler*2/sVorschub*360*60 -> 10.7998265 | L29: [arcmin]
E30: HILFE
B31: Vorgaben zum Nachgelege NG | H31: Ergebnisse aus den Vorgaben
B32: Zähnezahl NG Abtrieb | C32: z | D32: NG AB | E32: 20 | F32: [1] | H32: Durchmesser NG Abtrieb | I32: d | J32: NG AB | K32: =Z_NG_AB*Teilung_NG/PI() -> 63.66197724 | L32: [mm]
B33: Zähnezahl NG Eintrieb | C33: z | D33: NG EIN | E33: 20 | F33: [1] | H33: Durchmesser NG Eintrieb | I33: d | J33: NG EIN | K33: =Z_NG_EIN*Teilung_NG/PI() -> 63.66197724 | L33: [mm]
B34: Teilung NG | C34: T | D34: NG | E34: 10 | F34: [mm] | H34: J reduziert | I34: J | J34: Reduziert | K34: =JExtern/(iNG)^2+JNG -> 1522.527702 | L34: [kgcm2]
B35: Breite NG | C35: b | D35: NG | E35: 25 | F35: [mm] | H35: auftretende Zugkraft | I35: F | J35: Zug | K35: =ABS(MMaxNG)/(D_NG_EIN/1000/2) -> 3013.12042 | L35: [N]
B36: Material NG | C36: ς | D36: NG | F36: [kg/dm3] | H36: erf. Trumkraft | I36: F | J36: Trum | K36: =K35*1.1 -> 3314.432462 | L36: [N]
B37: Innenbohrung | C37: d | D37: NG B | E37: 20 | F37: [mm] | H37: auftretende Radialkraft | I37: F | J37: Radial | K37: =2*K36 -> 6628.864924 | L37: [N]
B38: zusätzliche Trägheiten | C38: J | D38: NG Wellen | E38: 0 | F38: [kgcm2] | H38: erf. M Eff Nachgelege | I38: M | J38: EffNG | K38: =SQRT(SUM(Rechentabelle!AD:AD)/TGesamt) -> 40.39732681 | L38: [Nm]
B39: Übersetzung Nachgelege | C39: i | D39: NG | E39: =Z_NG_AB/Z_NG_EIN -> 1 | F39: [-] | H39: erf. M Max Nachgelege | I39: M | J39: MaxNG | K39: =IF(MAX(Rechentabelle!AC:AC)>ABS(MIN(Rechentabelle!AC:AC)),MAX(Rechentabelle!AC:AC),(MIN(Rechentabelle!AC:AC))) -> 95.9106018 | L39: [Nm]
B40: Trägheitsmoment | C40: J | D40: NG | E40: =1/2*((D_NG_AB/2)^2*PI()-(D_NG_B/2)^2*PI())*B_NG*rho_NG/1000000*((D_NG_AB/2)^2+(D_NG_B/2)^2)/100/iNG^2+1/2*((D_NG_EIN/2)^2*PI()-(D_NG_B/2)^2*PI())*B_NG*rho_NG/1000000*((D_NG_EIN/2)^2+(D_NG_B/2)^2)/100+J_NG_WELLEN -> 0 | F40: [Kgcm²] | H40: erf. n Max Nachgelege | I40: n | J40: MaxNG | K40: =IF(MAX(Rechentabelle!X:X)>ABS(MIN(Rechentabelle!X:X)),MAX(Rechentabelle!X:X),(MIN(Rechentabelle!X:X)))*Parameter!AQ70 -> 735.2823386 | L40: [1/min]
B41: Modul NG | C41: M | D41: NG | E41: =D_NG_AB/Z_NG_AB -> 3.183098862 | F41: [mm] | H41: Wirkungsgrad | I41: n | J41: NG | K41: =MEffNG/(MEffNG+MReibNG)*100 -> 100 | L41: [%]
B42: Reibung Nachgelege | C42: M | D42: ReibNG | E42: 0 | F42: [Nm] | H42: erforderliches Spiel | I42: dφ | J42: Gmax | K42: =DfM/iNG -> 10.7998265 | L42: [arcmin]
B44: Vorgaben zum Getriebe | H44: Ergebnisse aus den Vorgaben:
B45: Hersteller | C45: GETRIEBE XY | H45: J reduziert | I45: J | J45: Reduziert | K45: =JExtern/(iGetriebe*iNG)^2+JNG/(iGetriebe)^2 -> 31.07199392 | L45: [kgcm2]
B46: Typbezeichnung | C46: PG AF 12 007.1-S | H46: Getriebegewicht | I46: m | J46: G | K46: =mG -> 2,6 | L46: [kg] | M46: =65534-COUNTBLANK(Getriebetabelle!$A$3:$A$65536) -> 1742
B47: Übersetzung | C47: i | D47: Getriebe | E47: =iGetriebe -> 7 | F47: [-] | H47: erf. M Max Eintrieb | I47: M | J47: MaxE | K47: =IF(MAX(Rechentabelle!AN:AN)>ABS(MIN(Rechentabelle!AN:AN)),MAX(Rechentabelle!AN:AN),(MIN(Rechentabelle!AN:AN))) -> 14.95126748 | L47: [Nm]
B48: Nennmoment | C48: M | D48: NennG | E48: =MNennG -> 50 | F48: [Nm] | H48: erf. M Nenn Eintrieb | I48: M | J48: EffE | K48: =SQRT(SUM(Rechentabelle!AO:AO)/TGesamt) -> 5.963559698 | L48: [Nm]
B49: Beschleunigungsmoment | C49: M | D49: Beschl.G | E49: =MBeschlG -> 100 | F49: [Nm] | H49: erf. α Max Eintrieb | I49: α | J49: MaxE | K49: =IF(MAX(Rechentabelle!AJ:AJ)>ABS(MIN(Rechentabelle!AJ:AJ)),MAX(Rechentabelle!AJ:AJ),(MIN(Rechentabelle!AJ:AJ))) -> 4409.602608 | L49: [rad/s2]
B50: NOT-AUS-Moment | C50: M | D50: NotausG | E50: =MNotausG -> 250 | F50: [Nm] | H50: erf. α Eff Eintrieb | I50: α | J50: EffE | K50: =SQRT(SUM(Rechentabelle!AP:AP)/TGesamt) -> 1857.314565 | L50: [rad/s2]
B51: Trägheitsmoment | C51: J | D51: Getriebe | E51: =JGetriebe -> 0.49 | F51: [kgcm2] | H51: Trägheit für Motor | I51: = | K51: =IF(JGetriebe>2*JMotor,"zu groß","ok") -> ok
B52: Reibmoment | C52: M | D52: ReibG | E52: =MReibG -> 1.01 | F52: [Nm] | H52: Reibmoment für Motor | I52: = | K52: =IF(MReibG>MNennM/2,"zu groß","ok") -> ok
B53: Nenndrehzahl | C53: n | D53: NennG | E53: =nNennG -> 2500 | F53: [1/min] | H53: erf n Eff Eintrieb | I53: n | J53: EffE | K53: =nEffB*iGetriebe*iNG -> 3060.335274 | L53: [1/min]
B54: Maxdrehzahl | C54: n | D54: MaxG | E54: =nMaxG -> 6000 | F54: [1/min] | G54: 1 | H54: erf n Max Eintrieb | I54: n | J54: MaxE | K54: =nMaxB*iGetriebe*iNG -> 5146.97637 | L54: [1/min]
B55: Verdrehspiel | C55: dφ | D55: MaxG | E55: =dfMaxG -> 3 | F55: [arcmin] | H55: Positionierfehler Spiel | I55: ds | J55: Spiel ± | K55: =dfMaxG/(360*60)*sVorschub/2/iNG -> 0.01388911202 | L55: =Parameter!T70 -> [mm]
B56: zul. Radialkraft | C56: F | D56: RZul.G | E56: =FRZulG -> 0 | F56: [N] | H56: Auslastung Getriebe | I56: ξ | J56: G | K56: =MEffNG/MNennG -> 0.8079465363 | L56: [%]
B58: Vorgaben zum Vorgelege VG | H58: Ergebnisse aus den Vorgaben
B59: Zähnezahl VG Abtrieb | C59: z | D59: VG AB | E59: 20 | F59: [1] | H59: Durchmesser VG Abtrieb | I59: d | J59: VG AB | K59: =Z_VG_AB*Teilung_VG/PI() -> 63.66197724 | L59: [mm]
B60: Zähnezahl VG Eintrieb | C60: z | D60: VG EIN | E60: 20 | F60: [1] | H60: Durchmesser VG Eintrieb | I60: d | J60: VG EIN | K60: =Z_VG_EIN*Teilung_VG/PI() -> 63.66197724 | L60: [mm]
B61: Teilung VG | C61: T | D61: VG | E61: 10 | F61: [mm] | H61: J reduziert | I61: J | J61: Reduziert | K61: =JExtern/(iGetriebe*iNG*iVG)^2+JNG/(iGetriebe*iVG)^2+J_G/(iVG)^2+JVG -> 31.07204292 | L61: [kgcm2]
B62: Breite VG | C62: b | D62: VG | E62: 25 | F62: [mm] | H62: auftretende Zugkraft | I62: F | J62: Zug | K62: =ABS(MMaxVG)/(D_VG_EIN/1000/2) -> 469.7079207 | L62: [N]
B63: Material VG | C63: ς | D63: VG | F63: [kg/dm3] | H63: erf. Trumkraft | I63: F | J63: Trum | K63: =K62*1.1 -> 516.6787128 | L63: [N]
B64: Innenbohrung | C64: d | D64: VG B | E64: 20 | F64: [mm] | H64: auftretende Radialkraft | I64: F | J64: Radial | K64: =2*K63 -> 1033.357426 | L64: [N]
B65: zusätzliche Trägheiten | C65: J | D65: VG Wellen | E65: 0 | F65: [kgcm2] | H65: erf. M Eff Vorgelege | I65: M | J65: EffVG | K65: =SQRT(SUM(Rechentabelle!AZ:AZ)/TGesamt) -> 5.963559698 | L65: [Nm]
B66: Übersetzung Vorgelege | C66: i | D66: VG | E66: =Z_VG_AB/Z_VG_EIN -> 1 | F66: [-] | H66: erf. M Max Vorgelege | I66: M | J66: MaxVG | K66: =IF(MAX(Rechentabelle!AY:AY)>ABS(MIN(Rechentabelle!AY:AY)),MAX(Rechentabelle!AY:AY),(MIN(Rechentabelle!AY:AY))) -> 14.95126748 | L66: [Nm]
B67: Trägheitsmoment | C67: J | D67: VG | E67: =1/2*((D_VG_AB/2)^2*PI()-(D_VG_B/2)^2*PI())*B_VG*rho_VG/1000000*((D_VG_AB/2)^2+(D_VG_B/2)^2)/100/iVG^2+1/2*((D_VG_EIN/2)^2*PI()-(D_VG_B/2)^2*PI())*B_VG*rho_VG/1000000*((D_VG_EIN/2)^2+(D_VG_B/2)^2)/100+J_VG_WELLEN -> 0 | F67: [Kgcm²] | H67: erf. n Max Vorgelege | I67: n | J67: MaxVG | K67: =IF(MAX(Rechentabelle!AT:AT)>ABS(MIN(Rechentabelle!AT:AT)),MAX(Rechentabelle!AT:AT),(MIN(Rechentabelle!AT:AT)))*Parameter!AQ70 -> 5146.97637 | L67: [1/min]
B68: Modul VG | C68: M | D68: VG | E68: =D_NG_AB/Z_NG_AB -> 3.183098862 | F68: [mm] | H68: Wirkungsgrad | I68: n | J68: VG | K68: =MEffVG/(MEffVG+MReibVG)*100 -> 100 | L68: [%]
B69: Reibung Vorgelege | C69: M | D69: ReibVG | E69: 0 | F69: [Nm] | H69: erforderliches Spiel | I69: dφ | J69: max | K69: =K42/iGetriebe/iVG -> 1.542832356 | L69: [arcmin]
B72: Kunde: | C72: =C2 -> KUNDE XY
B73: Projekt: | C73: =C3 -> PROJEKT XY
B74: Achse: | C74: =C4 -> ACHSE XY
B76: Vorgaben zum Motor | H76: Ergebnisse aus den Vorgaben:
B77: Hersteller | C77: MOTOR XY | H77: Motorgewicht | I77: m | J77: M | K77: =mM -> 10.5 | L77: [kg]
B78: Typbezeichnung | C78: AC M2n0650-4/2-6 | F78: -GW | H78: Bremse erforderlich | I78: = | K78: =IF(C10="0° horizontal","nein","ja") -> nein | M78: =65534-COUNTBLANK(Motorentabelle!$A$3:$A$65151) -> 3498
B79: ="Nenn"&Parameter!AK70 -> Nennmoment | C79: =Parameter!AH70 -> M | D79: NennM | E79: =MNennM -> 6.5 | F79: =Parameter!Y70 -> [Nm] | H79: ="erf. "&Parameter!AH70&" Nenn Motor" -> erf. M Nenn Motor | I79: =Parameter!AH70 -> M | J79: NennMErf | K79: =SQRT(SUM(Rechentabelle!BE:BE)/TGesamt) -> 6.621951721 | L79: =Parameter!Y70 -> [Nm]
B80: Nennstrom | C80: I | D80: NennM | E80: =INennM -> 6.6 | F80: [A] | H80: erf. I Nenn Motor | I80: I | J80: NennMErf | K80: =SQRT(SUM(Rechentabelle!BG:BG)/TGesamt) -> 6.723827901 | L80: [A]
B81: ="Nenn"&Parameter!AL70 -> Nenndrehzahl | C81: =Parameter!AA70 -> n | D81: NennM | E81: =nNennM -> 4000 | F81: =Parameter!R70 -> [1/min] | G81: 1.05 | H81: ="erf. "&Parameter!AA70&" Nenn Motor" -> erf. n Nenn Motor | I81: =Parameter!AA70 -> n | J81: NennMErf | K81: =nEffE*iVG -> 3060.335274 | L81: =Parameter!R70 -> [1/min]
B82: ="Stillstands"&Parameter!AK70 -> Stillstandsmoment | C82: =Parameter!AH70 -> M | D82: 0 Motor | E82: =M0Motor -> 9 | F82: =Parameter!Y70 -> [Nm] | H82: ="erf. "&Parameter!AA70&" Max Motor" -> erf. n Max Motor | I82: =Parameter!AA70 -> n | J82: MaxMErf | K82: =nMaxE*iVG -> 5146.97637 | L82: =Parameter!R70 -> [1/min]
B83: Stillstandsstrom | C83: I | D83: 0 Motor | E83: =I0Motor -> 9.2 | F83: [A] | H83: erf. P Nenn Motor | I83: P | J83: NennMErf | K83: =MNennMErf*2*PI()*nNennMErf/60 -> 2122.186933 | L83: [W]
B84: ="Motor- Maximal"&Parameter!AK70 -> Motor- Maximalmoment | C84: =Parameter!AH70 -> M | D84: MaxM | E84: =MMaxM -> 36 | F84: =Parameter!Y70 -> [Nm] | H84: ="erf. "&Parameter!AH70&" Max Motor" -> erf. M Max Motor | I84: =Parameter!AH70 -> M | J84: MaxMErf | K84: =IF(MAX(Rechentabelle!BD:BD)>ABS(MIN(Rechentabelle!BD:BD)),MAX(Rechentabelle!BD:BD),(MIN(Rechentabelle!BD:BD))) -> 16.53872442 | L84: =Parameter!Y70 -> [Nm]
B85: Motor- Maximalstrom | C85: I | D85: MaxM | E85: =IMaxM -> 36.73469388 | F85: [A] | H85: erf. I Max Motor | I85: I | J85: MaxMErf | K85: =IF(MAX(Rechentabelle!BF:BF)>ABS(MIN(Rechentabelle!BF:BF)),MAX(Rechentabelle!BF:BF),(MIN(Rechentabelle!BF:BF))) -> 16.79316633 | L85: [A]
B88: Motor- Trägheitsmoment | C88: J | D88: Motor | E88: =JMotor -> 3.6 | F88: [kgcm2] | H88: Massenanpassung | I88: FI | K88: =(JExtern/(iGetriebe*iNG*iVG)^2+JNG/(iGetriebe*iVG)^2)/(JMotor+JGetriebe/iVG^2+JVG) -> 7.597064528 | L88: [ / 1]
B89: Zwischenkreisspannung | C89: U | D89: ZWKM | E89: =UZWKM -> 565 | F89: [VDC] | H89: auftretende Radiallast | I89: F | J89: RadialM | K89: =IF(C46="kein Getriebe",FRadial,IF(C46="Vorgelege",FRadial/iGetriebe,0)) -> 0 | L89: [N]
B90: zul. Radialkraft | C90: F | D90: Rzul.M | E90: =FRZulM -> 300 | F90: [N] | H90: Auslastung Motor | I90: ξ | J90: M | K90: =MNennMErf^2/MNennM_at_speed^2 -> 0.7577757614 | L90: [%]
B92: Vorgaben zum Servoverstärker: | H92: Ergebnisse aus den Vorgaben:
B93: Hersteller | C93: REGLER XY | H93: Maxstrom wegen Motor | K93: =IMaxM -> 36.73469388 | L93: [A]
B94: Typbezeichnung | C94: 638B/10-7-F… | F94: -…-RD2 | H94: Maxstrom wegen Getriebe | K94: =IF(MNotausG/iGetriebe*INennM/MNennM<(MBeschlG/iGetriebe+MReibG+(JMotor+JGetriebe)/10000*ABS(aMaxE))*INennM/MNennM,MNotausG/iGetriebe*INennM/MNennM,(MBeschlG/iGetriebe+MReibG+(JMotor+JGetriebe)/10000*ABS(aMaxE))*INennM/MNennM) -> 17.36230701 | L94: [A] | M94: =65534-COUNTBLANK(Reglertabelle!$A$3:$A$65536) -> 104
B95: Nennstrom | C95: I | D95: NennR | E95: =INennR -> 10 | F95: [A] | H95: erf. I Nenn Regler | I95: I | J95: NennRErf | K95: =SQRT(SUM(Rechentabelle!BG:BG)/TGesamt) -> 6.723827901 | L95: [A]
B96: Regler- Maximalsrom | C96: I | D96: MaxR | E96: =IMaxR -> 20 | F96: [A] | H96: erf. I Max Regler | I96: I | J96: MaxRErf | K96: =IF(MAX(Rechentabelle!BF:BF)>ABS(MIN(Rechentabelle!BF:BF)),MAX(Rechentabelle!BF:BF),(MIN(Rechentabelle!BF:BF))) -> 16.79316633 | L96: [A]
B97: Zwischenkreisspannung | C97: U | D97: ZWKR | E97: =UZWKR -> 565 | F97: [VDC] | H97: Zwischenkreispannung | K97: =ROUNDDOWN(UNetz*SQRT(2),0) -> 565 | L97: [VDC]
B98: Anschlussspannung | C98: U | D98: Netz | E98: 400 | F98: [VAC] | G98: =UNetz -> 400 | H98: Maxstrom Regler einstellen auf: | K98: =MIN(Maxstrom_wegen_Motor,Maxstom_wegen_Getriebe,IMaxR) -> 17.36230701 | L98: [A]
B99: Auflösung Motorgeber | E99: 65536 | F99: =Parameter!Z70 -> [Ink/U] | H99: erf. Auflösung Motorgeber | K99: =sVorschub/(2*dsFehler*iGetriebe)*10 -> 2857.188759 | L99: =Parameter!Z70 -> [Ink/U]
B100: Fehler Gebersystem | C100: dφ | D100: Geber ± | E100: =VLOOKUP(TypbezeichnungRegleroption,RegleroptionAuswahlMatrix,2,FALSE) -> 42 | F100: [ ' ] | H100: Positionierfehler Geber | I100: ds | J100: Geber ± | K100: =dfGeber/(360*60)/iGetriebe*sVorschub/2 -> 0.02777822404 | L100: =Parameter!T70 -> [mm]
B101: Leistung interner Bremswiderstand | E101: =PRInt -> 30 | F101: [W] | H101: Positionierfehler Summe | I101: ds | J101: Ges ± | K101: =dsSpiel+dsGeber -> 0.04166733606 | L101: =Parameter!T70 -> [mm]
B102: Leistung externer Bremswiderstand | E102: =PRExt -> 1100 | F102: [W] | H102: Mittlere Bremsleistung | I102: P | J102: B Mittel | K102: =ABS(SUM(Rechentabelle!BP:BP)/TGesamt) -> 336.4525573 | L102: [W]
B103: Anzahl Stützstellen des CAM-Profils | E103: 1080 | F103: [-] | H103: Impulsleistung Bremsung | I103: P | J103: B Impuls | K103: =ABS(MIN(Rechentabelle!BO:BO)) -> 4484.940626 | L103: [W]
B104: Masterinkremente an X40 | C104: z | D104: Geber ± | E104: 4096 | F104: [Inkr.] | H104: Frequenz an X40 | I104: f | J104: X40 | K104: =zGeber/TGesamt -> 2.048 | L104: [kHz]
B105: Masterstroke | C105: z | D105: Master | E105: =4*zGeber -> 16384 | F105: [Inkr.] | H105: Auflösung Weg | I105: z | J105: mm | K105: =PPR*iGetriebe/sVorschub -> 2293.72315 | L105: =Parameter!X70 -> [Ink/mm]
B106: Minwert Widerstand | C106: R | D106: B Min | E106: =RBMin -> 22 | F106: [Ω] | H106: Maxwert Widerstand | I106: R | J106: B Max | K106: =ABS(MAX(Rechentabelle!BQ:BQ)) -> 101.5673273 | L106: [Ω]
B107: Externe Kapazität | C107: C | D107: Ext. | E107: =0*3100 -> 0 | F107: [µF] | H107: Auslastung Regler | I107: ξ | J107: R | K107: =INennRErf^2/INennR^2 -> 0.4520986165 | L107: [%]
B109: Diese Berechnungen wurden von uns anhand der von Ihnen übermittelten Daten durchgeführt. Bitte beachten Sie, dass es sich hierbei um eine unverbindliche Empfehlung und nicht um die Zusicherung von Eigenschaften handelt. Unsere Empfehlung entbindet Sie daher nicht von der Pflicht, die Richtigkeit der Berechnungen für Ihren Anwendungsfall zu überprüfen. Dies ist besonders wichtig, wenn Annahmen zu nicht definierten Werten, z. Bsp. Reibung, Massenträgheitsmomenten, Gewichten usw. getroffen wurden oder diese Werte nachträglich geändert werden.

Sheet Parameter (hidden)
A1: ProfilAuswahl
A2: Nullprofil
A3: 1/2 Trapez
A4: 1/3 Trapez
A5: 1/4 Trapez
A6: 1/5 Trapez
A7: 1/6 Trapez
A8: 1/7 Trapez
A9: sym. Polynom 5. Ordnung
A10: unsym. Polynom 5. Ordnung
A11: sym. Polynom 7. Ordnung
A12: unsym. Polynom 7. Ordnung
A13: 1/3 Trapez Polynom 7
A14: sym. Polynom 9. Ordnung
A15: geneigte Sinuslinie
A16: modifizierte Sinuslinie
A17: modifiziertes Beschl. Trapez
A18: 1/2 ruckbegrenztes Trapez
A19: 1/3 ruckbegrenztes Trapez
A20: 1/4 ruckbegrenztes Trapez
A21: 1/2 mod. ruckbegrenztes Trapez
A22: 1/3 mod. ruckbegrenztes Trapez
A23: 1/4 mod. ruckbegrenztes Trapez
A24: 1/2 Profil für elastische Riemen
A25: 1/3 Profil für elastische Riemen
A26: 1/4 Profil für elastische Riemen
A27: 1/2 Sin^2-Trapez
A28: 1/3 Sin^2-Trapez
A29: 1/4 Sin^2-Trapez
A30: 1/5 Sin^2-Trapez
A31: 1/6 Sin^2-Trapez
A32: 1/7 Sin^2-Trapez
A33: 1/2 Sin-Trapez
A34: 1/3 Sin-Trapez | AF34: α
A35: 1/4 Sin-Trapez
A36: 1/5 Sin-Trapez
A37: 1/6 Sin-Trapez
A38: 1/7 Sin-Trapez
A39: Beschleunigung linear
A40: Beschleunigung Sin^2
A41: Beschleunigung quadratisch
A42: Beschleunigung konstante Leistung
A43: Konstantfahrt
A44: Bremsung linear
A45: Bremsung Sin^2
A46: Bremsung quadratisch
A47: Bremsung reduzierte Leistung
A48: Bremsung minimierte Leistung
A49: Bremsung optimierte Leistung
A50: EMK - Profil
A51: 1/2 JOUNCE FREE PROFIL
A52: 2/5 JOUNCE FREE PROFIL
A53: 1/3 JOUNCE FREE PROFIL
A54: 1/4 JOUNCE FREE PROFIL
A55: Polynom 7. Ordnung TYP A
A56: Polynom 7. Ordnung TYP B
A57: Polynom 7. Ordnung TYP C
A58: Polynom 7. Ordnung TYP D
A59: Polynom 7. Ordnung TYP E
A60: Polynom 7. Ordnung TYP F
A61: Polynom 7. Ordnung TYP G
A62: Polynom 7. Ordnung TYP H
A63: Polynom 7. Ordnung TYP I
A64: Polynom 7. Ordnung TYP J
A65: Kurzschnitt
A66: Langschnitt
A67: Nolte NC-Kurve
A69: Typauswahl | B69: rot. Trägh | C69: Trum | D69: trans. Trägh. | E69: weiß | F69: Texte | S69: Einheiten | AB69: Formelbuchstaben | AI69: Texte | AP69: Vorschubkon | AQ69: Umrechn n->v
B70: =VLOOKUP(Hardware!$C$8,TypAuswahlMatrix,2,FALSE) -> 0 | C70: =VLOOKUP(Hardware!$C$8,TypAuswahlMatrix,3,FALSE) -> 1 | D70: =VLOOKUP(Hardware!$C$8,TypAuswahlMatrix,4,FALSE) -> 1 | E70: =VLOOKUP(Hardware!$C$8,TypAuswahlMatrix,5,FALSE) -> 1 | F70: =VLOOKUP(Hardware!$C$8,TypAuswahlMatrix,6,FALSE) -> Zusatzlast | G70: =VLOOKUP(Hardware!$C$8,TypAuswahlMatrix,7,FALSE) -> Schlittenmasse | H70: =VLOOKUP(Hardware!$C$8,TypAuswahlMatrix,8,FALSE) -> Basisgewicht | I70: =VLOOKUP(Hardware!$C$8,TypAuswahlMatrix,9,FALSE) -> Motorgewicht | J70: =VLOOKUP(Hardware!$C$8,TypAuswahlMatrix,10,FALSE) -> Getriebegewicht | K70: =VLOOKUP(Hardware!$C$8,TypAuswahlMatrix,11,FALSE) -> Scheibenbreite | L70: =VLOOKUP(Hardware!$C$8,TypAuswahlMatrix,12,FALSE) -> Scheibendurchmesser | M70: =VLOOKUP(Hardware!$C$8,TypAuswahlMatrix,13,FALSE) -> Vorschubkonstante | N70: =VLOOKUP(Hardware!$C$8,TypAuswahlMatrix,14,FALSE) -> Scheibenmaterial | O70: =VLOOKUP(Hardware!$C$8,TypAuswahlMatrix,15,FALSE) -> Anzahl der Scheiben | P70: =VLOOKUP(Hardware!$C$8,TypAuswahlMatrix,16,FALSE) -> Reibung bez. auf Scheibe | Q70: =VLOOKUP(Hardware!$C$8,TypAuswahlMatrix,17,FALSE) -> Max-Drehzahl der Scheibe | R70: =VLOOKUP(Hardware!$C$8,TypAuswahlMatrix,18,FALSE) -> [1/min] | S70: =VLOOKUP(Hardware!$C$8,TypAuswahlMatrix,19,FALSE) -> [mm/R] | T70: =VLOOKUP(Hardware!$C$8,TypAuswahlMatrix,20,FALSE) -> [mm] | U70: =VLOOKUP(Hardware!$C$8,TypAuswahlMatrix,21,FALSE) -> mm | V70: =VLOOKUP(Hardware!$C$8,TypAuswahlMatrix,22,FALSE) -> [m/s] | W70: =VLOOKUP(Hardware!$C$8,TypAuswahlMatrix,23,FALSE) -> [m/s^2] | X70: =VLOOKUP(Hardware!$C$8,TypAuswahlMatrix,24,FALSE) -> [Ink/mm] | Y70: =VLOOKUP(Hardware!$C$8,TypAuswahlMatrix,25,FALSE) -> [Nm] | Z70: =VLOOKUP(Hardware!$C$8,TypAuswahlMatrix,26,FALSE) -> [Ink/U] | AA70: =VLOOKUP(Hardware!$C$8,TypAuswahlMatrix,27,FALSE) -> n | AB70: =VLOOKUP(Hardware!$C$8,TypAuswahlMatrix,28,FALSE) -> s | AC70: =VLOOKUP(Hardware!$C$8,TypAuswahlMatrix,29,FALSE) -> v | AD70: =VLOOKUP(Hardware!$C$8,TypAuswahlMatrix,30,FALSE) -> a | AE70: =VLOOKUP(Hardware!$C$8,TypAuswahlMatrix,31,FALSE) -> s [mm] | AF70: =VLOOKUP(Hardware!$C$8,TypAuswahlMatrix,32,FALSE) -> v [m/s] | AG70: =VLOOKUP(Hardware!$C$8,TypAuswahlMatrix,33,FALSE) -> a [m/s²] | AH70: =VLOOKUP(Hardware!$C$8,TypAuswahlMatrix,34,FALSE) -> M | AI70: =VLOOKUP(Hardware!$C$8,TypAuswahlMatrix,35,FALSE) -> Moment | AJ70: =VLOOKUP(Hardware!$C$8,TypAuswahlMatrix,36,FALSE) -> Scheibe | AK70: =VLOOKUP(Hardware!$C$8,TypAuswahlMatrix,37,FALSE) -> moment | AL70: =VLOOKUP(Hardware!$C$8,TypAuswahlMatrix,38,FALSE) -> drehzahl | AM70: =VLOOKUP(Hardware!$C$8,TypAuswahlMatrix,39,FALSE) -> Kupplung | AN70: =VLOOKUP(Hardware!$C$8,TypAuswahlMatrix,40,FALSE) -> zusätzliche Trägheiten | AO70: =VLOOKUP(Hardware!$C$8,TypAuswahlMatrix,41,FALSE) -> 0 | AP70: =VLOOKUP(Hardware!$C$8,TypAuswahlMatrix,42,FALSE) -> 200.0032131 | AQ70: =VLOOKUP(Hardware!$C$8,TypAuswahlMatrix,43,FALSE) -> 1
A71: Spindel | B71: 0 | C71: 0 | D71: 1 | E71: 1 | F71: Zusatzlast | G71: Schlittenmasse | H71: Basisgewicht | I71: Motorgewicht | J71: Getriebegewicht | K71: Spindellänge | L71: Spindeldurchmesser | M71: Vorschubkonstante | N71: Spindelmaterial | O71: Anzahl der Spindeln | P71: Reibung bez. auf Spindel | Q71: Max-Drehzahl der Spindel | R71: [1/min] | S71: [mm/R] | T71: [mm] | U71: mm | V71: [m/s] | W71: [m/s^2] | X71: [Ink/mm] | Y71: [Nm] | Z71: [Ink/U] | AA71: n | AB71: s | AC71: v | AD71: a | AE71: s [mm] | AF71: v [m/s] | AG71: a [m/s²] | AH71: M | AI71: Moment | AJ71: Spindel | AK71: moment | AL71: drehzahl | AM71: Kupplung | AN71: zusätzliche Trägheiten | AP71: 10 | AQ71: 1
A72: Zahnriemen / Scheibe | B72: 0 | C72: 1 | D72: 1 | E72: 1 | F72: Zusatzlast | G72: Schlittenmasse | H72: Basisgewicht | I72: Motorgewicht | J72: Getriebegewicht | K72: Scheibenbreite | L72: Scheibendurchmesser | M72: Vorschubkonstante | N72: Scheibenmaterial | O72: Anzahl der Scheiben | P72: Reibung bez. auf Scheibe | Q72: Max-Drehzahl der Scheibe | R72: [1/min] | S72: [mm/R] | T72: [mm] | U72: mm | V72: [m/s] | W72: [m/s^2] | X72: [Ink/mm] | Y72: [Nm] | Z72: [Ink/U] | AA72: n | AB72: s | AC72: v | AD72: a | AE72: s [mm] | AF72: v [m/s] | AG72: a [m/s²] | AH72: M | AI72: Moment | AJ72: Scheibe | AK72: moment | AL72: drehzahl | AM72: Kupplung | AN72: zusätzliche Trägheiten | AP72: =dS*PI() -> 200.0032131 | AQ72: 1
A73: Zahnstange / Ritzel | B73: 0 | C73: 0 | D73: 1 | E73: 1 | F73: Zusatzlast | G73: Schlittenmasse | H73: Basisgewicht | I73: Motorgewicht | J73: Getriebegewicht | K73: Ritzelbleite | L73: Ritzeldurchmesser | M73: Vorschubkonstante | N73: Ritzelmaterial | O73: Anzahl der Ritzel | P73: Reibung bez. auf Ritzel | Q73: Max-Drehzahl der Ritzel | R73: [1/min] | S73: [mm/R] | T73: [mm] | U73: mm | V73: [m/s] | W73: [m/s^2] | X73: [Ink/mm] | Y73: [Nm] | Z73: [Ink/U] | AA73: n | AB73: s | AC73: v | AD73: a | AE73: s [mm] | AF73: v [m/s] | AG73: a [m/s²] | AH73: M | AI73: Moment | AJ73: Ritzel | AK73: moment | AL73: drehzahl | AM73: Kupplung | AN73: zusätzliche Trägheiten | AP73: =dS*PI() -> 200.0032131 | AQ73: 1
A74: Rundschalttisch | B74: 1 | C74: 0 | D74: 0 | E74: 1 | F74: Null eintragen | G74: Null eintragen | H74: Null eintragen | I74: Null eintragen | J74: Null eintragen | K74: Tischdicke | L74: Tischdurchmesser | M74: Vorschubkonstante | N74: Tischmaterial | O74: Anzahl der Scheiben | P74: Reibung bez. auf Tisch | Q74: Max-Drehzahl Tisch | R74: [1/min] | S74: [°/R] | T74: [°] | U74: Grad | V74: [°/ms] | W74: [k°/s^2] | X74: [Ink/°] | Y74: [Nm] | Z74: [Ink/U] | AA74: n | AB74: φ | AC74: ω | AD74: α | AE74: φ [°] | AF74: ω [°/ms] | AG74: α [k°/s²] | AH74: M | AI74: Moment | AJ74: Tisch | AK74: moment | AL74: drehzahl | AM74: Kupplung | AN74: zusätzliche Trägheiten | AP74: 360 | AQ74: 1
A75: Torque- Motor | B75: 1 | C75: 0 | D75: 0 | E75: 1 | F75: Null eintragen | G75: Null eintragen | H75: Null eintragen | I75: Null eintragen | J75: Null eintragen | K75: Tischdicke | L75: Tischdurchmesser | M75: Vorschubkonstante | N75: Tischmaterial | O75: Anzahl der Scheiben | P75: Reibung bez. auf Tisch | Q75: Max-Drehzahl Tisch | R75: [1/min] | S75: [°/R] | T75: [°] | U75: Grad | V75: [°/ms] | W75: [k°/s^2] | X75: [Ink/°] | Y75: [Nm] | Z75: [Ink/U] | AA75: n | AB75: φ | AC75: ω | AD75: α | AE75: φ [°] | AF75: ω [°/ms] | AG75: α [k°/s²] | AH75: M | AI75: Moment | AJ75: Tisch | AK75: moment | AL75: drehzahl | AM75: Null eintragen | AN75: zusätzliche Trägheiten | AP75: 360 | AQ75: 1
A76: Linear- Motor | B76: 0 | C76: 0 | D76: 0 | E76: 0 | F76: Zusatzlast | G76: Schlittenmasse | H76: Basisgewicht | I76: Null eintragen | J76: Null eintragen | K76: Null eintragen | L76: Null eintragen | M76: 6283,19 eintragen | N76: Null eintragen | O76: Null eintragen | P76: Zusatzreibung | Q76: Max | R76: [mm/s] | S76: [-] | T76: [mm] | U76: mm | V76: [m/s] | W76: [m/s^2] | X76: [Ink/mm] | Y76: [N] | Z76: [Ink/mm] | AA76: v | AB76: s | AC76: v | AD76: a | AE76: s [mm] | AF76: v [m/s] | AG76: a [m/s²] | AH76: F | AI76: Kraft | AJ76: ------ | AK76: kraft | AL76: geschwindigkeit | AM76: Null eintragen | AN76: Null eintragen | AP76: 6283.1853 | AQ76: =sVorschub/60 -> 3.333386885
A79: EinbaulageAuswahl | B79: α
A80: 0° horizontal | B80: 0
A81: 30° | B81: 30
A82: 45° | B82: 45
A83: 60° | B83: 60
A84: 90° vertikal | B84: 90
A86: AnbauAuswahl | B86: Last | C86: Schlitten | D86: Basis | E86: MG
A87: Last+Schlitten fährt | B87: 1 | C87: 1 | D87: 0 | E87: 0
A88: Last+Basis fährt | B88: 1 | C88: 0 | D88: 1 | E88: 0
A89: Last+Basis+MG fährt | B89: 1 | C89: 0 | D89: 1 | E89: 1
A91: MotorgewichtAuswahl
A93: =mM -> 10.5
A95: GetriebegewichtAuswahl
A97: =mG -> 2,6
A99: VorschubAuswahl
A101: =AP70 -> 200.0032131
A102: 20
A103: 30
A104: 50
A107: MaterialAuswahl
A109: 2.7
A110: 7.8
A112: MotoroptionAuswahl | B112: Bremse?
A113: =VLOOKUP(Hardware!C78,MotorenAuswahlMatrix,29,FALSE) -> -… | B113: =IF(OR(A113="-BR",A113="-BG",A113="7300",A113="7301",A113="1500",A113="1501"),"ja","nein") -> nein
A114: =VLOOKUP(Hardware!C78,MotorenAuswahlMatrix,30,FALSE) -> -GW | B114: =IF(OR(A114="-BR",A114="-BG",A114="7300",A114="7301",A114="1500",A114="1501"),"ja","nein") -> nein
A115: =VLOOKUP(Hardware!C78,MotorenAuswahlMatrix,31,FALSE) -> -BR | B115: =IF(OR(A115="-BR",A115="-BG",A115="7300",A115="7301",A115="1500",A115="1501"),"ja","nein") -> ja
A116: =VLOOKUP(Hardware!C78,MotorenAuswahlMatrix,32,FALSE) -> -BG | B116: =IF(OR(A116="-BR",A116="-BG",A116="7300",A116="7301",A116="1500",A116="1501"),"ja","nein") -> ja
A119: RegleroptionAuswahl | B119: Fehler [']
A120: =VLOOKUP(Hardware!C94,ReglerAuswahlMatrix,15,FALSE) -> -…-RD2 | B120: =IF(OR(A120="-…",A120="-…-RD2",A120="-F10"),42,0) -> 42
A121: =VLOOKUP(Hardware!C94,ReglerAuswahlMatrix,16,FALSE) -> -…-HF2 | B121: =IF(OR(A121="-…",A121="-…-RD2",A121="-F10"),42,0) -> 0
A122: =VLOOKUP(Hardware!C94,ReglerAuswahlMatrix,17,FALSE) -> -…-SC2 | B122: =IF(OR(A122="-…",A122="-…-RD2",A122="-F10"),42,0) -> 0
B123: =IF(OR(A123="-…",A123="-…-RD2",A123="-F10"),42,0) -> 0
A125: DateinameAuswahlprf
A127: =Hardware!C2&" "&Hardware!C3&" "&Hardware!C4&".csv" -> KUNDE XY PROJEKT XY ACHSE XY .csv
A128: =Hardware!C3&" "&Hardware!C4&".csv" -> PROJEKT XY ACHSE XY .csv
A129: =Hardware!C4&".csv" -> ACHSE XY .csv
A131: DateinameAuswahltxt
A133: =Hardware!C2&Hardware!C3&Hardware!C4&".txt" -> KUNDE XY PROJEKT XY ACHSE XY .txt
A134: =Hardware!C3&Hardware!C4&".txt" -> PROJEKT XY ACHSE XY .txt
A135: =Hardware!C4&".txt" -> ACHSE XY .txt
A137: AuflösungAuswahl
A139: =VLOOKUP(Hardware!$C$94,ReglerAuswahlMatrix,7,FALSE) -> 65536
A141: GetriebeHerstellerAuswahl
A142: GETRIEBE XY
A144: ALPHA
A145: WITTENSTEIN
A146: NEUGART
A147: STÖBER
A148: SUMITOMO
A149: NABTESCO
A150: SPINEA
A151: NIDEC
A152: BAUER
A153: REHFUSS
A155: MotorHerstellerAuswahl
A156: MOTOR XY
A158: AMK
A159: SSD
A160: PARKER
A161: LENZE
A162: KOLLMORGEN
A163: SEW
A165: ReglerHerstellerAuswahl
A166: REGLER XY
A168: AMK
A169: SSD
A170: PARKER
A171: LENZE
A172: KOLLMORGEN
A173: SEW

Sheet Bewegungen
B2: Kunde: | D2: =Hardware!C2 -> KUNDE XY | J2: Notizen:
B3: Projekt: | D3: =Hardware!C3 -> PROJEKT XY
B4: Achse: | D4: =Hardware!C4 -> ACHSE XY
B6: Vorgaben der Bewegungen:
B7: Bewegung 1 von | D7: 0 | E7: [ms] | F7: bis | G7: 600 | H7: [ms] | I7: Weg | J7: 1000 | K7: =Parameter!T70 -> [mm] | L7: 1/3 Trapez Polynom 7
B8: Bewegung 2 von | D8: =G7 -> 600 | E8: [ms] | F8: bis | G8: 1000 | H8: [ms] | I8: Weg | J8: 0 | K8: =Parameter!T70 -> [mm] | L8: Nullprofil
B9: Bewegung 3 von | D9: =G8 -> 1000 | E9: [ms] | F9: bis | G9: 1600 | H9: [ms] | I9: Weg | J9: 1000 | K9: =Parameter!T70 -> [mm] | L9: 1/3 Sin^2-Trapez
B10: Bewegung 4 von | D10: 1600 | E10: [ms] | F10: bis | G10: 2000 | H10: [ms] | I10: Weg | J10: 0 | K10: =Parameter!T70 -> [mm] | L10: Nullprofil
B11: Bewegung 5 von | D11: =G10 -> 2000 | E11: [ms] | F11: bis | G11: =T4E -> 2000 | H11: [ms] | I11: Weg | J11: 0 | K11: =Parameter!T70 -> [mm] | L11: Nullprofil
B12: Bewegung 6 von | D12: 2000 | E12: [ms] | F12: bis | G12: =T5E -> 2000 | H12: [ms] | I12: Weg | J12: 0 | K12: =Parameter!T70 -> [mm] | L12: Nullprofil
B13: Bewegung 7 von | D13: 2000 | E13: [ms] | F13: bis | G13: =T6E -> 2000 | H13: [ms] | I13: Weg | J13: 0 | K13: =Parameter!T70 -> [mm] | L13: Nullprofil
B14: Bewegung 8 von | D14: 2000 | E14: [ms] | F14: bis | G14: =T7E -> 2000 | H14: [ms] | I14: Weg | J14: 0 | K14: =Parameter!T70 -> [mm] | L14: Nullprofil
B15: Bewegung 9 von | D15: 2000 | E15: [ms] | F15: bis | G15: =T8E -> 2000 | H15: [ms] | I15: Weg | J15: 0 | K15: =Parameter!T70 -> [mm] | L15: Nullprofil
B16: Bewegung 10 von | D16: 2000 | E16: [ms] | F16: bis | G16: =T9E -> 2000 | H16: [ms] | I16: Weg | J16: 0 | K16: =Parameter!T70 -> [mm] | L16: Nullprofil
B17: Bewegung 11 von | D17: 2000 | E17: [ms] | F17: bis | G17: =T10E -> 2000 | H17: [ms] | I17: Weg | J17: 0 | K17: =Parameter!T70 -> [mm] | L17: Nullprofil
B18: Bewegung 12 von | D18: 2000 | E18: [ms] | F18: bis | G18: =T11E -> 2000 | H18: [ms] | I18: Weg | J18: 0 | K18: =Parameter!T70 -> [mm] | L18: Nullprofil
B19: Bewegung 13 von | D19: 2000 | E19: [ms] | F19: bis | G19: =T12E -> 2000 | H19: [ms] | I19: Weg | J19: 0 | K19: =Parameter!T70 -> [mm] | L19: Nullprofil
B20: Bewegung 14 von | D20: 2000 | E20: [ms] | F20: bis | G20: =T13E -> 2000 | H20: [ms] | I20: Weg | J20: 0 | K20: =Parameter!T70 -> [mm] | L20: Nullprofil
B22: Gesamtzeit: | D22: T Gesamt | F22: =MAX(G7:G20) -> 2000 | H22: [ms]
B23: Gesamtweg: | D23: s Gesamt | F23: =SUM(J7:J20) -> 2000 | H23: =Parameter!T70 -> [mm]
B26: Ergebnisse aus den Vorgaben
B27: Bewegung 1 von | D27: 0 | E27: [SS] | F27: bis | G27: =ROUND(T1E*zStütz/TGesamt,0) -> 324 | H27: [SS] | I27: Weg | J27: =ROUND(_WEG1/sVorschub*iGetriebe*PPR,0) -> 2293723 | K27: [Inkr.] | L27: =PROFIL1 -> 1/3 Trapez Polynom 7
B28: Bewegung 2 von | D28: =G27 -> 324 | E28: [SS] | F28: bis | G28: =ROUND(T2E*zStütz/TGesamt,0) -> 540 | H28: [SS] | I28: Weg | J28: =ROUND(_WEG2/sVorschub*iGetriebe*PPR,0) -> 0 | K28: [Inkr.] | L28: =PROFIL2 -> Nullprofil
B29: Bewegung 3 von | D29: =G28 -> 540 | E29: [SS] | F29: bis | G29: =ROUND(T3E*zStütz/TGesamt,0) -> 864 | H29: [SS] | I29: Weg | J29: =ROUND(_WEG3/sVorschub*iGetriebe*PPR,0) -> 2293723 | K29: [Inkr.] | L29: =PROFIL3 -> 1/3 Sin^2-Trapez
B30: Bewegung 4 von | D30: =G29 -> 864 | E30: [SS] | F30: bis | G30: =ROUND(T4E*zStütz/TGesamt,0) -> 1080 | H30: [SS] | I30: Weg | J30: =ROUND(_WEG4/sVorschub*iGetriebe*PPR,0) -> 0 | K30: [Inkr.] | L30: =PROFIL4 -> Nullprofil
B31: Bewegung 5 von | D31: =G30 -> 1080 | E31: [SS] | F31: bis | G31: =ROUND(T5E*zStütz/TGesamt,0) -> 1080 | H31: [SS] | I31: Weg | J31: =ROUND(_WEG5/sVorschub*iGetriebe*PPR,0) -> 0 | K31: [Inkr.] | L31: =PROFIL5 -> Nullprofil
B32: Bewegung 6 von | D32: =G31 -> 1080 | E32: [SS] | F32: bis | G32: =ROUND(T6E*zStütz/TGesamt,0) -> 1080 | H32: [SS] | I32: Weg | J32: =ROUND(_WEG6/sVorschub*iGetriebe*PPR,0) -> 0 | K32: [Inkr.] | L32: =PROFIL6 -> Nullprofil
B33: Bewegung 7 von | D33: =G32 -> 1080 | E33: [SS] | F33: bis | G33: =ROUND(T7E*zStütz/TGesamt,0) -> 1080 | H33: [SS] | I33: Weg | J33: =ROUND(_WEG7/sVorschub*iGetriebe*PPR,0) -> 0 | K33: [Inkr.] | L33: =PROFIL7 -> Nullprofil
B34: Bewegung 8 von | D34: 1080 | E34: [SS] | F34: bis | G34: =ROUND(T8E*zStütz/TGesamt,0) -> 1080 | H34: [SS] | I34: Weg | J34: =ROUND(_WEG8/sVorschub*iGetriebe*PPR,0) -> 0 | K34: [Inkr.] | L34: =PROFIL8 -> Nullprofil
B35: Bewegung 9 von | D35: 1080 | E35: [SS] | F35: bis | G35: =ROUND(T9E*zStütz/TGesamt,0) -> 1080 | H35: [SS] | I35: Weg | J35: =ROUND(_WEG9/sVorschub*iGetriebe*PPR,0) -> 0 | K35: [Inkr.] | L35: =PROFIL9 -> Nullprofil
B36: Bewegung 10 von | D36: 1080 | E36: [SS] | F36: bis | G36: =ROUND(T10E*zStütz/TGesamt,0) -> 1080 | H36: [SS] | I36: Weg | J36: =ROUND(_WEG10/sVorschub*iGetriebe*PPR,0) -> 0 | K36: [Inkr.] | L36: =PROFIL10 -> Nullprofil
B37: Bewegung 11 von | D37: 1080 | E37: [SS] | F37: bis | G37: =ROUND(T11E*zStütz/TGesamt,0) -> 1080 | H37: [SS] | I37: Weg | J37: =ROUND(_WEG11/sVorschub*iGetriebe*PPR,0) -> 0 | K37: [Inkr.] | L37: =PROFIL11 -> Nullprofil
B38: Bewegung 12 von | D38: 1080 | E38: [SS] | F38: bis | G38: =ROUND(T12E*zStütz/TGesamt,0) -> 1080 | H38: [SS] | I38: Weg | J38: =ROUND(_WEG12/sVorschub*iGetriebe*PPR,0) -> 0 | K38: [Inkr.] | L38: =PROFIL12 -> Nullprofil
B39: Bewegung 13 von | D39: 1080 | E39: [SS] | F39: bis | G39: =ROUND(T13E*zStütz/TGesamt,0) -> 1080 | H39: [SS] | I39: Weg | J39: =ROUND(_WEG13/sVorschub*iGetriebe*PPR,0) -> 0 | K39: [Inkr.] | L39: =PROFIL13 -> Nullprofil
B40: Bewegung 14 von | D40: 1080 | E40: [SS] | F40: bis | G40: =ROUND(T14E*zStütz/TGesamt,0) -> 1080 | H40: [SS] | I40: Weg | J40: =ROUND(_WEG14/sVorschub*iGetriebe*PPR,0) -> 0 | K40: [Inkr.] | L40: =PROFIL14 -> Nullprofil
B42: Dateiname: | D42: KUNDE XY PROJEKT XY ACHSE XY .csv
B45: Dateiname: | D45: KUNDE XY PROJEKT XY ACHSE XY .txt

Sheet Rechentabelle (hidden)
A1: t [ms] | B1: dt [ms] | C1: =Parameter!AE70 -> s [mm] | D1: =Parameter!AF70 -> v [m/s] | E1: =Parameter!AG70 -> a [m/s²] | F1: a' [m/s³] | G1: Kontrolle v [m/s] | H1: Kontrolle a [m/s²] | I1: αG [rad/s2] | J1: MJ [Nm] | K1: FT [N] | L1: MT [Nm] | M1: MR [Nm] | N1: MG [Nm] | O1: MP [Nm] | P1: MJRGP [Nm] | Q1: MJRGP² *dt [Nm² *ms] | R1: nS [1/min] | S1: nS² *dt [ms/min²] | T1: nS*dt*MJRGP3 [ms*Nm3/min] | U1: nS*dt [ms/min] | V1: ED [ms] | W1: --- | X1: nENG [1/min] | Y1: αENG [rad/s2] | Z1: MRNG [Nm] | AA1: MJNG [Nm] | AB1: MJRGP/i [Nm] | AC1: MENG [Nm] | AD1: MENG² *dt [Nm² *ms] | AE1: αENG²*dt [rad²/s4*ms] | AF1: nENG*dt*MENG3 [ms*Nm3/min] | AG1: nENG*dt [ms/min] | AH1: --- | AI1: nEGetr [1/min] | AJ1: αEGetr [rad/s²] | AK1: MRGetr [Nm] | AL1: MJGetr [Nm] | AM1: MENG/i [Nm] | AN1: MEGetr [Nm] | AO1: MEGetr²*dt [Nm²*ms] | AP1: αEGE² *dt [rad²/s4*ms] | AQ1: nEGetr*dt*MEGetr3 [ms*Nm3/min] | AR1: nEGetr*dt [ms/min] | AS1: --- | AT1: nEVG [1/min] | AU1: αEVG [rad/s²] | AV1: MRVG [Nm] | AW1: MJVG [Nm] | AX1: MGE/i [Nm] | AY1: MVGE [Nm] | AZ1: MVGE²*dt [Nm²*ms] | BA1: αEVG² *dt [rad2/s4*ms] | BB1: --- | BC1: MJM [Nm] | BD1: MErfM [Nm] | BE1: MErfM2*dt [Nm2*ms] | BF1: Imotor [A] | BG1: IMotor2*dt [A2*ms] | BH1: PErfM [W] | BI1: PBrems [W] | BJ1: PBrems *dt [W*ms] | BK1: PVRMot [W] | BL1: UCC [V] | BM1: IZWK [A] | BN1: dUCC [V] | BO1: PBrems [W] | BP1: PBrems *dt [W*ms] | BQ1: R max [O]
A2: 0 | B2: 12 | C2: 0 | D2: 0 | E2: 0 | I2: =E2/(sVorschub/1000)*2*PI() -> 0 | J2: =JExtern/10000*I2 -> 0 | K2: =mTransl*E2 -> 0 | L2: =mTransl*E2*sVorschub/(2*PI())/1000 -> 0 | M2: =IF(ABS(D2)>0.001,MReibS*SIGN(D2),0) -> 0 | N2: =MGewicht -> 0 | O2: =MProzess -> 0 | P2: =J2+M2+N2+O2 -> 0 | Q2: =P2^2*B2 -> 0 | R2: =D2/(sVorschub/1000)*60 -> 0 | S2: =R2^2*B2 -> 0 | T2: =ABS(R2)*ABS(B2)*(ABS(P2)^3) -> 0 | U2: =ABS(R2)*ABS(B2) -> 0 | V2: =IF(R2<>0,B2,0) -> 0 | W2: --- | X2: =R2*iNG*Faktor_n_v -> 0 | Y2: =E2/(sVorschub/1000)*2*PI()*iNG -> 0 | Z2: =IF(ABS(X2)>0.01,MReibNG*SIGN(X2),0) -> 0 | AA2: =JNG/10000*Y2 -> 0 | AB2: =P2/iNG -> 0 | AC2: =Z2+AA2+AB2 -> 0 | AD2: =AC2^2*B2 -> 0 | AE2: =Y2^2*B2 -> 0 | AF2: =ABS(X2)*ABS(B2)*(ABS(AC2)^3) -> 0 | AG2: =ABS(X2)*ABS(B2) -> 0 | AH2: --- | AI2: =X2*iGetriebe -> 0 | AJ2: =Y2*iGetriebe -> 0 | AK2: =IF(ABS(AI2)>0.001,SIGN(AI2)*MReibG*(ABS(AI2))^0.8/nNennG^0.8,0) -> 0 | AL2: =JGetriebe/10000*AJ2 -> 0 | AM2: =AC2/iGetriebe -> 0 | AN2: =AK2+AL2+AM2 -> 0 | AO2: =AN2^2*B2 -> 0 | AP2: =AJ2^2*B2 -> 0 | AQ2: =AI2*B2*AN2^3 -> 0 | AR2: =AI2*B2 -> 0 | AS2: --- | AT2: =AI2*iVG -> 0 | AU2: =AJ2*iVG -> 0 | AV2: =IF(ABS(AT2)>0.01,MReibVG*SIGN(AT2),0) -> 0 | AW2: =JVG/10000*AU2 -> 0 | AX2: =AN2/iVG -> 0 | AY2: =AV2+AW2+AX2 -> 0 | AZ2: =AY2^2*B2 -> 0 | BA2: =AU2^2*B2 -> 0 | BB2: --- | BC2: =JMotor/10000*AU2 -> 0 | BD2: =BC2+AY2 -> 0 | BE2: =BD2^2*B2 -> 0 | BF2: =BD2*INennM/MNennM -> 0 | BG2: =BF2^2*B2 -> 0 | BH2: =BD2*2*PI()*AT2/60 -> 0 | BI2: =IF(BH2<0,BH2,0) -> 0 | BJ2: =BI2*B2 -> 0 | BK2: =3*BF2^2*R_ph -> 0 | BL2: =Hardware!K97 -> 565 | BM2: =(BH2+BK2)/BL2 -> 0 | BN2: =-BM2*B2/1000/CZWK -> 0 | BO2: =IF(AND(BL2>=UREin,BL2*BM2<0),BL2*BM2,0) -> 0 | BP2: =BO2*B2 -> 0 | BQ2: =UREin^2/(BO2-1) -> -455625
A3: 12 | B3: 12 | C3: 0.1739972621 | D3: 0.04247614472 | E3: 6.743654474 | G3: =(C4-C2)/(A4-A2) -> 0.05403296486 | H3: =(D4-D2)/(A4-A2)*1000 -> 6.433996889 | I3: 211.85475 | J3: 32.25547256 | K3: 1011.548171 | L3: 32.19909561 | M3: =IF(ABS(D3)>0.001,MReibS*SIGN(D3),M2) -> 0 | N3: 0 | O3: 0 | P3: =J3+M3+N3+O3 -> 32.25547256 | Q3: 12484.98612 | R3: 12.7426387 | S3: 1948.498092 | T3: =ABS(R3)*ABS(B3)*(ABS(P3)^3) -> 5131576.91 | U3: 152.9116644 | V3: 12 | W3: --- | X3: 12.7426387 | Y3: 211.85475 | Z3: =IF(ABS(X3)>0.01,MReibNG*SIGN(X3),Z2) -> 0 | AA3: 0 | AB3: 32.25547256 | AC3: =Z3+AA3+AB3 -> 32.25547256 | AD3: 12484.98612 | AE3: 538589.2211 | AF3: =ABS(X3)*ABS(B3)*(ABS(AC3)^3) -> 5131576.91 | AG3: =ABS(X3)*ABS(B3) -> 152.9116644 | AH3: --- | AI3: 89.19847088 | AJ3: 1482.98325 | AK3: 0.0701867761 | AL3: 0.07266617924 | AM3: 4.607924652 | AN3: =AK3+AL3+AM3 -> 4.750777607 | AO3: 270.8386545 | AP3: 26390871.83 | AQ3: =AI3*B3*AN3^3 -> 114771.1565 | AR3: =AI3*B3 -> 1070.381651 | AS3: --- | AT3: 89.19847088 | AU3: 1482.98325 | AV3: =IF(ABS(AT3)>0.01,MReibVG*SIGN(AT3),AV2) -> 0 | AW3: 0 | AX3: 4.750777607 | AY3: =AV3+AW3+AX3 -> 4.750777607 | AZ3: =AY3^2*B3 -> 270.8386545 | BA3: =AU3^2*B3 -> 26390871.83 | BB3: --- | BC3: 0.5338739699 | BD3: =BC3+AY3 -> 5.284651577 | BE3: 335.1305075 | BF3: 5.365953909 | BG3: 345.5215363 | BH3: =BD3*2*PI()*AT3/60 -> 49.36309555 | BI3: =IF(BH3<0,BH3,0) -> 0 | BJ3: 0 | BK3: 64.78528805 | BL3: =IF((BL2+BN2)<$BL$2*0.95,$BL$2*0.95,IF((BL2+BN2)>UREin,UREin,(BL2+BN2))) -> 565 | BM3: =(BH3+BK3)/BL3 -> 0.2020325374 | BN3: -7.346637722 | BO3: 0 | BP3: 0 | BQ3: -455625
A4: 24 | B4: 12 | C4: 1.296791157 | D4: 0.1544159253 | E4: 11.6284077 | G4: =(C5-C3)/(A5-A3) -> 0.1625541871 | H4: =(D5-D3)/(A5-A3)*1000 -> 11.36752571 | I4: 365.3113332 | J4: 55.61966247 | K4: 1744.261156 | L4: 55.52244897 | M4: 0 | N4: 0 | O4: 0 | P4: 55.61966247 | Q4: 37122.56224 | R4: 46.32403338 | S4: 25750.99282 | T4: 95647287.66 | U4: 555.8884006 | V4: 12 | W4: --- | X4: 46.32403338 | Y4: 365.3113332 | Z4: 0 | AA4: 0 | AB4: 55.61966247 | AC4: 55.61966247 | AD4: 37122.56224 | AE4: 1601428.442 | AF4: 95647287.66 | AG4: 555.8884006 | AH4: --- | AI4: 324.2682337 | AJ4: 2557.179333 | AK4: 0.1971028444 | AL4: 0.1253017873 | AM4: 7.945666067 | AN4: 8.268070699 | AO4: 820.331917 | AP4: 78469993.67 | AQ4: 2199369.492 | AR4: 3891.218804 | AS4: --- | AT4: 324.2682337 | AU4: 2557.179333 | AV4: 0 | AW4: 0 | AX4: 8.268070699 | AY4: 8.268070699 | AZ4: 820.331917 | BA4: 78469993.67 | BB4: --- | BC4: 0.9205845598 | BD4: 9.188655259 | BE4: 1013.176626 | BF4: 9.330019186 | BG4: 1044.591096 | BH4: 312.0218315 | BI4: 0 | BJ4: 0 | BK4: 195.8608305 | BL4: 557.6533623 | BM4: 0.9107497531 | BN4: -33.11817284 | BO4: 0 | BP4: 0 | BQ4: -455625
A5: 36 | B5: 12 | C5: 4.075297752 | D5: 0.3152967617 | E5: 14.94695303 | G5: 0.3205740956 | H5: 14.73026707 | I5: 469.5648347 | J5: 71.49254687 | K5: 2242.042955 | L5: 71.36759033 | M5: 0 | N5: 0 | O5: 0 | P5: 71.49254687 | Q5: 61334.21109 | R5: 94.5875089 | S5: 107361.5621 | T5: 414760453 | U5: 1135.050107 | V5: 12 | W5: --- | X5: 94.5875089 | Y5: 469.5648347 | Z5: 0 | AA5: 0 | AB5: 71.49254687 | AC5: 71.49254687 | AD5: 61334.21109 | AE5: 2645893.608 | AF5: 414760453 | AG5: 1135.050107 | AH5: --- | AI5: 662.1125623 | AJ5: 3286.953843 | AK5: 0.3489111347 | AL5: 0.1610607383 | AM5: 10.21322098 | AN5: 10.72319285 | AO5: 1379.84238 | AP5: 129648786.8 | AQ5: 9796826.664 | AR5: 7945.350748 | AS5: --- | AT5: 662.1125623 | AU5: 3286.953843 | AV5: 0 | AW5: 0 | AX5: 10.72319285 | AY5: 10.72319285 | AZ5: 1379.84238 | BA5: 129648786.8 | BB5: --- | BC5: 1.183303383 | BD5: 11.90649624 | BE5: 1701.175832 | BF5: 12.0896731 | BG5: 1753.922349 | BH5: 825.5519829 | BI5: 0 | BJ5: 0 | BK5: 328.8604404 | BL5: 536.75 | BM5: 2.150745083 | BN5: -78.20891211 | BO5: 0 | BP5: 0 | BQ5: -455625
A6: 48 | B6: 12 | C6: 8.990569452 | D6: 0.507942335 | E6: 16.96450648 | G6: 0.5108626118 | H6: 16.7876361 | I6: 532.9471272 | J6: 81.14267648 | K6: 2544.675972 | L6: 81.00085319 | M6: 0 | N6: 0 | O6: 0 | P6: 81.14267648 | Q6: 79009.60735 | R6: 152.3802524 | S6: 278636.8959 | T6: 976917570.9 | U6: 1828.563029 | V6: 12 | W6: --- | X6: 152.3802524 | Y6: 532.9471272 | Z6: 0 | AA6: 0 | AB6: 81.14267648 | AC6: 81.14267648 | AD6: 79009.60735 | AE6: 3408391.684 | AF6: 976917570.9 | AG6: 1828.563029 | AH6: --- | AI6: 1066.661767 | AJ6: 3730.62989 | AK6: 0.5109645257 | AL6: 0.1828008646 | AM6: 11.59181093 | AN6: 12.28557632 | AO6: 1811.224625 | AP6: 167011192.5 | AQ6: 23735291.88 | AR6: 12799.9412 | AS6: --- | AT6: 1066.661767 | AU6: 3730.62989 | AV6: 0 | AW6: 0 | AX6: 12.28557632 | AY6: 12.28557632 | AZ6: 1811.224625 | BA6: 167011192.5 | BB6: --- | BC6: 1.34302676 | BD6: 13.62860308 | BE6: 2228.865862 | BF6: 13.83827389 | BG6: 2297.973892 | BH6: 1522.322582 | BI6: 0 | BJ6: 0 | BK6: 430.8701047 | BL6: 536.75 | BM6: 3.638924429 | BN6: -132.3245247 | BO6: 0 | BP6: 0 | BQ6: -455625
A7: 60 | B7: 12 | C7: 16.33600043 | D7: 0.718200028 | E7: 17.92000138 | G7: 0.7192157476 | H7: 17.77876525 | I7: 562.9644025 | J7: 85.7128898 | K7: 2688.000207 | L7: 85.56307858 | M7: 0 | N7: 0 | O7: 0 | P7: 85.7128898 | Q7: 88160.39374 | R7: 215.456547 | S7: 557058.2837 | T7: 1628093544 | U7: 2585.478564 | V7: 12 | W7: --- | X7: 215.456547 | Y7: 562.9644025 | Z7: 0 | AA7: 0 | AB7: 85.7128898 | AC7: 85.7128898 | AD7: 88160.39374 | AE7: 3803147.022 | AF7: 1628093544 | AG7: 2585.478564 | AH7: --- | AI7: 1508.195829 | AJ7: 3940.750817 | AK7: 0.674117428 | AL7: 0.1930967901 | AM7: 12.24469854 | AN7: 13.11191276 | AO7: 2063.067075 | AP7: 186354204.1 | AQ7: 40797836.63 | AR7: 18098.34995 | AS7: --- | AT7: 1508.195829 | AU7: 3940.750817 | AV7: 0 | AW7: 0 | AX7: 13.11191276 | AY7: 13.11191276 | AZ7: 2063.067075 | BA7: 186354204.1 | BB7: --- | BC7: 1.418670294 | BD7: 14.53058306 | BE7: 2533.654127 | BF7: 14.75413049 | BG7: 2612.212397 | BH7: 2294.929743 | BI7: 0 | BJ7: 0 | BK7: 489.7898245 | BL7: 536.75 | BM7: 5.188112841 | BN7: -188.6586487 | BO7: 0 | BP7: 0 | BQ7: -455625
A8: 72 | B8: 12 | C8: 26.25174739 | D8: 0.934632701 | E8: 18.02728308 | G8: 0.9341473819 | H8: 17.91769898 | I8: 566.3347024 | J8: 86.2260273 | K8: 2704.092462 | L8: 86.0753192 | M8: 0 | N8: 0 | O8: 0 | P8: 86.2260273 | Q8: 89219.1334 | R8: 280.3853058 | S8: 943391.0363 | T8: 2157007363 | U8: 3364.623669 | V8: 12 | W8: --- | X8: 280.3853058 | Y8: 566.3347024 | Z8: 0 | AA8: 0 | AB8: 86.2260273 | AC8: 86.2260273 | AD8: 89219.1334 | AE8: 3848819.941 | AF8: 2157007363 | AG8: 3364.623669 | AH8: --- | AI8: 1962.69714 | AJ8: 3964.342917 | AK8: 0.8322465406 | AL8: 0.1942528029 | AM8: 12.3180039 | AN8: 13.34450324 | AO8: 2136.909202 | AP8: 188592177.1 | AQ8: 55968255.5 | AR8: 23552.36568 | AS8: --- | AT8: 1962.69714 | AU8: 3964.342917 | AV8: 0 | AW8: 0 | AX8: 13.34450324 | AY8: 13.34450324 | AZ8: 2136.909202 | BA8: 188592177.1 | BB8: --- | BC8: 1.42716345 | BD8: 14.77166669 | BE8: 2618.425643 | BF8: 14.9989231 | BG8: 2699.612331 | BH8: 3036.067392 | BI8: 0 | BJ8: 0 | BK8: 506.1773121 | BL8: 536.75 | BM8: 6.599431213 | BN8: -239.9793169 | BO8: 0 | BP8: 0 | BQ8: -455625
A9: 84 | B9: 12 | C9: 38.7555376 | D9: 1.148224804 | E9: 17.47630359 | G9: 1.146595372 | H9: 17.39458842 | I9: 549.0254493 | J9: 83.59064557 | K9: 2621.445539 | L9: 83.44454366 | M9: 0 | N9: 0 | O9: 0 | P9: 83.59064557 | Q9: 83848.75232 | R9: 344.4619071 | S9: 1423848.066 | T9: 2414323634 | U9: 4133.542886 | V9: 12 | W9: --- | X9: 344.4619071 | Y9: 549.0254493 | Z9: 0 | AA9: 0 | AB9: 83.59064557 | AC9: 83.59064557 | AD9: 83848.75232 | AE9: 3617147.328 | AF9: 2414323634 | AG9: 4133.542886 | AH9: --- | AI9: 2411.23335 | AJ9: 3843.178145 | AK9: 0.9812072766 | AL9: 0.1883157291 | AM9: 11.9415208 | AN9: 13.1110438 | AO9: 2062.793635 | AP9: 177240219.1 | AQ9: 65212716.67 | AR9: 28934.8002 | AS9: --- | AT9: 2411.23335 | AU9: 3843.178145 | AV9: 0 | AW9: 0 | AX9: 13.1110438 | AY9: 13.1110438 | AZ9: 2062.793635 | BA9: 177240219.1 | BB9: --- | BC9: 1.383544132 | BD9: 14.49458793 | BE9: 2521.116952 | BF9: 14.71758159 | BG9: 2599.286496 | BH9: 3659.938039 | BI9: 0 | BJ9: 0 | BK9: 487.366218 | BL9: 536.75 | BM9: 7.726696333 | BN9: -280.9707758 | BO9: 0 | BP9: 0 | BQ9: -455625
A10: 96 | B10: 12 | C10: 53.77003633 | D10: 1.352102823 | E10: 16.43431626 | G10: 1.349642004 | H10: 16.376886 | I10: 516.2909777 | J10: 78.60673158 | K10: 2465.147438 | L10: 78.46934069 | M10: 0 | N10: 0 | O10: 0 | P10: 78.60673158 | Q10: 74148.219 | R10: 405.6243303 | S10: 1974373.168 | T10: 2364201345 | U10: 4867.491964 | V10: 12 | W10: --- | X10: 405.6243303 | Y10: 516.2909777 | Z10: 0 | AA10: 0 | AB10: 78.60673158 | AC10: 78.60673158 | AD10: 74148.219 | AE10: 3198676.484 | AF10: 2364201345 | AG10: 4867.491964 | AH10: --- | AI10: 2839.370312 | AJ10: 3614.036844 | AK10: 1.11827083 | AL10: 0.1770878054 | AM10: 11.22953308 | AN10: 12.52489172 | AO10: 1882.474951 | AP10: 156735147.7 | AQ10: 66946090.93 | AR10: 34072.44375 | AS10: --- | AT10: 2839.370312 | AU10: 3614.036844 | AV10: 0 | AW10: 0 | AX10: 12.52489172 | AY10: 12.52489172 | AZ10: 1882.474951 | BA10: 156735147.7 | BB10: --- | BC10: 1.301053264 | BD10: 13.82594498 | BE10: 2293.881056 | BF10: 14.03865183 | BG10: 2365.004942 | BH10: 4110.981094 | BI10: 0 | BJ10: 0 | BK10: 443.4384266 | BL10: 536.75 | BM10: 8.485178427 | BN10: -308.5519428 | BO10: 0 | BP10: 0 | BQ10: -455625
A11: 108 | B11: 12 | C11: 71.14694569 | D11: 1.541270068 | E11: 15.04707042 | G11: 1.538248771 | H11: 15.0105402 | I11: 472.7100646 | J11: 71.97141683 | K11: 2257.060563 | L11: 71.84562331 | M11: 0 | N11: 0 | O11: 0 | P11: 71.97141683 | Q11: 62158.61809 | R11: 462.373592 | S11: 2565472.063 | T11: 2068494759 | U11: 5548.483104 | V11: 12 | W11: --- | X11: 462.373592 | Y11: 472.7100646 | Z11: 0 | AA11: 0 | AB11: 71.97141683 | AC11: 71.97141683 | AD11: 62158.61809 | AE11: 2681457.662 | AF11: 2068494759 | AG11: 5548.483104 | AH11: --- | AI11: 3236.615144 | AJ11: 3308.970452 | AK11: 1.24177301 | AL11: 0.1621395521 | AM11: 10.28163098 | AN11: 11.68554354 | AO11: 1638.623133 | AP11: 131391425.4 | AQ11: 61975360.48 | AR11: 38839.38173 | AS11: --- | AT11: 3236.615144 | AU11: 3308.970452 | AV11: 0 | AW11: 0 | AX11: 11.68554354 | AY11: 11.68554354 | AZ11: 1638.623133 | BA11: 131391425.4 | BB11: --- | BC11: 1.191229363 | BD11: 12.8767729 | BE11: 1989.735364 | BF11: 13.0748771 | BG11: 2051.428934 | BH11: 4364.421799 | BI11: 0 | BJ11: 0 | BK11: 384.6429251 | BL11: 536.75 | BM11: 8.847815042 | BN11: -321.7387288 | BO11: 0 | BP11: 0 | BQ11: -455625
A12: 120 | B12: 12 | C12: 90.68800683 | D12: 1.712355788 | E12: 13.44000609 | G12: 1.7090055 | H12: 13.42119012 | I12: 422.2234608 | J12: 64.28469154 | K12: 2016.000914 | L12: 64.17233308 | M12: 0 | N12: 0 | O12: 0 | P12: 64.28469154 | Q12: 49590.2588 | R12: 513.6984835 | S12: 3166633.583 | T12: 1637616565 | U12: 6164.381802 | V12: 12 | W12: --- | X12: 513.6984835 | Y12: 422.2234608 | Z12: 0 | AA12: 0 | AB12: 64.28469154 | AC12: 64.28469154 | AD12: 49590.2588 | AE12: 2139271.81 | AF12: 1637616565 | AG12: 6164.381802 | AH12: --- | AI12: 3595.889384 | AJ12: 2955.564225 | AK12: 1.350872702 | AL12: 0.144822647 | AM12: 9.183527363 | AN12: 10.67922271 | AO12: 1368.549573 | AP12: 104824318.7 | AQ12: 52554087.62 | AR12: 43150.67261 | AS12: --- | AT12: 3595.889384 | AU12: 2955.564225 | AV12: 0 | AW12: 0 | AX12: 10.67922271 | AY12: 10.67922271 | AZ12: 1368.549573 | BA12: 104824318.7 | BB12: --- | BC12: 1.064003121 | BD12: 11.74322583 | BE12: 1654.840236 | BF12: 11.92389085 | BG12: 1706.150075 | BH12: 4422.036821 | BI12: 0 | BJ12: 0 | BK12: 319.9031391 | BL12: 536.75 | BM12: 8.834541145 | BN12: -321.2560417 | BO12: 0 | BP12: 0 | BQ12: -455625
A13: 132 | B13: 12 | C13: 112.1630777 | D13: 1.863378631 | E13: 11.71944861 | G13: 1.859893804 | H13: 11.71536023 | I13: 368.1714217 | J13: 56.05511886 | K13: 1757.917292 | L13: 55.95714427 | M13: 0 | N13: 0 | O13: 0 | P13: 56.05511886 | Q13: 37706.11621 | R13: 559.0046085 | S13: 3749833.828 | T13: 1181523782 | U13: 6708.055302 | V13: 12 | W13: --- | X13: 559.0046085 | Y13: 368.1714217 | Z13: 0 | AA13: 0 | AB13: 56.05511886 | AC13: 56.05511886 | AD13: 37706.11621 | AE13: 1626602.349 | AF13: 1181523782 | AG13: 6708.055302 | AH13: --- | AI13: 3913.032259 | AJ13: 2577.199952 | AK13: 1.445373572 | AL13: 0.1262827977 | AM13: 8.007874124 | AN13: 9.579530493 | AO13: 1101.208854 | AP13: 79703515.11 | AQ13: 41278826.92 | AR13: 46956.38711 | AS13: --- | AT13: 3913.032259 | AU13: 2577.199952 | AV13: 0 | AW13: 0 | AX13: 9.579530493 | AY13: 9.579530493 | AZ13: 1101.208854 | BA13: 79703515.11 | BB13: --- | BC13: 0.9277919827 | BD13: 10.50732248 | BE13: 1324.845907 | BF13: 10.66897359 | BG13: 1365.92397 | BH13: 4305.604234 | BI13: 0 | BJ13: 0 | BK13: 256.1107443 | BL13: 536.75 | BM13: 8.498770336 | BN13: -309.046194 | BO13: 0 | BP13: 0 | BQ13: -455625
A14: 144 | B14: 12 | C14: 135.3254581 | D14: 1.993524433 | E14: 9.973803321 | G14: 1.990064874 | H14: 9.981654969 | I14: 313.3312386 | J14: 47.70554906 | K14: 1496.070498 | L14: 47.62216806 | M14: 0 | N14: 0 | O14: 0 | P14: 47.70554906 | Q14: 27309.83294 | R14: 598.047722 | S14: 4291932.934 | T14: 779154857.6 | U14: 7176.572664 | V14: 12 | W14: --- | X14: 598.047722 | Y14: 313.3312386 | Z14: 0 | AA14: 0 | AB14: 47.70554906 | AC14: 47.70554906 | AD14: 27309.83294 | AE14: 1178117.581 | AF14: 779154857.6 | AG14: 7176.572664 | AH14: --- | AI14: 4186.334054 | AJ14: 2193.31867 | AK14: 1.525585215 | AL14: 0.1074726148 | AM14: 6.815078438 | AN14: 8.448136268 | AO14: 856.4520768 | AP14: 57727761.46 | AQ14: 30289901.27 | AR14: 50236.00865 | AS14: --- | AT14: 4186.334054 | AU14: 2193.31867 | AV14: 0 | AW14: 0 | AX14: 8.448136268 | AY14: 8.448136268 | AZ14: 856.4520768 | BA14: 57727761.46 | BB14: --- | BC14: 0.7895947212 | BD14: 9.237730989 | BE14: 1024.028086 | BF14: 9.379849927 | BG14: 1055.779016 | BH14: 4049.746227 | BI14: 0 | BJ14: 0 | BK14: 197.9585655 | BL14: 536.75 | BM14: 7.913749032 | BN14: -287.7726921 | BO14: 0 | BP14: 0 | BQ14: -455625
A15: 156 | B15: 12 | C15: 159.9246347 | D15: 2.10293835 | E15: 8.27475023 | G15: 2.099631609 | H15: 8.291953464 | I15: 259.954769 | J15: 39.57883371 | K15: 1241.212534 | L15: 39.50965679 | M15: 0 | N15: 0 | O15: 0 | P15: 39.57883371 | Q15: 18797.80893 | R15: 630.8713697 | S15: 4775984.221 | T15: 469365367.9 | U15: 7570.456436 | V15: 12 | W15: --- | X15: 630.8713697 | Y15: 259.954769 | Z15: 0 | AA15: 0 | AB15: 39.57883371 | AC15: 39.57883371 | AD15: 18797.80893 | AE15: 810917.7832 | AF15: 469365367.9 | AG15: 7570.456436 | AH15: --- | AI15: 4416.099588 | AJ15: 1819.683383 | AK15: 1.592210391 | AL15: 0.08916448577 | AM15: 5.654119101 | AN15: 7.335493978 | AO15: 645.7136627 | AP15: 39734971.38 | AQ15: 20917423.98 | AR15: 52993.19505 | AS15: --- | AT15: 4416.099588 | AU15: 1819.683383 | AV15: 0 | AW15: 0 | AX15: 7.335493978 | AY15: 7.335493978 | AZ15: 645.7136627 | BA15: 39734971.38 | BB15: --- | BC15: 0.6550860179 | BD15: 7.990579996 | BE15: 766.192424 | BF15: 8.113511995 | BG15: 789.9489228 | BH15: 3695.266631 | BI15: 0 | BJ15: 0 | BK15: 148.115423 | BL15: 536.75 | BM15: 7.160469593 | BN15: -260.3807125 | BO15: 0 | BP15: 0 | BQ15: -455625
A16: 168 | B16: 12 | C16: 185.7166167 | D16: 2.192531316 | E16: 6.678438678 | G16: 2.189475077 | H16: 6.702604166 | I16: 209.8059683 | J16: 31.94353987 | K16: 1001.765802 | L16: 31.88770812 | M16: 0 | N16: 0 | O16: 0 | P16: 31.94353987 | Q16: 12244.67687 | R16: 657.7488278 | S16: 5191602.246 | T16: 257270774.1 | U16: 7892.985934 | V16: 12 | W16: --- | X16: 657.7488278 | Y16: 209.8059683 | Z16: 0 | AA16: 0 | AB16: 31.94353987 | AC16: 31.94353987 | AD16: 12244.67687 | AE16: 528222.5318 | AF16: 257270774.1 | AG16: 7892.985934 | AH16: --- | AI16: 4604.241795 | AJ16: 1468.641778 | AK16: 1.646250292 | AL16: 0.07196344711 | AM16: 4.563362839 | AN16: 6.281576578 | AO16: 473.4984517 | AP16: 25882904.06 | AQ16: 13694473.65 | AR16: 55250.90154 | AS16: --- | AT16: 4604.241795 | AU16: 1468.641778 | AV16: 0 | AW16: 0 | AX16: 6.281576578 | AY16: 6.281576578 | AZ16: 473.4984517 | BA16: 25882904.06 | BB16: --- | BC16: 0.52871104 | BD16: 6.810287618 | BE16: 556.5602093 | BF16: 6.915061274 | BG16: 573.816869 | BH16: 3283.614725 | BI16: 0 | BJ16: 0 | BK16: 107.5906629 | BL16: 536.75 | BM16: 6.31803519 | BN16: -229.7467342 | BO16: 0 | BP16: 0 | BQ16: -455625
A17: 180 | B17: 12 | C17: 212.4720365 | D17: 2.26380085 | E17: 5.226682006 | G17: 2.26106532 | H17: 5.255619524 | I17: 164.19842 | J17: 24.99966431 | K17: 784.002301 | L17: 24.95596924 | M17: 0 | N17: 0 | O17: 0 | P17: 24.99966431 | Q17: 7499.798586 | R17: 679.1293444 | S17: 5534599.997 | T17: 127331622.6 | U17: 8149.552133 | V17: 12 | W17: --- | X17: 679.1293444 | Y17: 164.19842 | Z17: 0 | AA17: 0 | AB17: 24.99966431 | AC17: 24.99966431 | AD17: 7499.798586 | AE17: 323533.4536 | AF17: 127331622.6 | AG17: 8149.552133 | AH17: --- | AI17: 4753.905411 | AJ17: 1149.38894 | AK17: 1.688922789 | AL17: 0.05632005806 | AM17: 3.571380615 | AN17: 5.316623463 | AO17: 339.1978205 | AP17: 15853139.23 | AQ17: 8573131.65 | AR17: 57046.86493 | AS17: --- | AT17: 4753.905411 | AU17: 1149.38894 | AV17: 0 | AW17: 0 | AX17: 5.316623463 | AY17: 5.316623463 | AZ17: 339.1978205 | BA17: 15853139.23 | BB17: --- | BC17: 0.4137800184 | BD17: 5.730403481 | BE17: 394.0502887 | BF17: 5.818563535 | BG17: 406.2681793 | BH17: 2852.754218 | BI17: 0 | BJ17: 0 | BK17: 76.17528362 | BL17: 536.75 | BM17: 5.456785285 | BN17: -198.4285558 | BO17: 0 | BP17: 0 | BQ17: -455625
A18: 192 | B18: 12 | C18: 239.9821844 | D18: 2.318666185 | E18: 3.94815222 | G18: 2.316296482 | H18: 3.979870658 | I18: 124.0328675 | J18: 18.88434767 | K18: 592.2228331 | L18: 18.85134111 | M18: 0 | N18: 0 | O18: 0 | P18: 18.88434767 | Q18: 4279.423041 | R18: 695.5886805 | S18: 5806123.349 | T18: 56213381.89 | U18: 8347.064166 | V18: 12 | W18: --- | X18: 695.5886805 | Y18: 124.0328675 | Z18: 0 | AA18: 0 | AB18: 18.88434767 | AC18: 18.88434767 | AD18: 4279.423041 | AE18: 184609.8265 | AF18: 56213381.89 | AG18: 8347.064166 | AH18: --- | AI18: 4869.120763 | AJ18: 868.2300722 | AK18: 1.721590287 | AL18: 0.04254327354 | AM18: 2.697763952 | AN18: 4.461897512 | AO18: 238.9023529 | AP18: 9045881.499 | AQ18: 5190277.326 | AR18: 58429.44916 | AS18: --- | AT18: 4869.120763 | AU18: 868.2300722 | AV18: 0 | AW18: 0 | AX18: 4.461897512 | AY18: 4.461897512 | AZ18: 238.9023529 | BA18: 9045881.499 | BB18: --- | BC18: 0.312562826 | BD18: 4.774460338 | BE18: 273.5456583 | BF18: 4.847913574 | BG18: 282.0271923 | BH18: 2434.464545 | BI18: 0 | BJ18: 0 | BK18: 52.88009856 | BL18: 536.75 | BM18: 4.634084105 | BN18: -168.5121493 | BO18: 0 | BP18: 0 | BQ18: -455625
A19: 204 | B19: 12 | C19: 268.0631521 | D19: 2.359317746 | E19: 2.85957466 | G19: 2.35733629 | H19: 2.892282017 | I19: 89.83474419 | J19: 13.67758866 | K19: 428.9361989 | L19: 13.65368262 | M19: 0 | N19: 0 | O19: 0 | P19: 13.67758866 | Q19: 2244.91718 | R19: 707.7839528 | S19: 6011497.486 | T19: 21732544.32 | U19: 8493.407433 | V19: 12 | W19: --- | X19: 707.7839528 | Y19: 89.83474419 | Z19: 0 | AA19: 0 | AB19: 13.67758866 | AC19: 13.67758866 | AD19: 2244.91718 | AE19: 96843.37516 | AF19: 21732544.32 | AG19: 8493.407433 | AH19: --- | AI19: 4954.487669 | AJ19: 628.8432093 | AK19: 1.745695001 | AL19: 0.03081331726 | AM19: 1.953941238 | AN19: 3.730449556 | AO19: 166.9950467 | AP19: 4745325.383 | AQ19: 3086480.327 | AR19: 59453.85203 | AS19: --- | AT19: 4954.487669 | AU19: 628.8432093 | AV19: 0 | AW19: 0 | AX19: 3.730449556 | AY19: 3.730449556 | AZ19: 166.9950467 | BA19: 4745325.383 | BB19: --- | BC19: 0.2263835554 | BD19: 3.956833112 | BE19: 187.8783393 | BF19: 4.017707467 | BG19: 193.7036795 | BH19: 2052.934547 | BI19: 0 | BJ19: 0 | BK19: 36.3194399 | BL19: 536.75 | BM19: 3.892415439 | BN19: -141.5423796 | BO19: 0 | BP19: 0 | BQ19: -455625
A20: 216 | B20: 12 | C20: 296.5582554 | D20: 2.388080953 | E20: 1.966922662 | G20: 2.386489855 | H20: 1.99902605 | I20: 61.79170515 | J20: 9.407958284 | K20: 295.0383994 | L20: 9.391514809 | M20: 0 | N20: 0 | O20: 0 | P20: 9.407958284 | Q20: 1062.116149 | R20: 716.4127765 | S20: 6158967.195 | T20: 7158643.209 | U20: 8596.953317 | V20: 12 | W20: --- | X20: 716.4127765 | Y20: 61.79170515 | Z20: 0 | AA20: 0 | AB20: 9.407958284 | AC20: 9.407958284 | AD20: 1062.116149 | AE20: 45818.5779 | AF20: 7158643.209 | AG20: 8596.953317 | AH20: --- | AI20: 5014.889435 | AJ20: 432.541936 | AK20: 1.762700212 | AL20: 0.02119455486 | AM20: 1.343994041 | AN20: 3.127888808 | AO20: 117.4042607 | AP20: 2245110.317 | AQ20: 1841605.175 | AR20: 60178.67322 | AS20: --- | AT20: 5014.889435 | AU20: 432.541936 | AV20: 0 | AW20: 0 | AX20: 3.127888808 | AY20: 3.127888808 | AZ20: 117.4042607 | BA20: 2245110.317 | BB20: --- | BC20: 0.155715097 | BD20: 3.283603905 | BE20: 129.3846552 | BF20: 3.334120888 | BG20: 133.3963451 | BH20: 1724.410838 | BI20: 0 | BJ20: 0 | BK20: 25.01181471 | BL20: 536.75 | BM20: 3.259287663 | BN20: -118.5195514 | BO20: 0 | BP20: 0 | BQ20: -455625
A21: 228 | B21: 12 | C21: 325.3389086 | D21: 2.407294371 | E21: 1.266612233 | G21: 2.406077821 | H21: 1.296717873 | I21: 39.7911576 | J21: 6.058313974 | K21: 189.991835 | L21: 6.047725095 | M21: 0 | N21: 0 | O21: 0 | P21: 6.058313974 | Q21: 440.4380185 | R21: 722.1767091 | S21: 6258470.39 | T21: 1926992.636 | U21: 8666.120509 | V21: 12 | W21: --- | X21: 722.1767091 | Y21: 39.7911576 | Z21: 0 | AA21: 0 | AB21: 6.058313974 | AC21: 6.058313974 | AD21: 440.4380185 | AE21: 19000.03468 | AF21: 1926992.636 | AG21: 8666.120509 | AH21: --- | AI21: 5055.236964 | AJ21: 278.5381032 | AK21: 1.774036623 | AL21: 0.01364836706 | AM21: 0.8654734248 | AN21: 2.653158415 | AO21: 84.47099491 | AP21: 931001.6992 | AQ21: 1132954.083 | AR21: 60662.84356 | AS21: --- | AT21: 5055.236964 | AU21: 278.5381032 | AV21: 0 | AW21: 0 | AX21: 2.653158415 | AY21: 2.653158415 | AZ21: 84.47099491 | BA21: 931001.6992 | BB21: --- | BC21: 0.1002737171 | BD21: 2.753432132 | BE21: 90.97666209 | BF21: 2.795792627 | BG21: 93.79747693 | BH21: 1457.62065 | BI21: 0 | BJ21: 0 | BK21: 17.58702693 | BL21: 536.75 | BM21: 2.748407409 | BN21: -99.94208758 | BO21: 0 | BP21: 0 | BQ21: -455625
A22: 240 | B22: 12 | C22: 354.3041231 | D22: 2.419202182 | E22: 0.7466967092 | G22: 2.418328841 | H22: 0.7736099347 | I22: 23.4577921 | J22: 3.57151383 | K22: 112.0045064 | L22: 3.565271445 | M22: 0 | N22: 0 | O22: 0 | P22: 3.57151383 | Q22: 153.0685324 | R22: 725.7489951 | S22: 6320539.247 | T22: 396757.0913 | U22: 8708.987942 | V22: 12 | W22: --- | X22: 725.7489951 | Y22: 23.4577921 | Z22: 0 | AA22: 0 | AB22: 3.57151383 | AC22: 3.57151383 | AD22: 153.0685324 | AE22: 6603.216122 | AF22: 396757.0913 | AG22: 8708.987942 | AH22: --- | AI22: 5080.242966 | AJ22: 164.2045447 | AK22: 1.781053452 | AL22: 0.00804602269 | AM22: 0.5102162614 | AN22: 2.299315736 | AO22: 63.44223424 | AP22: 323557.59 | AQ22: 741073.978 | AR22: 60962.91559 | AS22: --- | AT22: 5080.242966 | AU22: 164.2045447 | AV22: 0 | AW22: 0 | AX22: 2.299315736 | AY22: 2.299315736 | AZ22: 63.44223424 | BA22: 323557.59 | BB22: --- | BC22: 0.05911363609 | BD22: 2.358429372 | BE22: 66.74626923 | BF22: 2.394712901 | BG22: 68.81579852 | BH22: 1254.68867 | BI22: 0 | BJ22: 0 | BK22: 12.90296222 | BL22: 536.75 | BM22: 2.361605276 | BN22: -85.87655548 | BO22: 0 | BP22: 0 | BQ22: -455625
A23: 252 | B23: 12 | C23: 383.3788008 | D23: 2.425861009 | E23: 0.388061427 | G23: 2.425286395 | H23: 0.4107866826 | I23: 12.19111343 | J23: 1.856130791 | K23: 58.20921406 | L23: 1.852886597 | M23: 0 | N23: 0 | O23: 0 | P23: 1.856130791 | Q23: 41.34265816 | R23: 727.7466111 | S23: 6355381.56 | T23: 55845.36882 | U23: 8732.959334 | V23: 12 | W23: --- | X23: 727.7466111 | Y23: 12.19111343 | Z23: 0 | AA23: 0 | AB23: 1.856130791 | AC23: 1.856130791 | AD23: 41.34265816 | AE23: 1783.478959 | AF23: 55845.36882 | AG23: 8732.959334 | AH23: --- | AI23: 5094.226278 | AJ23: 85.33779399 | AK23: 1.784974237 | AL23: 0.004181551905 | AM23: 0.2651615416 | AN23: 2.054317331 | AO23: 50.64263634 | AP23: 87390.46899 | AQ23: 529983.1569 | AR23: 61130.71534 | AS23: --- | AT23: 5094.226278 | AU23: 85.33779399 | AV23: 0 | AW23: 0 | AX23: 2.054317331 | AY23: 2.054317331 | AZ23: 50.64263634 | BA23: 87390.46899 | BB23: --- | BC23: 0.03072160584 | BD23: 2.085038937 | BE23: 52.1686484 | BF23: 2.117116459 | BG23: 53.78618519 | BH23: 1112.297649 | BI23: 0 | BJ23: 0 | BK23: 10.08490972 | BL23: 536.75 | BM23: 2.091071372 | BN23: -76.03895897 | BO23: 0 | BP23: 0 | BQ23: -455625
A24: 264 | B24: 12 | C24: 412.5109966 | D24: 2.429061063 | E24: 0.1656183892 | G24: 2.428729942 | H24: 0.1833592302 | I24: 5.202971559 | J24: 0.7921668331 | K24: 24.84275838 | L24: 0.7907822633 | M24: 0 | N24: 0 | O24: 0 | P24: 0.7921668331 | Q24: 7.530339498 | R24: 728.7066117 | S24: 6372159.912 | T24: 4346.942761 | U24: 8744.479341 | V24: 12 | W24: --- | X24: 728.7066117 | Y24: 5.202971559 | Z24: 0 | AA24: 0 | AB24: 0.7921668331 | AC24: 0.7921668331 | AD24: 7.530339498 | AE24: 324.8509565 | AF24: 4346.942761 | AG24: 8744.479341 | AH24: --- | AI24: 5100.946282 | AJ24: 36.42080091 | AK24: 1.786857695 | AL24: 0.001784619245 | AM24: 0.1131666904 | AN24: 1.901809005 | AO24: 43.4025299 | AP24: 15917.69687 | AQ24: 421049.0526 | AR24: 61211.35539 | AS24: --- | AT24: 5100.946282 | AU24: 36.42080091 | AV24: 0 | AW24: 0 | AX24: 1.901809005 | AY24: 1.901809005 | AZ24: 43.4025299 | BA24: 15917.69687 | BB24: --- | BC24: 0.01311148833 | BD24: 1.914920493 | BE24: 44.00304596 | BF24: 1.944380809 | BG24: 45.36740075 | BH24: 1022.892784 | BI24: 0 | BJ24: 0 | BK24: 8.506387641 | BL24: 536.75 | BM24: 1.921563432 | BN24: -69.87503387 | BO24: 0 | BP24: 0 | BQ24: -455625
A25: 276 | B25: 12 | C25: 441.6683194 | D25: 2.430261631 | E25: 0.04950093068 | G25: 2.430110407 | H25: 0.0616600237 | I25: 1.555092618 | J25: 0.236767159 | K25: 7.425139601 | L25: 0.2363533312 | M25: 0 | N25: 0 | O25: 0 | P25: 0.236767159 | Q25: 0.6727042512 | R25: 729.0667764 | S25: 6378460.373 | T25: 116.1215818 | U25: 8748.801317 | V25: 12 | W25: --- | X25: 729.0667764 | Y25: 1.555092618 | Z25: 0 | AA25: 0 | AB25: 0.236767159 | AC25: 0.236767159 | AD25: 0.6727042512 | AE25: 29.01975661 | AF25: 116.1215818 | AG25: 8748.801317 | AH25: --- | AI25: 5103.467435 | AJ25: 10.88564833 | AK25: 1.787564187 | AL25: 0.000533396768 | AM25: 0.03382387986 | AN25: 1.821921463 | AO25: 39.83277383 | AP25: 1421.968074 | AQ25: 370369.7858 | AR25: 61241.60922 | AS25: --- | AT25: 5103.467435 | AU25: 10.88564833 | AV25: 0 | AW25: 0 | AX25: 1.821921463 | AY25: 1.821921463 | AZ25: 39.83277383 | BA25: 1421.968074 | BB25: --- | BC25: 0.003918833398 | BD25: 1.825840297 | BE25: 40.00431348 | BF25: 1.853930148 | BG25: 41.24468391 | BH25: 975.7908776 | BI25: 0 | BJ25: 0 | BK25: 7.733378232 | BL25: 536.75 | BM25: 1.832369364 | BN25: -66.63161322 | BO25: 0 | BP25: 0 | BQ25: -455625
A26: 288 | B26: 12 | C26: 470.8336463 | D26: 2.430540903 | E26: 0.006258385838 | G26: 2.430500008 | H26: 0.01243750852 | I26: 0.1966098311 | J26: 0.02993439143 | K26: 0.9387578757 | L26: 0.02988207132 | M26: 0 | N26: 0 | O26: 0 | P26: 0.02993439143 | Q26: 0.01075281348 | R26: 729.1505568 | S26: 6379926.413 | T26: 0.2346981994 | U26: 8749.806681 | V26: 12 | W26: --- | X26: 729.1505568 | Y26: 0.1966098311 | Z26: 0 | AA26: 0 | AB26: 0.02993439143 | AC26: 0.02993439143 | AD26: 0.01075281348 | AE26: 0.4638651081 | AF26: 0.2346981994 | AG26: 8749.806681 | AH26: --- | AI26: 5104.053897 | AJ26: 1.376268818 | AK26: 1.787728519 | AL26: 6.743717206e-05 | AM26: 0.004276341633 | AN26: 1.792072297 | AO26: 38.53827743 | AP26: 22.7293903 | AQ26: 352503.2107 | AR26: 61248.64677 | AS26: --- | AT26: 5104.053897 | AU26: 1.376268818 | AV26: 0 | AW26: 0 | AX26: 1.792072297 | AY26: 1.792072297 | AZ26: 38.53827743 | BA26: 22.7293903 | BB26: --- | BC26: 0.0004954567743 | BD26: 1.792567754 | BE26: 38.55958984 | BF26: 1.82014572 | BG26: 39.75516529 | BH26: 958.1189934 | BI26: 0 | BJ26: 0 | BK26: 7.454093492 | BL26: 536.75 | BM26: 1.798925174 | BN26: -65.41546086 | BO26: 0 | BP26: 0 | BQ26: -455625
A27: 300 | B27: 12 | C27: 500.0003196 | D27: 2.430560131 | E27: 5.075487068e-05 | G27: 2.43055641 | H27: 5.079597463e-05 | I27: 0.001594485672 | J27: 0.0002427648606 | K27: 0.007613230601 | L27: 0.0002423405499 | M27: 0 | N27: 0 | O27: 0 | P27: 0.0002427648606 | Q27: 7.072173308e-07 | R27: 729.156325 | S27: 6380027.356 | T27: 1.251870388e-07 | U27: 8749.8759 | V27: 12 | W27: --- | X27: 729.156325 | Y27: 0.001594485672 | Z27: 0 | AA27: 0 | AB27: 0.0002427648606 | AC27: 0.0002427648606 | AD27: 7.072173308e-07 | AE27: 3.050861471e-05 | AF27: 1.251870388e-07 | AG27: 8749.8759 | AH27: --- | AI27: 5104.094275 | AJ27: 0.01116139971 | AK27: 1.787739833 | AL27: 5.469085856e-07 | AM27: 3.468069438e-05 | AN27: 1.78777506 | AO27: 38.35367599 | AP27: 0.001494922121 | AQ27: 349976.2368 | AR27: 61249.1313 | AS27: --- | AT27: 5104.094275 | AU27: 0.01116139971 | AV27: 0 | AW27: 0 | AX27: 1.78777506 | AY27: 1.78777506 | AZ27: 38.35367599 | BA27: 0.001494922121 | BB27: --- | BC27: 4.018103894e-06 | BD27: 1.787779078 | BE27: 38.3538484 | BF27: 1.815283372 | BG27: 39.54304464 | BH27: 955.5670282 | BI27: 0 | BJ27: 0 | BK27: 7.414320871 | BL27: 536.75 | BM27: 1.794096598 | BN27: -65.23987629 | BO27: 0 | BP27: 0 | BQ27: -455625
A28: 312 | B28: 12 | C28: 529.1670002 | D28: 2.430542122 | E28: -0.006156629501 | G28: 2.430501228 | H28: -0.01233567012 | I28: -0.1934131128 | J28: -0.02944768222 | K28: -0.9234944251 | L28: -0.02939621279 | M28: 0 | N28: 0 | O28: 0 | P28: -0.02944768222 | Q28: 0.01040599186 | R28: 729.1509225 | S28: 6379932.814 | T28: 0.2234354244 | U28: 8749.81107 | V28: 12 | W28: --- | X28: 729.1509225 | Y28: -0.1934131128 | Z28: 0 | AA28: 0 | AB28: -0.02944768222 | AC28: -0.02944768222 | AD28: 0.01040599186 | AE28: 0.4489035865 | AF28: 0.2234354244 | AG28: 8749.81107 | AH28: --- | AI28: 5104.056458 | AJ28: -1.35389179 | AK28: 1.787729236 | AL28: -6.63406977e-05 | AM28: -0.004206811746 | AN28: 1.783456084 | AO28: 38.16858722 | AP28: 21.99627574 | AQ28: 347443.3265 | AR28: 61248.67749 | AS28: --- | AT28: 5104.056458 | AU28: -1.35389179 | AV28: 0 | AW28: 0 | AX28: 1.783456084 | AY28: 1.783456084 | AZ28: 38.16858722 | BA28: 21.99627574 | BB28: --- | BC28: -0.0004874010443 | BD28: 1.782968683 | BE28: 38.14772787 | BF28: 1.81039897 | BG28: 39.33053316 | BH28: 952.988813 | BI28: 0 | BJ28: 0 | BK28: 7.374474968 | BL28: 536.75 | BM28: 1.789218981 | BN28: -65.06250839 | BO28: 0 | BP28: 0 | BQ28: -455625
A29: 324 | B29: 12 | C29: 558.3323491 | D29: 2.430264075 | E29: -0.04939843539 | G29: 2.430112853 | H29: -0.06155744676 | I29: -1.551872685 | J29: -0.2362769154 | K29: -7.409765308 | L29: -0.2358639444 | M29: 0 | N29: 0 | O29: 0 | P29: -0.2362769154 | Q29: 0.6699213687 | R29: 729.0675096 | S29: 6378473.203 | T29: 115.4018757 | U29: 8748.810115 | V29: 12 | W29: --- | X29: 729.0675096 | Y29: -1.551872685 | Z29: 0 | AA29: 0 | AB29: -0.2362769154 | AC29: -0.2362769154 | AD29: 0.6699213687 | AE29: 28.89970598 | AF29: 115.4018757 | AG29: 8748.810115 | AH29: --- | AI29: 5103.472567 | AJ29: -10.8631088 | AK29: 1.787565625 | AL29: -0.0005322923311 | AM29: -0.03375384505 | AN29: 1.753279488 | AO29: 36.88786754 | AP29: 1416.085593 | AQ29: 330065.7691 | AR29: 61241.67081 | AS29: --- | AT29: 5103.472567 | AU29: -10.8631088 | AV29: 0 | AW29: 0 | AX29: 1.753279488 | AY29: 1.753279488 | AZ29: 36.88786754 | BA29: 1416.085593 | BB29: --- | BC29: -0.003910719167 | BD29: 1.749368768 | BE29: 36.72349306 | BF29: 1.776282134 | BG29: 37.86213864 | BH29: 934.9228438 | BI29: 0 | BJ29: 0 | BK29: 7.099150995 | BL29: 536.75 | BM29: 1.755047964 | BN29: -63.81992597 | BO29: 0 | BP29: 0 | BQ29: -455625
A30: 336 | B30: 12 | C30: 587.4897087 | D30: 2.429064744 | E30: -0.1655146651 | G30: 2.428733626 | H30: -0.1832554251 | I30: -5.199713023 | J30: -0.791670712 | K30: -24.82719976 | L30: -0.7902870093 | M30: 0 | N30: 0 | O30: 0 | P30: -0.791670712 | Q30: 7.520910194 | R30: 728.707716 | S30: 6372179.225 | T30: 4338.787192 | U30: 8744.492592 | V30: 12 | W30: --- | X30: 728.707716 | Y30: -5.199713023 | Z30: 0 | AA30: 0 | AB30: -0.791670712 | AC30: -0.791670712 | AD30: 7.520910194 | AE30: 324.4441863 | AF30: 4338.787192 | AG30: 8744.492592 | AH30: --- | AI30: 5100.954012 | AJ30: -36.39799116 | AK30: 1.786859862 | AL30: -0.001783501567 | AM30: -0.113095816 | AN30: 1.671980544 | AO30: 33.54622728 | AP30: 15897.76513 | AQ30: 286105.5699 | AR30: 61211.44815 | AS30: --- | AT30: 5100.954012 | AU30: -36.39799116 | AV30: 0 | AW30: 0 | AX30: 1.671980544 | AY30: 1.671980544 | AZ30: 33.54622728 | BA30: 15897.76513 | BB30: --- | BC30: -0.01310327682 | BD30: 1.658877267 | BE30: 33.02248545 | BF30: 1.684398456 | BG30: 34.0463779 | BH30: 886.1235565 | BI30: 0 | BJ30: 0 | BK30: 6.383695857 | BL30: 536.75 | BM30: 1.662798793 | BN30: -60.46541067 | BO30: 0 | BP30: 0 | BQ30: -455625
A31: 348 | B31: 12 | C31: 616.6219561 | D31: 2.425865945 | E31: -0.3879559885 | G31: 2.425291334 | H31: -0.410681164 | I31: -12.18780103 | J31: -1.855626469 | K31: -58.19339827 | L31: -1.852383157 | M31: 0 | N31: 0 | O31: 0 | P31: -1.855626469 | Q31: 41.32019512 | R31: 727.7480918 | S31: 6355407.421 | T31: 55799.97417 | U31: 8732.977101 | V31: 12 | W31: --- | X31: 727.7480918 | Y31: -12.18780103 | Z31: 0 | AA31: 0 | AB31: -1.855626469 | AC31: -1.855626469 | AD31: 41.32019512 | AE31: 1782.509927 | AF31: 55799.97417 | AG31: 8732.977101 | AH31: --- | AI31: 5094.236642 | AJ31: -85.31460721 | AK31: 1.784977142 | AL31: -0.004180415753 | AM31: -0.2650894956 | AN31: 1.515707231 | AO31: 27.56842093 | AP31: 87342.98643 | AQ31: 212866.0146 | AR31: 61130.83971 | AS31: --- | AT31: 5094.236642 | AU31: -85.31460721 | AV31: 0 | AW31: 0 | AX31: 1.515707231 | AY31: 1.515707231 | AZ31: 27.56842093 | BA31: 87342.98643 | BB31: --- | BC31: -0.03071325859 | BD31: 1.484993973 | BE31: 26.46248518 | BF31: 1.507840034 | BG31: 27.2829788 | BH31: 792.1955969 | BI31: 0 | BJ31: 0 | BK31: 5.115558526 | BL31: 536.75 | BM31: 1.485442302 | BN31: -54.0160837 | BO31: 0 | BP31: 0 | BQ31: -455625
A32: 360 | B32: 12 | C32: 645.6967007 | D32: 2.419208396 | E32: -0.7465890763 | G32: 2.418335059 | H32: -0.773502223 | I32: -23.45441077 | J32: -3.570999012 | K32: -111.9883614 | L32: -3.564757527 | M32: 0 | N32: 0 | O32: 0 | P32: -3.570999012 | Q32: 153.0244074 | R32: 725.7508591 | S32: 6320571.714 | T32: 396586.5625 | U32: 8709.01031 | V32: 12 | W32: --- | X32: 725.7508591 | Y32: -23.45441077 | Z32: 0 | AA32: 0 | AB32: -3.570999012 | AC32: -3.570999012 | AD32: 153.0244074 | AE32: 6601.312612 | AF32: 396586.5625 | AG32: 8709.01031 | AH32: --- | AI32: 5080.256014 | AJ32: -164.1808754 | AK32: 1.781057111 | AL32: -0.008044862893 | AM32: -0.5101427161 | AN32: 1.262869532 | AO32: 19.13807347 | AP32: 323464.318 | AQ32: 122784.1482 | AR32: 60963.07217 | AS32: --- | AT32: 5080.256014 | AU32: -164.1808754 | AV32: 0 | AW32: 0 | AX32: 1.262869532 | AY32: 1.262869532 | AZ32: 19.13807347 | BA32: 323464.318 | BB32: --- | BC32: -0.05910511513 | BD32: 1.203764417 | BE32: 17.38858527 | BF32: 1.22228387 | BG32: 17.9277343 | BH32: 640.4064807 | BI32: 0 | BJ32: 0 | BK32: 3.361450181 | BL32: 536.75 | BM32: 1.199381334 | BN32: -43.61386668 | BO32: 0 | BP32: 0 | BQ32: -455625
A33: 372 | B33: 12 | C33: 674.6619975 | D33: 2.407301891 | E33: -1.266501934 | G33: 2.406085348 | H33: -1.296607496 | I33: -39.78769249 | J33: -6.057786402 | K33: -189.97529 | L33: -6.047198445 | M33: 0 | N33: 0 | O33: 0 | P33: -6.057786402 | Q33: 440.3613131 | R33: 722.1789652 | S33: 6258509.494 | T33: 1926495.277 | U33: 8666.147583 | V33: 12 | W33: --- | X33: 722.1789652 | Y33: -39.78769249 | Z33: 0 | AA33: 0 | AB33: -6.057786402 | AC33: -6.057786402 | AD33: 440.3613131 | AE33: 18996.72569 | AF33: 1926495.277 | AG33: 8666.147583 | AH33: --- | AI33: 5055.252757 | AJ33: -278.5138474 | AK33: 1.774041057 | AL33: -0.01364717853 | AM33: -0.8653980574 | AN33: 0.8949958211 | AO33: 9.612210237 | AP33: 930839.5587 | AQ33: 43489.77324 | AR33: 60663.03308 | AS33: --- | AT33: 5055.252757 | AU33: -278.5138474 | AV33: 0 | AW33: 0 | AX33: 0.8949958211 | AY33: 0.8949958211 | AZ33: 9.612210237 | BA33: 930839.5587 | BB33: --- | BC33: -0.1002649851 | BD33: 0.794730836 | BE33: 7.57916522 | BF33: 0.8069574642 | BG33: 7.814164189 | BH33: 420.7184491 | BI33: 0 | BJ33: 0 | BK33: 1.465155785 | BL33: 536.75 | BM33: 0.7865553887 | BN33: -28.60201413 | BO33: 0 | BP33: 0 | BQ33: -455625
A34: 384 | B34: 12 | C34: 703.442749 | D34: 2.388089816 | E34: -1.966809233 | G34: 2.386498725 | H34: -1.998912545 | I34: -61.78814172 | J34: -9.407415742 | K34: -295.021385 | L34: -9.390973215 | M34: 0 | N34: 0 | O34: =MProzess -> 0 | P34: -9.407415742 | Q34: 1061.993651 | R34: 716.4154351 | S34: 6159012.908 | T34: 7157431.36 | U34: 8596.985222 | V34: 12 | W34: --- | X34: 716.4154351 | Y34: -61.78814172 | Z34: 0 | AA34: 0 | AB34: -9.407415742 | AC34: -9.407415742 | AD34: 1061.993651 | AE34: 45813.29348 | AF34: 7157431.36 | AG34: 8596.985222 | AH34: --- | AI34: 5014.908046 | AJ34: -432.516992 | AK34: 1.762705445 | AL34: -0.02119333261 | AM34: -1.343916535 | AN34: 0.3975955783 | AO34: 1.896986927 | AP34: 2244851.381 | AQ34: 3782.412221 | AR34: 60178.89655 | AS34: --- | AT34: 5014.908046 | AU34: -432.516992 | AV34: 0 | AW34: 0 | AX34: 0.3975955783 | AY34: 0.3975955783 | AZ34: 1.896986927 | BA34: 2244851.381 | BB34: --- | BC34: -0.1557061171 | BD34: 0.2418894612 | BE34: 0.7021261374 | BF34: =BD34*INennM/MNennM -> 0.2456108375 | BG34: 0.7238962022 | BH34: 127.0306555 | BI34: 0 | BJ34: 0 | BK34: =3*BF34^2*R_ph -> 0.1357305379 | BL34: 536.75 | BM34: 0.2369192102 | BN34: -8.615244008 | BO34: =IF(AND(BL34>=UREin,BL34*BM34<0),BL34*BM34,0) -> 0 | BP34: 0 | BQ34: =UREin^2/(BO34-1) -> -455625
A35: 396 | B35: 12 | C35: 731.9379669 | D35: 2.35932799 | E35: -2.859457648 | G35: 2.357346542 | H35: -2.892164932 | I35: -89.83106823 | J35: -13.67702899 | K35: -428.9186472 | L35: -13.65312392 | M35: 0 | N35: 0 | O35: 0 | P35: -13.67702899 | Q35: 2244.733463 | R35: 707.7870261 | S35: 6011549.692 | T35: 21729970.96 | U35: 8493.444313 | V35: 12 | W35: --- | X35: 707.7870261 | Y35: -89.83106823 | Z35: 0 | AA35: 0 | AB35: -13.67702899 | AC35: -13.67702899 | AD35: 2244.733463 | AE35: 96835.44983 | AF35: 21729970.96 | AG35: 8493.444313 | AH35: --- | AI35: 4954.509183 | AJ35: -628.8174776 | AK35: 1.745701065 | AL35: -0.0308120564 | AM35: -1.953861284 | AN35: -0.2389722748 | AO35: 0.6852929776 | AP35: 4744937.041 | AQ35: -811.3802587 | AR35: 59454.11019 | AS35: --- | AT35: 4954.509183 | AU35: -628.8174776 | AV35: 0 | AW35: 0 | AX35: -0.2389722748 | AY35: -0.2389722748 | AZ35: 0.6852929776 | BA35: 4744937.041 | BB35: --- | BC35: -0.2263742919 | BD35: -0.4653465668 | BE35: 2.598569126 | BF35: -0.4725057447 | BG35: 2.679140145 | BH35: -241.4380805 | BI35: -241.4380805 | BJ35: -2897.256967 | BK35: 0.5023387773 | BL35: =IF((BL34+BN34)<$BL$2*0.95,$BL$2*0.95,IF((BL34+BN34)>UREin,UREin,(BL34+BN34))) -> 536.75 | BM35: -0.4488788855 | BN35: 16.32286856 | BO35: 0 | BP35: 0 | BQ35: -455625
A36: 408 | B36: 12 | C36: 760.019066 | D36: 2.318677857 | E36: -3.948031187 | G36: 2.316308163 | H36: -3.979749554 | I36: -124.0290652 | J36: -18.88376875 | K36: -592.2046781 | L36: -18.85076321 | M36: 0 | N36: 0 | O36: 0 | P36: -18.88376875 | Q36: 4279.160668 | R36: 695.5921822 | S36: 5806181.807 | T36: 56208495.24 | U36: 8347.106186 | V36: 12 | W36: --- | X36: 695.5921822 | Y36: -124.0290652 | Z36: 0 | AA36: 0 | AB36: -18.88376875 | AC36: -18.88376875 | AD36: 4279.160668 | AE36: 184598.508 | AF36: 56208495.24 | AG36: 8347.106186 | AH36: --- | AI36: 4869.145275 | AJ36: -868.2034561 | AK36: 1.72159722 | AL36: -0.04254196935 | AM36: -2.697681251 | AN36: -1.018626 | AO36: 12.45118713 | AP36: 9045326.893 | AQ36: -61755.87079 | AR36: 58429.7433 | AS36: --- | AT36: 4869.145275 | AU36: -868.2034561 | AV36: 0 | AW36: 0 | AX36: -1.018626 | AY36: -1.018626 | AZ36: 12.45118713 | BA36: 9045326.893 | BB36: --- | BC36: -0.3125532442 | BD36: -1.331179244 | BE36: 21.26445816 | BF36: -1.351658925 | BG36: 21.92378219 | BH36: -678.7625737 | BI36: -678.7625737 | BJ36: -8145.150884 | BK36: 4.110709161 | BL36: 553.0728686 | BM36: -1.219824553 | BN36: 44.35725646 | BO36: 0 | BP36: 0 | BQ36: -455625
A37: 420 | B37: 12 | C37: 787.5293628 | D37: 2.263814001 | E37: -5.226556526 | G37: 2.26107848 | H37: -5.255493976 | I37: -164.194478 | J37: -24.99906412 | K37: -783.9834789 | L37: -24.95537011 | M37: 0 | N37: 0 | O37: 0 | P37: -24.99906412 | Q37: 7499.438485 | R37: 679.1332897 | S37: 5534664.301 | T37: 127323191.7 | U37: 8149.599476 | V37: 12 | W37: --- | X37: 679.1332897 | Y37: -164.194478 | Z37: 0 | AA37: 0 | AB37: -24.99906412 | AC37: -24.99906412 | AD37: 7499.438485 | AE37: 323517.9192 | AF37: 127323191.7 | AG37: 8149.599476 | AH37: --- | AI37: 4753.933028 | AJ37: -1149.361346 | AK37: 1.688930638 | AL37: -0.05631870595 | AM37: -3.571294875 | AN37: -1.938682942 | AO37: 45.10189861 | AP37: 15852378.04 | AQ37: -415675.7343 | AR37: 57047.19633 | AS37: --- | AT37: 4753.933028 | AU37: -1149.361346 | AV37: 0 | AW37: 0 | AX37: -1.938682942 | AY37: -1.938682942 | AZ37: 45.10189861 | BA37: 15852378.04 | BB37: --- | BC37: -0.4137700845 | BD37: -2.352453027 | BE37: 66.40842292 | BF37: -2.388644612 | BG37: 68.46747698 | BH37: -1171.123343 | BI37: -1171.123343 | BJ37: -14053.48012 | BK37: 12.83765193 | BL37: 597.430125 | BM37: -1.93878019 | BN37: 70.5010978 | BO37: 0 | BP37: 0 | BQ37: -455625
A38: 432 | B38: 12 | C38: 814.2849496 | D38: 2.192546002 | E38: -6.678308341 | G38: 2.189489773 | H38: -6.702473763 | I38: -209.8018736 | J38: -31.94291645 | K38: -1001.746251 | L38: -31.88708579 | M38: 0 | N38: 0 | O38: 0 | P38: -31.94291645 | Q38: 12244.19894 | R38: 657.7532334 | S38: 5191671.793 | T38: 257257434.6 | U38: 7893.038801 | V38: 12 | W38: --- | X38: 657.7532334 | Y38: -209.8018736 | Z38: 0 | AA38: 0 | AB38: -31.94291645 | AC38: -31.94291645 | AD38: 12244.19894 | AE38: 528201.9142 | AF38: 257257434.6 | AG38: 7893.038801 | AH38: --- | AI38: 4604.272634 | AJ38: -1468.613115 | AK38: 1.646259114 | AL38: -0.07196204266 | AM38: -4.563273779 | AN38: -2.988976708 | AO38: 107.2077811 | AP38: 25881893.8 | AQ38: -1475400.309 | AR38: 55251.27161 | AS38: --- | AT38: 4604.272634 | AU38: -1468.613115 | AV38: 0 | AW38: 0 | AX38: -2.988976708 | AY38: -2.988976708 | AZ38: 107.2077811 | BA38: 25881893.8 | BB38: --- | BC38: -0.5287007216 | BD38: -3.51767743 | BE38: 148.488654 | BF38: -3.571795544 | BG38: 153.0926809 | BH38: -1696.077379 | BI38: -1696.077379 | BJ38: -20352.92855 | BK38: 28.70487767 | BL38: 667.9312228 | BM38: -2.49632364 | BN38: 90.77540509 | BO38: 0 | BP38: 0 | BQ38: -455625
A39: 444 | B39: 12 | C39: 840.0771174 | D39: 2.102954631 | E39: -8.274614643 | G39: 2.099647901 | H39: -8.291817815 | I39: -259.9505095 | J39: -39.57818519 | K39: -1241.192196 | L39: -39.5090094 | M39: 0 | N39: 0 | O39: 0 | P39: -39.57818519 | Q39: 18797.19291 | R39: 630.8762538 | S39: 4776058.172 | T39: 469345929.4 | U39: 7570.515046 | V39: 12 | W39: --- | X39: 630.8762538 | Y39: -259.9505095 | Z39: 0 | AA39: 0 | AB39: -39.57818519 | AC39: -39.57818519 | AD39: 18797.19291 | AE39: 810891.2087 | AF39: 469345929.4 | AG39: 7570.515046 | AH39: --- | AI39: 4416.133777 | AJ39: -1819.653566 | AK39: 1.592220252 | AL39: -0.08916302476 | AM39: -5.654026455 | AN39: -4.150969228 | AO39: 206.7665464 | AP39: 39733669.22 | AQ39: -3790286.237 | AR39: 52993.60532 | AS39: --- | AT39: 4416.133777 | AU39: -1819.653566 | AV39: 0 | AW39: 0 | AX39: -4.150969228 | AY39: -4.150969228 | AZ39: 206.7665464 | BA39: 39733669.22 | BB39: --- | BC39: -0.6550752839 | BD39: -4.806044512 | BE39: 277.1767662 | BF39: -4.879983658 | BG39: 285.770886 | BH39: -2222.586272 | BI39: -2222.586272 | BJ39: -26671.03527 | BK39: 53.58204113 | BL39: 675 | BM39: -3.213339602 | BN39: 116.8487128 | BO39: -2169.004231 | BP39: -26028.05077 | BQ39: -209.9650284
A40: 456 | B40: 12 | C40: 864.6764992 | D40: 1.993542374 | E40: -9.973662112 | G40: 1.990082827 | H40: -9.981513701 | I40: -313.3268024 | J40: -47.70487365 | K40: -1496.049317 | L40: -47.62149383 | M40: 0 | N40: 0 | O40: 0 | P40: -47.70487365 | Q40: 27309.05964 | R40: 598.0531043 | S40: 4292010.187 | T40: 779128776.2 | U40: 7176.637251 | V40: 12 | W40: --- | X40: 598.0531043 | Y40: -313.3268024 | Z40: 0 | AA40: 0 | AB40: -47.70487365 | AC40: -47.70487365 | AD40: 27309.05964 | AE40: 1178084.222 | AF40: 779128776.2 | AG40: 7176.637251 | AH40: --- | AI40: 4186.37173 | AJ40: -2193.287617 | AK40: 1.525596199 | AL40: -0.1074710932 | AM40: -6.81498195 | AN40: -5.396856844 | AO40: 349.5127655 | AP40: 57726126.85 | AQ40: -7896628.913 | AR40: 50236.46076 | AS40: --- | AT40: 4186.37173 | AU40: -2193.287617 | AV40: 0 | AW40: 0 | AX40: -5.396856844 | AY40: -5.396856844 | AZ40: 349.5127655 | BA40: 57726126.85 | BB40: --- | BC40: -0.7895835421 | BD40: -6.186440386 | BE40: 459.2645358 | BF40: -6.281616392 | BG40: 473.5044539 | BH40: -2712.109621 | BI40: -2712.109621 | BJ40: -32545.31545 | BK40: 88.78208511 | BL40: 675 | BM40: -3.886411164 | BN40: 141.3240423 | BO40: -2623.327536 | BP40: -31479.93043 | BQ40: -173.615905
A41: 468 | B41: 12 | C41: 887.8391052 | D41: 1.863398302 | E41: -11.71930143 | G41: 1.859913487 | H41: -11.71521299 | I41: -368.1667979 | J41: -56.05441487 | K41: -1757.895214 | L41: -55.95644151 | M41: 0 | N41: 0 | O41: 0 | P41: -56.05441487 | Q41: 37705.16912 | R41: 559.0105098 | S41: 3749913 | T41: 1181491740 | U41: 6708.126117 | V41: 12 | W41: --- | X41: 559.0105098 | Y41: -368.1667979 | Z41: 0 | AA41: 0 | AB41: -56.05441487 | AC41: -56.05441487 | AD41: 37705.16912 | AE41: 1626561.493 | AF41: 1181491740 | AG41: 6708.126117 | AH41: --- | AI41: 3913.073568 | AJ41: -2577.167585 | AK41: 1.445385778 | AL41: -0.1262812117 | AM41: -8.007773553 | AN41: -6.688668987 | AO41: 536.8595138 | AP41: 79701513.15 | AQ41: -14051360.32 | AR41: 46956.88282 | AS41: --- | AT41: 3913.073568 | AU41: -2577.167585 | AV41: 0 | AW41: 0 | AX41: -6.688668987 | AY41: -6.688668987 | AZ41: 536.8595138 | BA41: 79701513.15 | BB41: --- | BC41: -0.9277803307 | BD41: -7.616449317 | BE41: 696.1236025 | BF41: -7.733625461 | BG41: 717.7075532 | BH41: -3121.038942 | BI41: -3121.038942 | BJ41: -37452.4673 | BK41: 134.5701662 | BL41: 675 | BM41: -4.424398186 | BN41: 160.8872068 | BO41: -2986.468775 | BP41: -35837.6253 | BQ41: -152.5120543
A42: 480 | B42: 12 | C42: 909.3144229 | D42: 1.712377263 | E42: -13.4398526 | G42: 1.709026988 | H42: -13.42103658 | I42: -422.2186389 | J42: -64.2839574 | K42: -2015.977891 | L42: -64.17160022 | M42: 0 | N42: 0 | O42: 0 | P42: -64.2839574 | Q42: 49589.12615 | R42: 513.7049259 | S42: 3166713.01 | T42: 1637580997 | U42: 6164.45911 | V42: 12 | W42: --- | X42: 513.7049259 | Y42: -422.2186389 | Z42: 0 | AA42: 0 | AB42: -64.2839574 | AC42: -64.2839574 | AD42: 49589.12615 | AE42: 2139222.948 | AF42: 1637580997 | AG42: 6164.45911 | AH42: --- | AI42: 3595.934481 | AJ42: -2955.530472 | AK42: 1.350886255 | AL42: -0.1448209931 | AM42: -9.183422486 | AN42: -7.977357223 | AO42: 763.6587392 | AP42: 104821924.5 | AQ42: -21906355.76 | AR42: 43151.21377 | AS42: --- | AT42: 3595.934481 | AU42: -2955.530472 | AV42: 0 | AW42: 0 | AX42: -7.977357223 | AY42: -7.977357223 | AZ42: 763.6587392 | BA42: 104821924.5 | BB42: --- | BC42: -1.06399097 | BD42: -9.041348193 | BE42: 980.9517258 | BF42: -9.180445858 | BG42: 1011.367034 | BH42: -3404.658703 | BI42: -3404.658703 | BJ42: -40855.90443 | BK42: 189.6313188 | BL42: 675 | BM42: -4.763003532 | BN42: 173.2001284 | BO42: -3215.027384 | BP42: -38580.32861 | BQ42: -141.673234
A43: 492 | B43: 12 | C43: 928.8557529 | D43: 1.541293424 | E43: -15.04691032 | G43: 1.538272141 | H43: -15.01038005 | I43: -472.7050351 | J43: -71.97065108 | K43: -2257.036549 | L43: -71.8448589 | M43: 0 | N43: 0 | O43: 0 | P43: =J43+M43+N43+O43 -> -71.97065108 | Q43: 62157.2954 | R43: 462.3805988 | S43: 2565549.817 | T43: 2068460080 | U43: 5548.567185 | V43: 12 | W43: --- | X43: 462.3805988 | Y43: -472.7050351 | Z43: 0 | AA43: 0 | AB43: -71.97065108 | AC43: -71.97065108 | AD43: 62157.2954 | AE43: 2681400.602 | AF43: 2068460080 | AG43: 5548.567185 | AH43: --- | AI43: 3236.664191 | AJ43: -3308.935245 | AK43: 1.241788064 | AL43: =JGetriebe/10000*AJ43 -> -0.162137827 | AM43: -10.28152158 | AN43: =AK43+AL43+AM43 -> -9.201871345 | AO43: 1016.093235 | AP43: 131388629.5 | AQ43: -30262678.21 | AR43: 38839.9703 | AS43: --- | AT43: 3236.664191 | AU43: -3308.935245 | AV43: 0 | AW43: 0 | AX43: -9.201871345 | AY43: -9.201871345 | AZ43: 1016.093235 | BA43: 131388629.5 | BB43: --- | BC43: -1.191216688 | BD43: -10.39308803 | BE43: 1296.195346 | BF43: -10.5529817 | BG43: 1336.385072 | BH43: -3522.661127 | BI43: -3522.661127 | BJ43: -42271.93353 | BK43: 250.572201 | BL43: 675 | BM43: -4.84753915 | BN43: 176.2741509 | BO43: -3272.088926 | BP43: -39265.06712 | BQ43: -139.2033673
A44: 504 | B44: 12 | C44: 946.2329542 | D44: 1.352128141 | E44: -16.43414927 | G44: 1.349667336 | H44: -16.37671898 | I44: -516.2857318 | J44: -78.60593288 | K44: -2465.122391 | L44: -78.46854338 | M44: 0 | N44: 0 | O44: 0 | P44: -78.60593288 | Q44: 74146.7122 | R44: 405.6319257 | S44: 1974447.11 | T44: 2364173548 | U44: 4867.583109 | V44: 12 | W44: --- | X44: 405.6319257 | Y44: -516.2857318 | Z44: 0 | AA44: 0 | AB44: -78.60593288 | AC44: -78.60593288 | AD44: 74146.7122 | AE44: 3198611.482 | AF44: 2364173548 | AG44: 4867.583109 | AH44: --- | AI44: 2839.42348 | AJ44: -3614.000123 | AK44: 1.118287582 | AL44: -0.177086006 | AM44: -11.22941898 | AN44: -10.28821741 | AO44: 1270.169009 | AP44: 156731962.6 | AQ44: -37104946.9 | AR44: 34073.08176 | AS44: --- | AT44: 2839.42348 | AU44: -3614.000123 | AV44: 0 | AW44: 0 | AX44: -10.28821741 | AY44: -10.28821741 | AZ44: 1270.169009 | BA44: 156731962.6 | BB44: --- | BC44: -1.301040044 | BD44: -11.58925745 | BE44: 1611.730659 | BF44: -11.76755372 | BG44: 1661.703846 | BH44: -3445.993056 | BI44: -3445.993056 | BJ44: -41351.91667 | BK44: 311.5694712 | BL44: 675 | BM44: -4.643590496 | BN44: 168.8578362 | BO44: -3134.423585 | BP44: -37613.08302 | BQ44: -145.315294
A45: 516 | B45: 12 | C45: 961.247769 | D45: 1.148252168 | E45: -17.47612946 | G45: 1.146622752 | H45: -17.39441425 | I45: -549.0199791 | J45: -83.58981271 | K45: -2621.41942 | L45: -83.44371226 | M45: 0 | N45: 0 | O45: 0 | P45: -83.58981271 | Q45: 83847.08147 | R45: 344.4701164 | S45: 1423915.933 | T45: 2414309006 | U45: 4133.641397 | V45: 12 | W45: --- | X45: 344.4701164 | Y45: -549.0199791 | Z45: 0 | AA45: 0 | AB45: -83.58981271 | AC45: -83.58981271 | AD45: 83847.08147 | AE45: 3617075.249 | AF45: 2414309006 | AG45: 4133.641397 | AH45: --- | AI45: 2411.290815 | AJ45: -3843.139854 | AK45: 0.9812259841 | AL45: -0.1883138528 | AM45: -11.94140182 | AN45: -11.14848968 | AO45: 1491.465867 | AP45: 177236687.2 | AQ45: -40093959.46 | AR45: 28935.48978 | AS45: --- | AT45: 2411.290815 | AU45: -3843.139854 | AV45: 0 | AW45: 0 | AX45: -11.14848968 | AY45: -11.14848968 | AZ45: 1491.465867 | BA45: 177236687.2 | BB45: --- | BC45: -1.383530347 | BD45: -12.53202003 | BE45: 1884.618313 | BF45: -12.72482034 | BG45: 1943.052632 | BH45: -3164.457667 | BI45: -3164.457667 | BJ45: -37973.49201 | BK45: 364.3223686 | BL45: 675 | BM45: -4.148348591 | BN45: 150.8490397 | BO45: -2800.135299 | BP45: -33601.62359 | BQ45: -162.6572626
A46: 528 | B46: 12 | C46: 973.7519003 | D46: 0.9346621993 | E46: -18.02710159 | G46: 0.9341768951 | H46: -17.91751746 | I46: -566.3290008 | J46: -86.22515922 | K46: -2704.065238 | L46: -86.07445264 | M46: 0 | N46: 0 | O46: 0 | P46: -86.22515922 | Q46: 89217.33699 | R46: 280.3941551 | S46: 943450.5867 | T46: 2157010292 | U46: 3364.729861 | V46: 12 | W46: --- | X46: 280.3941551 | Y46: -566.3290008 | Z46: 0 | AA46: 0 | AB46: -86.22515922 | AC46: -86.22515922 | AD46: 89217.33699 | AE46: 3848742.446 | AF46: 2157010292 | AG46: 3364.729861 | AH46: --- | AI46: 1962.759086 | AJ46: -3964.303006 | AK46: 0.832267554 | AL46: -0.1942508473 | AM46: -12.31787989 | AN46: -11.67986318 | AO46: 1637.030447 | AP46: 188588379.9 | AQ46: -37528526.16 | AR46: 23553.10903 | AS46: --- | AT46: 1962.759086 | AU46: -3964.303006 | AV46: 0 | AW46: 0 | AX46: -11.67986318 | AY46: -11.67986318 | AZ46: 1637.030447 | BA46: 188588379.9 | BB46: --- | BC46: -1.427149082 | BD46: -13.10701226 | BE46: 2061.525246 | BF46: -13.30865861 | BG46: 2125.444727 | BH46: -2694.010724 | BI46: -2694.010724 | BJ46: -32328.12869 | BK46: 398.5208863 | BL46: 675 | BM46: -3.400725686 | BN46: 123.6627522 | BO46: -2295.489838 | BP46: -27545.87805 | BQ46: -198.4006167
A47: 540 | B47: 12 | C47: 983.6680145 | D47: 0.7182317493 | E47: -17.91981233 | G47: 0.7192474841 | H47: -17.77857618 | I47: -562.9584636 | J47: -85.71198559 | K47: -2687.97185 | L47: -85.56217595 | M47: 0 | N47: 0 | O47: 0 | P47: -85.71198559 | Q47: 88158.53368 | R47: 215.4660632 | S47: 557107.4928 | T47: 1628113925 | U47: 2585.592759 | V47: 12 | W47: --- | X47: 215.4660632 | Y47: -562.9584636 | Z47: 0 | AA47: 0 | AB47: -85.71198559 | AC47: -85.71198559 | AD47: 88158.53368 | AE47: 3803066.781 | AF47: 1628113925 | AG47: 2585.592759 | AH47: --- | AI47: 1508.262443 | AJ47: -3940.709245 | AK47: 0.6741412473 | AL47: -0.193094753 | AM47: -12.24456937 | AN47: -11.76352288 | AO47: 1660.565645 | AP47: 186350272.3 | AQ47: -29462552.33 | AR47: 18099.14931 | AS47: --- | AT47: 1508.262443 | AU47: -3940.709245 | AV47: 0 | AW47: 0 | AX47: -11.76352288 | AY47: -11.76352288 | AZ47: 1660.565645 | BA47: 186350272.3 | BB47: --- | BC47: -1.418655328 | BD47: -13.1821782 | BE47: 2085.237866 | BF47: -13.38498095 | BG47: 2149.892579 | BH47: -2082.057471 | BI47: -2082.057471 | BJ47: -24984.68965 | BK47: 403.1048585 | BL47: 675 | BM47: -2.487337203 | BN47: 90.44862557 | BO47: -1678.952612 | BP47: -20147.43135 | BQ47: -271.2130073
A48: 552 | B48: 12 | C48: 991.0138399 | D48: 0.507976371 | E48: -16.96430972 | G48: 0.5108966633 | H48: -16.78743932 | I48: -532.9409459 | J48: -81.14173537 | K48: -2544.646458 | L48: -80.99991373 | M48: 0 | N48: 0 | O48: 0 | P48: -81.14173537 | Q48: 79007.77462 | R48: 152.3904631 | S48: 278674.2388 | T48: 976949038.3 | U48: 1828.685557 | V48: 12 | W48: --- | X48: 152.3904631 | Y48: -532.9409459 | Z48: 0 | AA48: 0 | AB48: -81.14173537 | AC48: -81.14173537 | AD48: 79007.77462 | AE48: 3408312.622 | AF48: 976949038.3 | AG48: 1828.685557 | AH48: --- | AI48: 1066.733241 | AJ48: -3730.586621 | AK48: 0.5109919163 | AL48: -0.1827987444 | AM48: -11.59167648 | AN48: -11.26348331 | AO48: 1522.392675 | AP48: 167007318.5 | AQ48: -18291749.04 | AR48: 12800.7989 | AS48: --- | AT48: 1066.733241 | AU48: -3730.586621 | AV48: 0 | AW48: 0 | AX48: -11.26348331 | AY48: -11.26348331 | AZ48: 1522.392675 | BA48: 167007318.5 | BB48: --- | BC48: -1.343011184 | BD48: -12.60649449 | BE48: 1907.084441 | BF48: -12.80044056 | BG48: 1966.215343 | BH48: -1408.246839 | BI48: -1408.246839 | BJ48: -16898.96207 | BK48: 368.6653768 | BL48: 675 | BM48: -1.540120685 | BN48: 56.00438854 | BO48: -1039.581462 | BP48: -12474.97755 | BQ48: -437.8561569
A49: 564 | B49: 12 | C49: 995.9295344 | D49: 0.3153332057 | E49: -14.94674844 | G49: 0.3206105554 | H49: -14.73006246 | I49: -469.5584071 | J49: -71.49156826 | K49: -2242.012266 | L49: -71.36661343 | M49: 0 | N49: 0 | O49: 0 | P49: -71.49156826 | Q49: 61332.53198 | R49: 94.59844193 | S49: 107386.3826 | T49: 414791359.9 | U49: 1135.181303 | V49: 12 | W49: --- | X49: 94.59844193 | Y49: -469.5584071 | Z49: 0 | AA49: 0 | AB49: -71.49156826 | AC49: -71.49156826 | AD49: 61332.53198 | AE49: 2645821.173 | AF49: 414791359.9 | AG49: 1135.181303 | AH49: --- | AI49: 662.1890935 | AJ49: -3286.90885 | AK49: 0.3489433978 | AL49: -0.1610585337 | AM49: -10.21308118 | AN49: -10.02519632 | AO49: 1206.054734 | AP49: 129645237.5 | AQ49: -8006485.602 | AR49: 7946.269122 | AS49: --- | AT49: 662.1890935 | AU49: -3286.90885 | AV49: 0 | AW49: 0 | AX49: -10.02519632 | AY49: -10.02519632 | AZ49: 1206.054734 | BA49: 129645237.5 | BB49: --- | BC49: -1.183287186 | BD49: -11.2084835 | BE49: 1507.561229 | BF49: -11.38092171 | BG49: 1554.304547 | BH49: -777.2442151 | BI49: -777.2442151 | BJ49: -9326.930581 | BK49: 291.4321026 | BL49: 675 | BM49: -0.7197216481 | BN49: 26.17169629 | BO49: -485.8121124 | BP49: -5829.745349 | BQ49: -935.9360385
A50: 576 | B50: 12 | C50: 998.7084932 | D50: 0.154454872 | E50: -11.62819518 | G50: 0.1625931497 | H50: -11.36731317 | I50: -365.3046566 | J50: -55.61864594 | K50: -1744.229277 | L50: -55.52143422 | M50: 0 | N50: 0 | O50: 0 | P50: -55.61864594 | Q50: 37121.20531 | R50: 46.3357172 | S50: 25763.98426 | T50: 95666166.25 | U50: 556.0286064 | V50: 12 | W50: --- | X50: 46.3357172 | Y50: -365.3046566 | Z50: 0 | AA50: 0 | AB50: -55.61864594 | AC50: -55.61864594 | AD50: 37121.20531 | AE50: 1601369.906 | AF50: 95666166.25 | AG50: 556.0286064 | AH50: --- | AI50: 324.3500204 | AJ50: -2557.132596 | AK50: 0.1971426139 | AL50: -0.1252994972 | AM50: -7.945520848 | AN50: -7.873677732 | AO50: 743.9376123 | AP50: 78467125.39 | AQ50: -1899888.357 | AR50: 3892.200244 | AS50: --- | AT50: 324.3500204 | AU50: -2557.132596 | AV50: 0 | AW50: 0 | AX50: -7.873677732 | AY50: -7.873677732 | AZ50: 743.9376123 | BA50: 78467125.39 | BB50: --- | BC50: -0.9205677347 | BD50: -8.794245467 | BE50: 928.0650399 | BF50: -8.929541551 | BG50: 956.8405477 | BH50: -298.7040638 | BI50: -298.7040638 | BJ50: -3584.448765 | BK50: 179.4076027 | BL50: 675 | BM50: -0.1767354979 | BN50: 6.426745378 | BO50: -119.2964611 | BP50: -1431.557533 | BQ50: -3787.517903
A51: 588 | B51: 12 | C51: 999.83177 | D51: 0.04251768956 | E51: -6.743433968 | G51: 0.05407452568 | H51: -6.433776381 | I51: -211.8478227 | J51: -32.25441786 | K51: -1011.515095 | L51: -32.19804275 | M51: 0 | N51: 0 | O51: 0 | P51: -32.25441786 | Q51: 12484.16966 | R51: 12.75510195 | S51: 1952.311509 | T51: 5136092.118 | U51: 153.0612234 | V51: 12 | W51: --- | X51: 12.75510195 | Y51: -211.8478227 | Z51: 0 | AA51: 0 | AB51: -32.25441786 | AC51: -32.25441786 | AD51: 12484.16966 | AE51: 538553.9997 | AF51: 5136092.118 | AG51: 153.0612234 | AH51: --- | AI51: 89.28571365 | AJ51: -1482.934759 | AK51: 0.07024168906 | AL51: -0.07266380318 | AM51: -4.607773981 | AN51: -4.610196095 | AO51: 255.0468964 | AP51: 26389145.99 | AQ51: -104983.589 | AR51: 1071.428564 | AS51: --- | AT51: 89.28571365 | AU51: -1482.934759 | AV51: 0 | AW51: 0 | AX51: -4.610196095 | AY51: -4.610196095 | AZ51: 255.0468964 | BA51: 26389145.99 | BB51: --- | BC51: -0.5338565132 | BD51: -5.144052608 | BE51: 317.5353268 | BF51: -5.223191879 | BG51: 327.3808008 | BH51: -48.09677907 | BI51: -48.09677907 | BJ51: -577.1613488 | BK51: 61.38390016 | BL51: 675 | BM51: 0.01968462383 | BN51: -0.715804503 | BO51: 0 | BP51: 0 | BQ51: -455625
